Workbook

Sheet Control
A1: Sheets | B1: Text File Names | C1: Description | E1: Notes: 50 sheets maximum
A2: 2WFines | B2: Project_2WFines.txt | C2: Water quality in the Cell 2W fine tailings unsaturated zone | E2: Referenced text files must be in same root folder as this spreadsheet
A3: 2WCoarse | B3: Project_2WCoarse.txt | C3: Water quality in the Cell 2W coarse tailings unsaturated zone
A4: 2WBank | B4: Project_2WBank.txt | C4: Water quality in the Cell 2W coarse banks unsaturated zone
A5: 2EFines | B5: Project_2EFines.txt | C5: Water quality in the Cell 2E fine tailings unsaturated zone
A6: 2ECoarse | B6: Project_2ECoarse.txt | C6: Water quality in the Cell 2E coarse tailings unsaturated zone
A7: 2EBank | B7: Project_2EBank.txt | C7: Water quality in the Cell 2E coarse banks unsaturated zone
A8: 1EFines | B8: Project_1EFines.txt | C8: Water quality in the Cell 1E fine tailings unsaturated zone
A9: 1ECoarse | B9: Project_1ECoarse.txt | C9: Water quality in the Cell 1E coarse tailings unsaturated zone

Sheet PlotControl
A2: Model Name: | B2: Plant Site Version 6.0
A4: Plot: | B4: Annual Average | C4: =B2 & " Model " & IF(B4="Annual Max", "Annual Maximum", B4) & " of Concentration Statistics " & B6 & " in the " & B8 -> Plant Site Version 6.0 Model Annual Average of Concentration Statistics SO4 in the Cell 2W Fines | V4: Directory to save PDFs to: | W4: P:\Mpls\23 MN\69\2369862\WorkFiles\APA\Support Docs\Surface WQ\Workfiles\Models\GoldSim\Tailings Basin\2012 MODEL\Base Model\Output_Data\LTVSMC_Tailings\Unsat_Quality\plots
C5: =B2 & " Model Monthly " & B6 & " Concentration at " & B8 -> Plant Site Version 6.0 Model Monthly SO4 Concentration at Cell 2W Fines | V5: Starting figure caption | W5: Figure A-1-0001
A6: Constituent to Plot (dropdown): | B6: SO4 | C6: =MATCH(B6,$A$25:$A$52,0) -> 24
V7: Note: This loops through the plots, constituent, and location drop down menus.
A8: Location to Plot (dropdown): | B8: Cell 2W Fines | C8: =MATCH(B8,$A$15:$A$22,0) -> 1
A10: Initial Time for Monthly Plot (yr): | B10: 0
B11: =B10+20 -> 20
A12: Standard | B12: =VLOOKUP($B$6,$A$25:$B$52,2,FALSE) -> 0
A14: Locations
A15: Cell 2W Fines
A16: Cell 2W Coarse
A17: Cell 2W Banks
A18: Cell 2E Fines
A19: Cell 2E Coarse
A20: Cell 2E Banks
A21: Cell 1E Fines
A22: Cell 1E Coarse
I23: Annual Project Results
A24: Constituent | H24: Time | I24: P10 | J24: P50 | K24: P90
A25: Ag | H25: 0 | I25: =VLOOKUP($H25,P_All!$A$5:$Y$205,3*($C$8-1)+2) -> 248620 | J25: =VLOOKUP($H25,P_All!$A$5:$Y$205,3*($C$8-1)+3) -> 251692.5 | K25: =VLOOKUP($H25,P_All!$A$5:$Y$205,3*($C$8-1)+4) -> 255070.8333
A26: Al | H26: 1 | I26: =VLOOKUP($H26,P_All!$A$5:$Y$205,3*($C$8-1)+2) -> 232528.3333 | J26: =VLOOKUP($H26,P_All!$A$5:$Y$205,3*($C$8-1)+3) -> 238980.8333 | K26: =VLOOKUP($H26,P_All!$A$5:$Y$205,3*($C$8-1)+4) -> 245677.5
A27: Alkalinity | H27: 2 | I27: =VLOOKUP($H27,P_All!$A$5:$Y$205,3*($C$8-1)+2) -> 231718.3333 | J27: =VLOOKUP($H27,P_All!$A$5:$Y$205,3*($C$8-1)+3) -> 239535 | K27: =VLOOKUP($H27,P_All!$A$5:$Y$205,3*($C$8-1)+4) -> 248225
A28: As | H28: 3 | I28: =VLOOKUP($H28,P_All!$A$5:$Y$205,3*($C$8-1)+2) -> 231039.1667 | J28: =VLOOKUP($H28,P_All!$A$5:$Y$205,3*($C$8-1)+3) -> 240611.6667 | K28: =VLOOKUP($H28,P_All!$A$5:$Y$205,3*($C$8-1)+4) -> 250952.5
A29: B | H29: 4 | I29: =VLOOKUP($H29,P_All!$A$5:$Y$205,3*($C$8-1)+2) -> 230788.3333 | J29: =VLOOKUP($H29,P_All!$A$5:$Y$205,3*($C$8-1)+3) -> 241765.8333 | K29: =VLOOKUP($H29,P_All!$A$5:$Y$205,3*($C$8-1)+4) -> 253230.8333
A30: Ba | H30: 5 | I30: =VLOOKUP($H30,P_All!$A$5:$Y$205,3*($C$8-1)+2) -> 230349.1667 | J30: =VLOOKUP($H30,P_All!$A$5:$Y$205,3*($C$8-1)+3) -> 243033.3333 | K30: =VLOOKUP($H30,P_All!$A$5:$Y$205,3*($C$8-1)+4) -> 255268.3333
A31: Be | H31: 6 | I31: =VLOOKUP($H31,P_All!$A$5:$Y$205,3*($C$8-1)+2) -> 229250.8333 | J31: =VLOOKUP($H31,P_All!$A$5:$Y$205,3*($C$8-1)+3) -> 243845 | K31: =VLOOKUP($H31,P_All!$A$5:$Y$205,3*($C$8-1)+4) -> 257402.5
A32: Ca | H32: 7 | I32: =VLOOKUP($H32,P_All!$A$5:$Y$205,3*($C$8-1)+2) -> 227801.6667 | J32: =VLOOKUP($H32,P_All!$A$5:$Y$205,3*($C$8-1)+3) -> 244035.8333 | K32: =VLOOKUP($H32,P_All!$A$5:$Y$205,3*($C$8-1)+4) -> 258615.8333
A33: Cd | H33: 8 | I33: =VLOOKUP($H33,P_All!$A$5:$Y$205,3*($C$8-1)+2) -> 226270 | J33: =VLOOKUP($H33,P_All!$A$5:$Y$205,3*($C$8-1)+3) -> 244236.6667 | K33: =VLOOKUP($H33,P_All!$A$5:$Y$205,3*($C$8-1)+4) -> 259319.1667
A34: Cl | H34: 9 | I34: =VLOOKUP($H34,P_All!$A$5:$Y$205,3*($C$8-1)+2) -> 225597.5 | J34: =VLOOKUP($H34,P_All!$A$5:$Y$205,3*($C$8-1)+3) -> 245097.5 | K34: =VLOOKUP($H34,P_All!$A$5:$Y$205,3*($C$8-1)+4) -> 261796.6667
A35: Co | H35: 10 | I35: =VLOOKUP($H35,P_All!$A$5:$Y$205,3*($C$8-1)+2) -> 225775.8333 | J35: =VLOOKUP($H35,P_All!$A$5:$Y$205,3*($C$8-1)+3) -> 246030 | K35: =VLOOKUP($H35,P_All!$A$5:$Y$205,3*($C$8-1)+4) -> 264021.6667
A36: Cr | H36: 11 | I36: =VLOOKUP($H36,P_All!$A$5:$Y$205,3*($C$8-1)+2) -> 223848.3333 | J36: =VLOOKUP($H36,P_All!$A$5:$Y$205,3*($C$8-1)+3) -> 246818.3333 | K36: =VLOOKUP($H36,P_All!$A$5:$Y$205,3*($C$8-1)+4) -> 266428.3333
A37: Cu | H37: 12 | I37: =VLOOKUP($H37,P_All!$A$5:$Y$205,3*($C$8-1)+2) -> 222985.8333 | J37: =VLOOKUP($H37,P_All!$A$5:$Y$205,3*($C$8-1)+3) -> 247771.6667 | K37: =VLOOKUP($H37,P_All!$A$5:$Y$205,3*($C$8-1)+4) -> 267149.1667
A38: F | H38: 13 | I38: =VLOOKUP($H38,P_All!$A$5:$Y$205,3*($C$8-1)+2) -> 222504.1667 | J38: =VLOOKUP($H38,P_All!$A$5:$Y$205,3*($C$8-1)+3) -> 248096.6667 | K38: =VLOOKUP($H38,P_All!$A$5:$Y$205,3*($C$8-1)+4) -> 268539.1667
A39: Fe | H39: 14 | I39: =VLOOKUP($H39,P_All!$A$5:$Y$205,3*($C$8-1)+2) -> 221633.3333 | J39: =VLOOKUP($H39,P_All!$A$5:$Y$205,3*($C$8-1)+3) -> 248675.8333 | K39: =VLOOKUP($H39,P_All!$A$5:$Y$205,3*($C$8-1)+4) -> 270457.5
A40: K | H40: 15 | I40: =VLOOKUP($H40,P_All!$A$5:$Y$205,3*($C$8-1)+2) -> 220980 | J40: =VLOOKUP($H40,P_All!$A$5:$Y$205,3*($C$8-1)+3) -> 249386.6667 | K40: =VLOOKUP($H40,P_All!$A$5:$Y$205,3*($C$8-1)+4) -> 272201.6667
A41: Mg | H41: 16 | I41: =VLOOKUP($H41,P_All!$A$5:$Y$205,3*($C$8-1)+2) -> 220985 | J41: =VLOOKUP($H41,P_All!$A$5:$Y$205,3*($C$8-1)+3) -> 250523.3333 | K41: =VLOOKUP($H41,P_All!$A$5:$Y$205,3*($C$8-1)+4) -> 273687.5
A42: Mn | H42: 17 | I42: =VLOOKUP($H42,P_All!$A$5:$Y$205,3*($C$8-1)+2) -> 220279.1667 | J42: =VLOOKUP($H42,P_All!$A$5:$Y$205,3*($C$8-1)+3) -> 251300 | K42: =VLOOKUP($H42,P_All!$A$5:$Y$205,3*($C$8-1)+4) -> 275497.5
A43: Na | H43: 18 | I43: =VLOOKUP($H43,P_All!$A$5:$Y$205,3*($C$8-1)+2) -> 218959.1667 | J43: =VLOOKUP($H43,P_All!$A$5:$Y$205,3*($C$8-1)+3) -> 251634.1667 | K43: =VLOOKUP($H43,P_All!$A$5:$Y$205,3*($C$8-1)+4) -> 276915
A44: Ni | H44: 19 | I44: =VLOOKUP($H44,P_All!$A$5:$Y$205,3*($C$8-1)+2) -> 219008.3333 | J44: =VLOOKUP($H44,P_All!$A$5:$Y$205,3*($C$8-1)+3) -> 252254.1667 | K44: =VLOOKUP($H44,P_All!$A$5:$Y$205,3*($C$8-1)+4) -> 278435.8333
A45: Pb | H45: 20 | I45: =VLOOKUP($H45,P_All!$A$5:$Y$205,3*($C$8-1)+2) -> 217481.6667 | J45: =VLOOKUP($H45,P_All!$A$5:$Y$205,3*($C$8-1)+3) -> 252957.5 | K45: =VLOOKUP($H45,P_All!$A$5:$Y$205,3*($C$8-1)+4) -> 280185
A46: Sb | H46: 21 | I46: =VLOOKUP($H46,P_All!$A$5:$Y$205,3*($C$8-1)+2) -> 217430 | J46: =VLOOKUP($H46,P_All!$A$5:$Y$205,3*($C$8-1)+3) -> 253142.5 | K46: =VLOOKUP($H46,P_All!$A$5:$Y$205,3*($C$8-1)+4) -> 281273.3333
A47: Se | H47: 22 | I47: =VLOOKUP($H47,P_All!$A$5:$Y$205,3*($C$8-1)+2) -> 217654.1667 | J47: =VLOOKUP($H47,P_All!$A$5:$Y$205,3*($C$8-1)+3) -> 253782.5 | K47: =VLOOKUP($H47,P_All!$A$5:$Y$205,3*($C$8-1)+4) -> 282296.6667
A48: SO4 | H48: 23 | I48: =VLOOKUP($H48,P_All!$A$5:$Y$205,3*($C$8-1)+2) -> 215565.8333 | J48: =VLOOKUP($H48,P_All!$A$5:$Y$205,3*($C$8-1)+3) -> 255010.8333 | K48: =VLOOKUP($H48,P_All!$A$5:$Y$205,3*($C$8-1)+4) -> 284542.5
A49: Tl | H49: 24 | I49: =VLOOKUP($H49,P_All!$A$5:$Y$205,3*($C$8-1)+2) -> 213850 | J49: =VLOOKUP($H49,P_All!$A$5:$Y$205,3*($C$8-1)+3) -> 256450.8333 | K49: =VLOOKUP($H49,P_All!$A$5:$Y$205,3*($C$8-1)+4) -> 285784.1667
A50: V | H50: 25 | I50: =VLOOKUP($H50,P_All!$A$5:$Y$205,3*($C$8-1)+2) -> 213298.3333 | J50: =VLOOKUP($H50,P_All!$A$5:$Y$205,3*($C$8-1)+3) -> 257142.5 | K50: =VLOOKUP($H50,P_All!$A$5:$Y$205,3*($C$8-1)+4) -> 286858.3333
A51: Zn | H51: 26 | I51: =VLOOKUP($H51,P_All!$A$5:$Y$205,3*($C$8-1)+2) -> 213270 | J51: =VLOOKUP($H51,P_All!$A$5:$Y$205,3*($C$8-1)+3) -> 256334.1667 | K51: =VLOOKUP($H51,P_All!$A$5:$Y$205,3*($C$8-1)+4) -> 286797.5
H52: 27 | I52: =VLOOKUP($H52,P_All!$A$5:$Y$205,3*($C$8-1)+2) -> 213165.8333 | J52: =VLOOKUP($H52,P_All!$A$5:$Y$205,3*($C$8-1)+3) -> 256217.5 | K52: =VLOOKUP($H52,P_All!$A$5:$Y$205,3*($C$8-1)+4) -> 286971.6667
H53: 28 | I53: =VLOOKUP($H53,P_All!$A$5:$Y$205,3*($C$8-1)+2) -> 212301.6667 | J53: =VLOOKUP($H53,P_All!$A$5:$Y$205,3*($C$8-1)+3) -> 257116.6667 | K53: =VLOOKUP($H53,P_All!$A$5:$Y$205,3*($C$8-1)+4) -> 289165
A54: Plots | H54: 29 | I54: =VLOOKUP($H54,P_All!$A$5:$Y$205,3*($C$8-1)+2) -> 211925 | J54: =VLOOKUP($H54,P_All!$A$5:$Y$205,3*($C$8-1)+3) -> 257523.3333 | K54: =VLOOKUP($H54,P_All!$A$5:$Y$205,3*($C$8-1)+4) -> 290160.8333
A55: Annual Max | H55: 30 | I55: =VLOOKUP($H55,P_All!$A$5:$Y$205,3*($C$8-1)+2) -> 211054.1667 | J55: =VLOOKUP($H55,P_All!$A$5:$Y$205,3*($C$8-1)+3) -> 257533.3333 | K55: =VLOOKUP($H55,P_All!$A$5:$Y$205,3*($C$8-1)+4) -> 290498.3333
A56: Annual Average | H56: 31 | I56: =VLOOKUP($H56,P_All!$A$5:$Y$205,3*($C$8-1)+2) -> 210230 | J56: =VLOOKUP($H56,P_All!$A$5:$Y$205,3*($C$8-1)+3) -> 258610.8333 | K56: =VLOOKUP($H56,P_All!$A$5:$Y$205,3*($C$8-1)+4) -> 291816.6667
H57: 32 | I57: =VLOOKUP($H57,P_All!$A$5:$Y$205,3*($C$8-1)+2) -> 210920.8333 | J57: =VLOOKUP($H57,P_All!$A$5:$Y$205,3*($C$8-1)+3) -> 258990 | K57: =VLOOKUP($H57,P_All!$A$5:$Y$205,3*($C$8-1)+4) -> 292220.8333
H58: 33 | I58: =VLOOKUP($H58,P_All!$A$5:$Y$205,3*($C$8-1)+2) -> 211557.5 | J58: =VLOOKUP($H58,P_All!$A$5:$Y$205,3*($C$8-1)+3) -> 258300.8333 | K58: =VLOOKUP($H58,P_All!$A$5:$Y$205,3*($C$8-1)+4) -> 293005.8333
H59: 34 | I59: =VLOOKUP($H59,P_All!$A$5:$Y$205,3*($C$8-1)+2) -> 209764.1667 | J59: =VLOOKUP($H59,P_All!$A$5:$Y$205,3*($C$8-1)+3) -> 260093.3333 | K59: =VLOOKUP($H59,P_All!$A$5:$Y$205,3*($C$8-1)+4) -> 295415.8333
H60: 35 | I60: =VLOOKUP($H60,P_All!$A$5:$Y$205,3*($C$8-1)+2) -> 209052.5 | J60: =VLOOKUP($H60,P_All!$A$5:$Y$205,3*($C$8-1)+3) -> 259638.3333 | K60: =VLOOKUP($H60,P_All!$A$5:$Y$205,3*($C$8-1)+4) -> 295214.1667
H61: 36 | I61: =VLOOKUP($H61,P_All!$A$5:$Y$205,3*($C$8-1)+2) -> 209368.3333 | J61: =VLOOKUP($H61,P_All!$A$5:$Y$205,3*($C$8-1)+3) -> 260682.5 | K61: =VLOOKUP($H61,P_All!$A$5:$Y$205,3*($C$8-1)+4) -> 296209.1667
H62: 37 | I62: =VLOOKUP($H62,P_All!$A$5:$Y$205,3*($C$8-1)+2) -> 209759.1667 | J62: =VLOOKUP($H62,P_All!$A$5:$Y$205,3*($C$8-1)+3) -> 260726.6667 | K62: =VLOOKUP($H62,P_All!$A$5:$Y$205,3*($C$8-1)+4) -> 296350.8333
H63: 38 | I63: =VLOOKUP($H63,P_All!$A$5:$Y$205,3*($C$8-1)+2) -> 209024.1667 | J63: =VLOOKUP($H63,P_All!$A$5:$Y$205,3*($C$8-1)+3) -> 261599.1667 | K63: =VLOOKUP($H63,P_All!$A$5:$Y$205,3*($C$8-1)+4) -> 297337.5
H64: 39 | I64: =VLOOKUP($H64,P_All!$A$5:$Y$205,3*($C$8-1)+2) -> 208236.6667 | J64: =VLOOKUP($H64,P_All!$A$5:$Y$205,3*($C$8-1)+3) -> 262150 | K64: =VLOOKUP($H64,P_All!$A$5:$Y$205,3*($C$8-1)+4) -> 297944.1667
H65: 40 | I65: =VLOOKUP($H65,P_All!$A$5:$Y$205,3*($C$8-1)+2) -> 208986.6667 | J65: =VLOOKUP($H65,P_All!$A$5:$Y$205,3*($C$8-1)+3) -> 261956.6667 | K65: =VLOOKUP($H65,P_All!$A$5:$Y$205,3*($C$8-1)+4) -> 297650
H66: 41 | I66: =VLOOKUP($H66,P_All!$A$5:$Y$205,3*($C$8-1)+2) -> 208568.3333 | J66: =VLOOKUP($H66,P_All!$A$5:$Y$205,3*($C$8-1)+3) -> 261799.1667 | K66: =VLOOKUP($H66,P_All!$A$5:$Y$205,3*($C$8-1)+4) -> 297777.5
H67: 42 | I67: =VLOOKUP($H67,P_All!$A$5:$Y$205,3*($C$8-1)+2) -> 208110 | J67: =VLOOKUP($H67,P_All!$A$5:$Y$205,3*($C$8-1)+3) -> 262839.1667 | K67: =VLOOKUP($H67,P_All!$A$5:$Y$205,3*($C$8-1)+4) -> 300498.3333
H68: 43 | I68: =VLOOKUP($H68,P_All!$A$5:$Y$205,3*($C$8-1)+2) -> 208065 | J68: =VLOOKUP($H68,P_All!$A$5:$Y$205,3*($C$8-1)+3) -> 261649.1667 | K68: =VLOOKUP($H68,P_All!$A$5:$Y$205,3*($C$8-1)+4) -> 301656.6667
H69: 44 | I69: =VLOOKUP($H69,P_All!$A$5:$Y$205,3*($C$8-1)+2) -> 207695.8333 | J69: =VLOOKUP($H69,P_All!$A$5:$Y$205,3*($C$8-1)+3) -> 262485 | K69: =VLOOKUP($H69,P_All!$A$5:$Y$205,3*($C$8-1)+4) -> 302178.3333
H70: 45 | I70: =VLOOKUP($H70,P_All!$A$5:$Y$205,3*($C$8-1)+2) -> 207806.6667 | J70: =VLOOKUP($H70,P_All!$A$5:$Y$205,3*($C$8-1)+3) -> 262787.5 | K70: =VLOOKUP($H70,P_All!$A$5:$Y$205,3*($C$8-1)+4) -> 302805
H71: 46 | I71: =VLOOKUP($H71,P_All!$A$5:$Y$205,3*($C$8-1)+2) -> 207590.8333 | J71: =VLOOKUP($H71,P_All!$A$5:$Y$205,3*($C$8-1)+3) -> 261746.6667 | K71: =VLOOKUP($H71,P_All!$A$5:$Y$205,3*($C$8-1)+4) -> 304338.3333
H72: 47 | I72: =VLOOKUP($H72,P_All!$A$5:$Y$205,3*($C$8-1)+2) -> 205505.8333 | J72: =VLOOKUP($H72,P_All!$A$5:$Y$205,3*($C$8-1)+3) -> 261930.8333 | K72: =VLOOKUP($H72,P_All!$A$5:$Y$205,3*($C$8-1)+4) -> 304532.5
H73: 48 | I73: =VLOOKUP($H73,P_All!$A$5:$Y$205,3*($C$8-1)+2) -> 206925 | J73: =VLOOKUP($H73,P_All!$A$5:$Y$205,3*($C$8-1)+3) -> 263322.5 | K73: =VLOOKUP($H73,P_All!$A$5:$Y$205,3*($C$8-1)+4) -> 305026.6667
H74: 49 | I74: =VLOOKUP($H74,P_All!$A$5:$Y$205,3*($C$8-1)+2) -> 207439.1667 | J74: =VLOOKUP($H74,P_All!$A$5:$Y$205,3*($C$8-1)+3) -> 263396.6667 | K74: =VLOOKUP($H74,P_All!$A$5:$Y$205,3*($C$8-1)+4) -> 304737.5
H75: 50 | I75: =VLOOKUP($H75,P_All!$A$5:$Y$205,3*($C$8-1)+2) -> 207719.1667 | J75: =VLOOKUP($H75,P_All!$A$5:$Y$205,3*($C$8-1)+3) -> 262914.1667 | K75: =VLOOKUP($H75,P_All!$A$5:$Y$205,3*($C$8-1)+4) -> 306611.6667
H76: 51 | I76: =VLOOKUP($H76,P_All!$A$5:$Y$205,3*($C$8-1)+2) -> 206858.3333 | J76: =VLOOKUP($H76,P_All!$A$5:$Y$205,3*($C$8-1)+3) -> 263466.6667 | K76: =VLOOKUP($H76,P_All!$A$5:$Y$205,3*($C$8-1)+4) -> 306836.6667
H77: 52 | I77: =VLOOKUP($H77,P_All!$A$5:$Y$205,3*($C$8-1)+2) -> 206861.6667 | J77: =VLOOKUP($H77,P_All!$A$5:$Y$205,3*($C$8-1)+3) -> 263290.8333 | K77: =VLOOKUP($H77,P_All!$A$5:$Y$205,3*($C$8-1)+4) -> 306410.8333
H78: 53 | I78: =VLOOKUP($H78,P_All!$A$5:$Y$205,3*($C$8-1)+2) -> 207116.6667 | J78: =VLOOKUP($H78,P_All!$A$5:$Y$205,3*($C$8-1)+3) -> 262713.3333 | K78: =VLOOKUP($H78,P_All!$A$5:$Y$205,3*($C$8-1)+4) -> 308010
H79: 54 | I79: =VLOOKUP($H79,P_All!$A$5:$Y$205,3*($C$8-1)+2) -> 206459.1667 | J79: =VLOOKUP($H79,P_All!$A$5:$Y$205,3*($C$8-1)+3) -> 263480 | K79: =VLOOKUP($H79,P_All!$A$5:$Y$205,3*($C$8-1)+4) -> 308095
H80: 55 | I80: =VLOOKUP($H80,P_All!$A$5:$Y$205,3*($C$8-1)+2) -> 206170.8333 | J80: =VLOOKUP($H80,P_All!$A$5:$Y$205,3*($C$8-1)+3) -> 264681.6667 | K80: =VLOOKUP($H80,P_All!$A$5:$Y$205,3*($C$8-1)+4) -> 307596.6667
H81: 56 | I81: =VLOOKUP($H81,P_All!$A$5:$Y$205,3*($C$8-1)+2) -> 206849.1667 | J81: =VLOOKUP($H81,P_All!$A$5:$Y$205,3*($C$8-1)+3) -> 263971.6667 | K81: =VLOOKUP($H81,P_All!$A$5:$Y$205,3*($C$8-1)+4) -> 307595.8333
H82: 57 | I82: =VLOOKUP($H82,P_All!$A$5:$Y$205,3*($C$8-1)+2) -> 206845 | J82: =VLOOKUP($H82,P_All!$A$5:$Y$205,3*($C$8-1)+3) -> 264379.1667 | K82: =VLOOKUP($H82,P_All!$A$5:$Y$205,3*($C$8-1)+4) -> 306936.6667
H83: 58 | I83: =VLOOKUP($H83,P_All!$A$5:$Y$205,3*($C$8-1)+2) -> 206425.8333 | J83: =VLOOKUP($H83,P_All!$A$5:$Y$205,3*($C$8-1)+3) -> 265084.1667 | K83: =VLOOKUP($H83,P_All!$A$5:$Y$205,3*($C$8-1)+4) -> 309041.6667
H84: 59 | I84: =VLOOKUP($H84,P_All!$A$5:$Y$205,3*($C$8-1)+2) -> 205976.6667 | J84: =VLOOKUP($H84,P_All!$A$5:$Y$205,3*($C$8-1)+3) -> 265029.1667 | K84: =VLOOKUP($H84,P_All!$A$5:$Y$205,3*($C$8-1)+4) -> 310402.5
H85: 60 | I85: =VLOOKUP($H85,P_All!$A$5:$Y$205,3*($C$8-1)+2) -> 206703.3333 | J85: =VLOOKUP($H85,P_All!$A$5:$Y$205,3*($C$8-1)+3) -> 265138.3333 | K85: =VLOOKUP($H85,P_All!$A$5:$Y$205,3*($C$8-1)+4) -> 310369.1667
H86: 61 | I86: =VLOOKUP($H86,P_All!$A$5:$Y$205,3*($C$8-1)+2) -> 206489.1667 | J86: =VLOOKUP($H86,P_All!$A$5:$Y$205,3*($C$8-1)+3) -> 265271.6667 | K86: =VLOOKUP($H86,P_All!$A$5:$Y$205,3*($C$8-1)+4) -> 310320
H87: 62 | I87: =VLOOKUP($H87,P_All!$A$5:$Y$205,3*($C$8-1)+2) -> 205663.3333 | J87: =VLOOKUP($H87,P_All!$A$5:$Y$205,3*($C$8-1)+3) -> 265957.5 | K87: =VLOOKUP($H87,P_All!$A$5:$Y$205,3*($C$8-1)+4) -> 310084.1667
H88: 63 | I88: =VLOOKUP($H88,P_All!$A$5:$Y$205,3*($C$8-1)+2) -> 206298.3333 | J88: =VLOOKUP($H88,P_All!$A$5:$Y$205,3*($C$8-1)+3) -> 266013.3333 | K88: =VLOOKUP($H88,P_All!$A$5:$Y$205,3*($C$8-1)+4) -> 310967.5
H89: 64 | I89: =VLOOKUP($H89,P_All!$A$5:$Y$205,3*($C$8-1)+2) -> 206213.3333 | J89: =VLOOKUP($H89,P_All!$A$5:$Y$205,3*($C$8-1)+3) -> 266435.8333 | K89: =VLOOKUP($H89,P_All!$A$5:$Y$205,3*($C$8-1)+4) -> 310223.3333
H90: 65 | I90: =VLOOKUP($H90,P_All!$A$5:$Y$205,3*($C$8-1)+2) -> 204714.1667 | J90: =VLOOKUP($H90,P_All!$A$5:$Y$205,3*($C$8-1)+3) -> 266343.3333 | K90: =VLOOKUP($H90,P_All!$A$5:$Y$205,3*($C$8-1)+4) -> 309919.1667
H91: 66 | I91: =VLOOKUP($H91,P_All!$A$5:$Y$205,3*($C$8-1)+2) -> 204515.8333 | J91: =VLOOKUP($H91,P_All!$A$5:$Y$205,3*($C$8-1)+3) -> 265417.5 | K91: =VLOOKUP($H91,P_All!$A$5:$Y$205,3*($C$8-1)+4) -> 309995
H92: 67 | I92: =VLOOKUP($H92,P_All!$A$5:$Y$205,3*($C$8-1)+2) -> 204827.5 | J92: =VLOOKUP($H92,P_All!$A$5:$Y$205,3*($C$8-1)+3) -> 265880 | K92: =VLOOKUP($H92,P_All!$A$5:$Y$205,3*($C$8-1)+4) -> 310935
H93: 68 | I93: =VLOOKUP($H93,P_All!$A$5:$Y$205,3*($C$8-1)+2) -> 205417.5 | J93: =VLOOKUP($H93,P_All!$A$5:$Y$205,3*($C$8-1)+3) -> 267100.8333 | K93: =VLOOKUP($H93,P_All!$A$5:$Y$205,3*($C$8-1)+4) -> 312062.5
H94: 69 | I94: =VLOOKUP($H94,P_All!$A$5:$Y$205,3*($C$8-1)+2) -> 204438.3333 | J94: =VLOOKUP($H94,P_All!$A$5:$Y$205,3*($C$8-1)+3) -> 266750.8333 | K94: =VLOOKUP($H94,P_All!$A$5:$Y$205,3*($C$8-1)+4) -> 311324.1667
H95: 70 | I95: =VLOOKUP($H95,P_All!$A$5:$Y$205,3*($C$8-1)+2) -> 203530 | J95: =VLOOKUP($H95,P_All!$A$5:$Y$205,3*($C$8-1)+3) -> 265719.1667 | K95: =VLOOKUP($H95,P_All!$A$5:$Y$205,3*($C$8-1)+4) -> 311548.3333
H96: 71 | I96: =VLOOKUP($H96,P_All!$A$5:$Y$205,3*($C$8-1)+2) -> 203284.1667 | J96: =VLOOKUP($H96,P_All!$A$5:$Y$205,3*($C$8-1)+3) -> 265930 | K96: =VLOOKUP($H96,P_All!$A$5:$Y$205,3*($C$8-1)+4) -> 311944.1667
H97: 72 | I97: =VLOOKUP($H97,P_All!$A$5:$Y$205,3*($C$8-1)+2) -> 203930 | J97: =VLOOKUP($H97,P_All!$A$5:$Y$205,3*($C$8-1)+3) -> 265305 | K97: =VLOOKUP($H97,P_All!$A$5:$Y$205,3*($C$8-1)+4) -> 311409.1667
H98: 73 | I98: =VLOOKUP($H98,P_All!$A$5:$Y$205,3*($C$8-1)+2) -> 203966.6667 | J98: =VLOOKUP($H98,P_All!$A$5:$Y$205,3*($C$8-1)+3) -> 265190.8333 | K98: =VLOOKUP($H98,P_All!$A$5:$Y$205,3*($C$8-1)+4) -> 310361.6667
H99: 74 | I99: =VLOOKUP($H99,P_All!$A$5:$Y$205,3*($C$8-1)+2) -> 203722.5 | J99: =VLOOKUP($H99,P_All!$A$5:$Y$205,3*($C$8-1)+3) -> 266056.6667 | K99: =VLOOKUP($H99,P_All!$A$5:$Y$205,3*($C$8-1)+4) -> 310793.3333
H100: 75 | I100: =VLOOKUP($H100,P_All!$A$5:$Y$205,3*($C$8-1)+2) -> 203403.3333 | J100: =VLOOKUP($H100,P_All!$A$5:$Y$205,3*($C$8-1)+3) -> 266050.8333 | K100: =VLOOKUP($H100,P_All!$A$5:$Y$205,3*($C$8-1)+4) -> 312334.1667
H101: 76 | I101: =VLOOKUP($H101,P_All!$A$5:$Y$205,3*($C$8-1)+2) -> 203305.8333 | J101: =VLOOKUP($H101,P_All!$A$5:$Y$205,3*($C$8-1)+3) -> 266444.1667 | K101: =VLOOKUP($H101,P_All!$A$5:$Y$205,3*($C$8-1)+4) -> 311393.3333
H102: 77 | I102: =VLOOKUP($H102,P_All!$A$5:$Y$205,3*($C$8-1)+2) -> 203540 | J102: =VLOOKUP($H102,P_All!$A$5:$Y$205,3*($C$8-1)+3) -> 266766.6667 | K102: =VLOOKUP($H102,P_All!$A$5:$Y$205,3*($C$8-1)+4) -> 311485
H103: 78 | I103: =VLOOKUP($H103,P_All!$A$5:$Y$205,3*($C$8-1)+2) -> 204045 | J103: =VLOOKUP($H103,P_All!$A$5:$Y$205,3*($C$8-1)+3) -> 266465 | K103: =VLOOKUP($H103,P_All!$A$5:$Y$205,3*($C$8-1)+4) -> 312345.8333
H104: 79 | I104: =VLOOKUP($H104,P_All!$A$5:$Y$205,3*($C$8-1)+2) -> 203258.3333 | J104: =VLOOKUP($H104,P_All!$A$5:$Y$205,3*($C$8-1)+3) -> 266085.8333 | K104: =VLOOKUP($H104,P_All!$A$5:$Y$205,3*($C$8-1)+4) -> 313072.5
H105: 80 | I105: =VLOOKUP($H105,P_All!$A$5:$Y$205,3*($C$8-1)+2) -> 201821.6667 | J105: =VLOOKUP($H105,P_All!$A$5:$Y$205,3*($C$8-1)+3) -> 266197.5 | K105: =VLOOKUP($H105,P_All!$A$5:$Y$205,3*($C$8-1)+4) -> 312615.8333
H106: 81 | I106: =VLOOKUP($H106,P_All!$A$5:$Y$205,3*($C$8-1)+2) -> 202172.5 | J106: =VLOOKUP($H106,P_All!$A$5:$Y$205,3*($C$8-1)+3) -> 266973.3333 | K106: =VLOOKUP($H106,P_All!$A$5:$Y$205,3*($C$8-1)+4) -> 311926.6667
H107: 82 | I107: =VLOOKUP($H107,P_All!$A$5:$Y$205,3*($C$8-1)+2) -> 203604.1667 | J107: =VLOOKUP($H107,P_All!$A$5:$Y$205,3*($C$8-1)+3) -> 266485 | K107: =VLOOKUP($H107,P_All!$A$5:$Y$205,3*($C$8-1)+4) -> 312510.8333
H108: 83 | I108: =VLOOKUP($H108,P_All!$A$5:$Y$205,3*($C$8-1)+2) -> 203010 | J108: =VLOOKUP($H108,P_All!$A$5:$Y$205,3*($C$8-1)+3) -> 266940 | K108: =VLOOKUP($H108,P_All!$A$5:$Y$205,3*($C$8-1)+4) -> 312347.5
H109: 84 | I109: =VLOOKUP($H109,P_All!$A$5:$Y$205,3*($C$8-1)+2) -> 202788.3333 | J109: =VLOOKUP($H109,P_All!$A$5:$Y$205,3*($C$8-1)+3) -> 267158.3333 | K109: =VLOOKUP($H109,P_All!$A$5:$Y$205,3*($C$8-1)+4) -> 312007.5
H110: 85 | I110: =VLOOKUP($H110,P_All!$A$5:$Y$205,3*($C$8-1)+2) -> 200740.8333 | J110: =VLOOKUP($H110,P_All!$A$5:$Y$205,3*($C$8-1)+3) -> 266800.8333 | K110: =VLOOKUP($H110,P_All!$A$5:$Y$205,3*($C$8-1)+4) -> 311986.6667
H111: 86 | I111: =VLOOKUP($H111,P_All!$A$5:$Y$205,3*($C$8-1)+2) -> 200510 | J111: =VLOOKUP($H111,P_All!$A$5:$Y$205,3*($C$8-1)+3) -> 266906.6667 | K111: =VLOOKUP($H111,P_All!$A$5:$Y$205,3*($C$8-1)+4) -> 312785
H112: 87 | I112: =VLOOKUP($H112,P_All!$A$5:$Y$205,3*($C$8-1)+2) -> 202726.6667 | J112: =VLOOKUP($H112,P_All!$A$5:$Y$205,3*($C$8-1)+3) -> 266075 | K112: =VLOOKUP($H112,P_All!$A$5:$Y$205,3*($C$8-1)+4) -> 312885.8333
H113: 88 | I113: =VLOOKUP($H113,P_All!$A$5:$Y$205,3*($C$8-1)+2) -> 203090 | J113: =VLOOKUP($H113,P_All!$A$5:$Y$205,3*($C$8-1)+3) -> 266755.8333 | K113: =VLOOKUP($H113,P_All!$A$5:$Y$205,3*($C$8-1)+4) -> 312122.5
H114: 89 | I114: =VLOOKUP($H114,P_All!$A$5:$Y$205,3*($C$8-1)+2) -> 202782.5 | J114: =VLOOKUP($H114,P_All!$A$5:$Y$205,3*($C$8-1)+3) -> 266283.3333 | K114: =VLOOKUP($H114,P_All!$A$5:$Y$205,3*($C$8-1)+4) -> 311615
H115: 90 | I115: =VLOOKUP($H115,P_All!$A$5:$Y$205,3*($C$8-1)+2) -> 203449.1667 | J115: =VLOOKUP($H115,P_All!$A$5:$Y$205,3*($C$8-1)+3) -> 266581.6667 | K115: =VLOOKUP($H115,P_All!$A$5:$Y$205,3*($C$8-1)+4) -> 311527.5
H116: 91 | I116: =VLOOKUP($H116,P_All!$A$5:$Y$205,3*($C$8-1)+2) -> 203354.1667 | J116: =VLOOKUP($H116,P_All!$A$5:$Y$205,3*($C$8-1)+3) -> 267360.8333 | K116: =VLOOKUP($H116,P_All!$A$5:$Y$205,3*($C$8-1)+4) -> 310993.3333
H117: 92 | I117: =VLOOKUP($H117,P_All!$A$5:$Y$205,3*($C$8-1)+2) -> 202438.3333 | J117: =VLOOKUP($H117,P_All!$A$5:$Y$205,3*($C$8-1)+3) -> 267315 | K117: =VLOOKUP($H117,P_All!$A$5:$Y$205,3*($C$8-1)+4) -> 312395
H118: 93 | I118: =VLOOKUP($H118,P_All!$A$5:$Y$205,3*($C$8-1)+2) -> 202943.3333 | J118: =VLOOKUP($H118,P_All!$A$5:$Y$205,3*($C$8-1)+3) -> 266944.1667 | K118: =VLOOKUP($H118,P_All!$A$5:$Y$205,3*($C$8-1)+4) -> 316085
H119: 94 | I119: =VLOOKUP($H119,P_All!$A$5:$Y$205,3*($C$8-1)+2) -> 202648.3333 | J119: =VLOOKUP($H119,P_All!$A$5:$Y$205,3*($C$8-1)+3) -> 266294.1667 | K119: =VLOOKUP($H119,P_All!$A$5:$Y$205,3*($C$8-1)+4) -> 315359.1667
H120: 95 | I120: =VLOOKUP($H120,P_All!$A$5:$Y$205,3*($C$8-1)+2) -> 201724.1667 | J120: =VLOOKUP($H120,P_All!$A$5:$Y$205,3*($C$8-1)+3) -> 266781.6667 | K120: =VLOOKUP($H120,P_All!$A$5:$Y$205,3*($C$8-1)+4) -> 313811.6667
H121: 96 | I121: =VLOOKUP($H121,P_All!$A$5:$Y$205,3*($C$8-1)+2) -> 203291.6667 | J121: =VLOOKUP($H121,P_All!$A$5:$Y$205,3*($C$8-1)+3) -> 267767.5 | K121: =VLOOKUP($H121,P_All!$A$5:$Y$205,3*($C$8-1)+4) -> 314311.6667
H122: 97 | I122: =VLOOKUP($H122,P_All!$A$5:$Y$205,3*($C$8-1)+2) -> 203492.5 | J122: =VLOOKUP($H122,P_All!$A$5:$Y$205,3*($C$8-1)+3) -> 267521.6667 | K122: =VLOOKUP($H122,P_All!$A$5:$Y$205,3*($C$8-1)+4) -> 314526.6667
H123: 98 | I123: =VLOOKUP($H123,P_All!$A$5:$Y$205,3*($C$8-1)+2) -> 204446.6667 | J123: =VLOOKUP($H123,P_All!$A$5:$Y$205,3*($C$8-1)+3) -> 267326.6667 | K123: =VLOOKUP($H123,P_All!$A$5:$Y$205,3*($C$8-1)+4) -> 313655.8333
H124: 99 | I124: =VLOOKUP($H124,P_All!$A$5:$Y$205,3*($C$8-1)+2) -> 203318.3333 | J124: =VLOOKUP($H124,P_All!$A$5:$Y$205,3*($C$8-1)+3) -> 267541.6667 | K124: =VLOOKUP($H124,P_All!$A$5:$Y$205,3*($C$8-1)+4) -> 313901.6667
H125: 100 | I125: =VLOOKUP($H125,P_All!$A$5:$Y$205,3*($C$8-1)+2) -> 202660 | J125: =VLOOKUP($H125,P_All!$A$5:$Y$205,3*($C$8-1)+3) -> 267905.8333 | K125: =VLOOKUP($H125,P_All!$A$5:$Y$205,3*($C$8-1)+4) -> 312594.1667
H126: 101 | I126: =VLOOKUP($H126,P_All!$A$5:$Y$205,3*($C$8-1)+2) -> 202300.8333 | J126: =VLOOKUP($H126,P_All!$A$5:$Y$205,3*($C$8-1)+3) -> 268202.5 | K126: =VLOOKUP($H126,P_All!$A$5:$Y$205,3*($C$8-1)+4) -> 313249.1667
H127: 102 | I127: =VLOOKUP($H127,P_All!$A$5:$Y$205,3*($C$8-1)+2) -> 202805.8333 | J127: =VLOOKUP($H127,P_All!$A$5:$Y$205,3*($C$8-1)+3) -> 267679.1667 | K127: =VLOOKUP($H127,P_All!$A$5:$Y$205,3*($C$8-1)+4) -> 314440.8333
H128: 103 | I128: =VLOOKUP($H128,P_All!$A$5:$Y$205,3*($C$8-1)+2) -> 202738.3333 | J128: =VLOOKUP($H128,P_All!$A$5:$Y$205,3*($C$8-1)+3) -> 267510.8333 | K128: =VLOOKUP($H128,P_All!$A$5:$Y$205,3*($C$8-1)+4) -> 314147.5
H129: 104 | I129: =VLOOKUP($H129,P_All!$A$5:$Y$205,3*($C$8-1)+2) -> 201224.1667 | J129: =VLOOKUP($H129,P_All!$A$5:$Y$205,3*($C$8-1)+3) -> 267917.5 | K129: =VLOOKUP($H129,P_All!$A$5:$Y$205,3*($C$8-1)+4) -> 313972.5
H130: 105 | I130: =VLOOKUP($H130,P_All!$A$5:$Y$205,3*($C$8-1)+2) -> 202348.3333 | J130: =VLOOKUP($H130,P_All!$A$5:$Y$205,3*($C$8-1)+3) -> 268335 | K130: =VLOOKUP($H130,P_All!$A$5:$Y$205,3*($C$8-1)+4) -> 314100
H131: 106 | I131: =VLOOKUP($H131,P_All!$A$5:$Y$205,3*($C$8-1)+2) -> 202779.1667 | J131: =VLOOKUP($H131,P_All!$A$5:$Y$205,3*($C$8-1)+3) -> 266741.6667 | K131: =VLOOKUP($H131,P_All!$A$5:$Y$205,3*($C$8-1)+4) -> 313944.1667
H132: 107 | I132: =VLOOKUP($H132,P_All!$A$5:$Y$205,3*($C$8-1)+2) -> 201827.5 | J132: =VLOOKUP($H132,P_All!$A$5:$Y$205,3*($C$8-1)+3) -> 266380 | K132: =VLOOKUP($H132,P_All!$A$5:$Y$205,3*($C$8-1)+4) -> 313472.5
H133: 108 | I133: =VLOOKUP($H133,P_All!$A$5:$Y$205,3*($C$8-1)+2) -> 202400.8333 | J133: =VLOOKUP($H133,P_All!$A$5:$Y$205,3*($C$8-1)+3) -> 266525.8333 | K133: =VLOOKUP($H133,P_All!$A$5:$Y$205,3*($C$8-1)+4) -> 314710.8333
H134: 109 | I134: =VLOOKUP($H134,P_All!$A$5:$Y$205,3*($C$8-1)+2) -> 202110 | J134: =VLOOKUP($H134,P_All!$A$5:$Y$205,3*($C$8-1)+3) -> 267746.6667 | K134: =VLOOKUP($H134,P_All!$A$5:$Y$205,3*($C$8-1)+4) -> 315276.6667
H135: 110 | I135: =VLOOKUP($H135,P_All!$A$5:$Y$205,3*($C$8-1)+2) -> 201256.6667 | J135: =VLOOKUP($H135,P_All!$A$5:$Y$205,3*($C$8-1)+3) -> 268850 | K135: =VLOOKUP($H135,P_All!$A$5:$Y$205,3*($C$8-1)+4) -> 315155
H136: 111 | I136: =VLOOKUP($H136,P_All!$A$5:$Y$205,3*($C$8-1)+2) -> 202186.6667 | J136: =VLOOKUP($H136,P_All!$A$5:$Y$205,3*($C$8-1)+3) -> 267730.8333 | K136: =VLOOKUP($H136,P_All!$A$5:$Y$205,3*($C$8-1)+4) -> 314103.3333
H137: 112 | I137: =VLOOKUP($H137,P_All!$A$5:$Y$205,3*($C$8-1)+2) -> 202476.6667 | J137: =VLOOKUP($H137,P_All!$A$5:$Y$205,3*($C$8-1)+3) -> 268200.8333 | K137: =VLOOKUP($H137,P_All!$A$5:$Y$205,3*($C$8-1)+4) -> 315030.8333
H138: 113 | I138: =VLOOKUP($H138,P_All!$A$5:$Y$205,3*($C$8-1)+2) -> 201991.6667 | J138: =VLOOKUP($H138,P_All!$A$5:$Y$205,3*($C$8-1)+3) -> 268340 | K138: =VLOOKUP($H138,P_All!$A$5:$Y$205,3*($C$8-1)+4) -> 315496.6667
H139: 114 | I139: =VLOOKUP($H139,P_All!$A$5:$Y$205,3*($C$8-1)+2) -> 201905 | J139: =VLOOKUP($H139,P_All!$A$5:$Y$205,3*($C$8-1)+3) -> 267915.8333 | K139: =VLOOKUP($H139,P_All!$A$5:$Y$205,3*($C$8-1)+4) -> 314530.8333
H140: 115 | I140: =VLOOKUP($H140,P_All!$A$5:$Y$205,3*($C$8-1)+2) -> 201884.1667 | J140: =VLOOKUP($H140,P_All!$A$5:$Y$205,3*($C$8-1)+3) -> 269077.5 | K140: =VLOOKUP($H140,P_All!$A$5:$Y$205,3*($C$8-1)+4) -> 314401.6667
H141: 116 | I141: =VLOOKUP($H141,P_All!$A$5:$Y$205,3*($C$8-1)+2) -> 200673.3333 | J141: =VLOOKUP($H141,P_All!$A$5:$Y$205,3*($C$8-1)+3) -> 269206.6667 | K141: =VLOOKUP($H141,P_All!$A$5:$Y$205,3*($C$8-1)+4) -> 315240.8333
H142: 117 | I142: =VLOOKUP($H142,P_All!$A$5:$Y$205,3*($C$8-1)+2) -> 201555.8333 | J142: =VLOOKUP($H142,P_All!$A$5:$Y$205,3*($C$8-1)+3) -> 267746.6667 | K142: =VLOOKUP($H142,P_All!$A$5:$Y$205,3*($C$8-1)+4) -> 315804.1667
H143: 118 | I143: =VLOOKUP($H143,P_All!$A$5:$Y$205,3*($C$8-1)+2) -> 201431.6667 | J143: =VLOOKUP($H143,P_All!$A$5:$Y$205,3*($C$8-1)+3) -> 267618.3333 | K143: =VLOOKUP($H143,P_All!$A$5:$Y$205,3*($C$8-1)+4) -> 315319.1667
H144: 119 | I144: =VLOOKUP($H144,P_All!$A$5:$Y$205,3*($C$8-1)+2) -> 201811.6667 | J144: =VLOOKUP($H144,P_All!$A$5:$Y$205,3*($C$8-1)+3) -> 267724.1667 | K144: =VLOOKUP($H144,P_All!$A$5:$Y$205,3*($C$8-1)+4) -> 315343.3333
H145: 120 | I145: =VLOOKUP($H145,P_All!$A$5:$Y$205,3*($C$8-1)+2) -> 201323.3333 | J145: =VLOOKUP($H145,P_All!$A$5:$Y$205,3*($C$8-1)+3) -> 268686.6667 | K145: =VLOOKUP($H145,P_All!$A$5:$Y$205,3*($C$8-1)+4) -> 315538.3333
H146: 121 | I146: =VLOOKUP($H146,P_All!$A$5:$Y$205,3*($C$8-1)+2) -> 202072.5 | J146: =VLOOKUP($H146,P_All!$A$5:$Y$205,3*($C$8-1)+3) -> 268677.5 | K146: =VLOOKUP($H146,P_All!$A$5:$Y$205,3*($C$8-1)+4) -> 317300.8333
H147: 122 | I147: =VLOOKUP($H147,P_All!$A$5:$Y$205,3*($C$8-1)+2) -> 203286.6667 | J147: =VLOOKUP($H147,P_All!$A$5:$Y$205,3*($C$8-1)+3) -> 268129.1667 | K147: =VLOOKUP($H147,P_All!$A$5:$Y$205,3*($C$8-1)+4) -> 317018.3333
H148: 123 | I148: =VLOOKUP($H148,P_All!$A$5:$Y$205,3*($C$8-1)+2) -> 202266.6667 | J148: =VLOOKUP($H148,P_All!$A$5:$Y$205,3*($C$8-1)+3) -> 269360.8333 | K148: =VLOOKUP($H148,P_All!$A$5:$Y$205,3*($C$8-1)+4) -> 317137.5
H149: 124 | I149: =VLOOKUP($H149,P_All!$A$5:$Y$205,3*($C$8-1)+2) -> 201683.3333 | J149: =VLOOKUP($H149,P_All!$A$5:$Y$205,3*($C$8-1)+3) -> 269843.3333 | K149: =VLOOKUP($H149,P_All!$A$5:$Y$205,3*($C$8-1)+4) -> 317425.8333
H150: 125 | I150: =VLOOKUP($H150,P_All!$A$5:$Y$205,3*($C$8-1)+2) -> 201684.1667 | J150: =VLOOKUP($H150,P_All!$A$5:$Y$205,3*($C$8-1)+3) -> 270385 | K150: =VLOOKUP($H150,P_All!$A$5:$Y$205,3*($C$8-1)+4) -> 317008.3333
H151: 126 | I151: =VLOOKUP($H151,P_All!$A$5:$Y$205,3*($C$8-1)+2) -> 202158.3333 | J151: =VLOOKUP($H151,P_All!$A$5:$Y$205,3*($C$8-1)+3) -> 270141.6667 | K151: =VLOOKUP($H151,P_All!$A$5:$Y$205,3*($C$8-1)+4) -> 317014.1667
H152: 127 | I152: =VLOOKUP($H152,P_All!$A$5:$Y$205,3*($C$8-1)+2) -> 201985.8333 | J152: =VLOOKUP($H152,P_All!$A$5:$Y$205,3*($C$8-1)+3) -> 269356.6667 | K152: =VLOOKUP($H152,P_All!$A$5:$Y$205,3*($C$8-1)+4) -> 315935
H153: 128 | I153: =VLOOKUP($H153,P_All!$A$5:$Y$205,3*($C$8-1)+2) -> 202939.1667 | J153: =VLOOKUP($H153,P_All!$A$5:$Y$205,3*($C$8-1)+3) -> 268363.3333 | K153: =VLOOKUP($H153,P_All!$A$5:$Y$205,3*($C$8-1)+4) -> 315512.5
H154: 129 | I154: =VLOOKUP($H154,P_All!$A$5:$Y$205,3*($C$8-1)+2) -> 201101.6667 | J154: =VLOOKUP($H154,P_All!$A$5:$Y$205,3*($C$8-1)+3) -> 269122.5 | K154: =VLOOKUP($H154,P_All!$A$5:$Y$205,3*($C$8-1)+4) -> 318025.8333
H155: 130 | I155: =VLOOKUP($H155,P_All!$A$5:$Y$205,3*($C$8-1)+2) -> 201005.8333 | J155: =VLOOKUP($H155,P_All!$A$5:$Y$205,3*($C$8-1)+3) -> 269480.8333 | K155: =VLOOKUP($H155,P_All!$A$5:$Y$205,3*($C$8-1)+4) -> 317159.1667
H156: 131 | I156: =VLOOKUP($H156,P_All!$A$5:$Y$205,3*($C$8-1)+2) -> 201432.5 | J156: =VLOOKUP($H156,P_All!$A$5:$Y$205,3*($C$8-1)+3) -> 269180 | K156: =VLOOKUP($H156,P_All!$A$5:$Y$205,3*($C$8-1)+4) -> 315575
H157: 132 | I157: =VLOOKUP($H157,P_All!$A$5:$Y$205,3*($C$8-1)+2) -> 201520 | J157: =VLOOKUP($H157,P_All!$A$5:$Y$205,3*($C$8-1)+3) -> 269920.8333 | K157: =VLOOKUP($H157,P_All!$A$5:$Y$205,3*($C$8-1)+4) -> 315036.6667
H158: 133 | I158: =VLOOKUP($H158,P_All!$A$5:$Y$205,3*($C$8-1)+2) -> 200585 | J158: =VLOOKUP($H158,P_All!$A$5:$Y$205,3*($C$8-1)+3) -> 269969.1667 | K158: =VLOOKUP($H158,P_All!$A$5:$Y$205,3*($C$8-1)+4) -> 316803.3333
H159: 134 | I159: =VLOOKUP($H159,P_All!$A$5:$Y$205,3*($C$8-1)+2) -> 202190.8333 | J159: =VLOOKUP($H159,P_All!$A$5:$Y$205,3*($C$8-1)+3) -> 269577.5 | K159: =VLOOKUP($H159,P_All!$A$5:$Y$205,3*($C$8-1)+4) -> 315740
H160: 135 | I160: =VLOOKUP($H160,P_All!$A$5:$Y$205,3*($C$8-1)+2) -> 201617.5 | J160: =VLOOKUP($H160,P_All!$A$5:$Y$205,3*($C$8-1)+3) -> 269920.8333 | K160: =VLOOKUP($H160,P_All!$A$5:$Y$205,3*($C$8-1)+4) -> 314200.8333
H161: 136 | I161: =VLOOKUP($H161,P_All!$A$5:$Y$205,3*($C$8-1)+2) -> 201859.1667 | J161: =VLOOKUP($H161,P_All!$A$5:$Y$205,3*($C$8-1)+3) -> 271941.6667 | K161: =VLOOKUP($H161,P_All!$A$5:$Y$205,3*($C$8-1)+4) -> 315696.6667
H162: 137 | I162: =VLOOKUP($H162,P_All!$A$5:$Y$205,3*($C$8-1)+2) -> 200894.1667 | J162: =VLOOKUP($H162,P_All!$A$5:$Y$205,3*($C$8-1)+3) -> 271109.1667 | K162: =VLOOKUP($H162,P_All!$A$5:$Y$205,3*($C$8-1)+4) -> 317513.3333
H163: 138 | I163: =VLOOKUP($H163,P_All!$A$5:$Y$205,3*($C$8-1)+2) -> 200292.5 | J163: =VLOOKUP($H163,P_All!$A$5:$Y$205,3*($C$8-1)+3) -> 270771.6667 | K163: =VLOOKUP($H163,P_All!$A$5:$Y$205,3*($C$8-1)+4) -> 316788.3333
H164: 139 | I164: =VLOOKUP($H164,P_All!$A$5:$Y$205,3*($C$8-1)+2) -> 201210 | J164: =VLOOKUP($H164,P_All!$A$5:$Y$205,3*($C$8-1)+3) -> 269795 | K164: =VLOOKUP($H164,P_All!$A$5:$Y$205,3*($C$8-1)+4) -> 316390
H165: 140 | I165: =VLOOKUP($H165,P_All!$A$5:$Y$205,3*($C$8-1)+2) -> 201240 | J165: =VLOOKUP($H165,P_All!$A$5:$Y$205,3*($C$8-1)+3) -> 270101.6667 | K165: =VLOOKUP($H165,P_All!$A$5:$Y$205,3*($C$8-1)+4) -> 315578.3333
H166: 141 | I166: =VLOOKUP($H166,P_All!$A$5:$Y$205,3*($C$8-1)+2) -> 201432.5 | J166: =VLOOKUP($H166,P_All!$A$5:$Y$205,3*($C$8-1)+3) -> 269303.3333 | K166: =VLOOKUP($H166,P_All!$A$5:$Y$205,3*($C$8-1)+4) -> 315026.6667
H167: 142 | I167: =VLOOKUP($H167,P_All!$A$5:$Y$205,3*($C$8-1)+2) -> 201069.1667 | J167: =VLOOKUP($H167,P_All!$A$5:$Y$205,3*($C$8-1)+3) -> 269427.5 | K167: =VLOOKUP($H167,P_All!$A$5:$Y$205,3*($C$8-1)+4) -> 315832.5
H168: 143 | I168: =VLOOKUP($H168,P_All!$A$5:$Y$205,3*($C$8-1)+2) -> 201650 | J168: =VLOOKUP($H168,P_All!$A$5:$Y$205,3*($C$8-1)+3) -> 270094.1667 | K168: =VLOOKUP($H168,P_All!$A$5:$Y$205,3*($C$8-1)+4) -> 315992.5
H169: 144 | I169: =VLOOKUP($H169,P_All!$A$5:$Y$205,3*($C$8-1)+2) -> 201798.3333 | J169: =VLOOKUP($H169,P_All!$A$5:$Y$205,3*($C$8-1)+3) -> 270435 | K169: =VLOOKUP($H169,P_All!$A$5:$Y$205,3*($C$8-1)+4) -> 316172.5
H170: 145 | I170: =VLOOKUP($H170,P_All!$A$5:$Y$205,3*($C$8-1)+2) -> 200516.6667 | J170: =VLOOKUP($H170,P_All!$A$5:$Y$205,3*($C$8-1)+3) -> 271215 | K170: =VLOOKUP($H170,P_All!$A$5:$Y$205,3*($C$8-1)+4) -> 317262.5
H171: 146 | I171: =VLOOKUP($H171,P_All!$A$5:$Y$205,3*($C$8-1)+2) -> 201588.3333 | J171: =VLOOKUP($H171,P_All!$A$5:$Y$205,3*($C$8-1)+3) -> 271031.6667 | K171: =VLOOKUP($H171,P_All!$A$5:$Y$205,3*($C$8-1)+4) -> 316869.1667
H172: 147 | I172: =VLOOKUP($H172,P_All!$A$5:$Y$205,3*($C$8-1)+2) -> 201783.3333 | J172: =VLOOKUP($H172,P_All!$A$5:$Y$205,3*($C$8-1)+3) -> 270350.8333 | K172: =VLOOKUP($H172,P_All!$A$5:$Y$205,3*($C$8-1)+4) -> 316224.1667
H173: 148 | I173: =VLOOKUP($H173,P_All!$A$5:$Y$205,3*($C$8-1)+2) -> 201505 | J173: =VLOOKUP($H173,P_All!$A$5:$Y$205,3*($C$8-1)+3) -> 269657.5 | K173: =VLOOKUP($H173,P_All!$A$5:$Y$205,3*($C$8-1)+4) -> 315900.8333
H174: 149 | I174: =VLOOKUP($H174,P_All!$A$5:$Y$205,3*($C$8-1)+2) -> 200144.1667 | J174: =VLOOKUP($H174,P_All!$A$5:$Y$205,3*($C$8-1)+3) -> 269451.6667 | K174: =VLOOKUP($H174,P_All!$A$5:$Y$205,3*($C$8-1)+4) -> 315563.3333
H175: 150 | I175: =VLOOKUP($H175,P_All!$A$5:$Y$205,3*($C$8-1)+2) -> 201083.3333 | J175: =VLOOKUP($H175,P_All!$A$5:$Y$205,3*($C$8-1)+3) -> 269927.5 | K175: =VLOOKUP($H175,P_All!$A$5:$Y$205,3*($C$8-1)+4) -> 316390.8333
H176: 151 | I176: =VLOOKUP($H176,P_All!$A$5:$Y$205,3*($C$8-1)+2) -> 202305.8333 | J176: =VLOOKUP($H176,P_All!$A$5:$Y$205,3*($C$8-1)+3) -> 270565 | K176: =VLOOKUP($H176,P_All!$A$5:$Y$205,3*($C$8-1)+4) -> 316405.8333
H177: 152 | I177: =VLOOKUP($H177,P_All!$A$5:$Y$205,3*($C$8-1)+2) -> 202371.6667 | J177: =VLOOKUP($H177,P_All!$A$5:$Y$205,3*($C$8-1)+3) -> 270420.8333 | K177: =VLOOKUP($H177,P_All!$A$5:$Y$205,3*($C$8-1)+4) -> 315056.6667
H178: 153 | I178: =VLOOKUP($H178,P_All!$A$5:$Y$205,3*($C$8-1)+2) -> 202639.1667 | J178: =VLOOKUP($H178,P_All!$A$5:$Y$205,3*($C$8-1)+3) -> 270800 | K178: =VLOOKUP($H178,P_All!$A$5:$Y$205,3*($C$8-1)+4) -> 316206.6667
H179: 154 | I179: =VLOOKUP($H179,P_All!$A$5:$Y$205,3*($C$8-1)+2) -> 202135 | J179: =VLOOKUP($H179,P_All!$A$5:$Y$205,3*($C$8-1)+3) -> 270058.3333 | K179: =VLOOKUP($H179,P_All!$A$5:$Y$205,3*($C$8-1)+4) -> 316199.1667
H180: 155 | I180: =VLOOKUP($H180,P_All!$A$5:$Y$205,3*($C$8-1)+2) -> 202576.6667 | J180: =VLOOKUP($H180,P_All!$A$5:$Y$205,3*($C$8-1)+3) -> 270348.3333 | K180: =VLOOKUP($H180,P_All!$A$5:$Y$205,3*($C$8-1)+4) -> 315955
H181: 156 | I181: =VLOOKUP($H181,P_All!$A$5:$Y$205,3*($C$8-1)+2) -> 201805 | J181: =VLOOKUP($H181,P_All!$A$5:$Y$205,3*($C$8-1)+3) -> 271022.5 | K181: =VLOOKUP($H181,P_All!$A$5:$Y$205,3*($C$8-1)+4) -> 317006.6667
H182: 157 | I182: =VLOOKUP($H182,P_All!$A$5:$Y$205,3*($C$8-1)+2) -> 200115 | J182: =VLOOKUP($H182,P_All!$A$5:$Y$205,3*($C$8-1)+3) -> 270391.6667 | K182: =VLOOKUP($H182,P_All!$A$5:$Y$205,3*($C$8-1)+4) -> 316390
H183: 158 | I183: =VLOOKUP($H183,P_All!$A$5:$Y$205,3*($C$8-1)+2) -> 201028.3333 | J183: =VLOOKUP($H183,P_All!$A$5:$Y$205,3*($C$8-1)+3) -> 269745 | K183: =VLOOKUP($H183,P_All!$A$5:$Y$205,3*($C$8-1)+4) -> 317553.3333
H184: 159 | I184: =VLOOKUP($H184,P_All!$A$5:$Y$205,3*($C$8-1)+2) -> 202061.6667 | J184: =VLOOKUP($H184,P_All!$A$5:$Y$205,3*($C$8-1)+3) -> 269635.8333 | K184: =VLOOKUP($H184,P_All!$A$5:$Y$205,3*($C$8-1)+4) -> 317205
H185: 160 | I185: =VLOOKUP($H185,P_All!$A$5:$Y$205,3*($C$8-1)+2) -> 202005.8333 | J185: =VLOOKUP($H185,P_All!$A$5:$Y$205,3*($C$8-1)+3) -> 269195 | K185: =VLOOKUP($H185,P_All!$A$5:$Y$205,3*($C$8-1)+4) -> 317741.6667
H186: 161 | I186: =VLOOKUP($H186,P_All!$A$5:$Y$205,3*($C$8-1)+2) -> 200955 | J186: =VLOOKUP($H186,P_All!$A$5:$Y$205,3*($C$8-1)+3) -> 268460 | K186: =VLOOKUP($H186,P_All!$A$5:$Y$205,3*($C$8-1)+4) -> 316635
H187: 162 | I187: =VLOOKUP($H187,P_All!$A$5:$Y$205,3*($C$8-1)+2) -> 201792.5 | J187: =VLOOKUP($H187,P_All!$A$5:$Y$205,3*($C$8-1)+3) -> 268397.5 | K187: =VLOOKUP($H187,P_All!$A$5:$Y$205,3*($C$8-1)+4) -> 316975
H188: 163 | I188: =VLOOKUP($H188,P_All!$A$5:$Y$205,3*($C$8-1)+2) -> 203022.5 | J188: =VLOOKUP($H188,P_All!$A$5:$Y$205,3*($C$8-1)+3) -> 268520.8333 | K188: =VLOOKUP($H188,P_All!$A$5:$Y$205,3*($C$8-1)+4) -> 317553.3333
H189: 164 | I189: =VLOOKUP($H189,P_All!$A$5:$Y$205,3*($C$8-1)+2) -> 203224.1667 | J189: =VLOOKUP($H189,P_All!$A$5:$Y$205,3*($C$8-1)+3) -> 269786.6667 | K189: =VLOOKUP($H189,P_All!$A$5:$Y$205,3*($C$8-1)+4) -> 317960
H190: 165 | I190: =VLOOKUP($H190,P_All!$A$5:$Y$205,3*($C$8-1)+2) -> 203515 | J190: =VLOOKUP($H190,P_All!$A$5:$Y$205,3*($C$8-1)+3) -> 269768.3333 | K190: =VLOOKUP($H190,P_All!$A$5:$Y$205,3*($C$8-1)+4) -> 318191.6667
H191: 166 | I191: =VLOOKUP($H191,P_All!$A$5:$Y$205,3*($C$8-1)+2) -> 204631.6667 | J191: =VLOOKUP($H191,P_All!$A$5:$Y$205,3*($C$8-1)+3) -> 269943.3333 | K191: =VLOOKUP($H191,P_All!$A$5:$Y$205,3*($C$8-1)+4) -> 318348.3333
H192: 167 | I192: =VLOOKUP($H192,P_All!$A$5:$Y$205,3*($C$8-1)+2) -> 203284.1667 | J192: =VLOOKUP($H192,P_All!$A$5:$Y$205,3*($C$8-1)+3) -> 269752.5 | K192: =VLOOKUP($H192,P_All!$A$5:$Y$205,3*($C$8-1)+4) -> 315944.1667
H193: 168 | I193: =VLOOKUP($H193,P_All!$A$5:$Y$205,3*($C$8-1)+2) -> 201950 | J193: =VLOOKUP($H193,P_All!$A$5:$Y$205,3*($C$8-1)+3) -> 270333.3333 | K193: =VLOOKUP($H193,P_All!$A$5:$Y$205,3*($C$8-1)+4) -> 317755.8333
H194: 169 | I194: =VLOOKUP($H194,P_All!$A$5:$Y$205,3*($C$8-1)+2) -> 201817.5 | J194: =VLOOKUP($H194,P_All!$A$5:$Y$205,3*($C$8-1)+3) -> 269362.5 | K194: =VLOOKUP($H194,P_All!$A$5:$Y$205,3*($C$8-1)+4) -> 318835.8333
H195: 170 | I195: =VLOOKUP($H195,P_All!$A$5:$Y$205,3*($C$8-1)+2) -> 202342.5 | J195: =VLOOKUP($H195,P_All!$A$5:$Y$205,3*($C$8-1)+3) -> 268967.5 | K195: =VLOOKUP($H195,P_All!$A$5:$Y$205,3*($C$8-1)+4) -> 318153.3333
H196: 171 | I196: =VLOOKUP($H196,P_All!$A$5:$Y$205,3*($C$8-1)+2) -> 201236.6667 | J196: =VLOOKUP($H196,P_All!$A$5:$Y$205,3*($C$8-1)+3) -> 269309.1667 | K196: =VLOOKUP($H196,P_All!$A$5:$Y$205,3*($C$8-1)+4) -> 317710
H197: 172 | I197: =VLOOKUP($H197,P_All!$A$5:$Y$205,3*($C$8-1)+2) -> 202221.6667 | J197: =VLOOKUP($H197,P_All!$A$5:$Y$205,3*($C$8-1)+3) -> 269033.3333 | K197: =VLOOKUP($H197,P_All!$A$5:$Y$205,3*($C$8-1)+4) -> 317846.6667
H198: 173 | I198: =VLOOKUP($H198,P_All!$A$5:$Y$205,3*($C$8-1)+2) -> 203219.1667 | J198: =VLOOKUP($H198,P_All!$A$5:$Y$205,3*($C$8-1)+3) -> 269534.1667 | K198: =VLOOKUP($H198,P_All!$A$5:$Y$205,3*($C$8-1)+4) -> 317797.5
H199: 174 | I199: =VLOOKUP($H199,P_All!$A$5:$Y$205,3*($C$8-1)+2) -> 203553.3333 | J199: =VLOOKUP($H199,P_All!$A$5:$Y$205,3*($C$8-1)+3) -> 269844.1667 | K199: =VLOOKUP($H199,P_All!$A$5:$Y$205,3*($C$8-1)+4) -> 318409.1667
H200: 175 | I200: =VLOOKUP($H200,P_All!$A$5:$Y$205,3*($C$8-1)+2) -> 204308.3333 | J200: =VLOOKUP($H200,P_All!$A$5:$Y$205,3*($C$8-1)+3) -> 268796.6667 | K200: =VLOOKUP($H200,P_All!$A$5:$Y$205,3*($C$8-1)+4) -> 318656.6667
H201: 176 | I201: =VLOOKUP($H201,P_All!$A$5:$Y$205,3*($C$8-1)+2) -> 202769.1667 | J201: =VLOOKUP($H201,P_All!$A$5:$Y$205,3*($C$8-1)+3) -> 269040.8333 | K201: =VLOOKUP($H201,P_All!$A$5:$Y$205,3*($C$8-1)+4) -> 318045.8333
H202: 177 | I202: =VLOOKUP($H202,P_All!$A$5:$Y$205,3*($C$8-1)+2) -> 201121.6667 | J202: =VLOOKUP($H202,P_All!$A$5:$Y$205,3*($C$8-1)+3) -> 269873.3333 | K202: =VLOOKUP($H202,P_All!$A$5:$Y$205,3*($C$8-1)+4) -> 317263.3333
H203: 178 | I203: =VLOOKUP($H203,P_All!$A$5:$Y$205,3*($C$8-1)+2) -> 201542.5 | J203: =VLOOKUP($H203,P_All!$A$5:$Y$205,3*($C$8-1)+3) -> 269496.6667 | K203: =VLOOKUP($H203,P_All!$A$5:$Y$205,3*($C$8-1)+4) -> 318162.5
H204: 179 | I204: =VLOOKUP($H204,P_All!$A$5:$Y$205,3*($C$8-1)+2) -> 201543.3333 | J204: =VLOOKUP($H204,P_All!$A$5:$Y$205,3*($C$8-1)+3) -> 268197.5 | K204: =VLOOKUP($H204,P_All!$A$5:$Y$205,3*($C$8-1)+4) -> 317757.5
... 20 more rows

Sheet P_All
B1: Values shown for constituent selected on PlotControl tab
B2: =PlotControl!$A$15 -> Cell 2W Fines | E2: =PlotControl!$A$16 -> Cell 2W Coarse | H2: =PlotControl!$A$17 -> Cell 2W Banks | K2: =PlotControl!$A$18 -> Cell 2E Fines | N2: =PlotControl!$A$19 -> Cell 2E Coarse | Q2: =PlotControl!$A$20 -> Cell 2E Banks | T2: =PlotControl!$A$21 -> Cell 1E Fines | W2: =PlotControl!$A$22 -> Cell 1E Coarse
B3: Annual Project Results | E3: Annual Project Results | H3: Annual Project Results | K3: Annual Project Results | N3: Annual Project Results | Q3: Annual Project Results | T3: Annual Project Results | W3: Annual Project Results
A4: Time | B4: P10 | C4: P50 | D4: P90 | E4: P10 | F4: P50 | G4: P90 | H4: P10 | I4: P50 | J4: P90 | K4: P10 | L4: P50 | M4: P90 | N4: P10 | O4: P50 | P4: P90 | Q4: P10 | R4: P50 | S4: P90 | T4: P10 | U4: P50 | V4: P90 | W4: P10 | X4: P50 | Y4: P90
A5: 0 | B5: =IF(PlotControl!$B$4 = "Annual Max",MAX(OFFSET('2WFines'!$C$10,12*$A5,4*(PlotControl!$C$6-1),12,1)),AVERAGE(OFFSET('2WFines'!$C$10,12*$A5,4*(PlotControl!$C$6-1),12,1))) -> 248620 | C5: =IF(PlotControl!$B$4 = "Annual Max",MAX(OFFSET('2WFines'!$D$10,12*$A5,4*(PlotControl!$C$6-1),12,1)),AVERAGE(OFFSET('2WFines'!$D$10,12*$A5,4*(PlotControl!$C$6-1),12,1))) -> 251692.5 | D5: =IF(PlotControl!$B$4 = "Annual Max",MAX(OFFSET('2WFines'!$E$10,12*$A5,4*(PlotControl!$C$6-1),12,1)),AVERAGE(OFFSET('2WFines'!$E$10,12*$A5,4*(PlotControl!$C$6-1),12,1))) -> 255070.8333 | E5: =IF(PlotControl!$B$4 = "Annual Max",MAX(OFFSET('2WCoarse'!$C$10,12*$A5,4*(PlotControl!$C$6-1),12,1)),AVERAGE(OFFSET('2WCoarse'!$C$10,12*$A5,4*(PlotControl!$C$6-1),12,1))) -> 365523.3333 | F5: =IF(PlotControl!$B$4 = "Annual Max",MAX(OFFSET('2WCoarse'!$D$10,12*$A5,4*(PlotControl!$C$6-1),12,1)),AVERAGE(OFFSET('2WCoarse'!$D$10,12*$A5,4*(PlotControl!$C$6-1),12,1))) -> 375575 | G5: =IF(PlotControl!$B$4 = "Annual Max",MAX(OFFSET('2WCoarse'!$E$10,12*$A5,4*(PlotControl!$C$6-1),12,1)),AVERAGE(OFFSET('2WCoarse'!$E$10,12*$A5,4*(PlotControl!$C$6-1),12,1))) -> 385686.6667 | H5: =IF(PlotControl!$B$4 = "Annual Max",MAX(OFFSET('2WBank'!$C$10,12*$A5,4*(PlotControl!$C$6-1),12,1)),AVERAGE(OFFSET('2WBank'!$C$10,12*$A5,4*(PlotControl!$C$6-1),12,1))) -> 605964.1667 | I5: =IF(PlotControl!$B$4 = "Annual Max",MAX(OFFSET('2WBank'!$D$10,12*$A5,4*(PlotControl!$C$6-1),12,1)),AVERAGE(OFFSET('2WBank'!$D$10,12*$A5,4*(PlotControl!$C$6-1),12,1))) -> 625515.8333 | J5: =IF(PlotControl!$B$4 = "Annual Max",MAX(OFFSET('2WBank'!$E$10,12*$A5,4*(PlotControl!$C$6-1),12,1)),AVERAGE(OFFSET('2WBank'!$E$10,12*$A5,4*(PlotControl!$C$6-1),12,1))) -> 645254.1667 | K5: =IF(PlotControl!$B$4 = "Annual Max",MAX(OFFSET('2EFines'!$C$10,12*$A5,4*(PlotControl!$C$6-1),12,1)),AVERAGE(OFFSET('2EFines'!$C$10,12*$A5,4*(PlotControl!$C$6-1),12,1))) -> 203575 | L5: =IF(PlotControl!$B$4 = "Annual Max",MAX(OFFSET('2EFines'!$D$10,12*$A5,4*(PlotControl!$C$6-1),12,1)),AVERAGE(OFFSET('2EFines'!$D$10,12*$A5,4*(PlotControl!$C$6-1),12,1))) -> 203575 | M5: =IF(PlotControl!$B$4 = "Annual Max",MAX(OFFSET('2EFines'!$E$10,12*$A5,4*(PlotControl!$C$6-1),12,1)),AVERAGE(OFFSET('2EFines'!$E$10,12*$A5,4*(PlotControl!$C$6-1),12,1))) -> 203575 | N5: =IF(PlotControl!$B$4 = "Annual Max",MAX(OFFSET('2ECoarse'!$C$10,12*$A5,4*(PlotControl!$C$6-1),12,1)),AVERAGE(OFFSET('2ECoarse'!$C$10,12*$A5,4*(PlotControl!$C$6-1),12,1))) -> 439671.6667 | O5: =IF(PlotControl!$B$4 = "Annual Max",MAX(OFFSET('2ECoarse'!$D$10,12*$A5,4*(PlotControl!$C$6-1),12,1)),AVERAGE(OFFSET('2ECoarse'!$D$10,12*$A5,4*(PlotControl!$C$6-1),12,1))) -> 479136.6667 | P5: =IF(PlotControl!$B$4 = "Annual Max",MAX(OFFSET('2ECoarse'!$E$10,12*$A5,4*(PlotControl!$C$6-1),12,1)),AVERAGE(OFFSET('2ECoarse'!$E$10,12*$A5,4*(PlotControl!$C$6-1),12,1))) -> 526673.3333 | Q5: =IF(PlotControl!$B$4 = "Annual Max",MAX(OFFSET('2EBank'!$C$10,12*$A5,4*(PlotControl!$C$6-1),12,1)),AVERAGE(OFFSET('2EBank'!$C$10,12*$A5,4*(PlotControl!$C$6-1),12,1))) -> 398642.5 | R5: =IF(PlotControl!$B$4 = "Annual Max",MAX(OFFSET('2EBank'!$D$10,12*$A5,4*(PlotControl!$C$6-1),12,1)),AVERAGE(OFFSET('2EBank'!$D$10,12*$A5,4*(PlotControl!$C$6-1),12,1))) -> 418065.8333 | S5: =IF(PlotControl!$B$4 = "Annual Max",MAX(OFFSET('2EBank'!$E$10,12*$A5,4*(PlotControl!$C$6-1),12,1)),AVERAGE(OFFSET('2EBank'!$E$10,12*$A5,4*(PlotControl!$C$6-1),12,1))) -> 441749.1667 | T5: =IF(PlotControl!$B$4 = "Annual Max",MAX(OFFSET('1EFines'!$C$10,12*$A5,4*(PlotControl!$C$6-1),12,1)),AVERAGE(OFFSET('1EFines'!$C$10,12*$A5,4*(PlotControl!$C$6-1),12,1))) -> 366081.6667 | U5: =IF(PlotControl!$B$4 = "Annual Max",MAX(OFFSET('1EFines'!$D$10,12*$A5,4*(PlotControl!$C$6-1),12,1)),AVERAGE(OFFSET('1EFines'!$D$10,12*$A5,4*(PlotControl!$C$6-1),12,1))) -> 390922.5 | V5: =IF(PlotControl!$B$4 = "Annual Max",MAX(OFFSET('1EFines'!$E$10,12*$A5,4*(PlotControl!$C$6-1),12,1)),AVERAGE(OFFSET('1EFines'!$E$10,12*$A5,4*(PlotControl!$C$6-1),12,1))) -> 427844.1667 | W5: =IF(PlotControl!$B$4 = "Annual Max",MAX(OFFSET('1ECoarse'!$C$10,12*$A5,4*(PlotControl!$C$6-1),12,1)),AVERAGE(OFFSET('1ECoarse'!$C$10,12*$A5,4*(PlotControl!$C$6-1),12,1))) -> 675559.1667 | X5: =IF(PlotControl!$B$4 = "Annual Max",MAX(OFFSET('1ECoarse'!$D$10,12*$A5,4*(PlotControl!$C$6-1),12,1)),AVERAGE(OFFSET('1ECoarse'!$D$10,12*$A5,4*(PlotControl!$C$6-1),12,1))) -> 713635 | Y5: =IF(PlotControl!$B$4 = "Annual Max",MAX(OFFSET('1ECoarse'!$E$10,12*$A5,4*(PlotControl!$C$6-1),12,1)),AVERAGE(OFFSET('1ECoarse'!$E$10,12*$A5,4*(PlotControl!$C$6-1),12,1))) -> 775039.1667
A6: 1 | B6: =IF(PlotControl!$B$4 = "Annual Max",MAX(OFFSET('2WFines'!$C$10,12*$A6,4*(PlotControl!$C$6-1),12,1)),AVERAGE(OFFSET('2WFines'!$C$10,12*$A6,4*(PlotControl!$C$6-1),12,1))) -> 232528.3333 | C6: =IF(PlotControl!$B$4 = "Annual Max",MAX(OFFSET('2WFines'!$D$10,12*$A6,4*(PlotControl!$C$6-1),12,1)),AVERAGE(OFFSET('2WFines'!$D$10,12*$A6,4*(PlotControl!$C$6-1),12,1))) -> 238980.8333 | D6: =IF(PlotControl!$B$4 = "Annual Max",MAX(OFFSET('2WFines'!$E$10,12*$A6,4*(PlotControl!$C$6-1),12,1)),AVERAGE(OFFSET('2WFines'!$E$10,12*$A6,4*(PlotControl!$C$6-1),12,1))) -> 245677.5 | E6: =IF(PlotControl!$B$4 = "Annual Max",MAX(OFFSET('2WCoarse'!$C$10,12*$A6,4*(PlotControl!$C$6-1),12,1)),AVERAGE(OFFSET('2WCoarse'!$C$10,12*$A6,4*(PlotControl!$C$6-1),12,1))) -> 350374.1667 | F6: =IF(PlotControl!$B$4 = "Annual Max",MAX(OFFSET('2WCoarse'!$D$10,12*$A6,4*(PlotControl!$C$6-1),12,1)),AVERAGE(OFFSET('2WCoarse'!$D$10,12*$A6,4*(PlotControl!$C$6-1),12,1))) -> 374919.1667 | G6: =IF(PlotControl!$B$4 = "Annual Max",MAX(OFFSET('2WCoarse'!$E$10,12*$A6,4*(PlotControl!$C$6-1),12,1)),AVERAGE(OFFSET('2WCoarse'!$E$10,12*$A6,4*(PlotControl!$C$6-1),12,1))) -> 400355.8333 | H6: =IF(PlotControl!$B$4 = "Annual Max",MAX(OFFSET('2WBank'!$C$10,12*$A6,4*(PlotControl!$C$6-1),12,1)),AVERAGE(OFFSET('2WBank'!$C$10,12*$A6,4*(PlotControl!$C$6-1),12,1))) -> 577207.5 | I6: =IF(PlotControl!$B$4 = "Annual Max",MAX(OFFSET('2WBank'!$D$10,12*$A6,4*(PlotControl!$C$6-1),12,1)),AVERAGE(OFFSET('2WBank'!$D$10,12*$A6,4*(PlotControl!$C$6-1),12,1))) -> 616500 | J6: =IF(PlotControl!$B$4 = "Annual Max",MAX(OFFSET('2WBank'!$E$10,12*$A6,4*(PlotControl!$C$6-1),12,1)),AVERAGE(OFFSET('2WBank'!$E$10,12*$A6,4*(PlotControl!$C$6-1),12,1))) -> 658913.3333 | K6: =IF(PlotControl!$B$4 = "Annual Max",MAX(OFFSET('2EFines'!$C$10,12*$A6,4*(PlotControl!$C$6-1),12,1)),AVERAGE(OFFSET('2EFines'!$C$10,12*$A6,4*(PlotControl!$C$6-1),12,1))) -> 0 | L6: =IF(PlotControl!$B$4 = "Annual Max",MAX(OFFSET('2EFines'!$D$10,12*$A6,4*(PlotControl!$C$6-1),12,1)),AVERAGE(OFFSET('2EFines'!$D$10,12*$A6,4*(PlotControl!$C$6-1),12,1))) -> 0 | M6: =IF(PlotControl!$B$4 = "Annual Max",MAX(OFFSET('2EFines'!$E$10,12*$A6,4*(PlotControl!$C$6-1),12,1)),AVERAGE(OFFSET('2EFines'!$E$10,12*$A6,4*(PlotControl!$C$6-1),12,1))) -> 0 | N6: =IF(PlotControl!$B$4 = "Annual Max",MAX(OFFSET('2ECoarse'!$C$10,12*$A6,4*(PlotControl!$C$6-1),12,1)),AVERAGE(OFFSET('2ECoarse'!$C$10,12*$A6,4*(PlotControl!$C$6-1),12,1))) -> 342191.6667 | O6: =IF(PlotControl!$B$4 = "Annual Max",MAX(OFFSET('2ECoarse'!$D$10,12*$A6,4*(PlotControl!$C$6-1),12,1)),AVERAGE(OFFSET('2ECoarse'!$D$10,12*$A6,4*(PlotControl!$C$6-1),12,1))) -> 413023.3333 | P6: =IF(PlotControl!$B$4 = "Annual Max",MAX(OFFSET('2ECoarse'!$E$10,12*$A6,4*(PlotControl!$C$6-1),12,1)),AVERAGE(OFFSET('2ECoarse'!$E$10,12*$A6,4*(PlotControl!$C$6-1),12,1))) -> 500393.3333 | Q6: =IF(PlotControl!$B$4 = "Annual Max",MAX(OFFSET('2EBank'!$C$10,12*$A6,4*(PlotControl!$C$6-1),12,1)),AVERAGE(OFFSET('2EBank'!$C$10,12*$A6,4*(PlotControl!$C$6-1),12,1))) -> 367644.1667 | R6: =IF(PlotControl!$B$4 = "Annual Max",MAX(OFFSET('2EBank'!$D$10,12*$A6,4*(PlotControl!$C$6-1),12,1)),AVERAGE(OFFSET('2EBank'!$D$10,12*$A6,4*(PlotControl!$C$6-1),12,1))) -> 412185.8333 | S6: =IF(PlotControl!$B$4 = "Annual Max",MAX(OFFSET('2EBank'!$E$10,12*$A6,4*(PlotControl!$C$6-1),12,1)),AVERAGE(OFFSET('2EBank'!$E$10,12*$A6,4*(PlotControl!$C$6-1),12,1))) -> 462950.8333 | T6: =IF(PlotControl!$B$4 = "Annual Max",MAX(OFFSET('1EFines'!$C$10,12*$A6,4*(PlotControl!$C$6-1),12,1)),AVERAGE(OFFSET('1EFines'!$C$10,12*$A6,4*(PlotControl!$C$6-1),12,1))) -> 338209.1667 | U6: =IF(PlotControl!$B$4 = "Annual Max",MAX(OFFSET('1EFines'!$D$10,12*$A6,4*(PlotControl!$C$6-1),12,1)),AVERAGE(OFFSET('1EFines'!$D$10,12*$A6,4*(PlotControl!$C$6-1),12,1))) -> 393660.8333 | V6: =IF(PlotControl!$B$4 = "Annual Max",MAX(OFFSET('1EFines'!$E$10,12*$A6,4*(PlotControl!$C$6-1),12,1)),AVERAGE(OFFSET('1EFines'!$E$10,12*$A6,4*(PlotControl!$C$6-1),12,1))) -> 474255 | W6: =IF(PlotControl!$B$4 = "Annual Max",MAX(OFFSET('1ECoarse'!$C$10,12*$A6,4*(PlotControl!$C$6-1),12,1)),AVERAGE(OFFSET('1ECoarse'!$C$10,12*$A6,4*(PlotControl!$C$6-1),12,1))) -> 640300 | X6: =IF(PlotControl!$B$4 = "Annual Max",MAX(OFFSET('1ECoarse'!$D$10,12*$A6,4*(PlotControl!$C$6-1),12,1)),AVERAGE(OFFSET('1ECoarse'!$D$10,12*$A6,4*(PlotControl!$C$6-1),12,1))) -> 719250.8333 | Y6: =IF(PlotControl!$B$4 = "Annual Max",MAX(OFFSET('1ECoarse'!$E$10,12*$A6,4*(PlotControl!$C$6-1),12,1)),AVERAGE(OFFSET('1ECoarse'!$E$10,12*$A6,4*(PlotControl!$C$6-1),12,1))) -> 839404.1667
A7: 2 | B7: =IF(PlotControl!$B$4 = "Annual Max",MAX(OFFSET('2WFines'!$C$10,12*$A7,4*(PlotControl!$C$6-1),12,1)),AVERAGE(OFFSET('2WFines'!$C$10,12*$A7,4*(PlotControl!$C$6-1),12,1))) -> 231718.3333 | C7: =IF(PlotControl!$B$4 = "Annual Max",MAX(OFFSET('2WFines'!$D$10,12*$A7,4*(PlotControl!$C$6-1),12,1)),AVERAGE(OFFSET('2WFines'!$D$10,12*$A7,4*(PlotControl!$C$6-1),12,1))) -> 239535 | D7: =IF(PlotControl!$B$4 = "Annual Max",MAX(OFFSET('2WFines'!$E$10,12*$A7,4*(PlotControl!$C$6-1),12,1)),AVERAGE(OFFSET('2WFines'!$E$10,12*$A7,4*(PlotControl!$C$6-1),12,1))) -> 248225 | E7: =IF(PlotControl!$B$4 = "Annual Max",MAX(OFFSET('2WCoarse'!$C$10,12*$A7,4*(PlotControl!$C$6-1),12,1)),AVERAGE(OFFSET('2WCoarse'!$C$10,12*$A7,4*(PlotControl!$C$6-1),12,1))) -> 342772.5 | F7: =IF(PlotControl!$B$4 = "Annual Max",MAX(OFFSET('2WCoarse'!$D$10,12*$A7,4*(PlotControl!$C$6-1),12,1)),AVERAGE(OFFSET('2WCoarse'!$D$10,12*$A7,4*(PlotControl!$C$6-1),12,1))) -> 376747.5 | G7: =IF(PlotControl!$B$4 = "Annual Max",MAX(OFFSET('2WCoarse'!$E$10,12*$A7,4*(PlotControl!$C$6-1),12,1)),AVERAGE(OFFSET('2WCoarse'!$E$10,12*$A7,4*(PlotControl!$C$6-1),12,1))) -> 412677.5 | H7: =IF(PlotControl!$B$4 = "Annual Max",MAX(OFFSET('2WBank'!$C$10,12*$A7,4*(PlotControl!$C$6-1),12,1)),AVERAGE(OFFSET('2WBank'!$C$10,12*$A7,4*(PlotControl!$C$6-1),12,1))) -> 572899.1667 | I7: =IF(PlotControl!$B$4 = "Annual Max",MAX(OFFSET('2WBank'!$D$10,12*$A7,4*(PlotControl!$C$6-1),12,1)),AVERAGE(OFFSET('2WBank'!$D$10,12*$A7,4*(PlotControl!$C$6-1),12,1))) -> 623052.5 | J7: =IF(PlotControl!$B$4 = "Annual Max",MAX(OFFSET('2WBank'!$E$10,12*$A7,4*(PlotControl!$C$6-1),12,1)),AVERAGE(OFFSET('2WBank'!$E$10,12*$A7,4*(PlotControl!$C$6-1),12,1))) -> 673778.3333 | K7: =IF(PlotControl!$B$4 = "Annual Max",MAX(OFFSET('2EFines'!$C$10,12*$A7,4*(PlotControl!$C$6-1),12,1)),AVERAGE(OFFSET('2EFines'!$C$10,12*$A7,4*(PlotControl!$C$6-1),12,1))) -> 0 | L7: =IF(PlotControl!$B$4 = "Annual Max",MAX(OFFSET('2EFines'!$D$10,12*$A7,4*(PlotControl!$C$6-1),12,1)),AVERAGE(OFFSET('2EFines'!$D$10,12*$A7,4*(PlotControl!$C$6-1),12,1))) -> 0 | M7: =IF(PlotControl!$B$4 = "Annual Max",MAX(OFFSET('2EFines'!$E$10,12*$A7,4*(PlotControl!$C$6-1),12,1)),AVERAGE(OFFSET('2EFines'!$E$10,12*$A7,4*(PlotControl!$C$6-1),12,1))) -> 0 | N7: =IF(PlotControl!$B$4 = "Annual Max",MAX(OFFSET('2ECoarse'!$C$10,12*$A7,4*(PlotControl!$C$6-1),12,1)),AVERAGE(OFFSET('2ECoarse'!$C$10,12*$A7,4*(PlotControl!$C$6-1),12,1))) -> 248814.1667 | O7: =IF(PlotControl!$B$4 = "Annual Max",MAX(OFFSET('2ECoarse'!$D$10,12*$A7,4*(PlotControl!$C$6-1),12,1)),AVERAGE(OFFSET('2ECoarse'!$D$10,12*$A7,4*(PlotControl!$C$6-1),12,1))) -> 320417.5 | P7: =IF(PlotControl!$B$4 = "Annual Max",MAX(OFFSET('2ECoarse'!$E$10,12*$A7,4*(PlotControl!$C$6-1),12,1)),AVERAGE(OFFSET('2ECoarse'!$E$10,12*$A7,4*(PlotControl!$C$6-1),12,1))) -> 416180 | Q7: =IF(PlotControl!$B$4 = "Annual Max",MAX(OFFSET('2EBank'!$C$10,12*$A7,4*(PlotControl!$C$6-1),12,1)),AVERAGE(OFFSET('2EBank'!$C$10,12*$A7,4*(PlotControl!$C$6-1),12,1))) -> 349830.8333 | R7: =IF(PlotControl!$B$4 = "Annual Max",MAX(OFFSET('2EBank'!$D$10,12*$A7,4*(PlotControl!$C$6-1),12,1)),AVERAGE(OFFSET('2EBank'!$D$10,12*$A7,4*(PlotControl!$C$6-1),12,1))) -> 407142.5 | S7: =IF(PlotControl!$B$4 = "Annual Max",MAX(OFFSET('2EBank'!$E$10,12*$A7,4*(PlotControl!$C$6-1),12,1)),AVERAGE(OFFSET('2EBank'!$E$10,12*$A7,4*(PlotControl!$C$6-1),12,1))) -> 466396.6667 | T7: =IF(PlotControl!$B$4 = "Annual Max",MAX(OFFSET('1EFines'!$C$10,12*$A7,4*(PlotControl!$C$6-1),12,1)),AVERAGE(OFFSET('1EFines'!$C$10,12*$A7,4*(PlotControl!$C$6-1),12,1))) -> 329760 | U7: =IF(PlotControl!$B$4 = "Annual Max",MAX(OFFSET('1EFines'!$D$10,12*$A7,4*(PlotControl!$C$6-1),12,1)),AVERAGE(OFFSET('1EFines'!$D$10,12*$A7,4*(PlotControl!$C$6-1),12,1))) -> 392789.1667 | V7: =IF(PlotControl!$B$4 = "Annual Max",MAX(OFFSET('1EFines'!$E$10,12*$A7,4*(PlotControl!$C$6-1),12,1)),AVERAGE(OFFSET('1EFines'!$E$10,12*$A7,4*(PlotControl!$C$6-1),12,1))) -> 484705.8333 | W7: =IF(PlotControl!$B$4 = "Annual Max",MAX(OFFSET('1ECoarse'!$C$10,12*$A7,4*(PlotControl!$C$6-1),12,1)),AVERAGE(OFFSET('1ECoarse'!$C$10,12*$A7,4*(PlotControl!$C$6-1),12,1))) -> 630050 | X7: =IF(PlotControl!$B$4 = "Annual Max",MAX(OFFSET('1ECoarse'!$D$10,12*$A7,4*(PlotControl!$C$6-1),12,1)),AVERAGE(OFFSET('1ECoarse'!$D$10,12*$A7,4*(PlotControl!$C$6-1),12,1))) -> 718007.5 | Y7: =IF(PlotControl!$B$4 = "Annual Max",MAX(OFFSET('1ECoarse'!$E$10,12*$A7,4*(PlotControl!$C$6-1),12,1)),AVERAGE(OFFSET('1ECoarse'!$E$10,12*$A7,4*(PlotControl!$C$6-1),12,1))) -> 848744.1667
A8: 3 | B8: =IF(PlotControl!$B$4 = "Annual Max",MAX(OFFSET('2WFines'!$C$10,12*$A8,4*(PlotControl!$C$6-1),12,1)),AVERAGE(OFFSET('2WFines'!$C$10,12*$A8,4*(PlotControl!$C$6-1),12,1))) -> 231039.1667 | C8: =IF(PlotControl!$B$4 = "Annual Max",MAX(OFFSET('2WFines'!$D$10,12*$A8,4*(PlotControl!$C$6-1),12,1)),AVERAGE(OFFSET('2WFines'!$D$10,12*$A8,4*(PlotControl!$C$6-1),12,1))) -> 240611.6667 | D8: =IF(PlotControl!$B$4 = "Annual Max",MAX(OFFSET('2WFines'!$E$10,12*$A8,4*(PlotControl!$C$6-1),12,1)),AVERAGE(OFFSET('2WFines'!$E$10,12*$A8,4*(PlotControl!$C$6-1),12,1))) -> 250952.5 | E8: =IF(PlotControl!$B$4 = "Annual Max",MAX(OFFSET('2WCoarse'!$C$10,12*$A8,4*(PlotControl!$C$6-1),12,1)),AVERAGE(OFFSET('2WCoarse'!$C$10,12*$A8,4*(PlotControl!$C$6-1),12,1))) -> 334242.5 | F8: =IF(PlotControl!$B$4 = "Annual Max",MAX(OFFSET('2WCoarse'!$D$10,12*$A8,4*(PlotControl!$C$6-1),12,1)),AVERAGE(OFFSET('2WCoarse'!$D$10,12*$A8,4*(PlotControl!$C$6-1),12,1))) -> 379116.6667 | G8: =IF(PlotControl!$B$4 = "Annual Max",MAX(OFFSET('2WCoarse'!$E$10,12*$A8,4*(PlotControl!$C$6-1),12,1)),AVERAGE(OFFSET('2WCoarse'!$E$10,12*$A8,4*(PlotControl!$C$6-1),12,1))) -> 425693.3333 | H8: =IF(PlotControl!$B$4 = "Annual Max",MAX(OFFSET('2WBank'!$C$10,12*$A8,4*(PlotControl!$C$6-1),12,1)),AVERAGE(OFFSET('2WBank'!$C$10,12*$A8,4*(PlotControl!$C$6-1),12,1))) -> 566678.3333 | I8: =IF(PlotControl!$B$4 = "Annual Max",MAX(OFFSET('2WBank'!$D$10,12*$A8,4*(PlotControl!$C$6-1),12,1)),AVERAGE(OFFSET('2WBank'!$D$10,12*$A8,4*(PlotControl!$C$6-1),12,1))) -> 629362.5 | J8: =IF(PlotControl!$B$4 = "Annual Max",MAX(OFFSET('2WBank'!$E$10,12*$A8,4*(PlotControl!$C$6-1),12,1)),AVERAGE(OFFSET('2WBank'!$E$10,12*$A8,4*(PlotControl!$C$6-1),12,1))) -> 691422.5 | K8: =IF(PlotControl!$B$4 = "Annual Max",MAX(OFFSET('2EFines'!$C$10,12*$A8,4*(PlotControl!$C$6-1),12,1)),AVERAGE(OFFSET('2EFines'!$C$10,12*$A8,4*(PlotControl!$C$6-1),12,1))) -> 0 | L8: =IF(PlotControl!$B$4 = "Annual Max",MAX(OFFSET('2EFines'!$D$10,12*$A8,4*(PlotControl!$C$6-1),12,1)),AVERAGE(OFFSET('2EFines'!$D$10,12*$A8,4*(PlotControl!$C$6-1),12,1))) -> 0 | M8: =IF(PlotControl!$B$4 = "Annual Max",MAX(OFFSET('2EFines'!$E$10,12*$A8,4*(PlotControl!$C$6-1),12,1)),AVERAGE(OFFSET('2EFines'!$E$10,12*$A8,4*(PlotControl!$C$6-1),12,1))) -> 0 | N8: =IF(PlotControl!$B$4 = "Annual Max",MAX(OFFSET('2ECoarse'!$C$10,12*$A8,4*(PlotControl!$C$6-1),12,1)),AVERAGE(OFFSET('2ECoarse'!$C$10,12*$A8,4*(PlotControl!$C$6-1),12,1))) -> 173389.1667 | O8: =IF(PlotControl!$B$4 = "Annual Max",MAX(OFFSET('2ECoarse'!$D$10,12*$A8,4*(PlotControl!$C$6-1),12,1)),AVERAGE(OFFSET('2ECoarse'!$D$10,12*$A8,4*(PlotControl!$C$6-1),12,1))) -> 238493.3333 | P8: =IF(PlotControl!$B$4 = "Annual Max",MAX(OFFSET('2ECoarse'!$E$10,12*$A8,4*(PlotControl!$C$6-1),12,1)),AVERAGE(OFFSET('2ECoarse'!$E$10,12*$A8,4*(PlotControl!$C$6-1),12,1))) -> 332200 | Q8: =IF(PlotControl!$B$4 = "Annual Max",MAX(OFFSET('2EBank'!$C$10,12*$A8,4*(PlotControl!$C$6-1),12,1)),AVERAGE(OFFSET('2EBank'!$C$10,12*$A8,4*(PlotControl!$C$6-1),12,1))) -> 332820.8333 | R8: =IF(PlotControl!$B$4 = "Annual Max",MAX(OFFSET('2EBank'!$D$10,12*$A8,4*(PlotControl!$C$6-1),12,1)),AVERAGE(OFFSET('2EBank'!$D$10,12*$A8,4*(PlotControl!$C$6-1),12,1))) -> 401460.8333 | S8: =IF(PlotControl!$B$4 = "Annual Max",MAX(OFFSET('2EBank'!$E$10,12*$A8,4*(PlotControl!$C$6-1),12,1)),AVERAGE(OFFSET('2EBank'!$E$10,12*$A8,4*(PlotControl!$C$6-1),12,1))) -> 469724.1667 | T8: =IF(PlotControl!$B$4 = "Annual Max",MAX(OFFSET('1EFines'!$C$10,12*$A8,4*(PlotControl!$C$6-1),12,1)),AVERAGE(OFFSET('1EFines'!$C$10,12*$A8,4*(PlotControl!$C$6-1),12,1))) -> 315286.6667 | U8: =IF(PlotControl!$B$4 = "Annual Max",MAX(OFFSET('1EFines'!$D$10,12*$A8,4*(PlotControl!$C$6-1),12,1)),AVERAGE(OFFSET('1EFines'!$D$10,12*$A8,4*(PlotControl!$C$6-1),12,1))) -> 390322.5 | V8: =IF(PlotControl!$B$4 = "Annual Max",MAX(OFFSET('1EFines'!$E$10,12*$A8,4*(PlotControl!$C$6-1),12,1)),AVERAGE(OFFSET('1EFines'!$E$10,12*$A8,4*(PlotControl!$C$6-1),12,1))) -> 488198.3333 | W8: =IF(PlotControl!$B$4 = "Annual Max",MAX(OFFSET('1ECoarse'!$C$10,12*$A8,4*(PlotControl!$C$6-1),12,1)),AVERAGE(OFFSET('1ECoarse'!$C$10,12*$A8,4*(PlotControl!$C$6-1),12,1))) -> 616209.1667 | X8: =IF(PlotControl!$B$4 = "Annual Max",MAX(OFFSET('1ECoarse'!$D$10,12*$A8,4*(PlotControl!$C$6-1),12,1)),AVERAGE(OFFSET('1ECoarse'!$D$10,12*$A8,4*(PlotControl!$C$6-1),12,1))) -> 718200 | Y8: =IF(PlotControl!$B$4 = "Annual Max",MAX(OFFSET('1ECoarse'!$E$10,12*$A8,4*(PlotControl!$C$6-1),12,1)),AVERAGE(OFFSET('1ECoarse'!$E$10,12*$A8,4*(PlotControl!$C$6-1),12,1))) -> 875169.1667
A9: 4 | B9: =IF(PlotControl!$B$4 = "Annual Max",MAX(OFFSET('2WFines'!$C$10,12*$A9,4*(PlotControl!$C$6-1),12,1)),AVERAGE(OFFSET('2WFines'!$C$10,12*$A9,4*(PlotControl!$C$6-1),12,1))) -> 230788.3333 | C9: =IF(PlotControl!$B$4 = "Annual Max",MAX(OFFSET('2WFines'!$D$10,12*$A9,4*(PlotControl!$C$6-1),12,1)),AVERAGE(OFFSET('2WFines'!$D$10,12*$A9,4*(PlotControl!$C$6-1),12,1))) -> 241765.8333 | D9: =IF(PlotControl!$B$4 = "Annual Max",MAX(OFFSET('2WFines'!$E$10,12*$A9,4*(PlotControl!$C$6-1),12,1)),AVERAGE(OFFSET('2WFines'!$E$10,12*$A9,4*(PlotControl!$C$6-1),12,1))) -> 253230.8333 | E9: =IF(PlotControl!$B$4 = "Annual Max",MAX(OFFSET('2WCoarse'!$C$10,12*$A9,4*(PlotControl!$C$6-1),12,1)),AVERAGE(OFFSET('2WCoarse'!$C$10,12*$A9,4*(PlotControl!$C$6-1),12,1))) -> 324208.3333 | F9: =IF(PlotControl!$B$4 = "Annual Max",MAX(OFFSET('2WCoarse'!$D$10,12*$A9,4*(PlotControl!$C$6-1),12,1)),AVERAGE(OFFSET('2WCoarse'!$D$10,12*$A9,4*(PlotControl!$C$6-1),12,1))) -> 380591.6667 | G9: =IF(PlotControl!$B$4 = "Annual Max",MAX(OFFSET('2WCoarse'!$E$10,12*$A9,4*(PlotControl!$C$6-1),12,1)),AVERAGE(OFFSET('2WCoarse'!$E$10,12*$A9,4*(PlotControl!$C$6-1),12,1))) -> 435805.8333 | H9: =IF(PlotControl!$B$4 = "Annual Max",MAX(OFFSET('2WBank'!$C$10,12*$A9,4*(PlotControl!$C$6-1),12,1)),AVERAGE(OFFSET('2WBank'!$C$10,12*$A9,4*(PlotControl!$C$6-1),12,1))) -> 557164.1667 | I9: =IF(PlotControl!$B$4 = "Annual Max",MAX(OFFSET('2WBank'!$D$10,12*$A9,4*(PlotControl!$C$6-1),12,1)),AVERAGE(OFFSET('2WBank'!$D$10,12*$A9,4*(PlotControl!$C$6-1),12,1))) -> 633498.3333 | J9: =IF(PlotControl!$B$4 = "Annual Max",MAX(OFFSET('2WBank'!$E$10,12*$A9,4*(PlotControl!$C$6-1),12,1)),AVERAGE(OFFSET('2WBank'!$E$10,12*$A9,4*(PlotControl!$C$6-1),12,1))) -> 706515.8333 | K9: =IF(PlotControl!$B$4 = "Annual Max",MAX(OFFSET('2EFines'!$C$10,12*$A9,4*(PlotControl!$C$6-1),12,1)),AVERAGE(OFFSET('2EFines'!$C$10,12*$A9,4*(PlotControl!$C$6-1),12,1))) -> 0 | L9: =IF(PlotControl!$B$4 = "Annual Max",MAX(OFFSET('2EFines'!$D$10,12*$A9,4*(PlotControl!$C$6-1),12,1)),AVERAGE(OFFSET('2EFines'!$D$10,12*$A9,4*(PlotControl!$C$6-1),12,1))) -> 0 | M9: =IF(PlotControl!$B$4 = "Annual Max",MAX(OFFSET('2EFines'!$E$10,12*$A9,4*(PlotControl!$C$6-1),12,1)),AVERAGE(OFFSET('2EFines'!$E$10,12*$A9,4*(PlotControl!$C$6-1),12,1))) -> 0 | N9: =IF(PlotControl!$B$4 = "Annual Max",MAX(OFFSET('2ECoarse'!$C$10,12*$A9,4*(PlotControl!$C$6-1),12,1)),AVERAGE(OFFSET('2ECoarse'!$C$10,12*$A9,4*(PlotControl!$C$6-1),12,1))) -> 110525.75 | O9: =IF(PlotControl!$B$4 = "Annual Max",MAX(OFFSET('2ECoarse'!$D$10,12*$A9,4*(PlotControl!$C$6-1),12,1)),AVERAGE(OFFSET('2ECoarse'!$D$10,12*$A9,4*(PlotControl!$C$6-1),12,1))) -> 164035.8333 | P9: =IF(PlotControl!$B$4 = "Annual Max",MAX(OFFSET('2ECoarse'!$E$10,12*$A9,4*(PlotControl!$C$6-1),12,1)),AVERAGE(OFFSET('2ECoarse'!$E$10,12*$A9,4*(PlotControl!$C$6-1),12,1))) -> 242233.3333 | Q9: =IF(PlotControl!$B$4 = "Annual Max",MAX(OFFSET('2EBank'!$C$10,12*$A9,4*(PlotControl!$C$6-1),12,1)),AVERAGE(OFFSET('2EBank'!$C$10,12*$A9,4*(PlotControl!$C$6-1),12,1))) -> 316367.5 | R9: =IF(PlotControl!$B$4 = "Annual Max",MAX(OFFSET('2EBank'!$D$10,12*$A9,4*(PlotControl!$C$6-1),12,1)),AVERAGE(OFFSET('2EBank'!$D$10,12*$A9,4*(PlotControl!$C$6-1),12,1))) -> 395585 | S9: =IF(PlotControl!$B$4 = "Annual Max",MAX(OFFSET('2EBank'!$E$10,12*$A9,4*(PlotControl!$C$6-1),12,1)),AVERAGE(OFFSET('2EBank'!$E$10,12*$A9,4*(PlotControl!$C$6-1),12,1))) -> 474970.8333 | T9: =IF(PlotControl!$B$4 = "Annual Max",MAX(OFFSET('1EFines'!$C$10,12*$A9,4*(PlotControl!$C$6-1),12,1)),AVERAGE(OFFSET('1EFines'!$C$10,12*$A9,4*(PlotControl!$C$6-1),12,1))) -> 300890.8333 | U9: =IF(PlotControl!$B$4 = "Annual Max",MAX(OFFSET('1EFines'!$D$10,12*$A9,4*(PlotControl!$C$6-1),12,1)),AVERAGE(OFFSET('1EFines'!$D$10,12*$A9,4*(PlotControl!$C$6-1),12,1))) -> 382829.1667 | V9: =IF(PlotControl!$B$4 = "Annual Max",MAX(OFFSET('1EFines'!$E$10,12*$A9,4*(PlotControl!$C$6-1),12,1)),AVERAGE(OFFSET('1EFines'!$E$10,12*$A9,4*(PlotControl!$C$6-1),12,1))) -> 487802.5 | W9: =IF(PlotControl!$B$4 = "Annual Max",MAX(OFFSET('1ECoarse'!$C$10,12*$A9,4*(PlotControl!$C$6-1),12,1)),AVERAGE(OFFSET('1ECoarse'!$C$10,12*$A9,4*(PlotControl!$C$6-1),12,1))) -> 599352.5 | X9: =IF(PlotControl!$B$4 = "Annual Max",MAX(OFFSET('1ECoarse'!$D$10,12*$A9,4*(PlotControl!$C$6-1),12,1)),AVERAGE(OFFSET('1ECoarse'!$D$10,12*$A9,4*(PlotControl!$C$6-1),12,1))) -> 713168.3333 | Y9: =IF(PlotControl!$B$4 = "Annual Max",MAX(OFFSET('1ECoarse'!$E$10,12*$A9,4*(PlotControl!$C$6-1),12,1)),AVERAGE(OFFSET('1ECoarse'!$E$10,12*$A9,4*(PlotControl!$C$6-1),12,1))) -> 883158.3333
A10: 5 | B10: =IF(PlotControl!$B$4 = "Annual Max",MAX(OFFSET('2WFines'!$C$10,12*$A10,4*(PlotControl!$C$6-1),12,1)),AVERAGE(OFFSET('2WFines'!$C$10,12*$A10,4*(PlotControl!$C$6-1),12,1))) -> 230349.1667 | C10: =IF(PlotControl!$B$4 = "Annual Max",MAX(OFFSET('2WFines'!$D$10,12*$A10,4*(PlotControl!$C$6-1),12,1)),AVERAGE(OFFSET('2WFines'!$D$10,12*$A10,4*(PlotControl!$C$6-1),12,1))) -> 243033.3333 | D10: =IF(PlotControl!$B$4 = "Annual Max",MAX(OFFSET('2WFines'!$E$10,12*$A10,4*(PlotControl!$C$6-1),12,1)),AVERAGE(OFFSET('2WFines'!$E$10,12*$A10,4*(PlotControl!$C$6-1),12,1))) -> 255268.3333 | E10: =IF(PlotControl!$B$4 = "Annual Max",MAX(OFFSET('2WCoarse'!$C$10,12*$A10,4*(PlotControl!$C$6-1),12,1)),AVERAGE(OFFSET('2WCoarse'!$C$10,12*$A10,4*(PlotControl!$C$6-1),12,1))) -> 314227.5 | F10: =IF(PlotControl!$B$4 = "Annual Max",MAX(OFFSET('2WCoarse'!$D$10,12*$A10,4*(PlotControl!$C$6-1),12,1)),AVERAGE(OFFSET('2WCoarse'!$D$10,12*$A10,4*(PlotControl!$C$6-1),12,1))) -> 383330.8333 | G10: =IF(PlotControl!$B$4 = "Annual Max",MAX(OFFSET('2WCoarse'!$E$10,12*$A10,4*(PlotControl!$C$6-1),12,1)),AVERAGE(OFFSET('2WCoarse'!$E$10,12*$A10,4*(PlotControl!$C$6-1),12,1))) -> 441749.1667 | H10: =IF(PlotControl!$B$4 = "Annual Max",MAX(OFFSET('2WBank'!$C$10,12*$A10,4*(PlotControl!$C$6-1),12,1)),AVERAGE(OFFSET('2WBank'!$C$10,12*$A10,4*(PlotControl!$C$6-1),12,1))) -> 552263.3333 | I10: =IF(PlotControl!$B$4 = "Annual Max",MAX(OFFSET('2WBank'!$D$10,12*$A10,4*(PlotControl!$C$6-1),12,1)),AVERAGE(OFFSET('2WBank'!$D$10,12*$A10,4*(PlotControl!$C$6-1),12,1))) -> 641036.6667 | J10: =IF(PlotControl!$B$4 = "Annual Max",MAX(OFFSET('2WBank'!$E$10,12*$A10,4*(PlotControl!$C$6-1),12,1)),AVERAGE(OFFSET('2WBank'!$E$10,12*$A10,4*(PlotControl!$C$6-1),12,1))) -> 723697.5 | K10: =IF(PlotControl!$B$4 = "Annual Max",MAX(OFFSET('2EFines'!$C$10,12*$A10,4*(PlotControl!$C$6-1),12,1)),AVERAGE(OFFSET('2EFines'!$C$10,12*$A10,4*(PlotControl!$C$6-1),12,1))) -> 0 | L10: =IF(PlotControl!$B$4 = "Annual Max",MAX(OFFSET('2EFines'!$D$10,12*$A10,4*(PlotControl!$C$6-1),12,1)),AVERAGE(OFFSET('2EFines'!$D$10,12*$A10,4*(PlotControl!$C$6-1),12,1))) -> 0 | M10: =IF(PlotControl!$B$4 = "Annual Max",MAX(OFFSET('2EFines'!$E$10,12*$A10,4*(PlotControl!$C$6-1),12,1)),AVERAGE(OFFSET('2EFines'!$E$10,12*$A10,4*(PlotControl!$C$6-1),12,1))) -> 0 | N10: =IF(PlotControl!$B$4 = "Annual Max",MAX(OFFSET('2ECoarse'!$C$10,12*$A10,4*(PlotControl!$C$6-1),12,1)),AVERAGE(OFFSET('2ECoarse'!$C$10,12*$A10,4*(PlotControl!$C$6-1),12,1))) -> 57078.08333 | O10: =IF(PlotControl!$B$4 = "Annual Max",MAX(OFFSET('2ECoarse'!$D$10,12*$A10,4*(PlotControl!$C$6-1),12,1)),AVERAGE(OFFSET('2ECoarse'!$D$10,12*$A10,4*(PlotControl!$C$6-1),12,1))) -> 95078.41667 | P10: =IF(PlotControl!$B$4 = "Annual Max",MAX(OFFSET('2ECoarse'!$E$10,12*$A10,4*(PlotControl!$C$6-1),12,1)),AVERAGE(OFFSET('2ECoarse'!$E$10,12*$A10,4*(PlotControl!$C$6-1),12,1))) -> 153010 | Q10: =IF(PlotControl!$B$4 = "Annual Max",MAX(OFFSET('2EBank'!$C$10,12*$A10,4*(PlotControl!$C$6-1),12,1)),AVERAGE(OFFSET('2EBank'!$C$10,12*$A10,4*(PlotControl!$C$6-1),12,1))) -> 304891.6667 | R10: =IF(PlotControl!$B$4 = "Annual Max",MAX(OFFSET('2EBank'!$D$10,12*$A10,4*(PlotControl!$C$6-1),12,1)),AVERAGE(OFFSET('2EBank'!$D$10,12*$A10,4*(PlotControl!$C$6-1),12,1))) -> 393627.5 | S10: =IF(PlotControl!$B$4 = "Annual Max",MAX(OFFSET('2EBank'!$E$10,12*$A10,4*(PlotControl!$C$6-1),12,1)),AVERAGE(OFFSET('2EBank'!$E$10,12*$A10,4*(PlotControl!$C$6-1),12,1))) -> 479697.5 | T10: =IF(PlotControl!$B$4 = "Annual Max",MAX(OFFSET('1EFines'!$C$10,12*$A10,4*(PlotControl!$C$6-1),12,1)),AVERAGE(OFFSET('1EFines'!$C$10,12*$A10,4*(PlotControl!$C$6-1),12,1))) -> 292677.5 | U10: =IF(PlotControl!$B$4 = "Annual Max",MAX(OFFSET('1EFines'!$D$10,12*$A10,4*(PlotControl!$C$6-1),12,1)),AVERAGE(OFFSET('1EFines'!$D$10,12*$A10,4*(PlotControl!$C$6-1),12,1))) -> 379871.6667 | V10: =IF(PlotControl!$B$4 = "Annual Max",MAX(OFFSET('1EFines'!$E$10,12*$A10,4*(PlotControl!$C$6-1),12,1)),AVERAGE(OFFSET('1EFines'!$E$10,12*$A10,4*(PlotControl!$C$6-1),12,1))) -> 489072.5 | W10: =IF(PlotControl!$B$4 = "Annual Max",MAX(OFFSET('1ECoarse'!$C$10,12*$A10,4*(PlotControl!$C$6-1),12,1)),AVERAGE(OFFSET('1ECoarse'!$C$10,12*$A10,4*(PlotControl!$C$6-1),12,1))) -> 581608.3333 | X10: =IF(PlotControl!$B$4 = "Annual Max",MAX(OFFSET('1ECoarse'!$D$10,12*$A10,4*(PlotControl!$C$6-1),12,1)),AVERAGE(OFFSET('1ECoarse'!$D$10,12*$A10,4*(PlotControl!$C$6-1),12,1))) -> 707140.8333 | Y10: =IF(PlotControl!$B$4 = "Annual Max",MAX(OFFSET('1ECoarse'!$E$10,12*$A10,4*(PlotControl!$C$6-1),12,1)),AVERAGE(OFFSET('1ECoarse'!$E$10,12*$A10,4*(PlotControl!$C$6-1),12,1))) -> 882072.5
A11: 6 | B11: =IF(PlotControl!$B$4 = "Annual Max",MAX(OFFSET('2WFines'!$C$10,12*$A11,4*(PlotControl!$C$6-1),12,1)),AVERAGE(OFFSET('2WFines'!$C$10,12*$A11,4*(PlotControl!$C$6-1),12,1))) -> 229250.8333 | C11: =IF(PlotControl!$B$4 = "Annual Max",MAX(OFFSET('2WFines'!$D$10,12*$A11,4*(PlotControl!$C$6-1),12,1)),AVERAGE(OFFSET('2WFines'!$D$10,12*$A11,4*(PlotControl!$C$6-1),12,1))) -> 243845 | D11: =IF(PlotControl!$B$4 = "Annual Max",MAX(OFFSET('2WFines'!$E$10,12*$A11,4*(PlotControl!$C$6-1),12,1)),AVERAGE(OFFSET('2WFines'!$E$10,12*$A11,4*(PlotControl!$C$6-1),12,1))) -> 257402.5 | E11: =IF(PlotControl!$B$4 = "Annual Max",MAX(OFFSET('2WCoarse'!$C$10,12*$A11,4*(PlotControl!$C$6-1),12,1)),AVERAGE(OFFSET('2WCoarse'!$C$10,12*$A11,4*(PlotControl!$C$6-1),12,1))) -> 304844.1667 | F11: =IF(PlotControl!$B$4 = "Annual Max",MAX(OFFSET('2WCoarse'!$D$10,12*$A11,4*(PlotControl!$C$6-1),12,1)),AVERAGE(OFFSET('2WCoarse'!$D$10,12*$A11,4*(PlotControl!$C$6-1),12,1))) -> 385378.3333 | G11: =IF(PlotControl!$B$4 = "Annual Max",MAX(OFFSET('2WCoarse'!$E$10,12*$A11,4*(PlotControl!$C$6-1),12,1)),AVERAGE(OFFSET('2WCoarse'!$E$10,12*$A11,4*(PlotControl!$C$6-1),12,1))) -> 450480 | H11: =IF(PlotControl!$B$4 = "Annual Max",MAX(OFFSET('2WBank'!$C$10,12*$A11,4*(PlotControl!$C$6-1),12,1)),AVERAGE(OFFSET('2WBank'!$C$10,12*$A11,4*(PlotControl!$C$6-1),12,1))) -> 544532.5 | I11: =IF(PlotControl!$B$4 = "Annual Max",MAX(OFFSET('2WBank'!$D$10,12*$A11,4*(PlotControl!$C$6-1),12,1)),AVERAGE(OFFSET('2WBank'!$D$10,12*$A11,4*(PlotControl!$C$6-1),12,1))) -> 648264.1667 | J11: =IF(PlotControl!$B$4 = "Annual Max",MAX(OFFSET('2WBank'!$E$10,12*$A11,4*(PlotControl!$C$6-1),12,1)),AVERAGE(OFFSET('2WBank'!$E$10,12*$A11,4*(PlotControl!$C$6-1),12,1))) -> 741281.6667 | K11: =IF(PlotControl!$B$4 = "Annual Max",MAX(OFFSET('2EFines'!$C$10,12*$A11,4*(PlotControl!$C$6-1),12,1)),AVERAGE(OFFSET('2EFines'!$C$10,12*$A11,4*(PlotControl!$C$6-1),12,1))) -> 0 | L11: =IF(PlotControl!$B$4 = "Annual Max",MAX(OFFSET('2EFines'!$D$10,12*$A11,4*(PlotControl!$C$6-1),12,1)),AVERAGE(OFFSET('2EFines'!$D$10,12*$A11,4*(PlotControl!$C$6-1),12,1))) -> 0 | M11: =IF(PlotControl!$B$4 = "Annual Max",MAX(OFFSET('2EFines'!$E$10,12*$A11,4*(PlotControl!$C$6-1),12,1)),AVERAGE(OFFSET('2EFines'!$E$10,12*$A11,4*(PlotControl!$C$6-1),12,1))) -> 0 | N11: =IF(PlotControl!$B$4 = "Annual Max",MAX(OFFSET('2ECoarse'!$C$10,12*$A11,4*(PlotControl!$C$6-1),12,1)),AVERAGE(OFFSET('2ECoarse'!$C$10,12*$A11,4*(PlotControl!$C$6-1),12,1))) -> 19080.25833 | O11: =IF(PlotControl!$B$4 = "Annual Max",MAX(OFFSET('2ECoarse'!$D$10,12*$A11,4*(PlotControl!$C$6-1),12,1)),AVERAGE(OFFSET('2ECoarse'!$D$10,12*$A11,4*(PlotControl!$C$6-1),12,1))) -> 34269.33333 | P11: =IF(PlotControl!$B$4 = "Annual Max",MAX(OFFSET('2ECoarse'!$E$10,12*$A11,4*(PlotControl!$C$6-1),12,1)),AVERAGE(OFFSET('2ECoarse'!$E$10,12*$A11,4*(PlotControl!$C$6-1),12,1))) -> 62235.91667 | Q11: =IF(PlotControl!$B$4 = "Annual Max",MAX(OFFSET('2EBank'!$C$10,12*$A11,4*(PlotControl!$C$6-1),12,1)),AVERAGE(OFFSET('2EBank'!$C$10,12*$A11,4*(PlotControl!$C$6-1),12,1))) -> 298158.3333 | R11: =IF(PlotControl!$B$4 = "Annual Max",MAX(OFFSET('2EBank'!$D$10,12*$A11,4*(PlotControl!$C$6-1),12,1)),AVERAGE(OFFSET('2EBank'!$D$10,12*$A11,4*(PlotControl!$C$6-1),12,1))) -> 390920.8333 | S11: =IF(PlotControl!$B$4 = "Annual Max",MAX(OFFSET('2EBank'!$E$10,12*$A11,4*(PlotControl!$C$6-1),12,1)),AVERAGE(OFFSET('2EBank'!$E$10,12*$A11,4*(PlotControl!$C$6-1),12,1))) -> 482290 | T11: =IF(PlotControl!$B$4 = "Annual Max",MAX(OFFSET('1EFines'!$C$10,12*$A11,4*(PlotControl!$C$6-1),12,1)),AVERAGE(OFFSET('1EFines'!$C$10,12*$A11,4*(PlotControl!$C$6-1),12,1))) -> 278776.6667 | U11: =IF(PlotControl!$B$4 = "Annual Max",MAX(OFFSET('1EFines'!$D$10,12*$A11,4*(PlotControl!$C$6-1),12,1)),AVERAGE(OFFSET('1EFines'!$D$10,12*$A11,4*(PlotControl!$C$6-1),12,1))) -> 376316.6667 | V11: =IF(PlotControl!$B$4 = "Annual Max",MAX(OFFSET('1EFines'!$E$10,12*$A11,4*(PlotControl!$C$6-1),12,1)),AVERAGE(OFFSET('1EFines'!$E$10,12*$A11,4*(PlotControl!$C$6-1),12,1))) -> 498750.8333 | W11: =IF(PlotControl!$B$4 = "Annual Max",MAX(OFFSET('1ECoarse'!$C$10,12*$A11,4*(PlotControl!$C$6-1),12,1)),AVERAGE(OFFSET('1ECoarse'!$C$10,12*$A11,4*(PlotControl!$C$6-1),12,1))) -> 567755.8333 | X11: =IF(PlotControl!$B$4 = "Annual Max",MAX(OFFSET('1ECoarse'!$D$10,12*$A11,4*(PlotControl!$C$6-1),12,1)),AVERAGE(OFFSET('1ECoarse'!$D$10,12*$A11,4*(PlotControl!$C$6-1),12,1))) -> 708604.1667 | Y11: =IF(PlotControl!$B$4 = "Annual Max",MAX(OFFSET('1ECoarse'!$E$10,12*$A11,4*(PlotControl!$C$6-1),12,1)),AVERAGE(OFFSET('1ECoarse'!$E$10,12*$A11,4*(PlotControl!$C$6-1),12,1))) -> 882225
A12: 7 | B12: =IF(PlotControl!$B$4 = "Annual Max",MAX(OFFSET('2WFines'!$C$10,12*$A12,4*(PlotControl!$C$6-1),12,1)),AVERAGE(OFFSET('2WFines'!$C$10,12*$A12,4*(PlotControl!$C$6-1),12,1))) -> 227801.6667 | C12: =IF(PlotControl!$B$4 = "Annual Max",MAX(OFFSET('2WFines'!$D$10,12*$A12,4*(PlotControl!$C$6-1),12,1)),AVERAGE(OFFSET('2WFines'!$D$10,12*$A12,4*(PlotControl!$C$6-1),12,1))) -> 244035.8333 | D12: =IF(PlotControl!$B$4 = "Annual Max",MAX(OFFSET('2WFines'!$E$10,12*$A12,4*(PlotControl!$C$6-1),12,1)),AVERAGE(OFFSET('2WFines'!$E$10,12*$A12,4*(PlotControl!$C$6-1),12,1))) -> 258615.8333 | E12: =IF(PlotControl!$B$4 = "Annual Max",MAX(OFFSET('2WCoarse'!$C$10,12*$A12,4*(PlotControl!$C$6-1),12,1)),AVERAGE(OFFSET('2WCoarse'!$C$10,12*$A12,4*(PlotControl!$C$6-1),12,1))) -> 296208.3333 | F12: =IF(PlotControl!$B$4 = "Annual Max",MAX(OFFSET('2WCoarse'!$D$10,12*$A12,4*(PlotControl!$C$6-1),12,1)),AVERAGE(OFFSET('2WCoarse'!$D$10,12*$A12,4*(PlotControl!$C$6-1),12,1))) -> 382804.1667 | G12: =IF(PlotControl!$B$4 = "Annual Max",MAX(OFFSET('2WCoarse'!$E$10,12*$A12,4*(PlotControl!$C$6-1),12,1)),AVERAGE(OFFSET('2WCoarse'!$E$10,12*$A12,4*(PlotControl!$C$6-1),12,1))) -> 453823.3333 | H12: =IF(PlotControl!$B$4 = "Annual Max",MAX(OFFSET('2WBank'!$C$10,12*$A12,4*(PlotControl!$C$6-1),12,1)),AVERAGE(OFFSET('2WBank'!$C$10,12*$A12,4*(PlotControl!$C$6-1),12,1))) -> 534964.1667 | I12: =IF(PlotControl!$B$4 = "Annual Max",MAX(OFFSET('2WBank'!$D$10,12*$A12,4*(PlotControl!$C$6-1),12,1)),AVERAGE(OFFSET('2WBank'!$D$10,12*$A12,4*(PlotControl!$C$6-1),12,1))) -> 650310.8333 | J12: =IF(PlotControl!$B$4 = "Annual Max",MAX(OFFSET('2WBank'!$E$10,12*$A12,4*(PlotControl!$C$6-1),12,1)),AVERAGE(OFFSET('2WBank'!$E$10,12*$A12,4*(PlotControl!$C$6-1),12,1))) -> 748022.5 | K12: =IF(PlotControl!$B$4 = "Annual Max",MAX(OFFSET('2EFines'!$C$10,12*$A12,4*(PlotControl!$C$6-1),12,1)),AVERAGE(OFFSET('2EFines'!$C$10,12*$A12,4*(PlotControl!$C$6-1),12,1))) -> 0 | L12: =IF(PlotControl!$B$4 = "Annual Max",MAX(OFFSET('2EFines'!$D$10,12*$A12,4*(PlotControl!$C$6-1),12,1)),AVERAGE(OFFSET('2EFines'!$D$10,12*$A12,4*(PlotControl!$C$6-1),12,1))) -> 0 | M12: =IF(PlotControl!$B$4 = "Annual Max",MAX(OFFSET('2EFines'!$E$10,12*$A12,4*(PlotControl!$C$6-1),12,1)),AVERAGE(OFFSET('2EFines'!$E$10,12*$A12,4*(PlotControl!$C$6-1),12,1))) -> 0 | N12: =IF(PlotControl!$B$4 = "Annual Max",MAX(OFFSET('2ECoarse'!$C$10,12*$A12,4*(PlotControl!$C$6-1),12,1)),AVERAGE(OFFSET('2ECoarse'!$C$10,12*$A12,4*(PlotControl!$C$6-1),12,1))) -> 0 | O12: =IF(PlotControl!$B$4 = "Annual Max",MAX(OFFSET('2ECoarse'!$D$10,12*$A12,4*(PlotControl!$C$6-1),12,1)),AVERAGE(OFFSET('2ECoarse'!$D$10,12*$A12,4*(PlotControl!$C$6-1),12,1))) -> 0 | P12: =IF(PlotControl!$B$4 = "Annual Max",MAX(OFFSET('2ECoarse'!$E$10,12*$A12,4*(PlotControl!$C$6-1),12,1)),AVERAGE(OFFSET('2ECoarse'!$E$10,12*$A12,4*(PlotControl!$C$6-1),12,1))) -> 0 | Q12: =IF(PlotControl!$B$4 = "Annual Max",MAX(OFFSET('2EBank'!$C$10,12*$A12,4*(PlotControl!$C$6-1),12,1)),AVERAGE(OFFSET('2EBank'!$C$10,12*$A12,4*(PlotControl!$C$6-1),12,1))) -> 277956.6667 | R12: =IF(PlotControl!$B$4 = "Annual Max",MAX(OFFSET('2EBank'!$D$10,12*$A12,4*(PlotControl!$C$6-1),12,1)),AVERAGE(OFFSET('2EBank'!$D$10,12*$A12,4*(PlotControl!$C$6-1),12,1))) -> 375600.8333 | S12: =IF(PlotControl!$B$4 = "Annual Max",MAX(OFFSET('2EBank'!$E$10,12*$A12,4*(PlotControl!$C$6-1),12,1)),AVERAGE(OFFSET('2EBank'!$E$10,12*$A12,4*(PlotControl!$C$6-1),12,1))) -> 464689.1667 | T12: =IF(PlotControl!$B$4 = "Annual Max",MAX(OFFSET('1EFines'!$C$10,12*$A12,4*(PlotControl!$C$6-1),12,1)),AVERAGE(OFFSET('1EFines'!$C$10,12*$A12,4*(PlotControl!$C$6-1),12,1))) -> 21679.16667 | U12: =IF(PlotControl!$B$4 = "Annual Max",MAX(OFFSET('1EFines'!$D$10,12*$A12,4*(PlotControl!$C$6-1),12,1)),AVERAGE(OFFSET('1EFines'!$D$10,12*$A12,4*(PlotControl!$C$6-1),12,1))) -> 30575 | V12: =IF(PlotControl!$B$4 = "Annual Max",MAX(OFFSET('1EFines'!$E$10,12*$A12,4*(PlotControl!$C$6-1),12,1)),AVERAGE(OFFSET('1EFines'!$E$10,12*$A12,4*(PlotControl!$C$6-1),12,1))) -> 42075.83333 | W12: =IF(PlotControl!$B$4 = "Annual Max",MAX(OFFSET('1ECoarse'!$C$10,12*$A12,4*(PlotControl!$C$6-1),12,1)),AVERAGE(OFFSET('1ECoarse'!$C$10,12*$A12,4*(PlotControl!$C$6-1),12,1))) -> 2357175.833 | X12: =IF(PlotControl!$B$4 = "Annual Max",MAX(OFFSET('1ECoarse'!$D$10,12*$A12,4*(PlotControl!$C$6-1),12,1)),AVERAGE(OFFSET('1ECoarse'!$D$10,12*$A12,4*(PlotControl!$C$6-1),12,1))) -> 3006495.833 | Y12: =IF(PlotControl!$B$4 = "Annual Max",MAX(OFFSET('1ECoarse'!$E$10,12*$A12,4*(PlotControl!$C$6-1),12,1)),AVERAGE(OFFSET('1ECoarse'!$E$10,12*$A12,4*(PlotControl!$C$6-1),12,1))) -> 3794559.167
A13: 8 | B13: =IF(PlotControl!$B$4 = "Annual Max",MAX(OFFSET('2WFines'!$C$10,12*$A13,4*(PlotControl!$C$6-1),12,1)),AVERAGE(OFFSET('2WFines'!$C$10,12*$A13,4*(PlotControl!$C$6-1),12,1))) -> 226270 | C13: =IF(PlotControl!$B$4 = "Annual Max",MAX(OFFSET('2WFines'!$D$10,12*$A13,4*(PlotControl!$C$6-1),12,1)),AVERAGE(OFFSET('2WFines'!$D$10,12*$A13,4*(PlotControl!$C$6-1),12,1))) -> 244236.6667 | D13: =IF(PlotControl!$B$4 = "Annual Max",MAX(OFFSET('2WFines'!$E$10,12*$A13,4*(PlotControl!$C$6-1),12,1)),AVERAGE(OFFSET('2WFines'!$E$10,12*$A13,4*(PlotControl!$C$6-1),12,1))) -> 259319.1667 | E13: =IF(PlotControl!$B$4 = "Annual Max",MAX(OFFSET('2WCoarse'!$C$10,12*$A13,4*(PlotControl!$C$6-1),12,1)),AVERAGE(OFFSET('2WCoarse'!$C$10,12*$A13,4*(PlotControl!$C$6-1),12,1))) -> 289341.6667 | F13: =IF(PlotControl!$B$4 = "Annual Max",MAX(OFFSET('2WCoarse'!$D$10,12*$A13,4*(PlotControl!$C$6-1),12,1)),AVERAGE(OFFSET('2WCoarse'!$D$10,12*$A13,4*(PlotControl!$C$6-1),12,1))) -> 383345.8333 | G13: =IF(PlotControl!$B$4 = "Annual Max",MAX(OFFSET('2WCoarse'!$E$10,12*$A13,4*(PlotControl!$C$6-1),12,1)),AVERAGE(OFFSET('2WCoarse'!$E$10,12*$A13,4*(PlotControl!$C$6-1),12,1))) -> 460304.1667 | H13: =IF(PlotControl!$B$4 = "Annual Max",MAX(OFFSET('2WBank'!$C$10,12*$A13,4*(PlotControl!$C$6-1),12,1)),AVERAGE(OFFSET('2WBank'!$C$10,12*$A13,4*(PlotControl!$C$6-1),12,1))) -> 521873.3333 | I13: =IF(PlotControl!$B$4 = "Annual Max",MAX(OFFSET('2WBank'!$D$10,12*$A13,4*(PlotControl!$C$6-1),12,1)),AVERAGE(OFFSET('2WBank'!$D$10,12*$A13,4*(PlotControl!$C$6-1),12,1))) -> 651050.8333 | J13: =IF(PlotControl!$B$4 = "Annual Max",MAX(OFFSET('2WBank'!$E$10,12*$A13,4*(PlotControl!$C$6-1),12,1)),AVERAGE(OFFSET('2WBank'!$E$10,12*$A13,4*(PlotControl!$C$6-1),12,1))) -> 753180.8333 | K13: =IF(PlotControl!$B$4 = "Annual Max",MAX(OFFSET('2EFines'!$C$10,12*$A13,4*(PlotControl!$C$6-1),12,1)),AVERAGE(OFFSET('2EFines'!$C$10,12*$A13,4*(PlotControl!$C$6-1),12,1))) -> 0 | L13: =IF(PlotControl!$B$4 = "Annual Max",MAX(OFFSET('2EFines'!$D$10,12*$A13,4*(PlotControl!$C$6-1),12,1)),AVERAGE(OFFSET('2EFines'!$D$10,12*$A13,4*(PlotControl!$C$6-1),12,1))) -> 0 | M13: =IF(PlotControl!$B$4 = "Annual Max",MAX(OFFSET('2EFines'!$E$10,12*$A13,4*(PlotControl!$C$6-1),12,1)),AVERAGE(OFFSET('2EFines'!$E$10,12*$A13,4*(PlotControl!$C$6-1),12,1))) -> 0 | N13: =IF(PlotControl!$B$4 = "Annual Max",MAX(OFFSET('2ECoarse'!$C$10,12*$A13,4*(PlotControl!$C$6-1),12,1)),AVERAGE(OFFSET('2ECoarse'!$C$10,12*$A13,4*(PlotControl!$C$6-1),12,1))) -> 0 | O13: =IF(PlotControl!$B$4 = "Annual Max",MAX(OFFSET('2ECoarse'!$D$10,12*$A13,4*(PlotControl!$C$6-1),12,1)),AVERAGE(OFFSET('2ECoarse'!$D$10,12*$A13,4*(PlotControl!$C$6-1),12,1))) -> 0 | P13: =IF(PlotControl!$B$4 = "Annual Max",MAX(OFFSET('2ECoarse'!$E$10,12*$A13,4*(PlotControl!$C$6-1),12,1)),AVERAGE(OFFSET('2ECoarse'!$E$10,12*$A13,4*(PlotControl!$C$6-1),12,1))) -> 0 | Q13: =IF(PlotControl!$B$4 = "Annual Max",MAX(OFFSET('2EBank'!$C$10,12*$A13,4*(PlotControl!$C$6-1),12,1)),AVERAGE(OFFSET('2EBank'!$C$10,12*$A13,4*(PlotControl!$C$6-1),12,1))) -> 263810.8333 | R13: =IF(PlotControl!$B$4 = "Annual Max",MAX(OFFSET('2EBank'!$D$10,12*$A13,4*(PlotControl!$C$6-1),12,1)),AVERAGE(OFFSET('2EBank'!$D$10,12*$A13,4*(PlotControl!$C$6-1),12,1))) -> 370243.3333 | S13: =IF(PlotControl!$B$4 = "Annual Max",MAX(OFFSET('2EBank'!$E$10,12*$A13,4*(PlotControl!$C$6-1),12,1)),AVERAGE(OFFSET('2EBank'!$E$10,12*$A13,4*(PlotControl!$C$6-1),12,1))) -> 458820 | T13: =IF(PlotControl!$B$4 = "Annual Max",MAX(OFFSET('1EFines'!$C$10,12*$A13,4*(PlotControl!$C$6-1),12,1)),AVERAGE(OFFSET('1EFines'!$C$10,12*$A13,4*(PlotControl!$C$6-1),12,1))) -> 0 | U13: =IF(PlotControl!$B$4 = "Annual Max",MAX(OFFSET('1EFines'!$D$10,12*$A13,4*(PlotControl!$C$6-1),12,1)),AVERAGE(OFFSET('1EFines'!$D$10,12*$A13,4*(PlotControl!$C$6-1),12,1))) -> 0 | V13: =IF(PlotControl!$B$4 = "Annual Max",MAX(OFFSET('1EFines'!$E$10,12*$A13,4*(PlotControl!$C$6-1),12,1)),AVERAGE(OFFSET('1EFines'!$E$10,12*$A13,4*(PlotControl!$C$6-1),12,1))) -> 0 | W13: =IF(PlotControl!$B$4 = "Annual Max",MAX(OFFSET('1ECoarse'!$C$10,12*$A13,4*(PlotControl!$C$6-1),12,1)),AVERAGE(OFFSET('1ECoarse'!$C$10,12*$A13,4*(PlotControl!$C$6-1),12,1))) -> 2214058.333 | X13: =IF(PlotControl!$B$4 = "Annual Max",MAX(OFFSET('1ECoarse'!$D$10,12*$A13,4*(PlotControl!$C$6-1),12,1)),AVERAGE(OFFSET('1ECoarse'!$D$10,12*$A13,4*(PlotControl!$C$6-1),12,1))) -> 2834158.333 | Y13: =IF(PlotControl!$B$4 = "Annual Max",MAX(OFFSET('1ECoarse'!$E$10,12*$A13,4*(PlotControl!$C$6-1),12,1)),AVERAGE(OFFSET('1ECoarse'!$E$10,12*$A13,4*(PlotControl!$C$6-1),12,1))) -> 3694133.333
A14: 9 | B14: =IF(PlotControl!$B$4 = "Annual Max",MAX(OFFSET('2WFines'!$C$10,12*$A14,4*(PlotControl!$C$6-1),12,1)),AVERAGE(OFFSET('2WFines'!$C$10,12*$A14,4*(PlotControl!$C$6-1),12,1))) -> 225597.5 | C14: =IF(PlotControl!$B$4 = "Annual Max",MAX(OFFSET('2WFines'!$D$10,12*$A14,4*(PlotControl!$C$6-1),12,1)),AVERAGE(OFFSET('2WFines'!$D$10,12*$A14,4*(PlotControl!$C$6-1),12,1))) -> 245097.5 | D14: =IF(PlotControl!$B$4 = "Annual Max",MAX(OFFSET('2WFines'!$E$10,12*$A14,4*(PlotControl!$C$6-1),12,1)),AVERAGE(OFFSET('2WFines'!$E$10,12*$A14,4*(PlotControl!$C$6-1),12,1))) -> 261796.6667 | E14: =IF(PlotControl!$B$4 = "Annual Max",MAX(OFFSET('2WCoarse'!$C$10,12*$A14,4*(PlotControl!$C$6-1),12,1)),AVERAGE(OFFSET('2WCoarse'!$C$10,12*$A14,4*(PlotControl!$C$6-1),12,1))) -> 281069.1667 | F14: =IF(PlotControl!$B$4 = "Annual Max",MAX(OFFSET('2WCoarse'!$D$10,12*$A14,4*(PlotControl!$C$6-1),12,1)),AVERAGE(OFFSET('2WCoarse'!$D$10,12*$A14,4*(PlotControl!$C$6-1),12,1))) -> 384093.3333 | G14: =IF(PlotControl!$B$4 = "Annual Max",MAX(OFFSET('2WCoarse'!$E$10,12*$A14,4*(PlotControl!$C$6-1),12,1)),AVERAGE(OFFSET('2WCoarse'!$E$10,12*$A14,4*(PlotControl!$C$6-1),12,1))) -> 465160 | H14: =IF(PlotControl!$B$4 = "Annual Max",MAX(OFFSET('2WBank'!$C$10,12*$A14,4*(PlotControl!$C$6-1),12,1)),AVERAGE(OFFSET('2WBank'!$C$10,12*$A14,4*(PlotControl!$C$6-1),12,1))) -> 515065 | I14: =IF(PlotControl!$B$4 = "Annual Max",MAX(OFFSET('2WBank'!$D$10,12*$A14,4*(PlotControl!$C$6-1),12,1)),AVERAGE(OFFSET('2WBank'!$D$10,12*$A14,4*(PlotControl!$C$6-1),12,1))) -> 655762.5 | J14: =IF(PlotControl!$B$4 = "Annual Max",MAX(OFFSET('2WBank'!$E$10,12*$A14,4*(PlotControl!$C$6-1),12,1)),AVERAGE(OFFSET('2WBank'!$E$10,12*$A14,4*(PlotControl!$C$6-1),12,1))) -> 768134.1667 | K14: =IF(PlotControl!$B$4 = "Annual Max",MAX(OFFSET('2EFines'!$C$10,12*$A14,4*(PlotControl!$C$6-1),12,1)),AVERAGE(OFFSET('2EFines'!$C$10,12*$A14,4*(PlotControl!$C$6-1),12,1))) -> 0 | L14: =IF(PlotControl!$B$4 = "Annual Max",MAX(OFFSET('2EFines'!$D$10,12*$A14,4*(PlotControl!$C$6-1),12,1)),AVERAGE(OFFSET('2EFines'!$D$10,12*$A14,4*(PlotControl!$C$6-1),12,1))) -> 0 | M14: =IF(PlotControl!$B$4 = "Annual Max",MAX(OFFSET('2EFines'!$E$10,12*$A14,4*(PlotControl!$C$6-1),12,1)),AVERAGE(OFFSET('2EFines'!$E$10,12*$A14,4*(PlotControl!$C$6-1),12,1))) -> 0 | N14: =IF(PlotControl!$B$4 = "Annual Max",MAX(OFFSET('2ECoarse'!$C$10,12*$A14,4*(PlotControl!$C$6-1),12,1)),AVERAGE(OFFSET('2ECoarse'!$C$10,12*$A14,4*(PlotControl!$C$6-1),12,1))) -> 0 | O14: =IF(PlotControl!$B$4 = "Annual Max",MAX(OFFSET('2ECoarse'!$D$10,12*$A14,4*(PlotControl!$C$6-1),12,1)),AVERAGE(OFFSET('2ECoarse'!$D$10,12*$A14,4*(PlotControl!$C$6-1),12,1))) -> 0 | P14: =IF(PlotControl!$B$4 = "Annual Max",MAX(OFFSET('2ECoarse'!$E$10,12*$A14,4*(PlotControl!$C$6-1),12,1)),AVERAGE(OFFSET('2ECoarse'!$E$10,12*$A14,4*(PlotControl!$C$6-1),12,1))) -> 0 | Q14: =IF(PlotControl!$B$4 = "Annual Max",MAX(OFFSET('2EBank'!$C$10,12*$A14,4*(PlotControl!$C$6-1),12,1)),AVERAGE(OFFSET('2EBank'!$C$10,12*$A14,4*(PlotControl!$C$6-1),12,1))) -> 263586.6667 | R14: =IF(PlotControl!$B$4 = "Annual Max",MAX(OFFSET('2EBank'!$D$10,12*$A14,4*(PlotControl!$C$6-1),12,1)),AVERAGE(OFFSET('2EBank'!$D$10,12*$A14,4*(PlotControl!$C$6-1),12,1))) -> 375390.8333 | S14: =IF(PlotControl!$B$4 = "Annual Max",MAX(OFFSET('2EBank'!$E$10,12*$A14,4*(PlotControl!$C$6-1),12,1)),AVERAGE(OFFSET('2EBank'!$E$10,12*$A14,4*(PlotControl!$C$6-1),12,1))) -> 480010 | T14: =IF(PlotControl!$B$4 = "Annual Max",MAX(OFFSET('1EFines'!$C$10,12*$A14,4*(PlotControl!$C$6-1),12,1)),AVERAGE(OFFSET('1EFines'!$C$10,12*$A14,4*(PlotControl!$C$6-1),12,1))) -> 0 | U14: =IF(PlotControl!$B$4 = "Annual Max",MAX(OFFSET('1EFines'!$D$10,12*$A14,4*(PlotControl!$C$6-1),12,1)),AVERAGE(OFFSET('1EFines'!$D$10,12*$A14,4*(PlotControl!$C$6-1),12,1))) -> 0 | V14: =IF(PlotControl!$B$4 = "Annual Max",MAX(OFFSET('1EFines'!$E$10,12*$A14,4*(PlotControl!$C$6-1),12,1)),AVERAGE(OFFSET('1EFines'!$E$10,12*$A14,4*(PlotControl!$C$6-1),12,1))) -> 0 | W14: =IF(PlotControl!$B$4 = "Annual Max",MAX(OFFSET('1ECoarse'!$C$10,12*$A14,4*(PlotControl!$C$6-1),12,1)),AVERAGE(OFFSET('1ECoarse'!$C$10,12*$A14,4*(PlotControl!$C$6-1),12,1))) -> 1882891.667 | X14: =IF(PlotControl!$B$4 = "Annual Max",MAX(OFFSET('1ECoarse'!$D$10,12*$A14,4*(PlotControl!$C$6-1),12,1)),AVERAGE(OFFSET('1ECoarse'!$D$10,12*$A14,4*(PlotControl!$C$6-1),12,1))) -> 2491433.333 | Y14: =IF(PlotControl!$B$4 = "Annual Max",MAX(OFFSET('1ECoarse'!$E$10,12*$A14,4*(PlotControl!$C$6-1),12,1)),AVERAGE(OFFSET('1ECoarse'!$E$10,12*$A14,4*(PlotControl!$C$6-1),12,1))) -> 3307425
A15: 10 | B15: =IF(PlotControl!$B$4 = "Annual Max",MAX(OFFSET('2WFines'!$C$10,12*$A15,4*(PlotControl!$C$6-1),12,1)),AVERAGE(OFFSET('2WFines'!$C$10,12*$A15,4*(PlotControl!$C$6-1),12,1))) -> 225775.8333 | C15: =IF(PlotControl!$B$4 = "Annual Max",MAX(OFFSET('2WFines'!$D$10,12*$A15,4*(PlotControl!$C$6-1),12,1)),AVERAGE(OFFSET('2WFines'!$D$10,12*$A15,4*(PlotControl!$C$6-1),12,1))) -> 246030 | D15: =IF(PlotControl!$B$4 = "Annual Max",MAX(OFFSET('2WFines'!$E$10,12*$A15,4*(PlotControl!$C$6-1),12,1)),AVERAGE(OFFSET('2WFines'!$E$10,12*$A15,4*(PlotControl!$C$6-1),12,1))) -> 264021.6667 | E15: =IF(PlotControl!$B$4 = "Annual Max",MAX(OFFSET('2WCoarse'!$C$10,12*$A15,4*(PlotControl!$C$6-1),12,1)),AVERAGE(OFFSET('2WCoarse'!$C$10,12*$A15,4*(PlotControl!$C$6-1),12,1))) -> 275535 | F15: =IF(PlotControl!$B$4 = "Annual Max",MAX(OFFSET('2WCoarse'!$D$10,12*$A15,4*(PlotControl!$C$6-1),12,1)),AVERAGE(OFFSET('2WCoarse'!$D$10,12*$A15,4*(PlotControl!$C$6-1),12,1))) -> 386434.1667 | G15: =IF(PlotControl!$B$4 = "Annual Max",MAX(OFFSET('2WCoarse'!$E$10,12*$A15,4*(PlotControl!$C$6-1),12,1)),AVERAGE(OFFSET('2WCoarse'!$E$10,12*$A15,4*(PlotControl!$C$6-1),12,1))) -> 471455.8333 | H15: =IF(PlotControl!$B$4 = "Annual Max",MAX(OFFSET('2WBank'!$C$10,12*$A15,4*(PlotControl!$C$6-1),12,1)),AVERAGE(OFFSET('2WBank'!$C$10,12*$A15,4*(PlotControl!$C$6-1),12,1))) -> 514057.5 | I15: =IF(PlotControl!$B$4 = "Annual Max",MAX(OFFSET('2WBank'!$D$10,12*$A15,4*(PlotControl!$C$6-1),12,1)),AVERAGE(OFFSET('2WBank'!$D$10,12*$A15,4*(PlotControl!$C$6-1),12,1))) -> 661179.1667 | J15: =IF(PlotControl!$B$4 = "Annual Max",MAX(OFFSET('2WBank'!$E$10,12*$A15,4*(PlotControl!$C$6-1),12,1)),AVERAGE(OFFSET('2WBank'!$E$10,12*$A15,4*(PlotControl!$C$6-1),12,1))) -> 777532.5 | K15: =IF(PlotControl!$B$4 = "Annual Max",MAX(OFFSET('2EFines'!$C$10,12*$A15,4*(PlotControl!$C$6-1),12,1)),AVERAGE(OFFSET('2EFines'!$C$10,12*$A15,4*(PlotControl!$C$6-1),12,1))) -> 0 | L15: =IF(PlotControl!$B$4 = "Annual Max",MAX(OFFSET('2EFines'!$D$10,12*$A15,4*(PlotControl!$C$6-1),12,1)),AVERAGE(OFFSET('2EFines'!$D$10,12*$A15,4*(PlotControl!$C$6-1),12,1))) -> 0 | M15: =IF(PlotControl!$B$4 = "Annual Max",MAX(OFFSET('2EFines'!$E$10,12*$A15,4*(PlotControl!$C$6-1),12,1)),AVERAGE(OFFSET('2EFines'!$E$10,12*$A15,4*(PlotControl!$C$6-1),12,1))) -> 0 | N15: =IF(PlotControl!$B$4 = "Annual Max",MAX(OFFSET('2ECoarse'!$C$10,12*$A15,4*(PlotControl!$C$6-1),12,1)),AVERAGE(OFFSET('2ECoarse'!$C$10,12*$A15,4*(PlotControl!$C$6-1),12,1))) -> 0 | O15: =IF(PlotControl!$B$4 = "Annual Max",MAX(OFFSET('2ECoarse'!$D$10,12*$A15,4*(PlotControl!$C$6-1),12,1)),AVERAGE(OFFSET('2ECoarse'!$D$10,12*$A15,4*(PlotControl!$C$6-1),12,1))) -> 0 | P15: =IF(PlotControl!$B$4 = "Annual Max",MAX(OFFSET('2ECoarse'!$E$10,12*$A15,4*(PlotControl!$C$6-1),12,1)),AVERAGE(OFFSET('2ECoarse'!$E$10,12*$A15,4*(PlotControl!$C$6-1),12,1))) -> 0 | Q15: =IF(PlotControl!$B$4 = "Annual Max",MAX(OFFSET('2EBank'!$C$10,12*$A15,4*(PlotControl!$C$6-1),12,1)),AVERAGE(OFFSET('2EBank'!$C$10,12*$A15,4*(PlotControl!$C$6-1),12,1))) -> 264406.6667 | R15: =IF(PlotControl!$B$4 = "Annual Max",MAX(OFFSET('2EBank'!$D$10,12*$A15,4*(PlotControl!$C$6-1),12,1)),AVERAGE(OFFSET('2EBank'!$D$10,12*$A15,4*(PlotControl!$C$6-1),12,1))) -> 384491.6667 | S15: =IF(PlotControl!$B$4 = "Annual Max",MAX(OFFSET('2EBank'!$E$10,12*$A15,4*(PlotControl!$C$6-1),12,1)),AVERAGE(OFFSET('2EBank'!$E$10,12*$A15,4*(PlotControl!$C$6-1),12,1))) -> 493003.3333 | T15: =IF(PlotControl!$B$4 = "Annual Max",MAX(OFFSET('1EFines'!$C$10,12*$A15,4*(PlotControl!$C$6-1),12,1)),AVERAGE(OFFSET('1EFines'!$C$10,12*$A15,4*(PlotControl!$C$6-1),12,1))) -> 0 | U15: =IF(PlotControl!$B$4 = "Annual Max",MAX(OFFSET('1EFines'!$D$10,12*$A15,4*(PlotControl!$C$6-1),12,1)),AVERAGE(OFFSET('1EFines'!$D$10,12*$A15,4*(PlotControl!$C$6-1),12,1))) -> 0 | V15: =IF(PlotControl!$B$4 = "Annual Max",MAX(OFFSET('1EFines'!$E$10,12*$A15,4*(PlotControl!$C$6-1),12,1)),AVERAGE(OFFSET('1EFines'!$E$10,12*$A15,4*(PlotControl!$C$6-1),12,1))) -> 0 | W15: =IF(PlotControl!$B$4 = "Annual Max",MAX(OFFSET('1ECoarse'!$C$10,12*$A15,4*(PlotControl!$C$6-1),12,1)),AVERAGE(OFFSET('1ECoarse'!$C$10,12*$A15,4*(PlotControl!$C$6-1),12,1))) -> 1662200 | X15: =IF(PlotControl!$B$4 = "Annual Max",MAX(OFFSET('1ECoarse'!$D$10,12*$A15,4*(PlotControl!$C$6-1),12,1)),AVERAGE(OFFSET('1ECoarse'!$D$10,12*$A15,4*(PlotControl!$C$6-1),12,1))) -> 2214608.333 | Y15: =IF(PlotControl!$B$4 = "Annual Max",MAX(OFFSET('1ECoarse'!$E$10,12*$A15,4*(PlotControl!$C$6-1),12,1)),AVERAGE(OFFSET('1ECoarse'!$E$10,12*$A15,4*(PlotControl!$C$6-1),12,1))) -> 2932883.333
A16: 11 | B16: =IF(PlotControl!$B$4 = "Annual Max",MAX(OFFSET('2WFines'!$C$10,12*$A16,4*(PlotControl!$C$6-1),12,1)),AVERAGE(OFFSET('2WFines'!$C$10,12*$A16,4*(PlotControl!$C$6-1),12,1))) -> 223848.3333 | C16: =IF(PlotControl!$B$4 = "Annual Max",MAX(OFFSET('2WFines'!$D$10,12*$A16,4*(PlotControl!$C$6-1),12,1)),AVERAGE(OFFSET('2WFines'!$D$10,12*$A16,4*(PlotControl!$C$6-1),12,1))) -> 246818.3333 | D16: =IF(PlotControl!$B$4 = "Annual Max",MAX(OFFSET('2WFines'!$E$10,12*$A16,4*(PlotControl!$C$6-1),12,1)),AVERAGE(OFFSET('2WFines'!$E$10,12*$A16,4*(PlotControl!$C$6-1),12,1))) -> 266428.3333 | E16: =IF(PlotControl!$B$4 = "Annual Max",MAX(OFFSET('2WCoarse'!$C$10,12*$A16,4*(PlotControl!$C$6-1),12,1)),AVERAGE(OFFSET('2WCoarse'!$C$10,12*$A16,4*(PlotControl!$C$6-1),12,1))) -> 269970.8333 | F16: =IF(PlotControl!$B$4 = "Annual Max",MAX(OFFSET('2WCoarse'!$D$10,12*$A16,4*(PlotControl!$C$6-1),12,1)),AVERAGE(OFFSET('2WCoarse'!$D$10,12*$A16,4*(PlotControl!$C$6-1),12,1))) -> 386001.6667 | G16: =IF(PlotControl!$B$4 = "Annual Max",MAX(OFFSET('2WCoarse'!$E$10,12*$A16,4*(PlotControl!$C$6-1),12,1)),AVERAGE(OFFSET('2WCoarse'!$E$10,12*$A16,4*(PlotControl!$C$6-1),12,1))) -> 476168.3333 | H16: =IF(PlotControl!$B$4 = "Annual Max",MAX(OFFSET('2WBank'!$C$10,12*$A16,4*(PlotControl!$C$6-1),12,1)),AVERAGE(OFFSET('2WBank'!$C$10,12*$A16,4*(PlotControl!$C$6-1),12,1))) -> 510182.5 | I16: =IF(PlotControl!$B$4 = "Annual Max",MAX(OFFSET('2WBank'!$D$10,12*$A16,4*(PlotControl!$C$6-1),12,1)),AVERAGE(OFFSET('2WBank'!$D$10,12*$A16,4*(PlotControl!$C$6-1),12,1))) -> 665536.6667 | J16: =IF(PlotControl!$B$4 = "Annual Max",MAX(OFFSET('2WBank'!$E$10,12*$A16,4*(PlotControl!$C$6-1),12,1)),AVERAGE(OFFSET('2WBank'!$E$10,12*$A16,4*(PlotControl!$C$6-1),12,1))) -> 791647.5 | K16: =IF(PlotControl!$B$4 = "Annual Max",MAX(OFFSET('2EFines'!$C$10,12*$A16,4*(PlotControl!$C$6-1),12,1)),AVERAGE(OFFSET('2EFines'!$C$10,12*$A16,4*(PlotControl!$C$6-1),12,1))) -> 0 | L16: =IF(PlotControl!$B$4 = "Annual Max",MAX(OFFSET('2EFines'!$D$10,12*$A16,4*(PlotControl!$C$6-1),12,1)),AVERAGE(OFFSET('2EFines'!$D$10,12*$A16,4*(PlotControl!$C$6-1),12,1))) -> 0 | M16: =IF(PlotControl!$B$4 = "Annual Max",MAX(OFFSET('2EFines'!$E$10,12*$A16,4*(PlotControl!$C$6-1),12,1)),AVERAGE(OFFSET('2EFines'!$E$10,12*$A16,4*(PlotControl!$C$6-1),12,1))) -> 0 | N16: =IF(PlotControl!$B$4 = "Annual Max",MAX(OFFSET('2ECoarse'!$C$10,12*$A16,4*(PlotControl!$C$6-1),12,1)),AVERAGE(OFFSET('2ECoarse'!$C$10,12*$A16,4*(PlotControl!$C$6-1),12,1))) -> 0 | O16: =IF(PlotControl!$B$4 = "Annual Max",MAX(OFFSET('2ECoarse'!$D$10,12*$A16,4*(PlotControl!$C$6-1),12,1)),AVERAGE(OFFSET('2ECoarse'!$D$10,12*$A16,4*(PlotControl!$C$6-1),12,1))) -> 0 | P16: =IF(PlotControl!$B$4 = "Annual Max",MAX(OFFSET('2ECoarse'!$E$10,12*$A16,4*(PlotControl!$C$6-1),12,1)),AVERAGE(OFFSET('2ECoarse'!$E$10,12*$A16,4*(PlotControl!$C$6-1),12,1))) -> 0 | Q16: =IF(PlotControl!$B$4 = "Annual Max",MAX(OFFSET('2EBank'!$C$10,12*$A16,4*(PlotControl!$C$6-1),12,1)),AVERAGE(OFFSET('2EBank'!$C$10,12*$A16,4*(PlotControl!$C$6-1),12,1))) -> 262405.8333 | R16: =IF(PlotControl!$B$4 = "Annual Max",MAX(OFFSET('2EBank'!$D$10,12*$A16,4*(PlotControl!$C$6-1),12,1)),AVERAGE(OFFSET('2EBank'!$D$10,12*$A16,4*(PlotControl!$C$6-1),12,1))) -> 387068.3333 | S16: =IF(PlotControl!$B$4 = "Annual Max",MAX(OFFSET('2EBank'!$E$10,12*$A16,4*(PlotControl!$C$6-1),12,1)),AVERAGE(OFFSET('2EBank'!$E$10,12*$A16,4*(PlotControl!$C$6-1),12,1))) -> 509277.5 | T16: =IF(PlotControl!$B$4 = "Annual Max",MAX(OFFSET('1EFines'!$C$10,12*$A16,4*(PlotControl!$C$6-1),12,1)),AVERAGE(OFFSET('1EFines'!$C$10,12*$A16,4*(PlotControl!$C$6-1),12,1))) -> 0 | U16: =IF(PlotControl!$B$4 = "Annual Max",MAX(OFFSET('1EFines'!$D$10,12*$A16,4*(PlotControl!$C$6-1),12,1)),AVERAGE(OFFSET('1EFines'!$D$10,12*$A16,4*(PlotControl!$C$6-1),12,1))) -> 0 | V16: =IF(PlotControl!$B$4 = "Annual Max",MAX(OFFSET('1EFines'!$E$10,12*$A16,4*(PlotControl!$C$6-1),12,1)),AVERAGE(OFFSET('1EFines'!$E$10,12*$A16,4*(PlotControl!$C$6-1),12,1))) -> 0 | W16: =IF(PlotControl!$B$4 = "Annual Max",MAX(OFFSET('1ECoarse'!$C$10,12*$A16,4*(PlotControl!$C$6-1),12,1)),AVERAGE(OFFSET('1ECoarse'!$C$10,12*$A16,4*(PlotControl!$C$6-1),12,1))) -> 1463375 | X16: =IF(PlotControl!$B$4 = "Annual Max",MAX(OFFSET('1ECoarse'!$D$10,12*$A16,4*(PlotControl!$C$6-1),12,1)),AVERAGE(OFFSET('1ECoarse'!$D$10,12*$A16,4*(PlotControl!$C$6-1),12,1))) -> 1982275 | Y16: =IF(PlotControl!$B$4 = "Annual Max",MAX(OFFSET('1ECoarse'!$E$10,12*$A16,4*(PlotControl!$C$6-1),12,1)),AVERAGE(OFFSET('1ECoarse'!$E$10,12*$A16,4*(PlotControl!$C$6-1),12,1))) -> 2625225
A17: 12 | B17: =IF(PlotControl!$B$4 = "Annual Max",MAX(OFFSET('2WFines'!$C$10,12*$A17,4*(PlotControl!$C$6-1),12,1)),AVERAGE(OFFSET('2WFines'!$C$10,12*$A17,4*(PlotControl!$C$6-1),12,1))) -> 222985.8333 | C17: =IF(PlotControl!$B$4 = "Annual Max",MAX(OFFSET('2WFines'!$D$10,12*$A17,4*(PlotControl!$C$6-1),12,1)),AVERAGE(OFFSET('2WFines'!$D$10,12*$A17,4*(PlotControl!$C$6-1),12,1))) -> 247771.6667 | D17: =IF(PlotControl!$B$4 = "Annual Max",MAX(OFFSET('2WFines'!$E$10,12*$A17,4*(PlotControl!$C$6-1),12,1)),AVERAGE(OFFSET('2WFines'!$E$10,12*$A17,4*(PlotControl!$C$6-1),12,1))) -> 267149.1667 | E17: =IF(PlotControl!$B$4 = "Annual Max",MAX(OFFSET('2WCoarse'!$C$10,12*$A17,4*(PlotControl!$C$6-1),12,1)),AVERAGE(OFFSET('2WCoarse'!$C$10,12*$A17,4*(PlotControl!$C$6-1),12,1))) -> 266289.1667 | F17: =IF(PlotControl!$B$4 = "Annual Max",MAX(OFFSET('2WCoarse'!$D$10,12*$A17,4*(PlotControl!$C$6-1),12,1)),AVERAGE(OFFSET('2WCoarse'!$D$10,12*$A17,4*(PlotControl!$C$6-1),12,1))) -> 384485.8333 | G17: =IF(PlotControl!$B$4 = "Annual Max",MAX(OFFSET('2WCoarse'!$E$10,12*$A17,4*(PlotControl!$C$6-1),12,1)),AVERAGE(OFFSET('2WCoarse'!$E$10,12*$A17,4*(PlotControl!$C$6-1),12,1))) -> 481838.3333 | H17: =IF(PlotControl!$B$4 = "Annual Max",MAX(OFFSET('2WBank'!$C$10,12*$A17,4*(PlotControl!$C$6-1),12,1)),AVERAGE(OFFSET('2WBank'!$C$10,12*$A17,4*(PlotControl!$C$6-1),12,1))) -> 502090 | I17: =IF(PlotControl!$B$4 = "Annual Max",MAX(OFFSET('2WBank'!$D$10,12*$A17,4*(PlotControl!$C$6-1),12,1)),AVERAGE(OFFSET('2WBank'!$D$10,12*$A17,4*(PlotControl!$C$6-1),12,1))) -> 669115 | J17: =IF(PlotControl!$B$4 = "Annual Max",MAX(OFFSET('2WBank'!$E$10,12*$A17,4*(PlotControl!$C$6-1),12,1)),AVERAGE(OFFSET('2WBank'!$E$10,12*$A17,4*(PlotControl!$C$6-1),12,1))) -> 805214.1667 | K17: =IF(PlotControl!$B$4 = "Annual Max",MAX(OFFSET('2EFines'!$C$10,12*$A17,4*(PlotControl!$C$6-1),12,1)),AVERAGE(OFFSET('2EFines'!$C$10,12*$A17,4*(PlotControl!$C$6-1),12,1))) -> 0 | L17: =IF(PlotControl!$B$4 = "Annual Max",MAX(OFFSET('2EFines'!$D$10,12*$A17,4*(PlotControl!$C$6-1),12,1)),AVERAGE(OFFSET('2EFines'!$D$10,12*$A17,4*(PlotControl!$C$6-1),12,1))) -> 0 | M17: =IF(PlotControl!$B$4 = "Annual Max",MAX(OFFSET('2EFines'!$E$10,12*$A17,4*(PlotControl!$C$6-1),12,1)),AVERAGE(OFFSET('2EFines'!$E$10,12*$A17,4*(PlotControl!$C$6-1),12,1))) -> 0 | N17: =IF(PlotControl!$B$4 = "Annual Max",MAX(OFFSET('2ECoarse'!$C$10,12*$A17,4*(PlotControl!$C$6-1),12,1)),AVERAGE(OFFSET('2ECoarse'!$C$10,12*$A17,4*(PlotControl!$C$6-1),12,1))) -> 0 | O17: =IF(PlotControl!$B$4 = "Annual Max",MAX(OFFSET('2ECoarse'!$D$10,12*$A17,4*(PlotControl!$C$6-1),12,1)),AVERAGE(OFFSET('2ECoarse'!$D$10,12*$A17,4*(PlotControl!$C$6-1),12,1))) -> 0 | P17: =IF(PlotControl!$B$4 = "Annual Max",MAX(OFFSET('2ECoarse'!$E$10,12*$A17,4*(PlotControl!$C$6-1),12,1)),AVERAGE(OFFSET('2ECoarse'!$E$10,12*$A17,4*(PlotControl!$C$6-1),12,1))) -> 0 | Q17: =IF(PlotControl!$B$4 = "Annual Max",MAX(OFFSET('2EBank'!$C$10,12*$A17,4*(PlotControl!$C$6-1),12,1)),AVERAGE(OFFSET('2EBank'!$C$10,12*$A17,4*(PlotControl!$C$6-1),12,1))) -> 262090 | R17: =IF(PlotControl!$B$4 = "Annual Max",MAX(OFFSET('2EBank'!$D$10,12*$A17,4*(PlotControl!$C$6-1),12,1)),AVERAGE(OFFSET('2EBank'!$D$10,12*$A17,4*(PlotControl!$C$6-1),12,1))) -> 388708.3333 | S17: =IF(PlotControl!$B$4 = "Annual Max",MAX(OFFSET('2EBank'!$E$10,12*$A17,4*(PlotControl!$C$6-1),12,1)),AVERAGE(OFFSET('2EBank'!$E$10,12*$A17,4*(PlotControl!$C$6-1),12,1))) -> 518485.8333 | T17: =IF(PlotControl!$B$4 = "Annual Max",MAX(OFFSET('1EFines'!$C$10,12*$A17,4*(PlotControl!$C$6-1),12,1)),AVERAGE(OFFSET('1EFines'!$C$10,12*$A17,4*(PlotControl!$C$6-1),12,1))) -> 0 | U17: =IF(PlotControl!$B$4 = "Annual Max",MAX(OFFSET('1EFines'!$D$10,12*$A17,4*(PlotControl!$C$6-1),12,1)),AVERAGE(OFFSET('1EFines'!$D$10,12*$A17,4*(PlotControl!$C$6-1),12,1))) -> 0 | V17: =IF(PlotControl!$B$4 = "Annual Max",MAX(OFFSET('1EFines'!$E$10,12*$A17,4*(PlotControl!$C$6-1),12,1)),AVERAGE(OFFSET('1EFines'!$E$10,12*$A17,4*(PlotControl!$C$6-1),12,1))) -> 0 | W17: =IF(PlotControl!$B$4 = "Annual Max",MAX(OFFSET('1ECoarse'!$C$10,12*$A17,4*(PlotControl!$C$6-1),12,1)),AVERAGE(OFFSET('1ECoarse'!$C$10,12*$A17,4*(PlotControl!$C$6-1),12,1))) -> 1302883.333 | X17: =IF(PlotControl!$B$4 = "Annual Max",MAX(OFFSET('1ECoarse'!$D$10,12*$A17,4*(PlotControl!$C$6-1),12,1)),AVERAGE(OFFSET('1ECoarse'!$D$10,12*$A17,4*(PlotControl!$C$6-1),12,1))) -> 1796316.667 | Y17: =IF(PlotControl!$B$4 = "Annual Max",MAX(OFFSET('1ECoarse'!$E$10,12*$A17,4*(PlotControl!$C$6-1),12,1)),AVERAGE(OFFSET('1ECoarse'!$E$10,12*$A17,4*(PlotControl!$C$6-1),12,1))) -> 2381891.667
A18: 13 | B18: =IF(PlotControl!$B$4 = "Annual Max",MAX(OFFSET('2WFines'!$C$10,12*$A18,4*(PlotControl!$C$6-1),12,1)),AVERAGE(OFFSET('2WFines'!$C$10,12*$A18,4*(PlotControl!$C$6-1),12,1))) -> 222504.1667 | C18: =IF(PlotControl!$B$4 = "Annual Max",MAX(OFFSET('2WFines'!$D$10,12*$A18,4*(PlotControl!$C$6-1),12,1)),AVERAGE(OFFSET('2WFines'!$D$10,12*$A18,4*(PlotControl!$C$6-1),12,1))) -> 248096.6667 | D18: =IF(PlotControl!$B$4 = "Annual Max",MAX(OFFSET('2WFines'!$E$10,12*$A18,4*(PlotControl!$C$6-1),12,1)),AVERAGE(OFFSET('2WFines'!$E$10,12*$A18,4*(PlotControl!$C$6-1),12,1))) -> 268539.1667 | E18: =IF(PlotControl!$B$4 = "Annual Max",MAX(OFFSET('2WCoarse'!$C$10,12*$A18,4*(PlotControl!$C$6-1),12,1)),AVERAGE(OFFSET('2WCoarse'!$C$10,12*$A18,4*(PlotControl!$C$6-1),12,1))) -> 260571.6667 | F18: =IF(PlotControl!$B$4 = "Annual Max",MAX(OFFSET('2WCoarse'!$D$10,12*$A18,4*(PlotControl!$C$6-1),12,1)),AVERAGE(OFFSET('2WCoarse'!$D$10,12*$A18,4*(PlotControl!$C$6-1),12,1))) -> 382430 | G18: =IF(PlotControl!$B$4 = "Annual Max",MAX(OFFSET('2WCoarse'!$E$10,12*$A18,4*(PlotControl!$C$6-1),12,1)),AVERAGE(OFFSET('2WCoarse'!$E$10,12*$A18,4*(PlotControl!$C$6-1),12,1))) -> 483470.8333 | H18: =IF(PlotControl!$B$4 = "Annual Max",MAX(OFFSET('2WBank'!$C$10,12*$A18,4*(PlotControl!$C$6-1),12,1)),AVERAGE(OFFSET('2WBank'!$C$10,12*$A18,4*(PlotControl!$C$6-1),12,1))) -> 498224.1667 | I18: =IF(PlotControl!$B$4 = "Annual Max",MAX(OFFSET('2WBank'!$D$10,12*$A18,4*(PlotControl!$C$6-1),12,1)),AVERAGE(OFFSET('2WBank'!$D$10,12*$A18,4*(PlotControl!$C$6-1),12,1))) -> 671112.5 | J18: =IF(PlotControl!$B$4 = "Annual Max",MAX(OFFSET('2WBank'!$E$10,12*$A18,4*(PlotControl!$C$6-1),12,1)),AVERAGE(OFFSET('2WBank'!$E$10,12*$A18,4*(PlotControl!$C$6-1),12,1))) -> 818793.3333 | K18: =IF(PlotControl!$B$4 = "Annual Max",MAX(OFFSET('2EFines'!$C$10,12*$A18,4*(PlotControl!$C$6-1),12,1)),AVERAGE(OFFSET('2EFines'!$C$10,12*$A18,4*(PlotControl!$C$6-1),12,1))) -> 0 | L18: =IF(PlotControl!$B$4 = "Annual Max",MAX(OFFSET('2EFines'!$D$10,12*$A18,4*(PlotControl!$C$6-1),12,1)),AVERAGE(OFFSET('2EFines'!$D$10,12*$A18,4*(PlotControl!$C$6-1),12,1))) -> 0 | M18: =IF(PlotControl!$B$4 = "Annual Max",MAX(OFFSET('2EFines'!$E$10,12*$A18,4*(PlotControl!$C$6-1),12,1)),AVERAGE(OFFSET('2EFines'!$E$10,12*$A18,4*(PlotControl!$C$6-1),12,1))) -> 0 | N18: =IF(PlotControl!$B$4 = "Annual Max",MAX(OFFSET('2ECoarse'!$C$10,12*$A18,4*(PlotControl!$C$6-1),12,1)),AVERAGE(OFFSET('2ECoarse'!$C$10,12*$A18,4*(PlotControl!$C$6-1),12,1))) -> 0 | O18: =IF(PlotControl!$B$4 = "Annual Max",MAX(OFFSET('2ECoarse'!$D$10,12*$A18,4*(PlotControl!$C$6-1),12,1)),AVERAGE(OFFSET('2ECoarse'!$D$10,12*$A18,4*(PlotControl!$C$6-1),12,1))) -> 0 | P18: =IF(PlotControl!$B$4 = "Annual Max",MAX(OFFSET('2ECoarse'!$E$10,12*$A18,4*(PlotControl!$C$6-1),12,1)),AVERAGE(OFFSET('2ECoarse'!$E$10,12*$A18,4*(PlotControl!$C$6-1),12,1))) -> 0 | Q18: =IF(PlotControl!$B$4 = "Annual Max",MAX(OFFSET('2EBank'!$C$10,12*$A18,4*(PlotControl!$C$6-1),12,1)),AVERAGE(OFFSET('2EBank'!$C$10,12*$A18,4*(PlotControl!$C$6-1),12,1))) -> 262235.8333 | R18: =IF(PlotControl!$B$4 = "Annual Max",MAX(OFFSET('2EBank'!$D$10,12*$A18,4*(PlotControl!$C$6-1),12,1)),AVERAGE(OFFSET('2EBank'!$D$10,12*$A18,4*(PlotControl!$C$6-1),12,1))) -> 392939.1667 | S18: =IF(PlotControl!$B$4 = "Annual Max",MAX(OFFSET('2EBank'!$E$10,12*$A18,4*(PlotControl!$C$6-1),12,1)),AVERAGE(OFFSET('2EBank'!$E$10,12*$A18,4*(PlotControl!$C$6-1),12,1))) -> 525505.8333 | T18: =IF(PlotControl!$B$4 = "Annual Max",MAX(OFFSET('1EFines'!$C$10,12*$A18,4*(PlotControl!$C$6-1),12,1)),AVERAGE(OFFSET('1EFines'!$C$10,12*$A18,4*(PlotControl!$C$6-1),12,1))) -> 0 | U18: =IF(PlotControl!$B$4 = "Annual Max",MAX(OFFSET('1EFines'!$D$10,12*$A18,4*(PlotControl!$C$6-1),12,1)),AVERAGE(OFFSET('1EFines'!$D$10,12*$A18,4*(PlotControl!$C$6-1),12,1))) -> 0 | V18: =IF(PlotControl!$B$4 = "Annual Max",MAX(OFFSET('1EFines'!$E$10,12*$A18,4*(PlotControl!$C$6-1),12,1)),AVERAGE(OFFSET('1EFines'!$E$10,12*$A18,4*(PlotControl!$C$6-1),12,1))) -> 0 | W18: =IF(PlotControl!$B$4 = "Annual Max",MAX(OFFSET('1ECoarse'!$C$10,12*$A18,4*(PlotControl!$C$6-1),12,1)),AVERAGE(OFFSET('1ECoarse'!$C$10,12*$A18,4*(PlotControl!$C$6-1),12,1))) -> 1196733.333 | X18: =IF(PlotControl!$B$4 = "Annual Max",MAX(OFFSET('1ECoarse'!$D$10,12*$A18,4*(PlotControl!$C$6-1),12,1)),AVERAGE(OFFSET('1ECoarse'!$D$10,12*$A18,4*(PlotControl!$C$6-1),12,1))) -> 1636375 | Y18: =IF(PlotControl!$B$4 = "Annual Max",MAX(OFFSET('1ECoarse'!$E$10,12*$A18,4*(PlotControl!$C$6-1),12,1)),AVERAGE(OFFSET('1ECoarse'!$E$10,12*$A18,4*(PlotControl!$C$6-1),12,1))) -> 2161466.667
A19: 14 | B19: =IF(PlotControl!$B$4 = "Annual Max",MAX(OFFSET('2WFines'!$C$10,12*$A19,4*(PlotControl!$C$6-1),12,1)),AVERAGE(OFFSET('2WFines'!$C$10,12*$A19,4*(PlotControl!$C$6-1),12,1))) -> 221633.3333 | C19: =IF(PlotControl!$B$4 = "Annual Max",MAX(OFFSET('2WFines'!$D$10,12*$A19,4*(PlotControl!$C$6-1),12,1)),AVERAGE(OFFSET('2WFines'!$D$10,12*$A19,4*(PlotControl!$C$6-1),12,1))) -> 248675.8333 | D19: =IF(PlotControl!$B$4 = "Annual Max",MAX(OFFSET('2WFines'!$E$10,12*$A19,4*(PlotControl!$C$6-1),12,1)),AVERAGE(OFFSET('2WFines'!$E$10,12*$A19,4*(PlotControl!$C$6-1),12,1))) -> 270457.5 | E19: =IF(PlotControl!$B$4 = "Annual Max",MAX(OFFSET('2WCoarse'!$C$10,12*$A19,4*(PlotControl!$C$6-1),12,1)),AVERAGE(OFFSET('2WCoarse'!$C$10,12*$A19,4*(PlotControl!$C$6-1),12,1))) -> 256149.1667 | F19: =IF(PlotControl!$B$4 = "Annual Max",MAX(OFFSET('2WCoarse'!$D$10,12*$A19,4*(PlotControl!$C$6-1),12,1)),AVERAGE(OFFSET('2WCoarse'!$D$10,12*$A19,4*(PlotControl!$C$6-1),12,1))) -> 381455.8333 | G19: =IF(PlotControl!$B$4 = "Annual Max",MAX(OFFSET('2WCoarse'!$E$10,12*$A19,4*(PlotControl!$C$6-1),12,1)),AVERAGE(OFFSET('2WCoarse'!$E$10,12*$A19,4*(PlotControl!$C$6-1),12,1))) -> 485970 | H19: =IF(PlotControl!$B$4 = "Annual Max",MAX(OFFSET('2WBank'!$C$10,12*$A19,4*(PlotControl!$C$6-1),12,1)),AVERAGE(OFFSET('2WBank'!$C$10,12*$A19,4*(PlotControl!$C$6-1),12,1))) -> 497984.1667 | I19: =IF(PlotControl!$B$4 = "Annual Max",MAX(OFFSET('2WBank'!$D$10,12*$A19,4*(PlotControl!$C$6-1),12,1)),AVERAGE(OFFSET('2WBank'!$D$10,12*$A19,4*(PlotControl!$C$6-1),12,1))) -> 677880 | J19: =IF(PlotControl!$B$4 = "Annual Max",MAX(OFFSET('2WBank'!$E$10,12*$A19,4*(PlotControl!$C$6-1),12,1)),AVERAGE(OFFSET('2WBank'!$E$10,12*$A19,4*(PlotControl!$C$6-1),12,1))) -> 828733.3333 | K19: =IF(PlotControl!$B$4 = "Annual Max",MAX(OFFSET('2EFines'!$C$10,12*$A19,4*(PlotControl!$C$6-1),12,1)),AVERAGE(OFFSET('2EFines'!$C$10,12*$A19,4*(PlotControl!$C$6-1),12,1))) -> 0 | L19: =IF(PlotControl!$B$4 = "Annual Max",MAX(OFFSET('2EFines'!$D$10,12*$A19,4*(PlotControl!$C$6-1),12,1)),AVERAGE(OFFSET('2EFines'!$D$10,12*$A19,4*(PlotControl!$C$6-1),12,1))) -> 0 | M19: =IF(PlotControl!$B$4 = "Annual Max",MAX(OFFSET('2EFines'!$E$10,12*$A19,4*(PlotControl!$C$6-1),12,1)),AVERAGE(OFFSET('2EFines'!$E$10,12*$A19,4*(PlotControl!$C$6-1),12,1))) -> 0 | N19: =IF(PlotControl!$B$4 = "Annual Max",MAX(OFFSET('2ECoarse'!$C$10,12*$A19,4*(PlotControl!$C$6-1),12,1)),AVERAGE(OFFSET('2ECoarse'!$C$10,12*$A19,4*(PlotControl!$C$6-1),12,1))) -> 0 | O19: =IF(PlotControl!$B$4 = "Annual Max",MAX(OFFSET('2ECoarse'!$D$10,12*$A19,4*(PlotControl!$C$6-1),12,1)),AVERAGE(OFFSET('2ECoarse'!$D$10,12*$A19,4*(PlotControl!$C$6-1),12,1))) -> 0 | P19: =IF(PlotControl!$B$4 = "Annual Max",MAX(OFFSET('2ECoarse'!$E$10,12*$A19,4*(PlotControl!$C$6-1),12,1)),AVERAGE(OFFSET('2ECoarse'!$E$10,12*$A19,4*(PlotControl!$C$6-1),12,1))) -> 0 | Q19: =IF(PlotControl!$B$4 = "Annual Max",MAX(OFFSET('2EBank'!$C$10,12*$A19,4*(PlotControl!$C$6-1),12,1)),AVERAGE(OFFSET('2EBank'!$C$10,12*$A19,4*(PlotControl!$C$6-1),12,1))) -> 260859.1667 | R19: =IF(PlotControl!$B$4 = "Annual Max",MAX(OFFSET('2EBank'!$D$10,12*$A19,4*(PlotControl!$C$6-1),12,1)),AVERAGE(OFFSET('2EBank'!$D$10,12*$A19,4*(PlotControl!$C$6-1),12,1))) -> 402130.8333 | S19: =IF(PlotControl!$B$4 = "Annual Max",MAX(OFFSET('2EBank'!$E$10,12*$A19,4*(PlotControl!$C$6-1),12,1)),AVERAGE(OFFSET('2EBank'!$E$10,12*$A19,4*(PlotControl!$C$6-1),12,1))) -> 535594.1667 | T19: =IF(PlotControl!$B$4 = "Annual Max",MAX(OFFSET('1EFines'!$C$10,12*$A19,4*(PlotControl!$C$6-1),12,1)),AVERAGE(OFFSET('1EFines'!$C$10,12*$A19,4*(PlotControl!$C$6-1),12,1))) -> 0 | U19: =IF(PlotControl!$B$4 = "Annual Max",MAX(OFFSET('1EFines'!$D$10,12*$A19,4*(PlotControl!$C$6-1),12,1)),AVERAGE(OFFSET('1EFines'!$D$10,12*$A19,4*(PlotControl!$C$6-1),12,1))) -> 0 | V19: =IF(PlotControl!$B$4 = "Annual Max",MAX(OFFSET('1EFines'!$E$10,12*$A19,4*(PlotControl!$C$6-1),12,1)),AVERAGE(OFFSET('1EFines'!$E$10,12*$A19,4*(PlotControl!$C$6-1),12,1))) -> 0 | W19: =IF(PlotControl!$B$4 = "Annual Max",MAX(OFFSET('1ECoarse'!$C$10,12*$A19,4*(PlotControl!$C$6-1),12,1)),AVERAGE(OFFSET('1ECoarse'!$C$10,12*$A19,4*(PlotControl!$C$6-1),12,1))) -> 1089958.333 | X19: =IF(PlotControl!$B$4 = "Annual Max",MAX(OFFSET('1ECoarse'!$D$10,12*$A19,4*(PlotControl!$C$6-1),12,1)),AVERAGE(OFFSET('1ECoarse'!$D$10,12*$A19,4*(PlotControl!$C$6-1),12,1))) -> 1520625 | Y19: =IF(PlotControl!$B$4 = "Annual Max",MAX(OFFSET('1ECoarse'!$E$10,12*$A19,4*(PlotControl!$C$6-1),12,1)),AVERAGE(OFFSET('1ECoarse'!$E$10,12*$A19,4*(PlotControl!$C$6-1),12,1))) -> 2012183.333
A20: 15 | B20: =IF(PlotControl!$B$4 = "Annual Max",MAX(OFFSET('2WFines'!$C$10,12*$A20,4*(PlotControl!$C$6-1),12,1)),AVERAGE(OFFSET('2WFines'!$C$10,12*$A20,4*(PlotControl!$C$6-1),12,1))) -> 220980 | C20: =IF(PlotControl!$B$4 = "Annual Max",MAX(OFFSET('2WFines'!$D$10,12*$A20,4*(PlotControl!$C$6-1),12,1)),AVERAGE(OFFSET('2WFines'!$D$10,12*$A20,4*(PlotControl!$C$6-1),12,1))) -> 249386.6667 | D20: =IF(PlotControl!$B$4 = "Annual Max",MAX(OFFSET('2WFines'!$E$10,12*$A20,4*(PlotControl!$C$6-1),12,1)),AVERAGE(OFFSET('2WFines'!$E$10,12*$A20,4*(PlotControl!$C$6-1),12,1))) -> 272201.6667 | E20: =IF(PlotControl!$B$4 = "Annual Max",MAX(OFFSET('2WCoarse'!$C$10,12*$A20,4*(PlotControl!$C$6-1),12,1)),AVERAGE(OFFSET('2WCoarse'!$C$10,12*$A20,4*(PlotControl!$C$6-1),12,1))) -> 251706.6667 | F20: =IF(PlotControl!$B$4 = "Annual Max",MAX(OFFSET('2WCoarse'!$D$10,12*$A20,4*(PlotControl!$C$6-1),12,1)),AVERAGE(OFFSET('2WCoarse'!$D$10,12*$A20,4*(PlotControl!$C$6-1),12,1))) -> 378968.3333 | G20: =IF(PlotControl!$B$4 = "Annual Max",MAX(OFFSET('2WCoarse'!$E$10,12*$A20,4*(PlotControl!$C$6-1),12,1)),AVERAGE(OFFSET('2WCoarse'!$E$10,12*$A20,4*(PlotControl!$C$6-1),12,1))) -> 486468.3333 | H20: =IF(PlotControl!$B$4 = "Annual Max",MAX(OFFSET('2WBank'!$C$10,12*$A20,4*(PlotControl!$C$6-1),12,1)),AVERAGE(OFFSET('2WBank'!$C$10,12*$A20,4*(PlotControl!$C$6-1),12,1))) -> 495780.8333 | I20: =IF(PlotControl!$B$4 = "Annual Max",MAX(OFFSET('2WBank'!$D$10,12*$A20,4*(PlotControl!$C$6-1),12,1)),AVERAGE(OFFSET('2WBank'!$D$10,12*$A20,4*(PlotControl!$C$6-1),12,1))) -> 681916.6667 | J20: =IF(PlotControl!$B$4 = "Annual Max",MAX(OFFSET('2WBank'!$E$10,12*$A20,4*(PlotControl!$C$6-1),12,1)),AVERAGE(OFFSET('2WBank'!$E$10,12*$A20,4*(PlotControl!$C$6-1),12,1))) -> 833271.6667 | K20: =IF(PlotControl!$B$4 = "Annual Max",MAX(OFFSET('2EFines'!$C$10,12*$A20,4*(PlotControl!$C$6-1),12,1)),AVERAGE(OFFSET('2EFines'!$C$10,12*$A20,4*(PlotControl!$C$6-1),12,1))) -> 0 | L20: =IF(PlotControl!$B$4 = "Annual Max",MAX(OFFSET('2EFines'!$D$10,12*$A20,4*(PlotControl!$C$6-1),12,1)),AVERAGE(OFFSET('2EFines'!$D$10,12*$A20,4*(PlotControl!$C$6-1),12,1))) -> 0 | M20: =IF(PlotControl!$B$4 = "Annual Max",MAX(OFFSET('2EFines'!$E$10,12*$A20,4*(PlotControl!$C$6-1),12,1)),AVERAGE(OFFSET('2EFines'!$E$10,12*$A20,4*(PlotControl!$C$6-1),12,1))) -> 0 | N20: =IF(PlotControl!$B$4 = "Annual Max",MAX(OFFSET('2ECoarse'!$C$10,12*$A20,4*(PlotControl!$C$6-1),12,1)),AVERAGE(OFFSET('2ECoarse'!$C$10,12*$A20,4*(PlotControl!$C$6-1),12,1))) -> 0 | O20: =IF(PlotControl!$B$4 = "Annual Max",MAX(OFFSET('2ECoarse'!$D$10,12*$A20,4*(PlotControl!$C$6-1),12,1)),AVERAGE(OFFSET('2ECoarse'!$D$10,12*$A20,4*(PlotControl!$C$6-1),12,1))) -> 0 | P20: =IF(PlotControl!$B$4 = "Annual Max",MAX(OFFSET('2ECoarse'!$E$10,12*$A20,4*(PlotControl!$C$6-1),12,1)),AVERAGE(OFFSET('2ECoarse'!$E$10,12*$A20,4*(PlotControl!$C$6-1),12,1))) -> 0 | Q20: =IF(PlotControl!$B$4 = "Annual Max",MAX(OFFSET('2EBank'!$C$10,12*$A20,4*(PlotControl!$C$6-1),12,1)),AVERAGE(OFFSET('2EBank'!$C$10,12*$A20,4*(PlotControl!$C$6-1),12,1))) -> 260073.3333 | R20: =IF(PlotControl!$B$4 = "Annual Max",MAX(OFFSET('2EBank'!$D$10,12*$A20,4*(PlotControl!$C$6-1),12,1)),AVERAGE(OFFSET('2EBank'!$D$10,12*$A20,4*(PlotControl!$C$6-1),12,1))) -> 407900.8333 | S20: =IF(PlotControl!$B$4 = "Annual Max",MAX(OFFSET('2EBank'!$E$10,12*$A20,4*(PlotControl!$C$6-1),12,1)),AVERAGE(OFFSET('2EBank'!$E$10,12*$A20,4*(PlotControl!$C$6-1),12,1))) -> 538265 | T20: =IF(PlotControl!$B$4 = "Annual Max",MAX(OFFSET('1EFines'!$C$10,12*$A20,4*(PlotControl!$C$6-1),12,1)),AVERAGE(OFFSET('1EFines'!$C$10,12*$A20,4*(PlotControl!$C$6-1),12,1))) -> 0 | U20: =IF(PlotControl!$B$4 = "Annual Max",MAX(OFFSET('1EFines'!$D$10,12*$A20,4*(PlotControl!$C$6-1),12,1)),AVERAGE(OFFSET('1EFines'!$D$10,12*$A20,4*(PlotControl!$C$6-1),12,1))) -> 0 | V20: =IF(PlotControl!$B$4 = "Annual Max",MAX(OFFSET('1EFines'!$E$10,12*$A20,4*(PlotControl!$C$6-1),12,1)),AVERAGE(OFFSET('1EFines'!$E$10,12*$A20,4*(PlotControl!$C$6-1),12,1))) -> 0 | W20: =IF(PlotControl!$B$4 = "Annual Max",MAX(OFFSET('1ECoarse'!$C$10,12*$A20,4*(PlotControl!$C$6-1),12,1)),AVERAGE(OFFSET('1ECoarse'!$C$10,12*$A20,4*(PlotControl!$C$6-1),12,1))) -> 997685.8333 | X20: =IF(PlotControl!$B$4 = "Annual Max",MAX(OFFSET('1ECoarse'!$D$10,12*$A20,4*(PlotControl!$C$6-1),12,1)),AVERAGE(OFFSET('1ECoarse'!$D$10,12*$A20,4*(PlotControl!$C$6-1),12,1))) -> 1428350 | Y20: =IF(PlotControl!$B$4 = "Annual Max",MAX(OFFSET('1ECoarse'!$E$10,12*$A20,4*(PlotControl!$C$6-1),12,1)),AVERAGE(OFFSET('1ECoarse'!$E$10,12*$A20,4*(PlotControl!$C$6-1),12,1))) -> 1896016.667
A21: 16 | B21: =IF(PlotControl!$B$4 = "Annual Max",MAX(OFFSET('2WFines'!$C$10,12*$A21,4*(PlotControl!$C$6-1),12,1)),AVERAGE(OFFSET('2WFines'!$C$10,12*$A21,4*(PlotControl!$C$6-1),12,1))) -> 220985 | C21: =IF(PlotControl!$B$4 = "Annual Max",MAX(OFFSET('2WFines'!$D$10,12*$A21,4*(PlotControl!$C$6-1),12,1)),AVERAGE(OFFSET('2WFines'!$D$10,12*$A21,4*(PlotControl!$C$6-1),12,1))) -> 250523.3333 | D21: =IF(PlotControl!$B$4 = "Annual Max",MAX(OFFSET('2WFines'!$E$10,12*$A21,4*(PlotControl!$C$6-1),12,1)),AVERAGE(OFFSET('2WFines'!$E$10,12*$A21,4*(PlotControl!$C$6-1),12,1))) -> 273687.5 | E21: =IF(PlotControl!$B$4 = "Annual Max",MAX(OFFSET('2WCoarse'!$C$10,12*$A21,4*(PlotControl!$C$6-1),12,1)),AVERAGE(OFFSET('2WCoarse'!$C$10,12*$A21,4*(PlotControl!$C$6-1),12,1))) -> 247764.1667 | F21: =IF(PlotControl!$B$4 = "Annual Max",MAX(OFFSET('2WCoarse'!$D$10,12*$A21,4*(PlotControl!$C$6-1),12,1)),AVERAGE(OFFSET('2WCoarse'!$D$10,12*$A21,4*(PlotControl!$C$6-1),12,1))) -> 376346.6667 | G21: =IF(PlotControl!$B$4 = "Annual Max",MAX(OFFSET('2WCoarse'!$E$10,12*$A21,4*(PlotControl!$C$6-1),12,1)),AVERAGE(OFFSET('2WCoarse'!$E$10,12*$A21,4*(PlotControl!$C$6-1),12,1))) -> 490284.1667 | H21: =IF(PlotControl!$B$4 = "Annual Max",MAX(OFFSET('2WBank'!$C$10,12*$A21,4*(PlotControl!$C$6-1),12,1)),AVERAGE(OFFSET('2WBank'!$C$10,12*$A21,4*(PlotControl!$C$6-1),12,1))) -> 491290.8333 | I21: =IF(PlotControl!$B$4 = "Annual Max",MAX(OFFSET('2WBank'!$D$10,12*$A21,4*(PlotControl!$C$6-1),12,1)),AVERAGE(OFFSET('2WBank'!$D$10,12*$A21,4*(PlotControl!$C$6-1),12,1))) -> 682508.3333 | J21: =IF(PlotControl!$B$4 = "Annual Max",MAX(OFFSET('2WBank'!$E$10,12*$A21,4*(PlotControl!$C$6-1),12,1)),AVERAGE(OFFSET('2WBank'!$E$10,12*$A21,4*(PlotControl!$C$6-1),12,1))) -> 850994.1667 | K21: =IF(PlotControl!$B$4 = "Annual Max",MAX(OFFSET('2EFines'!$C$10,12*$A21,4*(PlotControl!$C$6-1),12,1)),AVERAGE(OFFSET('2EFines'!$C$10,12*$A21,4*(PlotControl!$C$6-1),12,1))) -> 0 | L21: =IF(PlotControl!$B$4 = "Annual Max",MAX(OFFSET('2EFines'!$D$10,12*$A21,4*(PlotControl!$C$6-1),12,1)),AVERAGE(OFFSET('2EFines'!$D$10,12*$A21,4*(PlotControl!$C$6-1),12,1))) -> 0 | M21: =IF(PlotControl!$B$4 = "Annual Max",MAX(OFFSET('2EFines'!$E$10,12*$A21,4*(PlotControl!$C$6-1),12,1)),AVERAGE(OFFSET('2EFines'!$E$10,12*$A21,4*(PlotControl!$C$6-1),12,1))) -> 0 | N21: =IF(PlotControl!$B$4 = "Annual Max",MAX(OFFSET('2ECoarse'!$C$10,12*$A21,4*(PlotControl!$C$6-1),12,1)),AVERAGE(OFFSET('2ECoarse'!$C$10,12*$A21,4*(PlotControl!$C$6-1),12,1))) -> 0 | O21: =IF(PlotControl!$B$4 = "Annual Max",MAX(OFFSET('2ECoarse'!$D$10,12*$A21,4*(PlotControl!$C$6-1),12,1)),AVERAGE(OFFSET('2ECoarse'!$D$10,12*$A21,4*(PlotControl!$C$6-1),12,1))) -> 0 | P21: =IF(PlotControl!$B$4 = "Annual Max",MAX(OFFSET('2ECoarse'!$E$10,12*$A21,4*(PlotControl!$C$6-1),12,1)),AVERAGE(OFFSET('2ECoarse'!$E$10,12*$A21,4*(PlotControl!$C$6-1),12,1))) -> 0 | Q21: =IF(PlotControl!$B$4 = "Annual Max",MAX(OFFSET('2EBank'!$C$10,12*$A21,4*(PlotControl!$C$6-1),12,1)),AVERAGE(OFFSET('2EBank'!$C$10,12*$A21,4*(PlotControl!$C$6-1),12,1))) -> 260046.6667 | R21: =IF(PlotControl!$B$4 = "Annual Max",MAX(OFFSET('2EBank'!$D$10,12*$A21,4*(PlotControl!$C$6-1),12,1)),AVERAGE(OFFSET('2EBank'!$D$10,12*$A21,4*(PlotControl!$C$6-1),12,1))) -> 412593.3333 | S21: =IF(PlotControl!$B$4 = "Annual Max",MAX(OFFSET('2EBank'!$E$10,12*$A21,4*(PlotControl!$C$6-1),12,1)),AVERAGE(OFFSET('2EBank'!$E$10,12*$A21,4*(PlotControl!$C$6-1),12,1))) -> 553929.1667 | T21: =IF(PlotControl!$B$4 = "Annual Max",MAX(OFFSET('1EFines'!$C$10,12*$A21,4*(PlotControl!$C$6-1),12,1)),AVERAGE(OFFSET('1EFines'!$C$10,12*$A21,4*(PlotControl!$C$6-1),12,1))) -> 0 | U21: =IF(PlotControl!$B$4 = "Annual Max",MAX(OFFSET('1EFines'!$D$10,12*$A21,4*(PlotControl!$C$6-1),12,1)),AVERAGE(OFFSET('1EFines'!$D$10,12*$A21,4*(PlotControl!$C$6-1),12,1))) -> 0 | V21: =IF(PlotControl!$B$4 = "Annual Max",MAX(OFFSET('1EFines'!$E$10,12*$A21,4*(PlotControl!$C$6-1),12,1)),AVERAGE(OFFSET('1EFines'!$E$10,12*$A21,4*(PlotControl!$C$6-1),12,1))) -> 0 | W21: =IF(PlotControl!$B$4 = "Annual Max",MAX(OFFSET('1ECoarse'!$C$10,12*$A21,4*(PlotControl!$C$6-1),12,1)),AVERAGE(OFFSET('1ECoarse'!$C$10,12*$A21,4*(PlotControl!$C$6-1),12,1))) -> 933720.8333 | X21: =IF(PlotControl!$B$4 = "Annual Max",MAX(OFFSET('1ECoarse'!$D$10,12*$A21,4*(PlotControl!$C$6-1),12,1)),AVERAGE(OFFSET('1ECoarse'!$D$10,12*$A21,4*(PlotControl!$C$6-1),12,1))) -> 1338000 | Y21: =IF(PlotControl!$B$4 = "Annual Max",MAX(OFFSET('1ECoarse'!$E$10,12*$A21,4*(PlotControl!$C$6-1),12,1)),AVERAGE(OFFSET('1ECoarse'!$E$10,12*$A21,4*(PlotControl!$C$6-1),12,1))) -> 1794158.333
A22: 17 | B22: =IF(PlotControl!$B$4 = "Annual Max",MAX(OFFSET('2WFines'!$C$10,12*$A22,4*(PlotControl!$C$6-1),12,1)),AVERAGE(OFFSET('2WFines'!$C$10,12*$A22,4*(PlotControl!$C$6-1),12,1))) -> 220279.1667 | C22: =IF(PlotControl!$B$4 = "Annual Max",MAX(OFFSET('2WFines'!$D$10,12*$A22,4*(PlotControl!$C$6-1),12,1)),AVERAGE(OFFSET('2WFines'!$D$10,12*$A22,4*(PlotControl!$C$6-1),12,1))) -> 251300 | D22: =IF(PlotControl!$B$4 = "Annual Max",MAX(OFFSET('2WFines'!$E$10,12*$A22,4*(PlotControl!$C$6-1),12,1)),AVERAGE(OFFSET('2WFines'!$E$10,12*$A22,4*(PlotControl!$C$6-1),12,1))) -> 275497.5 | E22: =IF(PlotControl!$B$4 = "Annual Max",MAX(OFFSET('2WCoarse'!$C$10,12*$A22,4*(PlotControl!$C$6-1),12,1)),AVERAGE(OFFSET('2WCoarse'!$C$10,12*$A22,4*(PlotControl!$C$6-1),12,1))) -> 242991.6667 | F22: =IF(PlotControl!$B$4 = "Annual Max",MAX(OFFSET('2WCoarse'!$D$10,12*$A22,4*(PlotControl!$C$6-1),12,1)),AVERAGE(OFFSET('2WCoarse'!$D$10,12*$A22,4*(PlotControl!$C$6-1),12,1))) -> 375383.3333 | G22: =IF(PlotControl!$B$4 = "Annual Max",MAX(OFFSET('2WCoarse'!$E$10,12*$A22,4*(PlotControl!$C$6-1),12,1)),AVERAGE(OFFSET('2WCoarse'!$E$10,12*$A22,4*(PlotControl!$C$6-1),12,1))) -> 490036.6667 | H22: =IF(PlotControl!$B$4 = "Annual Max",MAX(OFFSET('2WBank'!$C$10,12*$A22,4*(PlotControl!$C$6-1),12,1)),AVERAGE(OFFSET('2WBank'!$C$10,12*$A22,4*(PlotControl!$C$6-1),12,1))) -> 489997.5 | I22: =IF(PlotControl!$B$4 = "Annual Max",MAX(OFFSET('2WBank'!$D$10,12*$A22,4*(PlotControl!$C$6-1),12,1)),AVERAGE(OFFSET('2WBank'!$D$10,12*$A22,4*(PlotControl!$C$6-1),12,1))) -> 690762.5 | J22: =IF(PlotControl!$B$4 = "Annual Max",MAX(OFFSET('2WBank'!$E$10,12*$A22,4*(PlotControl!$C$6-1),12,1)),AVERAGE(OFFSET('2WBank'!$E$10,12*$A22,4*(PlotControl!$C$6-1),12,1))) -> 863360.8333 | K22: =IF(PlotControl!$B$4 = "Annual Max",MAX(OFFSET('2EFines'!$C$10,12*$A22,4*(PlotControl!$C$6-1),12,1)),AVERAGE(OFFSET('2EFines'!$C$10,12*$A22,4*(PlotControl!$C$6-1),12,1))) -> 0 | L22: =IF(PlotControl!$B$4 = "Annual Max",MAX(OFFSET('2EFines'!$D$10,12*$A22,4*(PlotControl!$C$6-1),12,1)),AVERAGE(OFFSET('2EFines'!$D$10,12*$A22,4*(PlotControl!$C$6-1),12,1))) -> 0 | M22: =IF(PlotControl!$B$4 = "Annual Max",MAX(OFFSET('2EFines'!$E$10,12*$A22,4*(PlotControl!$C$6-1),12,1)),AVERAGE(OFFSET('2EFines'!$E$10,12*$A22,4*(PlotControl!$C$6-1),12,1))) -> 0 | N22: =IF(PlotControl!$B$4 = "Annual Max",MAX(OFFSET('2ECoarse'!$C$10,12*$A22,4*(PlotControl!$C$6-1),12,1)),AVERAGE(OFFSET('2ECoarse'!$C$10,12*$A22,4*(PlotControl!$C$6-1),12,1))) -> 0 | O22: =IF(PlotControl!$B$4 = "Annual Max",MAX(OFFSET('2ECoarse'!$D$10,12*$A22,4*(PlotControl!$C$6-1),12,1)),AVERAGE(OFFSET('2ECoarse'!$D$10,12*$A22,4*(PlotControl!$C$6-1),12,1))) -> 0 | P22: =IF(PlotControl!$B$4 = "Annual Max",MAX(OFFSET('2ECoarse'!$E$10,12*$A22,4*(PlotControl!$C$6-1),12,1)),AVERAGE(OFFSET('2ECoarse'!$E$10,12*$A22,4*(PlotControl!$C$6-1),12,1))) -> 0 | Q22: =IF(PlotControl!$B$4 = "Annual Max",MAX(OFFSET('2EBank'!$C$10,12*$A22,4*(PlotControl!$C$6-1),12,1)),AVERAGE(OFFSET('2EBank'!$C$10,12*$A22,4*(PlotControl!$C$6-1),12,1))) -> 260780 | R22: =IF(PlotControl!$B$4 = "Annual Max",MAX(OFFSET('2EBank'!$D$10,12*$A22,4*(PlotControl!$C$6-1),12,1)),AVERAGE(OFFSET('2EBank'!$D$10,12*$A22,4*(PlotControl!$C$6-1),12,1))) -> 417525 | S22: =IF(PlotControl!$B$4 = "Annual Max",MAX(OFFSET('2EBank'!$E$10,12*$A22,4*(PlotControl!$C$6-1),12,1)),AVERAGE(OFFSET('2EBank'!$E$10,12*$A22,4*(PlotControl!$C$6-1),12,1))) -> 565775.8333 | T22: =IF(PlotControl!$B$4 = "Annual Max",MAX(OFFSET('1EFines'!$C$10,12*$A22,4*(PlotControl!$C$6-1),12,1)),AVERAGE(OFFSET('1EFines'!$C$10,12*$A22,4*(PlotControl!$C$6-1),12,1))) -> 0 | U22: =IF(PlotControl!$B$4 = "Annual Max",MAX(OFFSET('1EFines'!$D$10,12*$A22,4*(PlotControl!$C$6-1),12,1)),AVERAGE(OFFSET('1EFines'!$D$10,12*$A22,4*(PlotControl!$C$6-1),12,1))) -> 0 | V22: =IF(PlotControl!$B$4 = "Annual Max",MAX(OFFSET('1EFines'!$E$10,12*$A22,4*(PlotControl!$C$6-1),12,1)),AVERAGE(OFFSET('1EFines'!$E$10,12*$A22,4*(PlotControl!$C$6-1),12,1))) -> 0 | W22: =IF(PlotControl!$B$4 = "Annual Max",MAX(OFFSET('1ECoarse'!$C$10,12*$A22,4*(PlotControl!$C$6-1),12,1)),AVERAGE(OFFSET('1ECoarse'!$C$10,12*$A22,4*(PlotControl!$C$6-1),12,1))) -> 873847.5 | X22: =IF(PlotControl!$B$4 = "Annual Max",MAX(OFFSET('1ECoarse'!$D$10,12*$A22,4*(PlotControl!$C$6-1),12,1)),AVERAGE(OFFSET('1ECoarse'!$D$10,12*$A22,4*(PlotControl!$C$6-1),12,1))) -> 1260016.667 | Y22: =IF(PlotControl!$B$4 = "Annual Max",MAX(OFFSET('1ECoarse'!$E$10,12*$A22,4*(PlotControl!$C$6-1),12,1)),AVERAGE(OFFSET('1ECoarse'!$E$10,12*$A22,4*(PlotControl!$C$6-1),12,1))) -> 1693108.333
A23: 18 | B23: =IF(PlotControl!$B$4 = "Annual Max",MAX(OFFSET('2WFines'!$C$10,12*$A23,4*(PlotControl!$C$6-1),12,1)),AVERAGE(OFFSET('2WFines'!$C$10,12*$A23,4*(PlotControl!$C$6-1),12,1))) -> 218959.1667 | C23: =IF(PlotControl!$B$4 = "Annual Max",MAX(OFFSET('2WFines'!$D$10,12*$A23,4*(PlotControl!$C$6-1),12,1)),AVERAGE(OFFSET('2WFines'!$D$10,12*$A23,4*(PlotControl!$C$6-1),12,1))) -> 251634.1667 | D23: =IF(PlotControl!$B$4 = "Annual Max",MAX(OFFSET('2WFines'!$E$10,12*$A23,4*(PlotControl!$C$6-1),12,1)),AVERAGE(OFFSET('2WFines'!$E$10,12*$A23,4*(PlotControl!$C$6-1),12,1))) -> 276915 | E23: =IF(PlotControl!$B$4 = "Annual Max",MAX(OFFSET('2WCoarse'!$C$10,12*$A23,4*(PlotControl!$C$6-1),12,1)),AVERAGE(OFFSET('2WCoarse'!$C$10,12*$A23,4*(PlotControl!$C$6-1),12,1))) -> 240160 | F23: =IF(PlotControl!$B$4 = "Annual Max",MAX(OFFSET('2WCoarse'!$D$10,12*$A23,4*(PlotControl!$C$6-1),12,1)),AVERAGE(OFFSET('2WCoarse'!$D$10,12*$A23,4*(PlotControl!$C$6-1),12,1))) -> 373022.5 | G23: =IF(PlotControl!$B$4 = "Annual Max",MAX(OFFSET('2WCoarse'!$E$10,12*$A23,4*(PlotControl!$C$6-1),12,1)),AVERAGE(OFFSET('2WCoarse'!$E$10,12*$A23,4*(PlotControl!$C$6-1),12,1))) -> 488394.1667 | H23: =IF(PlotControl!$B$4 = "Annual Max",MAX(OFFSET('2WBank'!$C$10,12*$A23,4*(PlotControl!$C$6-1),12,1)),AVERAGE(OFFSET('2WBank'!$C$10,12*$A23,4*(PlotControl!$C$6-1),12,1))) -> 488364.1667 | I23: =IF(PlotControl!$B$4 = "Annual Max",MAX(OFFSET('2WBank'!$D$10,12*$A23,4*(PlotControl!$C$6-1),12,1)),AVERAGE(OFFSET('2WBank'!$D$10,12*$A23,4*(PlotControl!$C$6-1),12,1))) -> 694072.5 | J23: =IF(PlotControl!$B$4 = "Annual Max",MAX(OFFSET('2WBank'!$E$10,12*$A23,4*(PlotControl!$C$6-1),12,1)),AVERAGE(OFFSET('2WBank'!$E$10,12*$A23,4*(PlotControl!$C$6-1),12,1))) -> 868204.1667 | K23: =IF(PlotControl!$B$4 = "Annual Max",MAX(OFFSET('2EFines'!$C$10,12*$A23,4*(PlotControl!$C$6-1),12,1)),AVERAGE(OFFSET('2EFines'!$C$10,12*$A23,4*(PlotControl!$C$6-1),12,1))) -> 0 | L23: =IF(PlotControl!$B$4 = "Annual Max",MAX(OFFSET('2EFines'!$D$10,12*$A23,4*(PlotControl!$C$6-1),12,1)),AVERAGE(OFFSET('2EFines'!$D$10,12*$A23,4*(PlotControl!$C$6-1),12,1))) -> 0 | M23: =IF(PlotControl!$B$4 = "Annual Max",MAX(OFFSET('2EFines'!$E$10,12*$A23,4*(PlotControl!$C$6-1),12,1)),AVERAGE(OFFSET('2EFines'!$E$10,12*$A23,4*(PlotControl!$C$6-1),12,1))) -> 0 | N23: =IF(PlotControl!$B$4 = "Annual Max",MAX(OFFSET('2ECoarse'!$C$10,12*$A23,4*(PlotControl!$C$6-1),12,1)),AVERAGE(OFFSET('2ECoarse'!$C$10,12*$A23,4*(PlotControl!$C$6-1),12,1))) -> 0 | O23: =IF(PlotControl!$B$4 = "Annual Max",MAX(OFFSET('2ECoarse'!$D$10,12*$A23,4*(PlotControl!$C$6-1),12,1)),AVERAGE(OFFSET('2ECoarse'!$D$10,12*$A23,4*(PlotControl!$C$6-1),12,1))) -> 0 | P23: =IF(PlotControl!$B$4 = "Annual Max",MAX(OFFSET('2ECoarse'!$E$10,12*$A23,4*(PlotControl!$C$6-1),12,1)),AVERAGE(OFFSET('2ECoarse'!$E$10,12*$A23,4*(PlotControl!$C$6-1),12,1))) -> 0 | Q23: =IF(PlotControl!$B$4 = "Annual Max",MAX(OFFSET('2EBank'!$C$10,12*$A23,4*(PlotControl!$C$6-1),12,1)),AVERAGE(OFFSET('2EBank'!$C$10,12*$A23,4*(PlotControl!$C$6-1),12,1))) -> 263771.6667 | R23: =IF(PlotControl!$B$4 = "Annual Max",MAX(OFFSET('2EBank'!$D$10,12*$A23,4*(PlotControl!$C$6-1),12,1)),AVERAGE(OFFSET('2EBank'!$D$10,12*$A23,4*(PlotControl!$C$6-1),12,1))) -> 420657.5 | S23: =IF(PlotControl!$B$4 = "Annual Max",MAX(OFFSET('2EBank'!$E$10,12*$A23,4*(PlotControl!$C$6-1),12,1)),AVERAGE(OFFSET('2EBank'!$E$10,12*$A23,4*(PlotControl!$C$6-1),12,1))) -> 568026.6667 | T23: =IF(PlotControl!$B$4 = "Annual Max",MAX(OFFSET('1EFines'!$C$10,12*$A23,4*(PlotControl!$C$6-1),12,1)),AVERAGE(OFFSET('1EFines'!$C$10,12*$A23,4*(PlotControl!$C$6-1),12,1))) -> 0 | U23: =IF(PlotControl!$B$4 = "Annual Max",MAX(OFFSET('1EFines'!$D$10,12*$A23,4*(PlotControl!$C$6-1),12,1)),AVERAGE(OFFSET('1EFines'!$D$10,12*$A23,4*(PlotControl!$C$6-1),12,1))) -> 0 | V23: =IF(PlotControl!$B$4 = "Annual Max",MAX(OFFSET('1EFines'!$E$10,12*$A23,4*(PlotControl!$C$6-1),12,1)),AVERAGE(OFFSET('1EFines'!$E$10,12*$A23,4*(PlotControl!$C$6-1),12,1))) -> 0 | W23: =IF(PlotControl!$B$4 = "Annual Max",MAX(OFFSET('1ECoarse'!$C$10,12*$A23,4*(PlotControl!$C$6-1),12,1)),AVERAGE(OFFSET('1ECoarse'!$C$10,12*$A23,4*(PlotControl!$C$6-1),12,1))) -> 825091.6667 | X23: =IF(PlotControl!$B$4 = "Annual Max",MAX(OFFSET('1ECoarse'!$D$10,12*$A23,4*(PlotControl!$C$6-1),12,1)),AVERAGE(OFFSET('1ECoarse'!$D$10,12*$A23,4*(PlotControl!$C$6-1),12,1))) -> 1195700 | Y23: =IF(PlotControl!$B$4 = "Annual Max",MAX(OFFSET('1ECoarse'!$E$10,12*$A23,4*(PlotControl!$C$6-1),12,1)),AVERAGE(OFFSET('1ECoarse'!$E$10,12*$A23,4*(PlotControl!$C$6-1),12,1))) -> 1613583.333
A24: 19 | B24: =IF(PlotControl!$B$4 = "Annual Max",MAX(OFFSET('2WFines'!$C$10,12*$A24,4*(PlotControl!$C$6-1),12,1)),AVERAGE(OFFSET('2WFines'!$C$10,12*$A24,4*(PlotControl!$C$6-1),12,1))) -> 219008.3333 | C24: =IF(PlotControl!$B$4 = "Annual Max",MAX(OFFSET('2WFines'!$D$10,12*$A24,4*(PlotControl!$C$6-1),12,1)),AVERAGE(OFFSET('2WFines'!$D$10,12*$A24,4*(PlotControl!$C$6-1),12,1))) -> 252254.1667 | D24: =IF(PlotControl!$B$4 = "Annual Max",MAX(OFFSET('2WFines'!$E$10,12*$A24,4*(PlotControl!$C$6-1),12,1)),AVERAGE(OFFSET('2WFines'!$E$10,12*$A24,4*(PlotControl!$C$6-1),12,1))) -> 278435.8333 | E24: =IF(PlotControl!$B$4 = "Annual Max",MAX(OFFSET('2WCoarse'!$C$10,12*$A24,4*(PlotControl!$C$6-1),12,1)),AVERAGE(OFFSET('2WCoarse'!$C$10,12*$A24,4*(PlotControl!$C$6-1),12,1))) -> 233836.6667 | F24: =IF(PlotControl!$B$4 = "Annual Max",MAX(OFFSET('2WCoarse'!$D$10,12*$A24,4*(PlotControl!$C$6-1),12,1)),AVERAGE(OFFSET('2WCoarse'!$D$10,12*$A24,4*(PlotControl!$C$6-1),12,1))) -> 369925.8333 | G24: =IF(PlotControl!$B$4 = "Annual Max",MAX(OFFSET('2WCoarse'!$E$10,12*$A24,4*(PlotControl!$C$6-1),12,1)),AVERAGE(OFFSET('2WCoarse'!$E$10,12*$A24,4*(PlotControl!$C$6-1),12,1))) -> 487510 | H24: =IF(PlotControl!$B$4 = "Annual Max",MAX(OFFSET('2WBank'!$C$10,12*$A24,4*(PlotControl!$C$6-1),12,1)),AVERAGE(OFFSET('2WBank'!$C$10,12*$A24,4*(PlotControl!$C$6-1),12,1))) -> 481345 | I24: =IF(PlotControl!$B$4 = "Annual Max",MAX(OFFSET('2WBank'!$D$10,12*$A24,4*(PlotControl!$C$6-1),12,1)),AVERAGE(OFFSET('2WBank'!$D$10,12*$A24,4*(PlotControl!$C$6-1),12,1))) -> 692538.3333 | J24: =IF(PlotControl!$B$4 = "Annual Max",MAX(OFFSET('2WBank'!$E$10,12*$A24,4*(PlotControl!$C$6-1),12,1)),AVERAGE(OFFSET('2WBank'!$E$10,12*$A24,4*(PlotControl!$C$6-1),12,1))) -> 870963.3333 | K24: =IF(PlotControl!$B$4 = "Annual Max",MAX(OFFSET('2EFines'!$C$10,12*$A24,4*(PlotControl!$C$6-1),12,1)),AVERAGE(OFFSET('2EFines'!$C$10,12*$A24,4*(PlotControl!$C$6-1),12,1))) -> 0 | L24: =IF(PlotControl!$B$4 = "Annual Max",MAX(OFFSET('2EFines'!$D$10,12*$A24,4*(PlotControl!$C$6-1),12,1)),AVERAGE(OFFSET('2EFines'!$D$10,12*$A24,4*(PlotControl!$C$6-1),12,1))) -> 0 | M24: =IF(PlotControl!$B$4 = "Annual Max",MAX(OFFSET('2EFines'!$E$10,12*$A24,4*(PlotControl!$C$6-1),12,1)),AVERAGE(OFFSET('2EFines'!$E$10,12*$A24,4*(PlotControl!$C$6-1),12,1))) -> 0 | N24: =IF(PlotControl!$B$4 = "Annual Max",MAX(OFFSET('2ECoarse'!$C$10,12*$A24,4*(PlotControl!$C$6-1),12,1)),AVERAGE(OFFSET('2ECoarse'!$C$10,12*$A24,4*(PlotControl!$C$6-1),12,1))) -> 0 | O24: =IF(PlotControl!$B$4 = "Annual Max",MAX(OFFSET('2ECoarse'!$D$10,12*$A24,4*(PlotControl!$C$6-1),12,1)),AVERAGE(OFFSET('2ECoarse'!$D$10,12*$A24,4*(PlotControl!$C$6-1),12,1))) -> 0 | P24: =IF(PlotControl!$B$4 = "Annual Max",MAX(OFFSET('2ECoarse'!$E$10,12*$A24,4*(PlotControl!$C$6-1),12,1)),AVERAGE(OFFSET('2ECoarse'!$E$10,12*$A24,4*(PlotControl!$C$6-1),12,1))) -> 0 | Q24: =IF(PlotControl!$B$4 = "Annual Max",MAX(OFFSET('2EBank'!$C$10,12*$A24,4*(PlotControl!$C$6-1),12,1)),AVERAGE(OFFSET('2EBank'!$C$10,12*$A24,4*(PlotControl!$C$6-1),12,1))) -> 261373.3333 | R24: =IF(PlotControl!$B$4 = "Annual Max",MAX(OFFSET('2EBank'!$D$10,12*$A24,4*(PlotControl!$C$6-1),12,1)),AVERAGE(OFFSET('2EBank'!$D$10,12*$A24,4*(PlotControl!$C$6-1),12,1))) -> 423271.6667 | S24: =IF(PlotControl!$B$4 = "Annual Max",MAX(OFFSET('2EBank'!$E$10,12*$A24,4*(PlotControl!$C$6-1),12,1)),AVERAGE(OFFSET('2EBank'!$E$10,12*$A24,4*(PlotControl!$C$6-1),12,1))) -> 573543.3333 | T24: =IF(PlotControl!$B$4 = "Annual Max",MAX(OFFSET('1EFines'!$C$10,12*$A24,4*(PlotControl!$C$6-1),12,1)),AVERAGE(OFFSET('1EFines'!$C$10,12*$A24,4*(PlotControl!$C$6-1),12,1))) -> 0 | U24: =IF(PlotControl!$B$4 = "Annual Max",MAX(OFFSET('1EFines'!$D$10,12*$A24,4*(PlotControl!$C$6-1),12,1)),AVERAGE(OFFSET('1EFines'!$D$10,12*$A24,4*(PlotControl!$C$6-1),12,1))) -> 0 | V24: =IF(PlotControl!$B$4 = "Annual Max",MAX(OFFSET('1EFines'!$E$10,12*$A24,4*(PlotControl!$C$6-1),12,1)),AVERAGE(OFFSET('1EFines'!$E$10,12*$A24,4*(PlotControl!$C$6-1),12,1))) -> 0 | W24: =IF(PlotControl!$B$4 = "Annual Max",MAX(OFFSET('1ECoarse'!$C$10,12*$A24,4*(PlotControl!$C$6-1),12,1)),AVERAGE(OFFSET('1ECoarse'!$C$10,12*$A24,4*(PlotControl!$C$6-1),12,1))) -> 777867.5 | X24: =IF(PlotControl!$B$4 = "Annual Max",MAX(OFFSET('1ECoarse'!$D$10,12*$A24,4*(PlotControl!$C$6-1),12,1)),AVERAGE(OFFSET('1ECoarse'!$D$10,12*$A24,4*(PlotControl!$C$6-1),12,1))) -> 1140391.667 | Y24: =IF(PlotControl!$B$4 = "Annual Max",MAX(OFFSET('1ECoarse'!$E$10,12*$A24,4*(PlotControl!$C$6-1),12,1)),AVERAGE(OFFSET('1ECoarse'!$E$10,12*$A24,4*(PlotControl!$C$6-1),12,1))) -> 1557025
A25: 20 | B25: =IF(PlotControl!$B$4 = "Annual Max",MAX(OFFSET('2WFines'!$C$10,12*$A25,4*(PlotControl!$C$6-1),12,1)),AVERAGE(OFFSET('2WFines'!$C$10,12*$A25,4*(PlotControl!$C$6-1),12,1))) -> 217481.6667 | C25: =IF(PlotControl!$B$4 = "Annual Max",MAX(OFFSET('2WFines'!$D$10,12*$A25,4*(PlotControl!$C$6-1),12,1)),AVERAGE(OFFSET('2WFines'!$D$10,12*$A25,4*(PlotControl!$C$6-1),12,1))) -> 252957.5 | D25: =IF(PlotControl!$B$4 = "Annual Max",MAX(OFFSET('2WFines'!$E$10,12*$A25,4*(PlotControl!$C$6-1),12,1)),AVERAGE(OFFSET('2WFines'!$E$10,12*$A25,4*(PlotControl!$C$6-1),12,1))) -> 280185 | E25: =IF(PlotControl!$B$4 = "Annual Max",MAX(OFFSET('2WCoarse'!$C$10,12*$A25,4*(PlotControl!$C$6-1),12,1)),AVERAGE(OFFSET('2WCoarse'!$C$10,12*$A25,4*(PlotControl!$C$6-1),12,1))) -> 227757.5 | F25: =IF(PlotControl!$B$4 = "Annual Max",MAX(OFFSET('2WCoarse'!$D$10,12*$A25,4*(PlotControl!$C$6-1),12,1)),AVERAGE(OFFSET('2WCoarse'!$D$10,12*$A25,4*(PlotControl!$C$6-1),12,1))) -> 368435.8333 | G25: =IF(PlotControl!$B$4 = "Annual Max",MAX(OFFSET('2WCoarse'!$E$10,12*$A25,4*(PlotControl!$C$6-1),12,1)),AVERAGE(OFFSET('2WCoarse'!$E$10,12*$A25,4*(PlotControl!$C$6-1),12,1))) -> 485941.6667 | H25: =IF(PlotControl!$B$4 = "Annual Max",MAX(OFFSET('2WBank'!$C$10,12*$A25,4*(PlotControl!$C$6-1),12,1)),AVERAGE(OFFSET('2WBank'!$C$10,12*$A25,4*(PlotControl!$C$6-1),12,1))) -> 475855 | I25: =IF(PlotControl!$B$4 = "Annual Max",MAX(OFFSET('2WBank'!$D$10,12*$A25,4*(PlotControl!$C$6-1),12,1)),AVERAGE(OFFSET('2WBank'!$D$10,12*$A25,4*(PlotControl!$C$6-1),12,1))) -> 696720 | J25: =IF(PlotControl!$B$4 = "Annual Max",MAX(OFFSET('2WBank'!$E$10,12*$A25,4*(PlotControl!$C$6-1),12,1)),AVERAGE(OFFSET('2WBank'!$E$10,12*$A25,4*(PlotControl!$C$6-1),12,1))) -> 875195 | K25: =IF(PlotControl!$B$4 = "Annual Max",MAX(OFFSET('2EFines'!$C$10,12*$A25,4*(PlotControl!$C$6-1),12,1)),AVERAGE(OFFSET('2EFines'!$C$10,12*$A25,4*(PlotControl!$C$6-1),12,1))) -> 0 | L25: =IF(PlotControl!$B$4 = "Annual Max",MAX(OFFSET('2EFines'!$D$10,12*$A25,4*(PlotControl!$C$6-1),12,1)),AVERAGE(OFFSET('2EFines'!$D$10,12*$A25,4*(PlotControl!$C$6-1),12,1))) -> 0 | M25: =IF(PlotControl!$B$4 = "Annual Max",MAX(OFFSET('2EFines'!$E$10,12*$A25,4*(PlotControl!$C$6-1),12,1)),AVERAGE(OFFSET('2EFines'!$E$10,12*$A25,4*(PlotControl!$C$6-1),12,1))) -> 0 | N25: =IF(PlotControl!$B$4 = "Annual Max",MAX(OFFSET('2ECoarse'!$C$10,12*$A25,4*(PlotControl!$C$6-1),12,1)),AVERAGE(OFFSET('2ECoarse'!$C$10,12*$A25,4*(PlotControl!$C$6-1),12,1))) -> 0 | O25: =IF(PlotControl!$B$4 = "Annual Max",MAX(OFFSET('2ECoarse'!$D$10,12*$A25,4*(PlotControl!$C$6-1),12,1)),AVERAGE(OFFSET('2ECoarse'!$D$10,12*$A25,4*(PlotControl!$C$6-1),12,1))) -> 0 | P25: =IF(PlotControl!$B$4 = "Annual Max",MAX(OFFSET('2ECoarse'!$E$10,12*$A25,4*(PlotControl!$C$6-1),12,1)),AVERAGE(OFFSET('2ECoarse'!$E$10,12*$A25,4*(PlotControl!$C$6-1),12,1))) -> 0 | Q25: =IF(PlotControl!$B$4 = "Annual Max",MAX(OFFSET('2EBank'!$C$10,12*$A25,4*(PlotControl!$C$6-1),12,1)),AVERAGE(OFFSET('2EBank'!$C$10,12*$A25,4*(PlotControl!$C$6-1),12,1))) -> 258505 | R25: =IF(PlotControl!$B$4 = "Annual Max",MAX(OFFSET('2EBank'!$D$10,12*$A25,4*(PlotControl!$C$6-1),12,1)),AVERAGE(OFFSET('2EBank'!$D$10,12*$A25,4*(PlotControl!$C$6-1),12,1))) -> 431145.8333 | S25: =IF(PlotControl!$B$4 = "Annual Max",MAX(OFFSET('2EBank'!$E$10,12*$A25,4*(PlotControl!$C$6-1),12,1)),AVERAGE(OFFSET('2EBank'!$E$10,12*$A25,4*(PlotControl!$C$6-1),12,1))) -> 587425 | T25: =IF(PlotControl!$B$4 = "Annual Max",MAX(OFFSET('1EFines'!$C$10,12*$A25,4*(PlotControl!$C$6-1),12,1)),AVERAGE(OFFSET('1EFines'!$C$10,12*$A25,4*(PlotControl!$C$6-1),12,1))) -> 0 | U25: =IF(PlotControl!$B$4 = "Annual Max",MAX(OFFSET('1EFines'!$D$10,12*$A25,4*(PlotControl!$C$6-1),12,1)),AVERAGE(OFFSET('1EFines'!$D$10,12*$A25,4*(PlotControl!$C$6-1),12,1))) -> 0 | V25: =IF(PlotControl!$B$4 = "Annual Max",MAX(OFFSET('1EFines'!$E$10,12*$A25,4*(PlotControl!$C$6-1),12,1)),AVERAGE(OFFSET('1EFines'!$E$10,12*$A25,4*(PlotControl!$C$6-1),12,1))) -> 0 | W25: =IF(PlotControl!$B$4 = "Annual Max",MAX(OFFSET('1ECoarse'!$C$10,12*$A25,4*(PlotControl!$C$6-1),12,1)),AVERAGE(OFFSET('1ECoarse'!$C$10,12*$A25,4*(PlotControl!$C$6-1),12,1))) -> 741461.6667 | X25: =IF(PlotControl!$B$4 = "Annual Max",MAX(OFFSET('1ECoarse'!$D$10,12*$A25,4*(PlotControl!$C$6-1),12,1)),AVERAGE(OFFSET('1ECoarse'!$D$10,12*$A25,4*(PlotControl!$C$6-1),12,1))) -> 1091800 | Y25: =IF(PlotControl!$B$4 = "Annual Max",MAX(OFFSET('1ECoarse'!$E$10,12*$A25,4*(PlotControl!$C$6-1),12,1)),AVERAGE(OFFSET('1ECoarse'!$E$10,12*$A25,4*(PlotControl!$C$6-1),12,1))) -> 1485275
A26: 21 | B26: =IF(PlotControl!$B$4 = "Annual Max",MAX(OFFSET('2WFines'!$C$10,12*$A26,4*(PlotControl!$C$6-1),12,1)),AVERAGE(OFFSET('2WFines'!$C$10,12*$A26,4*(PlotControl!$C$6-1),12,1))) -> 217430 | C26: =IF(PlotControl!$B$4 = "Annual Max",MAX(OFFSET('2WFines'!$D$10,12*$A26,4*(PlotControl!$C$6-1),12,1)),AVERAGE(OFFSET('2WFines'!$D$10,12*$A26,4*(PlotControl!$C$6-1),12,1))) -> 253142.5 | D26: =IF(PlotControl!$B$4 = "Annual Max",MAX(OFFSET('2WFines'!$E$10,12*$A26,4*(PlotControl!$C$6-1),12,1)),AVERAGE(OFFSET('2WFines'!$E$10,12*$A26,4*(PlotControl!$C$6-1),12,1))) -> 281273.3333 | E26: =IF(PlotControl!$B$4 = "Annual Max",MAX(OFFSET('2WCoarse'!$C$10,12*$A26,4*(PlotControl!$C$6-1),12,1)),AVERAGE(OFFSET('2WCoarse'!$C$10,12*$A26,4*(PlotControl!$C$6-1),12,1))) -> 225914.1667 | F26: =IF(PlotControl!$B$4 = "Annual Max",MAX(OFFSET('2WCoarse'!$D$10,12*$A26,4*(PlotControl!$C$6-1),12,1)),AVERAGE(OFFSET('2WCoarse'!$D$10,12*$A26,4*(PlotControl!$C$6-1),12,1))) -> 365953.3333 | G26: =IF(PlotControl!$B$4 = "Annual Max",MAX(OFFSET('2WCoarse'!$E$10,12*$A26,4*(PlotControl!$C$6-1),12,1)),AVERAGE(OFFSET('2WCoarse'!$E$10,12*$A26,4*(PlotControl!$C$6-1),12,1))) -> 483822.5 | H26: =IF(PlotControl!$B$4 = "Annual Max",MAX(OFFSET('2WBank'!$C$10,12*$A26,4*(PlotControl!$C$6-1),12,1)),AVERAGE(OFFSET('2WBank'!$C$10,12*$A26,4*(PlotControl!$C$6-1),12,1))) -> 472936.6667 | I26: =IF(PlotControl!$B$4 = "Annual Max",MAX(OFFSET('2WBank'!$D$10,12*$A26,4*(PlotControl!$C$6-1),12,1)),AVERAGE(OFFSET('2WBank'!$D$10,12*$A26,4*(PlotControl!$C$6-1),12,1))) -> 693584.1667 | J26: =IF(PlotControl!$B$4 = "Annual Max",MAX(OFFSET('2WBank'!$E$10,12*$A26,4*(PlotControl!$C$6-1),12,1)),AVERAGE(OFFSET('2WBank'!$E$10,12*$A26,4*(PlotControl!$C$6-1),12,1))) -> 883404.1667 | K26: =IF(PlotControl!$B$4 = "Annual Max",MAX(OFFSET('2EFines'!$C$10,12*$A26,4*(PlotControl!$C$6-1),12,1)),AVERAGE(OFFSET('2EFines'!$C$10,12*$A26,4*(PlotControl!$C$6-1),12,1))) -> 0 | L26: =IF(PlotControl!$B$4 = "Annual Max",MAX(OFFSET('2EFines'!$D$10,12*$A26,4*(PlotControl!$C$6-1),12,1)),AVERAGE(OFFSET('2EFines'!$D$10,12*$A26,4*(PlotControl!$C$6-1),12,1))) -> 0 | M26: =IF(PlotControl!$B$4 = "Annual Max",MAX(OFFSET('2EFines'!$E$10,12*$A26,4*(PlotControl!$C$6-1),12,1)),AVERAGE(OFFSET('2EFines'!$E$10,12*$A26,4*(PlotControl!$C$6-1),12,1))) -> 0 | N26: =IF(PlotControl!$B$4 = "Annual Max",MAX(OFFSET('2ECoarse'!$C$10,12*$A26,4*(PlotControl!$C$6-1),12,1)),AVERAGE(OFFSET('2ECoarse'!$C$10,12*$A26,4*(PlotControl!$C$6-1),12,1))) -> 0 | O26: =IF(PlotControl!$B$4 = "Annual Max",MAX(OFFSET('2ECoarse'!$D$10,12*$A26,4*(PlotControl!$C$6-1),12,1)),AVERAGE(OFFSET('2ECoarse'!$D$10,12*$A26,4*(PlotControl!$C$6-1),12,1))) -> 0 | P26: =IF(PlotControl!$B$4 = "Annual Max",MAX(OFFSET('2ECoarse'!$E$10,12*$A26,4*(PlotControl!$C$6-1),12,1)),AVERAGE(OFFSET('2ECoarse'!$E$10,12*$A26,4*(PlotControl!$C$6-1),12,1))) -> 0 | Q26: =IF(PlotControl!$B$4 = "Annual Max",MAX(OFFSET('2EBank'!$C$10,12*$A26,4*(PlotControl!$C$6-1),12,1)),AVERAGE(OFFSET('2EBank'!$C$10,12*$A26,4*(PlotControl!$C$6-1),12,1))) -> 258524.1667 | R26: =IF(PlotControl!$B$4 = "Annual Max",MAX(OFFSET('2EBank'!$D$10,12*$A26,4*(PlotControl!$C$6-1),12,1)),AVERAGE(OFFSET('2EBank'!$D$10,12*$A26,4*(PlotControl!$C$6-1),12,1))) -> 433269.1667 | S26: =IF(PlotControl!$B$4 = "Annual Max",MAX(OFFSET('2EBank'!$E$10,12*$A26,4*(PlotControl!$C$6-1),12,1)),AVERAGE(OFFSET('2EBank'!$E$10,12*$A26,4*(PlotControl!$C$6-1),12,1))) -> 588303.3333 | T26: =IF(PlotControl!$B$4 = "Annual Max",MAX(OFFSET('1EFines'!$C$10,12*$A26,4*(PlotControl!$C$6-1),12,1)),AVERAGE(OFFSET('1EFines'!$C$10,12*$A26,4*(PlotControl!$C$6-1),12,1))) -> 0 | U26: =IF(PlotControl!$B$4 = "Annual Max",MAX(OFFSET('1EFines'!$D$10,12*$A26,4*(PlotControl!$C$6-1),12,1)),AVERAGE(OFFSET('1EFines'!$D$10,12*$A26,4*(PlotControl!$C$6-1),12,1))) -> 0 | V26: =IF(PlotControl!$B$4 = "Annual Max",MAX(OFFSET('1EFines'!$E$10,12*$A26,4*(PlotControl!$C$6-1),12,1)),AVERAGE(OFFSET('1EFines'!$E$10,12*$A26,4*(PlotControl!$C$6-1),12,1))) -> 0 | W26: =IF(PlotControl!$B$4 = "Annual Max",MAX(OFFSET('1ECoarse'!$C$10,12*$A26,4*(PlotControl!$C$6-1),12,1)),AVERAGE(OFFSET('1ECoarse'!$C$10,12*$A26,4*(PlotControl!$C$6-1),12,1))) -> 696198.3333 | X26: =IF(PlotControl!$B$4 = "Annual Max",MAX(OFFSET('1ECoarse'!$D$10,12*$A26,4*(PlotControl!$C$6-1),12,1)),AVERAGE(OFFSET('1ECoarse'!$D$10,12*$A26,4*(PlotControl!$C$6-1),12,1))) -> 1039715 | Y26: =IF(PlotControl!$B$4 = "Annual Max",MAX(OFFSET('1ECoarse'!$E$10,12*$A26,4*(PlotControl!$C$6-1),12,1)),AVERAGE(OFFSET('1ECoarse'!$E$10,12*$A26,4*(PlotControl!$C$6-1),12,1))) -> 1406566.667
A27: 22 | B27: =IF(PlotControl!$B$4 = "Annual Max",MAX(OFFSET('2WFines'!$C$10,12*$A27,4*(PlotControl!$C$6-1),12,1)),AVERAGE(OFFSET('2WFines'!$C$10,12*$A27,4*(PlotControl!$C$6-1),12,1))) -> 217654.1667 | C27: =IF(PlotControl!$B$4 = "Annual Max",MAX(OFFSET('2WFines'!$D$10,12*$A27,4*(PlotControl!$C$6-1),12,1)),AVERAGE(OFFSET('2WFines'!$D$10,12*$A27,4*(PlotControl!$C$6-1),12,1))) -> 253782.5 | D27: =IF(PlotControl!$B$4 = "Annual Max",MAX(OFFSET('2WFines'!$E$10,12*$A27,4*(PlotControl!$C$6-1),12,1)),AVERAGE(OFFSET('2WFines'!$E$10,12*$A27,4*(PlotControl!$C$6-1),12,1))) -> 282296.6667 | E27: =IF(PlotControl!$B$4 = "Annual Max",MAX(OFFSET('2WCoarse'!$C$10,12*$A27,4*(PlotControl!$C$6-1),12,1)),AVERAGE(OFFSET('2WCoarse'!$C$10,12*$A27,4*(PlotControl!$C$6-1),12,1))) -> 221002.5 | F27: =IF(PlotControl!$B$4 = "Annual Max",MAX(OFFSET('2WCoarse'!$D$10,12*$A27,4*(PlotControl!$C$6-1),12,1)),AVERAGE(OFFSET('2WCoarse'!$D$10,12*$A27,4*(PlotControl!$C$6-1),12,1))) -> 365693.3333 | G27: =IF(PlotControl!$B$4 = "Annual Max",MAX(OFFSET('2WCoarse'!$E$10,12*$A27,4*(PlotControl!$C$6-1),12,1)),AVERAGE(OFFSET('2WCoarse'!$E$10,12*$A27,4*(PlotControl!$C$6-1),12,1))) -> 487174.1667 | H27: =IF(PlotControl!$B$4 = "Annual Max",MAX(OFFSET('2WBank'!$C$10,12*$A27,4*(PlotControl!$C$6-1),12,1)),AVERAGE(OFFSET('2WBank'!$C$10,12*$A27,4*(PlotControl!$C$6-1),12,1))) -> 464530.8333 | I27: =IF(PlotControl!$B$4 = "Annual Max",MAX(OFFSET('2WBank'!$D$10,12*$A27,4*(PlotControl!$C$6-1),12,1)),AVERAGE(OFFSET('2WBank'!$D$10,12*$A27,4*(PlotControl!$C$6-1),12,1))) -> 691806.6667 | J27: =IF(PlotControl!$B$4 = "Annual Max",MAX(OFFSET('2WBank'!$E$10,12*$A27,4*(PlotControl!$C$6-1),12,1)),AVERAGE(OFFSET('2WBank'!$E$10,12*$A27,4*(PlotControl!$C$6-1),12,1))) -> 885110.8333 | K27: =IF(PlotControl!$B$4 = "Annual Max",MAX(OFFSET('2EFines'!$C$10,12*$A27,4*(PlotControl!$C$6-1),12,1)),AVERAGE(OFFSET('2EFines'!$C$10,12*$A27,4*(PlotControl!$C$6-1),12,1))) -> 0 | L27: =IF(PlotControl!$B$4 = "Annual Max",MAX(OFFSET('2EFines'!$D$10,12*$A27,4*(PlotControl!$C$6-1),12,1)),AVERAGE(OFFSET('2EFines'!$D$10,12*$A27,4*(PlotControl!$C$6-1),12,1))) -> 0 | M27: =IF(PlotControl!$B$4 = "Annual Max",MAX(OFFSET('2EFines'!$E$10,12*$A27,4*(PlotControl!$C$6-1),12,1)),AVERAGE(OFFSET('2EFines'!$E$10,12*$A27,4*(PlotControl!$C$6-1),12,1))) -> 0 | N27: =IF(PlotControl!$B$4 = "Annual Max",MAX(OFFSET('2ECoarse'!$C$10,12*$A27,4*(PlotControl!$C$6-1),12,1)),AVERAGE(OFFSET('2ECoarse'!$C$10,12*$A27,4*(PlotControl!$C$6-1),12,1))) -> 0 | O27: =IF(PlotControl!$B$4 = "Annual Max",MAX(OFFSET('2ECoarse'!$D$10,12*$A27,4*(PlotControl!$C$6-1),12,1)),AVERAGE(OFFSET('2ECoarse'!$D$10,12*$A27,4*(PlotControl!$C$6-1),12,1))) -> 0 | P27: =IF(PlotControl!$B$4 = "Annual Max",MAX(OFFSET('2ECoarse'!$E$10,12*$A27,4*(PlotControl!$C$6-1),12,1)),AVERAGE(OFFSET('2ECoarse'!$E$10,12*$A27,4*(PlotControl!$C$6-1),12,1))) -> 0 | Q27: =IF(PlotControl!$B$4 = "Annual Max",MAX(OFFSET('2EBank'!$C$10,12*$A27,4*(PlotControl!$C$6-1),12,1)),AVERAGE(OFFSET('2EBank'!$C$10,12*$A27,4*(PlotControl!$C$6-1),12,1))) -> 255930.8333 | R27: =IF(PlotControl!$B$4 = "Annual Max",MAX(OFFSET('2EBank'!$D$10,12*$A27,4*(PlotControl!$C$6-1),12,1)),AVERAGE(OFFSET('2EBank'!$D$10,12*$A27,4*(PlotControl!$C$6-1),12,1))) -> 433688.3333 | S27: =IF(PlotControl!$B$4 = "Annual Max",MAX(OFFSET('2EBank'!$E$10,12*$A27,4*(PlotControl!$C$6-1),12,1)),AVERAGE(OFFSET('2EBank'!$E$10,12*$A27,4*(PlotControl!$C$6-1),12,1))) -> 587776.6667 | T27: =IF(PlotControl!$B$4 = "Annual Max",MAX(OFFSET('1EFines'!$C$10,12*$A27,4*(PlotControl!$C$6-1),12,1)),AVERAGE(OFFSET('1EFines'!$C$10,12*$A27,4*(PlotControl!$C$6-1),12,1))) -> 0 | U27: =IF(PlotControl!$B$4 = "Annual Max",MAX(OFFSET('1EFines'!$D$10,12*$A27,4*(PlotControl!$C$6-1),12,1)),AVERAGE(OFFSET('1EFines'!$D$10,12*$A27,4*(PlotControl!$C$6-1),12,1))) -> 0 | V27: =IF(PlotControl!$B$4 = "Annual Max",MAX(OFFSET('1EFines'!$E$10,12*$A27,4*(PlotControl!$C$6-1),12,1)),AVERAGE(OFFSET('1EFines'!$E$10,12*$A27,4*(PlotControl!$C$6-1),12,1))) -> 0 | W27: =IF(PlotControl!$B$4 = "Annual Max",MAX(OFFSET('1ECoarse'!$C$10,12*$A27,4*(PlotControl!$C$6-1),12,1)),AVERAGE(OFFSET('1ECoarse'!$C$10,12*$A27,4*(PlotControl!$C$6-1),12,1))) -> 672616.6667 | X27: =IF(PlotControl!$B$4 = "Annual Max",MAX(OFFSET('1ECoarse'!$D$10,12*$A27,4*(PlotControl!$C$6-1),12,1)),AVERAGE(OFFSET('1ECoarse'!$D$10,12*$A27,4*(PlotControl!$C$6-1),12,1))) -> 982545.8333 | Y27: =IF(PlotControl!$B$4 = "Annual Max",MAX(OFFSET('1ECoarse'!$E$10,12*$A27,4*(PlotControl!$C$6-1),12,1)),AVERAGE(OFFSET('1ECoarse'!$E$10,12*$A27,4*(PlotControl!$C$6-1),12,1))) -> 1350325
A28: 23 | B28: =IF(PlotControl!$B$4 = "Annual Max",MAX(OFFSET('2WFines'!$C$10,12*$A28,4*(PlotControl!$C$6-1),12,1)),AVERAGE(OFFSET('2WFines'!$C$10,12*$A28,4*(PlotControl!$C$6-1),12,1))) -> 215565.8333 | C28: =IF(PlotControl!$B$4 = "Annual Max",MAX(OFFSET('2WFines'!$D$10,12*$A28,4*(PlotControl!$C$6-1),12,1)),AVERAGE(OFFSET('2WFines'!$D$10,12*$A28,4*(PlotControl!$C$6-1),12,1))) -> 255010.8333 | D28: =IF(PlotControl!$B$4 = "Annual Max",MAX(OFFSET('2WFines'!$E$10,12*$A28,4*(PlotControl!$C$6-1),12,1)),AVERAGE(OFFSET('2WFines'!$E$10,12*$A28,4*(PlotControl!$C$6-1),12,1))) -> 284542.5 | E28: =IF(PlotControl!$B$4 = "Annual Max",MAX(OFFSET('2WCoarse'!$C$10,12*$A28,4*(PlotControl!$C$6-1),12,1)),AVERAGE(OFFSET('2WCoarse'!$C$10,12*$A28,4*(PlotControl!$C$6-1),12,1))) -> 219779.1667 | F28: =IF(PlotControl!$B$4 = "Annual Max",MAX(OFFSET('2WCoarse'!$D$10,12*$A28,4*(PlotControl!$C$6-1),12,1)),AVERAGE(OFFSET('2WCoarse'!$D$10,12*$A28,4*(PlotControl!$C$6-1),12,1))) -> 367453.3333 | G28: =IF(PlotControl!$B$4 = "Annual Max",MAX(OFFSET('2WCoarse'!$E$10,12*$A28,4*(PlotControl!$C$6-1),12,1)),AVERAGE(OFFSET('2WCoarse'!$E$10,12*$A28,4*(PlotControl!$C$6-1),12,1))) -> 493813.3333 | H28: =IF(PlotControl!$B$4 = "Annual Max",MAX(OFFSET('2WBank'!$C$10,12*$A28,4*(PlotControl!$C$6-1),12,1)),AVERAGE(OFFSET('2WBank'!$C$10,12*$A28,4*(PlotControl!$C$6-1),12,1))) -> 458720 | I28: =IF(PlotControl!$B$4 = "Annual Max",MAX(OFFSET('2WBank'!$D$10,12*$A28,4*(PlotControl!$C$6-1),12,1)),AVERAGE(OFFSET('2WBank'!$D$10,12*$A28,4*(PlotControl!$C$6-1),12,1))) -> 689371.6667 | J28: =IF(PlotControl!$B$4 = "Annual Max",MAX(OFFSET('2WBank'!$E$10,12*$A28,4*(PlotControl!$C$6-1),12,1)),AVERAGE(OFFSET('2WBank'!$E$10,12*$A28,4*(PlotControl!$C$6-1),12,1))) -> 891640 | K28: =IF(PlotControl!$B$4 = "Annual Max",MAX(OFFSET('2EFines'!$C$10,12*$A28,4*(PlotControl!$C$6-1),12,1)),AVERAGE(OFFSET('2EFines'!$C$10,12*$A28,4*(PlotControl!$C$6-1),12,1))) -> 0 | L28: =IF(PlotControl!$B$4 = "Annual Max",MAX(OFFSET('2EFines'!$D$10,12*$A28,4*(PlotControl!$C$6-1),12,1)),AVERAGE(OFFSET('2EFines'!$D$10,12*$A28,4*(PlotControl!$C$6-1),12,1))) -> 0 | M28: =IF(PlotControl!$B$4 = "Annual Max",MAX(OFFSET('2EFines'!$E$10,12*$A28,4*(PlotControl!$C$6-1),12,1)),AVERAGE(OFFSET('2EFines'!$E$10,12*$A28,4*(PlotControl!$C$6-1),12,1))) -> 0 | N28: =IF(PlotControl!$B$4 = "Annual Max",MAX(OFFSET('2ECoarse'!$C$10,12*$A28,4*(PlotControl!$C$6-1),12,1)),AVERAGE(OFFSET('2ECoarse'!$C$10,12*$A28,4*(PlotControl!$C$6-1),12,1))) -> 0 | O28: =IF(PlotControl!$B$4 = "Annual Max",MAX(OFFSET('2ECoarse'!$D$10,12*$A28,4*(PlotControl!$C$6-1),12,1)),AVERAGE(OFFSET('2ECoarse'!$D$10,12*$A28,4*(PlotControl!$C$6-1),12,1))) -> 0 | P28: =IF(PlotControl!$B$4 = "Annual Max",MAX(OFFSET('2ECoarse'!$E$10,12*$A28,4*(PlotControl!$C$6-1),12,1)),AVERAGE(OFFSET('2ECoarse'!$E$10,12*$A28,4*(PlotControl!$C$6-1),12,1))) -> 0 | Q28: =IF(PlotControl!$B$4 = "Annual Max",MAX(OFFSET('2EBank'!$C$10,12*$A28,4*(PlotControl!$C$6-1),12,1)),AVERAGE(OFFSET('2EBank'!$C$10,12*$A28,4*(PlotControl!$C$6-1),12,1))) -> 260606.6667 | R28: =IF(PlotControl!$B$4 = "Annual Max",MAX(OFFSET('2EBank'!$D$10,12*$A28,4*(PlotControl!$C$6-1),12,1)),AVERAGE(OFFSET('2EBank'!$D$10,12*$A28,4*(PlotControl!$C$6-1),12,1))) -> 436805.8333 | S28: =IF(PlotControl!$B$4 = "Annual Max",MAX(OFFSET('2EBank'!$E$10,12*$A28,4*(PlotControl!$C$6-1),12,1)),AVERAGE(OFFSET('2EBank'!$E$10,12*$A28,4*(PlotControl!$C$6-1),12,1))) -> 596290.8333 | T28: =IF(PlotControl!$B$4 = "Annual Max",MAX(OFFSET('1EFines'!$C$10,12*$A28,4*(PlotControl!$C$6-1),12,1)),AVERAGE(OFFSET('1EFines'!$C$10,12*$A28,4*(PlotControl!$C$6-1),12,1))) -> 0 | U28: =IF(PlotControl!$B$4 = "Annual Max",MAX(OFFSET('1EFines'!$D$10,12*$A28,4*(PlotControl!$C$6-1),12,1)),AVERAGE(OFFSET('1EFines'!$D$10,12*$A28,4*(PlotControl!$C$6-1),12,1))) -> 0 | V28: =IF(PlotControl!$B$4 = "Annual Max",MAX(OFFSET('1EFines'!$E$10,12*$A28,4*(PlotControl!$C$6-1),12,1)),AVERAGE(OFFSET('1EFines'!$E$10,12*$A28,4*(PlotControl!$C$6-1),12,1))) -> 0 | W28: =IF(PlotControl!$B$4 = "Annual Max",MAX(OFFSET('1ECoarse'!$C$10,12*$A28,4*(PlotControl!$C$6-1),12,1)),AVERAGE(OFFSET('1ECoarse'!$C$10,12*$A28,4*(PlotControl!$C$6-1),12,1))) -> 648691.6667 | X28: =IF(PlotControl!$B$4 = "Annual Max",MAX(OFFSET('1ECoarse'!$D$10,12*$A28,4*(PlotControl!$C$6-1),12,1)),AVERAGE(OFFSET('1ECoarse'!$D$10,12*$A28,4*(PlotControl!$C$6-1),12,1))) -> 958344.1667 | Y28: =IF(PlotControl!$B$4 = "Annual Max",MAX(OFFSET('1ECoarse'!$E$10,12*$A28,4*(PlotControl!$C$6-1),12,1)),AVERAGE(OFFSET('1ECoarse'!$E$10,12*$A28,4*(PlotControl!$C$6-1),12,1))) -> 1305691.667
A29: 24 | B29: =IF(PlotControl!$B$4 = "Annual Max",MAX(OFFSET('2WFines'!$C$10,12*$A29,4*(PlotControl!$C$6-1),12,1)),AVERAGE(OFFSET('2WFines'!$C$10,12*$A29,4*(PlotControl!$C$6-1),12,1))) -> 213850 | C29: =IF(PlotControl!$B$4 = "Annual Max",MAX(OFFSET('2WFines'!$D$10,12*$A29,4*(PlotControl!$C$6-1),12,1)),AVERAGE(OFFSET('2WFines'!$D$10,12*$A29,4*(PlotControl!$C$6-1),12,1))) -> 256450.8333 | D29: =IF(PlotControl!$B$4 = "Annual Max",MAX(OFFSET('2WFines'!$E$10,12*$A29,4*(PlotControl!$C$6-1),12,1)),AVERAGE(OFFSET('2WFines'!$E$10,12*$A29,4*(PlotControl!$C$6-1),12,1))) -> 285784.1667 | E29: =IF(PlotControl!$B$4 = "Annual Max",MAX(OFFSET('2WCoarse'!$C$10,12*$A29,4*(PlotControl!$C$6-1),12,1)),AVERAGE(OFFSET('2WCoarse'!$C$10,12*$A29,4*(PlotControl!$C$6-1),12,1))) -> 217269.1667 | F29: =IF(PlotControl!$B$4 = "Annual Max",MAX(OFFSET('2WCoarse'!$D$10,12*$A29,4*(PlotControl!$C$6-1),12,1)),AVERAGE(OFFSET('2WCoarse'!$D$10,12*$A29,4*(PlotControl!$C$6-1),12,1))) -> 367641.6667 | G29: =IF(PlotControl!$B$4 = "Annual Max",MAX(OFFSET('2WCoarse'!$E$10,12*$A29,4*(PlotControl!$C$6-1),12,1)),AVERAGE(OFFSET('2WCoarse'!$E$10,12*$A29,4*(PlotControl!$C$6-1),12,1))) -> 496270 | H29: =IF(PlotControl!$B$4 = "Annual Max",MAX(OFFSET('2WBank'!$C$10,12*$A29,4*(PlotControl!$C$6-1),12,1)),AVERAGE(OFFSET('2WBank'!$C$10,12*$A29,4*(PlotControl!$C$6-1),12,1))) -> 451745 | I29: =IF(PlotControl!$B$4 = "Annual Max",MAX(OFFSET('2WBank'!$D$10,12*$A29,4*(PlotControl!$C$6-1),12,1)),AVERAGE(OFFSET('2WBank'!$D$10,12*$A29,4*(PlotControl!$C$6-1),12,1))) -> 688813.3333 | J29: =IF(PlotControl!$B$4 = "Annual Max",MAX(OFFSET('2WBank'!$E$10,12*$A29,4*(PlotControl!$C$6-1),12,1)),AVERAGE(OFFSET('2WBank'!$E$10,12*$A29,4*(PlotControl!$C$6-1),12,1))) -> 898288.3333 | K29: =IF(PlotControl!$B$4 = "Annual Max",MAX(OFFSET('2EFines'!$C$10,12*$A29,4*(PlotControl!$C$6-1),12,1)),AVERAGE(OFFSET('2EFines'!$C$10,12*$A29,4*(PlotControl!$C$6-1),12,1))) -> 0 | L29: =IF(PlotControl!$B$4 = "Annual Max",MAX(OFFSET('2EFines'!$D$10,12*$A29,4*(PlotControl!$C$6-1),12,1)),AVERAGE(OFFSET('2EFines'!$D$10,12*$A29,4*(PlotControl!$C$6-1),12,1))) -> 0 | M29: =IF(PlotControl!$B$4 = "Annual Max",MAX(OFFSET('2EFines'!$E$10,12*$A29,4*(PlotControl!$C$6-1),12,1)),AVERAGE(OFFSET('2EFines'!$E$10,12*$A29,4*(PlotControl!$C$6-1),12,1))) -> 0 | N29: =IF(PlotControl!$B$4 = "Annual Max",MAX(OFFSET('2ECoarse'!$C$10,12*$A29,4*(PlotControl!$C$6-1),12,1)),AVERAGE(OFFSET('2ECoarse'!$C$10,12*$A29,4*(PlotControl!$C$6-1),12,1))) -> 0 | O29: =IF(PlotControl!$B$4 = "Annual Max",MAX(OFFSET('2ECoarse'!$D$10,12*$A29,4*(PlotControl!$C$6-1),12,1)),AVERAGE(OFFSET('2ECoarse'!$D$10,12*$A29,4*(PlotControl!$C$6-1),12,1))) -> 0 | P29: =IF(PlotControl!$B$4 = "Annual Max",MAX(OFFSET('2ECoarse'!$E$10,12*$A29,4*(PlotControl!$C$6-1),12,1)),AVERAGE(OFFSET('2ECoarse'!$E$10,12*$A29,4*(PlotControl!$C$6-1),12,1))) -> 0 | Q29: =IF(PlotControl!$B$4 = "Annual Max",MAX(OFFSET('2EBank'!$C$10,12*$A29,4*(PlotControl!$C$6-1),12,1)),AVERAGE(OFFSET('2EBank'!$C$10,12*$A29,4*(PlotControl!$C$6-1),12,1))) -> 262358.3333 | R29: =IF(PlotControl!$B$4 = "Annual Max",MAX(OFFSET('2EBank'!$D$10,12*$A29,4*(PlotControl!$C$6-1),12,1)),AVERAGE(OFFSET('2EBank'!$D$10,12*$A29,4*(PlotControl!$C$6-1),12,1))) -> 440003.3333 | S29: =IF(PlotControl!$B$4 = "Annual Max",MAX(OFFSET('2EBank'!$E$10,12*$A29,4*(PlotControl!$C$6-1),12,1)),AVERAGE(OFFSET('2EBank'!$E$10,12*$A29,4*(PlotControl!$C$6-1),12,1))) -> 601920 | T29: =IF(PlotControl!$B$4 = "Annual Max",MAX(OFFSET('1EFines'!$C$10,12*$A29,4*(PlotControl!$C$6-1),12,1)),AVERAGE(OFFSET('1EFines'!$C$10,12*$A29,4*(PlotControl!$C$6-1),12,1))) -> 0 | U29: =IF(PlotControl!$B$4 = "Annual Max",MAX(OFFSET('1EFines'!$D$10,12*$A29,4*(PlotControl!$C$6-1),12,1)),AVERAGE(OFFSET('1EFines'!$D$10,12*$A29,4*(PlotControl!$C$6-1),12,1))) -> 0 | V29: =IF(PlotControl!$B$4 = "Annual Max",MAX(OFFSET('1EFines'!$E$10,12*$A29,4*(PlotControl!$C$6-1),12,1)),AVERAGE(OFFSET('1EFines'!$E$10,12*$A29,4*(PlotControl!$C$6-1),12,1))) -> 0 | W29: =IF(PlotControl!$B$4 = "Annual Max",MAX(OFFSET('1ECoarse'!$C$10,12*$A29,4*(PlotControl!$C$6-1),12,1)),AVERAGE(OFFSET('1ECoarse'!$C$10,12*$A29,4*(PlotControl!$C$6-1),12,1))) -> 618548.3333 | X29: =IF(PlotControl!$B$4 = "Annual Max",MAX(OFFSET('1ECoarse'!$D$10,12*$A29,4*(PlotControl!$C$6-1),12,1)),AVERAGE(OFFSET('1ECoarse'!$D$10,12*$A29,4*(PlotControl!$C$6-1),12,1))) -> 930162.5 | Y29: =IF(PlotControl!$B$4 = "Annual Max",MAX(OFFSET('1ECoarse'!$E$10,12*$A29,4*(PlotControl!$C$6-1),12,1)),AVERAGE(OFFSET('1ECoarse'!$E$10,12*$A29,4*(PlotControl!$C$6-1),12,1))) -> 1279916.667
A30: 25 | B30: =IF(PlotControl!$B$4 = "Annual Max",MAX(OFFSET('2WFines'!$C$10,12*$A30,4*(PlotControl!$C$6-1),12,1)),AVERAGE(OFFSET('2WFines'!$C$10,12*$A30,4*(PlotControl!$C$6-1),12,1))) -> 213298.3333 | C30: =IF(PlotControl!$B$4 = "Annual Max",MAX(OFFSET('2WFines'!$D$10,12*$A30,4*(PlotControl!$C$6-1),12,1)),AVERAGE(OFFSET('2WFines'!$D$10,12*$A30,4*(PlotControl!$C$6-1),12,1))) -> 257142.5 | D30: =IF(PlotControl!$B$4 = "Annual Max",MAX(OFFSET('2WFines'!$E$10,12*$A30,4*(PlotControl!$C$6-1),12,1)),AVERAGE(OFFSET('2WFines'!$E$10,12*$A30,4*(PlotControl!$C$6-1),12,1))) -> 286858.3333 | E30: =IF(PlotControl!$B$4 = "Annual Max",MAX(OFFSET('2WCoarse'!$C$10,12*$A30,4*(PlotControl!$C$6-1),12,1)),AVERAGE(OFFSET('2WCoarse'!$C$10,12*$A30,4*(PlotControl!$C$6-1),12,1))) -> 216564.1667 | F30: =IF(PlotControl!$B$4 = "Annual Max",MAX(OFFSET('2WCoarse'!$D$10,12*$A30,4*(PlotControl!$C$6-1),12,1)),AVERAGE(OFFSET('2WCoarse'!$D$10,12*$A30,4*(PlotControl!$C$6-1),12,1))) -> 371226.6667 | G30: =IF(PlotControl!$B$4 = "Annual Max",MAX(OFFSET('2WCoarse'!$E$10,12*$A30,4*(PlotControl!$C$6-1),12,1)),AVERAGE(OFFSET('2WCoarse'!$E$10,12*$A30,4*(PlotControl!$C$6-1),12,1))) -> 495972.5 | H30: =IF(PlotControl!$B$4 = "Annual Max",MAX(OFFSET('2WBank'!$C$10,12*$A30,4*(PlotControl!$C$6-1),12,1)),AVERAGE(OFFSET('2WBank'!$C$10,12*$A30,4*(PlotControl!$C$6-1),12,1))) -> 446420.8333 | I30: =IF(PlotControl!$B$4 = "Annual Max",MAX(OFFSET('2WBank'!$D$10,12*$A30,4*(PlotControl!$C$6-1),12,1)),AVERAGE(OFFSET('2WBank'!$D$10,12*$A30,4*(PlotControl!$C$6-1),12,1))) -> 690866.6667 | J30: =IF(PlotControl!$B$4 = "Annual Max",MAX(OFFSET('2WBank'!$E$10,12*$A30,4*(PlotControl!$C$6-1),12,1)),AVERAGE(OFFSET('2WBank'!$E$10,12*$A30,4*(PlotControl!$C$6-1),12,1))) -> 899111.6667 | K30: =IF(PlotControl!$B$4 = "Annual Max",MAX(OFFSET('2EFines'!$C$10,12*$A30,4*(PlotControl!$C$6-1),12,1)),AVERAGE(OFFSET('2EFines'!$C$10,12*$A30,4*(PlotControl!$C$6-1),12,1))) -> 0 | L30: =IF(PlotControl!$B$4 = "Annual Max",MAX(OFFSET('2EFines'!$D$10,12*$A30,4*(PlotControl!$C$6-1),12,1)),AVERAGE(OFFSET('2EFines'!$D$10,12*$A30,4*(PlotControl!$C$6-1),12,1))) -> 0 | M30: =IF(PlotControl!$B$4 = "Annual Max",MAX(OFFSET('2EFines'!$E$10,12*$A30,4*(PlotControl!$C$6-1),12,1)),AVERAGE(OFFSET('2EFines'!$E$10,12*$A30,4*(PlotControl!$C$6-1),12,1))) -> 0 | N30: =IF(PlotControl!$B$4 = "Annual Max",MAX(OFFSET('2ECoarse'!$C$10,12*$A30,4*(PlotControl!$C$6-1),12,1)),AVERAGE(OFFSET('2ECoarse'!$C$10,12*$A30,4*(PlotControl!$C$6-1),12,1))) -> 0 | O30: =IF(PlotControl!$B$4 = "Annual Max",MAX(OFFSET('2ECoarse'!$D$10,12*$A30,4*(PlotControl!$C$6-1),12,1)),AVERAGE(OFFSET('2ECoarse'!$D$10,12*$A30,4*(PlotControl!$C$6-1),12,1))) -> 0 | P30: =IF(PlotControl!$B$4 = "Annual Max",MAX(OFFSET('2ECoarse'!$E$10,12*$A30,4*(PlotControl!$C$6-1),12,1)),AVERAGE(OFFSET('2ECoarse'!$E$10,12*$A30,4*(PlotControl!$C$6-1),12,1))) -> 0 | Q30: =IF(PlotControl!$B$4 = "Annual Max",MAX(OFFSET('2EBank'!$C$10,12*$A30,4*(PlotControl!$C$6-1),12,1)),AVERAGE(OFFSET('2EBank'!$C$10,12*$A30,4*(PlotControl!$C$6-1),12,1))) -> 260045 | R30: =IF(PlotControl!$B$4 = "Annual Max",MAX(OFFSET('2EBank'!$D$10,12*$A30,4*(PlotControl!$C$6-1),12,1)),AVERAGE(OFFSET('2EBank'!$D$10,12*$A30,4*(PlotControl!$C$6-1),12,1))) -> 444939.1667 | S30: =IF(PlotControl!$B$4 = "Annual Max",MAX(OFFSET('2EBank'!$E$10,12*$A30,4*(PlotControl!$C$6-1),12,1)),AVERAGE(OFFSET('2EBank'!$E$10,12*$A30,4*(PlotControl!$C$6-1),12,1))) -> 607432.5 | T30: =IF(PlotControl!$B$4 = "Annual Max",MAX(OFFSET('1EFines'!$C$10,12*$A30,4*(PlotControl!$C$6-1),12,1)),AVERAGE(OFFSET('1EFines'!$C$10,12*$A30,4*(PlotControl!$C$6-1),12,1))) -> 0 | U30: =IF(PlotControl!$B$4 = "Annual Max",MAX(OFFSET('1EFines'!$D$10,12*$A30,4*(PlotControl!$C$6-1),12,1)),AVERAGE(OFFSET('1EFines'!$D$10,12*$A30,4*(PlotControl!$C$6-1),12,1))) -> 0 | V30: =IF(PlotControl!$B$4 = "Annual Max",MAX(OFFSET('1EFines'!$E$10,12*$A30,4*(PlotControl!$C$6-1),12,1)),AVERAGE(OFFSET('1EFines'!$E$10,12*$A30,4*(PlotControl!$C$6-1),12,1))) -> 0 | W30: =IF(PlotControl!$B$4 = "Annual Max",MAX(OFFSET('1ECoarse'!$C$10,12*$A30,4*(PlotControl!$C$6-1),12,1)),AVERAGE(OFFSET('1ECoarse'!$C$10,12*$A30,4*(PlotControl!$C$6-1),12,1))) -> 585957.5 | X30: =IF(PlotControl!$B$4 = "Annual Max",MAX(OFFSET('1ECoarse'!$D$10,12*$A30,4*(PlotControl!$C$6-1),12,1)),AVERAGE(OFFSET('1ECoarse'!$D$10,12*$A30,4*(PlotControl!$C$6-1),12,1))) -> 899877.5 | Y30: =IF(PlotControl!$B$4 = "Annual Max",MAX(OFFSET('1ECoarse'!$E$10,12*$A30,4*(PlotControl!$C$6-1),12,1)),AVERAGE(OFFSET('1ECoarse'!$E$10,12*$A30,4*(PlotControl!$C$6-1),12,1))) -> 1237025
A31: 26 | B31: =IF(PlotControl!$B$4 = "Annual Max",MAX(OFFSET('2WFines'!$C$10,12*$A31,4*(PlotControl!$C$6-1),12,1)),AVERAGE(OFFSET('2WFines'!$C$10,12*$A31,4*(PlotControl!$C$6-1),12,1))) -> 213270 | C31: =IF(PlotControl!$B$4 = "Annual Max",MAX(OFFSET('2WFines'!$D$10,12*$A31,4*(PlotControl!$C$6-1),12,1)),AVERAGE(OFFSET('2WFines'!$D$10,12*$A31,4*(PlotControl!$C$6-1),12,1))) -> 256334.1667 | D31: =IF(PlotControl!$B$4 = "Annual Max",MAX(OFFSET('2WFines'!$E$10,12*$A31,4*(PlotControl!$C$6-1),12,1)),AVERAGE(OFFSET('2WFines'!$E$10,12*$A31,4*(PlotControl!$C$6-1),12,1))) -> 286797.5 | E31: =IF(PlotControl!$B$4 = "Annual Max",MAX(OFFSET('2WCoarse'!$C$10,12*$A31,4*(PlotControl!$C$6-1),12,1)),AVERAGE(OFFSET('2WCoarse'!$C$10,12*$A31,4*(PlotControl!$C$6-1),12,1))) -> 217220 | F31: =IF(PlotControl!$B$4 = "Annual Max",MAX(OFFSET('2WCoarse'!$D$10,12*$A31,4*(PlotControl!$C$6-1),12,1)),AVERAGE(OFFSET('2WCoarse'!$D$10,12*$A31,4*(PlotControl!$C$6-1),12,1))) -> 371424.1667 | G31: =IF(PlotControl!$B$4 = "Annual Max",MAX(OFFSET('2WCoarse'!$E$10,12*$A31,4*(PlotControl!$C$6-1),12,1)),AVERAGE(OFFSET('2WCoarse'!$E$10,12*$A31,4*(PlotControl!$C$6-1),12,1))) -> 496377.5 | H31: =IF(PlotControl!$B$4 = "Annual Max",MAX(OFFSET('2WBank'!$C$10,12*$A31,4*(PlotControl!$C$6-1),12,1)),AVERAGE(OFFSET('2WBank'!$C$10,12*$A31,4*(PlotControl!$C$6-1),12,1))) -> 447757.5 | I31: =IF(PlotControl!$B$4 = "Annual Max",MAX(OFFSET('2WBank'!$D$10,12*$A31,4*(PlotControl!$C$6-1),12,1)),AVERAGE(OFFSET('2WBank'!$D$10,12*$A31,4*(PlotControl!$C$6-1),12,1))) -> 690086.6667 | J31: =IF(PlotControl!$B$4 = "Annual Max",MAX(OFFSET('2WBank'!$E$10,12*$A31,4*(PlotControl!$C$6-1),12,1)),AVERAGE(OFFSET('2WBank'!$E$10,12*$A31,4*(PlotControl!$C$6-1),12,1))) -> 899935.8333 | K31: =IF(PlotControl!$B$4 = "Annual Max",MAX(OFFSET('2EFines'!$C$10,12*$A31,4*(PlotControl!$C$6-1),12,1)),AVERAGE(OFFSET('2EFines'!$C$10,12*$A31,4*(PlotControl!$C$6-1),12,1))) -> 0 | L31: =IF(PlotControl!$B$4 = "Annual Max",MAX(OFFSET('2EFines'!$D$10,12*$A31,4*(PlotControl!$C$6-1),12,1)),AVERAGE(OFFSET('2EFines'!$D$10,12*$A31,4*(PlotControl!$C$6-1),12,1))) -> 0 | M31: =IF(PlotControl!$B$4 = "Annual Max",MAX(OFFSET('2EFines'!$E$10,12*$A31,4*(PlotControl!$C$6-1),12,1)),AVERAGE(OFFSET('2EFines'!$E$10,12*$A31,4*(PlotControl!$C$6-1),12,1))) -> 0 | N31: =IF(PlotControl!$B$4 = "Annual Max",MAX(OFFSET('2ECoarse'!$C$10,12*$A31,4*(PlotControl!$C$6-1),12,1)),AVERAGE(OFFSET('2ECoarse'!$C$10,12*$A31,4*(PlotControl!$C$6-1),12,1))) -> 0 | O31: =IF(PlotControl!$B$4 = "Annual Max",MAX(OFFSET('2ECoarse'!$D$10,12*$A31,4*(PlotControl!$C$6-1),12,1)),AVERAGE(OFFSET('2ECoarse'!$D$10,12*$A31,4*(PlotControl!$C$6-1),12,1))) -> 0 | P31: =IF(PlotControl!$B$4 = "Annual Max",MAX(OFFSET('2ECoarse'!$E$10,12*$A31,4*(PlotControl!$C$6-1),12,1)),AVERAGE(OFFSET('2ECoarse'!$E$10,12*$A31,4*(PlotControl!$C$6-1),12,1))) -> 0 | Q31: =IF(PlotControl!$B$4 = "Annual Max",MAX(OFFSET('2EBank'!$C$10,12*$A31,4*(PlotControl!$C$6-1),12,1)),AVERAGE(OFFSET('2EBank'!$C$10,12*$A31,4*(PlotControl!$C$6-1),12,1))) -> 265165 | R31: =IF(PlotControl!$B$4 = "Annual Max",MAX(OFFSET('2EBank'!$D$10,12*$A31,4*(PlotControl!$C$6-1),12,1)),AVERAGE(OFFSET('2EBank'!$D$10,12*$A31,4*(PlotControl!$C$6-1),12,1))) -> 444975.8333 | S31: =IF(PlotControl!$B$4 = "Annual Max",MAX(OFFSET('2EBank'!$E$10,12*$A31,4*(PlotControl!$C$6-1),12,1)),AVERAGE(OFFSET('2EBank'!$E$10,12*$A31,4*(PlotControl!$C$6-1),12,1))) -> 624886.6667 | T31: =IF(PlotControl!$B$4 = "Annual Max",MAX(OFFSET('1EFines'!$C$10,12*$A31,4*(PlotControl!$C$6-1),12,1)),AVERAGE(OFFSET('1EFines'!$C$10,12*$A31,4*(PlotControl!$C$6-1),12,1))) -> 0 | U31: =IF(PlotControl!$B$4 = "Annual Max",MAX(OFFSET('1EFines'!$D$10,12*$A31,4*(PlotControl!$C$6-1),12,1)),AVERAGE(OFFSET('1EFines'!$D$10,12*$A31,4*(PlotControl!$C$6-1),12,1))) -> 0 | V31: =IF(PlotControl!$B$4 = "Annual Max",MAX(OFFSET('1EFines'!$E$10,12*$A31,4*(PlotControl!$C$6-1),12,1)),AVERAGE(OFFSET('1EFines'!$E$10,12*$A31,4*(PlotControl!$C$6-1),12,1))) -> 0 | W31: =IF(PlotControl!$B$4 = "Annual Max",MAX(OFFSET('1ECoarse'!$C$10,12*$A31,4*(PlotControl!$C$6-1),12,1)),AVERAGE(OFFSET('1ECoarse'!$C$10,12*$A31,4*(PlotControl!$C$6-1),12,1))) -> 573164.1667 | X31: =IF(PlotControl!$B$4 = "Annual Max",MAX(OFFSET('1ECoarse'!$D$10,12*$A31,4*(PlotControl!$C$6-1),12,1)),AVERAGE(OFFSET('1ECoarse'!$D$10,12*$A31,4*(PlotControl!$C$6-1),12,1))) -> 882055.8333 | Y31: =IF(PlotControl!$B$4 = "Annual Max",MAX(OFFSET('1ECoarse'!$E$10,12*$A31,4*(PlotControl!$C$6-1),12,1)),AVERAGE(OFFSET('1ECoarse'!$E$10,12*$A31,4*(PlotControl!$C$6-1),12,1))) -> 1194100
A32: 27 | B32: =IF(PlotControl!$B$4 = "Annual Max",MAX(OFFSET('2WFines'!$C$10,12*$A32,4*(PlotControl!$C$6-1),12,1)),AVERAGE(OFFSET('2WFines'!$C$10,12*$A32,4*(PlotControl!$C$6-1),12,1))) -> 213165.8333 | C32: =IF(PlotControl!$B$4 = "Annual Max",MAX(OFFSET('2WFines'!$D$10,12*$A32,4*(PlotControl!$C$6-1),12,1)),AVERAGE(OFFSET('2WFines'!$D$10,12*$A32,4*(PlotControl!$C$6-1),12,1))) -> 256217.5 | D32: =IF(PlotControl!$B$4 = "Annual Max",MAX(OFFSET('2WFines'!$E$10,12*$A32,4*(PlotControl!$C$6-1),12,1)),AVERAGE(OFFSET('2WFines'!$E$10,12*$A32,4*(PlotControl!$C$6-1),12,1))) -> 286971.6667 | E32: =IF(PlotControl!$B$4 = "Annual Max",MAX(OFFSET('2WCoarse'!$C$10,12*$A32,4*(PlotControl!$C$6-1),12,1)),AVERAGE(OFFSET('2WCoarse'!$C$10,12*$A32,4*(PlotControl!$C$6-1),12,1))) -> 216215 | F32: =IF(PlotControl!$B$4 = "Annual Max",MAX(OFFSET('2WCoarse'!$D$10,12*$A32,4*(PlotControl!$C$6-1),12,1)),AVERAGE(OFFSET('2WCoarse'!$D$10,12*$A32,4*(PlotControl!$C$6-1),12,1))) -> 368689.1667 | G32: =IF(PlotControl!$B$4 = "Annual Max",MAX(OFFSET('2WCoarse'!$E$10,12*$A32,4*(PlotControl!$C$6-1),12,1)),AVERAGE(OFFSET('2WCoarse'!$E$10,12*$A32,4*(PlotControl!$C$6-1),12,1))) -> 498136.6667 | H32: =IF(PlotControl!$B$4 = "Annual Max",MAX(OFFSET('2WBank'!$C$10,12*$A32,4*(PlotControl!$C$6-1),12,1)),AVERAGE(OFFSET('2WBank'!$C$10,12*$A32,4*(PlotControl!$C$6-1),12,1))) -> 445785.8333 | I32: =IF(PlotControl!$B$4 = "Annual Max",MAX(OFFSET('2WBank'!$D$10,12*$A32,4*(PlotControl!$C$6-1),12,1)),AVERAGE(OFFSET('2WBank'!$D$10,12*$A32,4*(PlotControl!$C$6-1),12,1))) -> 689855.8333 | J32: =IF(PlotControl!$B$4 = "Annual Max",MAX(OFFSET('2WBank'!$E$10,12*$A32,4*(PlotControl!$C$6-1),12,1)),AVERAGE(OFFSET('2WBank'!$E$10,12*$A32,4*(PlotControl!$C$6-1),12,1))) -> 901525.8333 | K32: =IF(PlotControl!$B$4 = "Annual Max",MAX(OFFSET('2EFines'!$C$10,12*$A32,4*(PlotControl!$C$6-1),12,1)),AVERAGE(OFFSET('2EFines'!$C$10,12*$A32,4*(PlotControl!$C$6-1),12,1))) -> 0 | L32: =IF(PlotControl!$B$4 = "Annual Max",MAX(OFFSET('2EFines'!$D$10,12*$A32,4*(PlotControl!$C$6-1),12,1)),AVERAGE(OFFSET('2EFines'!$D$10,12*$A32,4*(PlotControl!$C$6-1),12,1))) -> 0 | M32: =IF(PlotControl!$B$4 = "Annual Max",MAX(OFFSET('2EFines'!$E$10,12*$A32,4*(PlotControl!$C$6-1),12,1)),AVERAGE(OFFSET('2EFines'!$E$10,12*$A32,4*(PlotControl!$C$6-1),12,1))) -> 0 | N32: =IF(PlotControl!$B$4 = "Annual Max",MAX(OFFSET('2ECoarse'!$C$10,12*$A32,4*(PlotControl!$C$6-1),12,1)),AVERAGE(OFFSET('2ECoarse'!$C$10,12*$A32,4*(PlotControl!$C$6-1),12,1))) -> 0 | O32: =IF(PlotControl!$B$4 = "Annual Max",MAX(OFFSET('2ECoarse'!$D$10,12*$A32,4*(PlotControl!$C$6-1),12,1)),AVERAGE(OFFSET('2ECoarse'!$D$10,12*$A32,4*(PlotControl!$C$6-1),12,1))) -> 0 | P32: =IF(PlotControl!$B$4 = "Annual Max",MAX(OFFSET('2ECoarse'!$E$10,12*$A32,4*(PlotControl!$C$6-1),12,1)),AVERAGE(OFFSET('2ECoarse'!$E$10,12*$A32,4*(PlotControl!$C$6-1),12,1))) -> 0 | Q32: =IF(PlotControl!$B$4 = "Annual Max",MAX(OFFSET('2EBank'!$C$10,12*$A32,4*(PlotControl!$C$6-1),12,1)),AVERAGE(OFFSET('2EBank'!$C$10,12*$A32,4*(PlotControl!$C$6-1),12,1))) -> 262245.8333 | R32: =IF(PlotControl!$B$4 = "Annual Max",MAX(OFFSET('2EBank'!$D$10,12*$A32,4*(PlotControl!$C$6-1),12,1)),AVERAGE(OFFSET('2EBank'!$D$10,12*$A32,4*(PlotControl!$C$6-1),12,1))) -> 453493.3333 | S32: =IF(PlotControl!$B$4 = "Annual Max",MAX(OFFSET('2EBank'!$E$10,12*$A32,4*(PlotControl!$C$6-1),12,1)),AVERAGE(OFFSET('2EBank'!$E$10,12*$A32,4*(PlotControl!$C$6-1),12,1))) -> 625000 | T32: =IF(PlotControl!$B$4 = "Annual Max",MAX(OFFSET('1EFines'!$C$10,12*$A32,4*(PlotControl!$C$6-1),12,1)),AVERAGE(OFFSET('1EFines'!$C$10,12*$A32,4*(PlotControl!$C$6-1),12,1))) -> 0 | U32: =IF(PlotControl!$B$4 = "Annual Max",MAX(OFFSET('1EFines'!$D$10,12*$A32,4*(PlotControl!$C$6-1),12,1)),AVERAGE(OFFSET('1EFines'!$D$10,12*$A32,4*(PlotControl!$C$6-1),12,1))) -> 0 | V32: =IF(PlotControl!$B$4 = "Annual Max",MAX(OFFSET('1EFines'!$E$10,12*$A32,4*(PlotControl!$C$6-1),12,1)),AVERAGE(OFFSET('1EFines'!$E$10,12*$A32,4*(PlotControl!$C$6-1),12,1))) -> 0 | W32: =IF(PlotControl!$B$4 = "Annual Max",MAX(OFFSET('1ECoarse'!$C$10,12*$A32,4*(PlotControl!$C$6-1),12,1)),AVERAGE(OFFSET('1ECoarse'!$C$10,12*$A32,4*(PlotControl!$C$6-1),12,1))) -> 561840.8333 | X32: =IF(PlotControl!$B$4 = "Annual Max",MAX(OFFSET('1ECoarse'!$D$10,12*$A32,4*(PlotControl!$C$6-1),12,1)),AVERAGE(OFFSET('1ECoarse'!$D$10,12*$A32,4*(PlotControl!$C$6-1),12,1))) -> 851648.3333 | Y32: =IF(PlotControl!$B$4 = "Annual Max",MAX(OFFSET('1ECoarse'!$E$10,12*$A32,4*(PlotControl!$C$6-1),12,1)),AVERAGE(OFFSET('1ECoarse'!$E$10,12*$A32,4*(PlotControl!$C$6-1),12,1))) -> 1180483.333
A33: 28 | B33: =IF(PlotControl!$B$4 = "Annual Max",MAX(OFFSET('2WFines'!$C$10,12*$A33,4*(PlotControl!$C$6-1),12,1)),AVERAGE(OFFSET('2WFines'!$C$10,12*$A33,4*(PlotControl!$C$6-1),12,1))) -> 212301.6667 | C33: =IF(PlotControl!$B$4 = "Annual Max",MAX(OFFSET('2WFines'!$D$10,12*$A33,4*(PlotControl!$C$6-1),12,1)),AVERAGE(OFFSET('2WFines'!$D$10,12*$A33,4*(PlotControl!$C$6-1),12,1))) -> 257116.6667 | D33: =IF(PlotControl!$B$4 = "Annual Max",MAX(OFFSET('2WFines'!$E$10,12*$A33,4*(PlotControl!$C$6-1),12,1)),AVERAGE(OFFSET('2WFines'!$E$10,12*$A33,4*(PlotControl!$C$6-1),12,1))) -> 289165 | E33: =IF(PlotControl!$B$4 = "Annual Max",MAX(OFFSET('2WCoarse'!$C$10,12*$A33,4*(PlotControl!$C$6-1),12,1)),AVERAGE(OFFSET('2WCoarse'!$C$10,12*$A33,4*(PlotControl!$C$6-1),12,1))) -> 215736.6667 | F33: =IF(PlotControl!$B$4 = "Annual Max",MAX(OFFSET('2WCoarse'!$D$10,12*$A33,4*(PlotControl!$C$6-1),12,1)),AVERAGE(OFFSET('2WCoarse'!$D$10,12*$A33,4*(PlotControl!$C$6-1),12,1))) -> 372111.6667 | G33: =IF(PlotControl!$B$4 = "Annual Max",MAX(OFFSET('2WCoarse'!$E$10,12*$A33,4*(PlotControl!$C$6-1),12,1)),AVERAGE(OFFSET('2WCoarse'!$E$10,12*$A33,4*(PlotControl!$C$6-1),12,1))) -> 504404.1667 | H33: =IF(PlotControl!$B$4 = "Annual Max",MAX(OFFSET('2WBank'!$C$10,12*$A33,4*(PlotControl!$C$6-1),12,1)),AVERAGE(OFFSET('2WBank'!$C$10,12*$A33,4*(PlotControl!$C$6-1),12,1))) -> 440549.1667 | I33: =IF(PlotControl!$B$4 = "Annual Max",MAX(OFFSET('2WBank'!$D$10,12*$A33,4*(PlotControl!$C$6-1),12,1)),AVERAGE(OFFSET('2WBank'!$D$10,12*$A33,4*(PlotControl!$C$6-1),12,1))) -> 692346.6667 | J33: =IF(PlotControl!$B$4 = "Annual Max",MAX(OFFSET('2WBank'!$E$10,12*$A33,4*(PlotControl!$C$6-1),12,1)),AVERAGE(OFFSET('2WBank'!$E$10,12*$A33,4*(PlotControl!$C$6-1),12,1))) -> 903513.3333 | K33: =IF(PlotControl!$B$4 = "Annual Max",MAX(OFFSET('2EFines'!$C$10,12*$A33,4*(PlotControl!$C$6-1),12,1)),AVERAGE(OFFSET('2EFines'!$C$10,12*$A33,4*(PlotControl!$C$6-1),12,1))) -> 0 | L33: =IF(PlotControl!$B$4 = "Annual Max",MAX(OFFSET('2EFines'!$D$10,12*$A33,4*(PlotControl!$C$6-1),12,1)),AVERAGE(OFFSET('2EFines'!$D$10,12*$A33,4*(PlotControl!$C$6-1),12,1))) -> 0 | M33: =IF(PlotControl!$B$4 = "Annual Max",MAX(OFFSET('2EFines'!$E$10,12*$A33,4*(PlotControl!$C$6-1),12,1)),AVERAGE(OFFSET('2EFines'!$E$10,12*$A33,4*(PlotControl!$C$6-1),12,1))) -> 0 | N33: =IF(PlotControl!$B$4 = "Annual Max",MAX(OFFSET('2ECoarse'!$C$10,12*$A33,4*(PlotControl!$C$6-1),12,1)),AVERAGE(OFFSET('2ECoarse'!$C$10,12*$A33,4*(PlotControl!$C$6-1),12,1))) -> 0 | O33: =IF(PlotControl!$B$4 = "Annual Max",MAX(OFFSET('2ECoarse'!$D$10,12*$A33,4*(PlotControl!$C$6-1),12,1)),AVERAGE(OFFSET('2ECoarse'!$D$10,12*$A33,4*(PlotControl!$C$6-1),12,1))) -> 0 | P33: =IF(PlotControl!$B$4 = "Annual Max",MAX(OFFSET('2ECoarse'!$E$10,12*$A33,4*(PlotControl!$C$6-1),12,1)),AVERAGE(OFFSET('2ECoarse'!$E$10,12*$A33,4*(PlotControl!$C$6-1),12,1))) -> 0 | Q33: =IF(PlotControl!$B$4 = "Annual Max",MAX(OFFSET('2EBank'!$C$10,12*$A33,4*(PlotControl!$C$6-1),12,1)),AVERAGE(OFFSET('2EBank'!$C$10,12*$A33,4*(PlotControl!$C$6-1),12,1))) -> 265371.6667 | R33: =IF(PlotControl!$B$4 = "Annual Max",MAX(OFFSET('2EBank'!$D$10,12*$A33,4*(PlotControl!$C$6-1),12,1)),AVERAGE(OFFSET('2EBank'!$D$10,12*$A33,4*(PlotControl!$C$6-1),12,1))) -> 457394.1667 | S33: =IF(PlotControl!$B$4 = "Annual Max",MAX(OFFSET('2EBank'!$E$10,12*$A33,4*(PlotControl!$C$6-1),12,1)),AVERAGE(OFFSET('2EBank'!$E$10,12*$A33,4*(PlotControl!$C$6-1),12,1))) -> 628035.8333 | T33: =IF(PlotControl!$B$4 = "Annual Max",MAX(OFFSET('1EFines'!$C$10,12*$A33,4*(PlotControl!$C$6-1),12,1)),AVERAGE(OFFSET('1EFines'!$C$10,12*$A33,4*(PlotControl!$C$6-1),12,1))) -> 0 | U33: =IF(PlotControl!$B$4 = "Annual Max",MAX(OFFSET('1EFines'!$D$10,12*$A33,4*(PlotControl!$C$6-1),12,1)),AVERAGE(OFFSET('1EFines'!$D$10,12*$A33,4*(PlotControl!$C$6-1),12,1))) -> 0 | V33: =IF(PlotControl!$B$4 = "Annual Max",MAX(OFFSET('1EFines'!$E$10,12*$A33,4*(PlotControl!$C$6-1),12,1)),AVERAGE(OFFSET('1EFines'!$E$10,12*$A33,4*(PlotControl!$C$6-1),12,1))) -> 0 | W33: =IF(PlotControl!$B$4 = "Annual Max",MAX(OFFSET('1ECoarse'!$C$10,12*$A33,4*(PlotControl!$C$6-1),12,1)),AVERAGE(OFFSET('1ECoarse'!$C$10,12*$A33,4*(PlotControl!$C$6-1),12,1))) -> 541667.5 | X33: =IF(PlotControl!$B$4 = "Annual Max",MAX(OFFSET('1ECoarse'!$D$10,12*$A33,4*(PlotControl!$C$6-1),12,1)),AVERAGE(OFFSET('1ECoarse'!$D$10,12*$A33,4*(PlotControl!$C$6-1),12,1))) -> 831737.5 | Y33: =IF(PlotControl!$B$4 = "Annual Max",MAX(OFFSET('1ECoarse'!$E$10,12*$A33,4*(PlotControl!$C$6-1),12,1)),AVERAGE(OFFSET('1ECoarse'!$E$10,12*$A33,4*(PlotControl!$C$6-1),12,1))) -> 1163883.333
A34: 29 | B34: =IF(PlotControl!$B$4 = "Annual Max",MAX(OFFSET('2WFines'!$C$10,12*$A34,4*(PlotControl!$C$6-1),12,1)),AVERAGE(OFFSET('2WFines'!$C$10,12*$A34,4*(PlotControl!$C$6-1),12,1))) -> 211925 | C34: =IF(PlotControl!$B$4 = "Annual Max",MAX(OFFSET('2WFines'!$D$10,12*$A34,4*(PlotControl!$C$6-1),12,1)),AVERAGE(OFFSET('2WFines'!$D$10,12*$A34,4*(PlotControl!$C$6-1),12,1))) -> 257523.3333 | D34: =IF(PlotControl!$B$4 = "Annual Max",MAX(OFFSET('2WFines'!$E$10,12*$A34,4*(PlotControl!$C$6-1),12,1)),AVERAGE(OFFSET('2WFines'!$E$10,12*$A34,4*(PlotControl!$C$6-1),12,1))) -> 290160.8333 | E34: =IF(PlotControl!$B$4 = "Annual Max",MAX(OFFSET('2WCoarse'!$C$10,12*$A34,4*(PlotControl!$C$6-1),12,1)),AVERAGE(OFFSET('2WCoarse'!$C$10,12*$A34,4*(PlotControl!$C$6-1),12,1))) -> 214357.5 | F34: =IF(PlotControl!$B$4 = "Annual Max",MAX(OFFSET('2WCoarse'!$D$10,12*$A34,4*(PlotControl!$C$6-1),12,1)),AVERAGE(OFFSET('2WCoarse'!$D$10,12*$A34,4*(PlotControl!$C$6-1),12,1))) -> 377495.8333 | G34: =IF(PlotControl!$B$4 = "Annual Max",MAX(OFFSET('2WCoarse'!$E$10,12*$A34,4*(PlotControl!$C$6-1),12,1)),AVERAGE(OFFSET('2WCoarse'!$E$10,12*$A34,4*(PlotControl!$C$6-1),12,1))) -> 507842.5 | H34: =IF(PlotControl!$B$4 = "Annual Max",MAX(OFFSET('2WBank'!$C$10,12*$A34,4*(PlotControl!$C$6-1),12,1)),AVERAGE(OFFSET('2WBank'!$C$10,12*$A34,4*(PlotControl!$C$6-1),12,1))) -> 436960 | I34: =IF(PlotControl!$B$4 = "Annual Max",MAX(OFFSET('2WBank'!$D$10,12*$A34,4*(PlotControl!$C$6-1),12,1)),AVERAGE(OFFSET('2WBank'!$D$10,12*$A34,4*(PlotControl!$C$6-1),12,1))) -> 693035 | J34: =IF(PlotControl!$B$4 = "Annual Max",MAX(OFFSET('2WBank'!$E$10,12*$A34,4*(PlotControl!$C$6-1),12,1)),AVERAGE(OFFSET('2WBank'!$E$10,12*$A34,4*(PlotControl!$C$6-1),12,1))) -> 903081.6667 | K34: =IF(PlotControl!$B$4 = "Annual Max",MAX(OFFSET('2EFines'!$C$10,12*$A34,4*(PlotControl!$C$6-1),12,1)),AVERAGE(OFFSET('2EFines'!$C$10,12*$A34,4*(PlotControl!$C$6-1),12,1))) -> 0 | L34: =IF(PlotControl!$B$4 = "Annual Max",MAX(OFFSET('2EFines'!$D$10,12*$A34,4*(PlotControl!$C$6-1),12,1)),AVERAGE(OFFSET('2EFines'!$D$10,12*$A34,4*(PlotControl!$C$6-1),12,1))) -> 0 | M34: =IF(PlotControl!$B$4 = "Annual Max",MAX(OFFSET('2EFines'!$E$10,12*$A34,4*(PlotControl!$C$6-1),12,1)),AVERAGE(OFFSET('2EFines'!$E$10,12*$A34,4*(PlotControl!$C$6-1),12,1))) -> 0 | N34: =IF(PlotControl!$B$4 = "Annual Max",MAX(OFFSET('2ECoarse'!$C$10,12*$A34,4*(PlotControl!$C$6-1),12,1)),AVERAGE(OFFSET('2ECoarse'!$C$10,12*$A34,4*(PlotControl!$C$6-1),12,1))) -> 0 | O34: =IF(PlotControl!$B$4 = "Annual Max",MAX(OFFSET('2ECoarse'!$D$10,12*$A34,4*(PlotControl!$C$6-1),12,1)),AVERAGE(OFFSET('2ECoarse'!$D$10,12*$A34,4*(PlotControl!$C$6-1),12,1))) -> 0 | P34: =IF(PlotControl!$B$4 = "Annual Max",MAX(OFFSET('2ECoarse'!$E$10,12*$A34,4*(PlotControl!$C$6-1),12,1)),AVERAGE(OFFSET('2ECoarse'!$E$10,12*$A34,4*(PlotControl!$C$6-1),12,1))) -> 0 | Q34: =IF(PlotControl!$B$4 = "Annual Max",MAX(OFFSET('2EBank'!$C$10,12*$A34,4*(PlotControl!$C$6-1),12,1)),AVERAGE(OFFSET('2EBank'!$C$10,12*$A34,4*(PlotControl!$C$6-1),12,1))) -> 268530.8333 | R34: =IF(PlotControl!$B$4 = "Annual Max",MAX(OFFSET('2EBank'!$D$10,12*$A34,4*(PlotControl!$C$6-1),12,1)),AVERAGE(OFFSET('2EBank'!$D$10,12*$A34,4*(PlotControl!$C$6-1),12,1))) -> 457730 | S34: =IF(PlotControl!$B$4 = "Annual Max",MAX(OFFSET('2EBank'!$E$10,12*$A34,4*(PlotControl!$C$6-1),12,1)),AVERAGE(OFFSET('2EBank'!$E$10,12*$A34,4*(PlotControl!$C$6-1),12,1))) -> 630390 | T34: =IF(PlotControl!$B$4 = "Annual Max",MAX(OFFSET('1EFines'!$C$10,12*$A34,4*(PlotControl!$C$6-1),12,1)),AVERAGE(OFFSET('1EFines'!$C$10,12*$A34,4*(PlotControl!$C$6-1),12,1))) -> 0 | U34: =IF(PlotControl!$B$4 = "Annual Max",MAX(OFFSET('1EFines'!$D$10,12*$A34,4*(PlotControl!$C$6-1),12,1)),AVERAGE(OFFSET('1EFines'!$D$10,12*$A34,4*(PlotControl!$C$6-1),12,1))) -> 0 | V34: =IF(PlotControl!$B$4 = "Annual Max",MAX(OFFSET('1EFines'!$E$10,12*$A34,4*(PlotControl!$C$6-1),12,1)),AVERAGE(OFFSET('1EFines'!$E$10,12*$A34,4*(PlotControl!$C$6-1),12,1))) -> 0 | W34: =IF(PlotControl!$B$4 = "Annual Max",MAX(OFFSET('1ECoarse'!$C$10,12*$A34,4*(PlotControl!$C$6-1),12,1)),AVERAGE(OFFSET('1ECoarse'!$C$10,12*$A34,4*(PlotControl!$C$6-1),12,1))) -> 531620.8333 | X34: =IF(PlotControl!$B$4 = "Annual Max",MAX(OFFSET('1ECoarse'!$D$10,12*$A34,4*(PlotControl!$C$6-1),12,1)),AVERAGE(OFFSET('1ECoarse'!$D$10,12*$A34,4*(PlotControl!$C$6-1),12,1))) -> 825240 | Y34: =IF(PlotControl!$B$4 = "Annual Max",MAX(OFFSET('1ECoarse'!$E$10,12*$A34,4*(PlotControl!$C$6-1),12,1)),AVERAGE(OFFSET('1ECoarse'!$E$10,12*$A34,4*(PlotControl!$C$6-1),12,1))) -> 1130166.667
A35: 30 | B35: =IF(PlotControl!$B$4 = "Annual Max",MAX(OFFSET('2WFines'!$C$10,12*$A35,4*(PlotControl!$C$6-1),12,1)),AVERAGE(OFFSET('2WFines'!$C$10,12*$A35,4*(PlotControl!$C$6-1),12,1))) -> 211054.1667 | C35: =IF(PlotControl!$B$4 = "Annual Max",MAX(OFFSET('2WFines'!$D$10,12*$A35,4*(PlotControl!$C$6-1),12,1)),AVERAGE(OFFSET('2WFines'!$D$10,12*$A35,4*(PlotControl!$C$6-1),12,1))) -> 257533.3333 | D35: =IF(PlotControl!$B$4 = "Annual Max",MAX(OFFSET('2WFines'!$E$10,12*$A35,4*(PlotControl!$C$6-1),12,1)),AVERAGE(OFFSET('2WFines'!$E$10,12*$A35,4*(PlotControl!$C$6-1),12,1))) -> 290498.3333 | E35: =IF(PlotControl!$B$4 = "Annual Max",MAX(OFFSET('2WCoarse'!$C$10,12*$A35,4*(PlotControl!$C$6-1),12,1)),AVERAGE(OFFSET('2WCoarse'!$C$10,12*$A35,4*(PlotControl!$C$6-1),12,1))) -> 213745.8333 | F35: =IF(PlotControl!$B$4 = "Annual Max",MAX(OFFSET('2WCoarse'!$D$10,12*$A35,4*(PlotControl!$C$6-1),12,1)),AVERAGE(OFFSET('2WCoarse'!$D$10,12*$A35,4*(PlotControl!$C$6-1),12,1))) -> 377170.8333 | G35: =IF(PlotControl!$B$4 = "Annual Max",MAX(OFFSET('2WCoarse'!$E$10,12*$A35,4*(PlotControl!$C$6-1),12,1)),AVERAGE(OFFSET('2WCoarse'!$E$10,12*$A35,4*(PlotControl!$C$6-1),12,1))) -> 507294.1667 | H35: =IF(PlotControl!$B$4 = "Annual Max",MAX(OFFSET('2WBank'!$C$10,12*$A35,4*(PlotControl!$C$6-1),12,1)),AVERAGE(OFFSET('2WBank'!$C$10,12*$A35,4*(PlotControl!$C$6-1),12,1))) -> 433970 | I35: =IF(PlotControl!$B$4 = "Annual Max",MAX(OFFSET('2WBank'!$D$10,12*$A35,4*(PlotControl!$C$6-1),12,1)),AVERAGE(OFFSET('2WBank'!$D$10,12*$A35,4*(PlotControl!$C$6-1),12,1))) -> 687473.3333 | J35: =IF(PlotControl!$B$4 = "Annual Max",MAX(OFFSET('2WBank'!$E$10,12*$A35,4*(PlotControl!$C$6-1),12,1)),AVERAGE(OFFSET('2WBank'!$E$10,12*$A35,4*(PlotControl!$C$6-1),12,1))) -> 900662.5 | K35: =IF(PlotControl!$B$4 = "Annual Max",MAX(OFFSET('2EFines'!$C$10,12*$A35,4*(PlotControl!$C$6-1),12,1)),AVERAGE(OFFSET('2EFines'!$C$10,12*$A35,4*(PlotControl!$C$6-1),12,1))) -> 0 | L35: =IF(PlotControl!$B$4 = "Annual Max",MAX(OFFSET('2EFines'!$D$10,12*$A35,4*(PlotControl!$C$6-1),12,1)),AVERAGE(OFFSET('2EFines'!$D$10,12*$A35,4*(PlotControl!$C$6-1),12,1))) -> 0 | M35: =IF(PlotControl!$B$4 = "Annual Max",MAX(OFFSET('2EFines'!$E$10,12*$A35,4*(PlotControl!$C$6-1),12,1)),AVERAGE(OFFSET('2EFines'!$E$10,12*$A35,4*(PlotControl!$C$6-1),12,1))) -> 0 | N35: =IF(PlotControl!$B$4 = "Annual Max",MAX(OFFSET('2ECoarse'!$C$10,12*$A35,4*(PlotControl!$C$6-1),12,1)),AVERAGE(OFFSET('2ECoarse'!$C$10,12*$A35,4*(PlotControl!$C$6-1),12,1))) -> 0 | O35: =IF(PlotControl!$B$4 = "Annual Max",MAX(OFFSET('2ECoarse'!$D$10,12*$A35,4*(PlotControl!$C$6-1),12,1)),AVERAGE(OFFSET('2ECoarse'!$D$10,12*$A35,4*(PlotControl!$C$6-1),12,1))) -> 0 | P35: =IF(PlotControl!$B$4 = "Annual Max",MAX(OFFSET('2ECoarse'!$E$10,12*$A35,4*(PlotControl!$C$6-1),12,1)),AVERAGE(OFFSET('2ECoarse'!$E$10,12*$A35,4*(PlotControl!$C$6-1),12,1))) -> 0 | Q35: =IF(PlotControl!$B$4 = "Annual Max",MAX(OFFSET('2EBank'!$C$10,12*$A35,4*(PlotControl!$C$6-1),12,1)),AVERAGE(OFFSET('2EBank'!$C$10,12*$A35,4*(PlotControl!$C$6-1),12,1))) -> 267531.6667 | R35: =IF(PlotControl!$B$4 = "Annual Max",MAX(OFFSET('2EBank'!$D$10,12*$A35,4*(PlotControl!$C$6-1),12,1)),AVERAGE(OFFSET('2EBank'!$D$10,12*$A35,4*(PlotControl!$C$6-1),12,1))) -> 463357.5 | S35: =IF(PlotControl!$B$4 = "Annual Max",MAX(OFFSET('2EBank'!$E$10,12*$A35,4*(PlotControl!$C$6-1),12,1)),AVERAGE(OFFSET('2EBank'!$E$10,12*$A35,4*(PlotControl!$C$6-1),12,1))) -> 635103.3333 | T35: =IF(PlotControl!$B$4 = "Annual Max",MAX(OFFSET('1EFines'!$C$10,12*$A35,4*(PlotControl!$C$6-1),12,1)),AVERAGE(OFFSET('1EFines'!$C$10,12*$A35,4*(PlotControl!$C$6-1),12,1))) -> 0 | U35: =IF(PlotControl!$B$4 = "Annual Max",MAX(OFFSET('1EFines'!$D$10,12*$A35,4*(PlotControl!$C$6-1),12,1)),AVERAGE(OFFSET('1EFines'!$D$10,12*$A35,4*(PlotControl!$C$6-1),12,1))) -> 0 | V35: =IF(PlotControl!$B$4 = "Annual Max",MAX(OFFSET('1EFines'!$E$10,12*$A35,4*(PlotControl!$C$6-1),12,1)),AVERAGE(OFFSET('1EFines'!$E$10,12*$A35,4*(PlotControl!$C$6-1),12,1))) -> 0 | W35: =IF(PlotControl!$B$4 = "Annual Max",MAX(OFFSET('1ECoarse'!$C$10,12*$A35,4*(PlotControl!$C$6-1),12,1)),AVERAGE(OFFSET('1ECoarse'!$C$10,12*$A35,4*(PlotControl!$C$6-1),12,1))) -> 534920.8333 | X35: =IF(PlotControl!$B$4 = "Annual Max",MAX(OFFSET('1ECoarse'!$D$10,12*$A35,4*(PlotControl!$C$6-1),12,1)),AVERAGE(OFFSET('1ECoarse'!$D$10,12*$A35,4*(PlotControl!$C$6-1),12,1))) -> 818372.5 | Y35: =IF(PlotControl!$B$4 = "Annual Max",MAX(OFFSET('1ECoarse'!$E$10,12*$A35,4*(PlotControl!$C$6-1),12,1)),AVERAGE(OFFSET('1ECoarse'!$E$10,12*$A35,4*(PlotControl!$C$6-1),12,1))) -> 1133550
A36: 31 | B36: =IF(PlotControl!$B$4 = "Annual Max",MAX(OFFSET('2WFines'!$C$10,12*$A36,4*(PlotControl!$C$6-1),12,1)),AVERAGE(OFFSET('2WFines'!$C$10,12*$A36,4*(PlotControl!$C$6-1),12,1))) -> 210230 | C36: =IF(PlotControl!$B$4 = "Annual Max",MAX(OFFSET('2WFines'!$D$10,12*$A36,4*(PlotControl!$C$6-1),12,1)),AVERAGE(OFFSET('2WFines'!$D$10,12*$A36,4*(PlotControl!$C$6-1),12,1))) -> 258610.8333 | D36: =IF(PlotControl!$B$4 = "Annual Max",MAX(OFFSET('2WFines'!$E$10,12*$A36,4*(PlotControl!$C$6-1),12,1)),AVERAGE(OFFSET('2WFines'!$E$10,12*$A36,4*(PlotControl!$C$6-1),12,1))) -> 291816.6667 | E36: =IF(PlotControl!$B$4 = "Annual Max",MAX(OFFSET('2WCoarse'!$C$10,12*$A36,4*(PlotControl!$C$6-1),12,1)),AVERAGE(OFFSET('2WCoarse'!$C$10,12*$A36,4*(PlotControl!$C$6-1),12,1))) -> 214072.5 | F36: =IF(PlotControl!$B$4 = "Annual Max",MAX(OFFSET('2WCoarse'!$D$10,12*$A36,4*(PlotControl!$C$6-1),12,1)),AVERAGE(OFFSET('2WCoarse'!$D$10,12*$A36,4*(PlotControl!$C$6-1),12,1))) -> 379780.8333 | G36: =IF(PlotControl!$B$4 = "Annual Max",MAX(OFFSET('2WCoarse'!$E$10,12*$A36,4*(PlotControl!$C$6-1),12,1)),AVERAGE(OFFSET('2WCoarse'!$E$10,12*$A36,4*(PlotControl!$C$6-1),12,1))) -> 511857.5 | H36: =IF(PlotControl!$B$4 = "Annual Max",MAX(OFFSET('2WBank'!$C$10,12*$A36,4*(PlotControl!$C$6-1),12,1)),AVERAGE(OFFSET('2WBank'!$C$10,12*$A36,4*(PlotControl!$C$6-1),12,1))) -> 430070.8333 | I36: =IF(PlotControl!$B$4 = "Annual Max",MAX(OFFSET('2WBank'!$D$10,12*$A36,4*(PlotControl!$C$6-1),12,1)),AVERAGE(OFFSET('2WBank'!$D$10,12*$A36,4*(PlotControl!$C$6-1),12,1))) -> 693067.5 | J36: =IF(PlotControl!$B$4 = "Annual Max",MAX(OFFSET('2WBank'!$E$10,12*$A36,4*(PlotControl!$C$6-1),12,1)),AVERAGE(OFFSET('2WBank'!$E$10,12*$A36,4*(PlotControl!$C$6-1),12,1))) -> 913536.6667 | K36: =IF(PlotControl!$B$4 = "Annual Max",MAX(OFFSET('2EFines'!$C$10,12*$A36,4*(PlotControl!$C$6-1),12,1)),AVERAGE(OFFSET('2EFines'!$C$10,12*$A36,4*(PlotControl!$C$6-1),12,1))) -> 0 | L36: =IF(PlotControl!$B$4 = "Annual Max",MAX(OFFSET('2EFines'!$D$10,12*$A36,4*(PlotControl!$C$6-1),12,1)),AVERAGE(OFFSET('2EFines'!$D$10,12*$A36,4*(PlotControl!$C$6-1),12,1))) -> 0 | M36: =IF(PlotControl!$B$4 = "Annual Max",MAX(OFFSET('2EFines'!$E$10,12*$A36,4*(PlotControl!$C$6-1),12,1)),AVERAGE(OFFSET('2EFines'!$E$10,12*$A36,4*(PlotControl!$C$6-1),12,1))) -> 0 | N36: =IF(PlotControl!$B$4 = "Annual Max",MAX(OFFSET('2ECoarse'!$C$10,12*$A36,4*(PlotControl!$C$6-1),12,1)),AVERAGE(OFFSET('2ECoarse'!$C$10,12*$A36,4*(PlotControl!$C$6-1),12,1))) -> 0 | O36: =IF(PlotControl!$B$4 = "Annual Max",MAX(OFFSET('2ECoarse'!$D$10,12*$A36,4*(PlotControl!$C$6-1),12,1)),AVERAGE(OFFSET('2ECoarse'!$D$10,12*$A36,4*(PlotControl!$C$6-1),12,1))) -> 0 | P36: =IF(PlotControl!$B$4 = "Annual Max",MAX(OFFSET('2ECoarse'!$E$10,12*$A36,4*(PlotControl!$C$6-1),12,1)),AVERAGE(OFFSET('2ECoarse'!$E$10,12*$A36,4*(PlotControl!$C$6-1),12,1))) -> 0 | Q36: =IF(PlotControl!$B$4 = "Annual Max",MAX(OFFSET('2EBank'!$C$10,12*$A36,4*(PlotControl!$C$6-1),12,1)),AVERAGE(OFFSET('2EBank'!$C$10,12*$A36,4*(PlotControl!$C$6-1),12,1))) -> 265515.8333 | R36: =IF(PlotControl!$B$4 = "Annual Max",MAX(OFFSET('2EBank'!$D$10,12*$A36,4*(PlotControl!$C$6-1),12,1)),AVERAGE(OFFSET('2EBank'!$D$10,12*$A36,4*(PlotControl!$C$6-1),12,1))) -> 468161.6667 | S36: =IF(PlotControl!$B$4 = "Annual Max",MAX(OFFSET('2EBank'!$E$10,12*$A36,4*(PlotControl!$C$6-1),12,1)),AVERAGE(OFFSET('2EBank'!$E$10,12*$A36,4*(PlotControl!$C$6-1),12,1))) -> 639767.5 | T36: =IF(PlotControl!$B$4 = "Annual Max",MAX(OFFSET('1EFines'!$C$10,12*$A36,4*(PlotControl!$C$6-1),12,1)),AVERAGE(OFFSET('1EFines'!$C$10,12*$A36,4*(PlotControl!$C$6-1),12,1))) -> 0 | U36: =IF(PlotControl!$B$4 = "Annual Max",MAX(OFFSET('1EFines'!$D$10,12*$A36,4*(PlotControl!$C$6-1),12,1)),AVERAGE(OFFSET('1EFines'!$D$10,12*$A36,4*(PlotControl!$C$6-1),12,1))) -> 0 | V36: =IF(PlotControl!$B$4 = "Annual Max",MAX(OFFSET('1EFines'!$E$10,12*$A36,4*(PlotControl!$C$6-1),12,1)),AVERAGE(OFFSET('1EFines'!$E$10,12*$A36,4*(PlotControl!$C$6-1),12,1))) -> 0 | W36: =IF(PlotControl!$B$4 = "Annual Max",MAX(OFFSET('1ECoarse'!$C$10,12*$A36,4*(PlotControl!$C$6-1),12,1)),AVERAGE(OFFSET('1ECoarse'!$C$10,12*$A36,4*(PlotControl!$C$6-1),12,1))) -> 527482.5 | X36: =IF(PlotControl!$B$4 = "Annual Max",MAX(OFFSET('1ECoarse'!$D$10,12*$A36,4*(PlotControl!$C$6-1),12,1)),AVERAGE(OFFSET('1ECoarse'!$D$10,12*$A36,4*(PlotControl!$C$6-1),12,1))) -> 808901.6667 | Y36: =IF(PlotControl!$B$4 = "Annual Max",MAX(OFFSET('1ECoarse'!$E$10,12*$A36,4*(PlotControl!$C$6-1),12,1)),AVERAGE(OFFSET('1ECoarse'!$E$10,12*$A36,4*(PlotControl!$C$6-1),12,1))) -> 1134025
A37: 32 | B37: =IF(PlotControl!$B$4 = "Annual Max",MAX(OFFSET('2WFines'!$C$10,12*$A37,4*(PlotControl!$C$6-1),12,1)),AVERAGE(OFFSET('2WFines'!$C$10,12*$A37,4*(PlotControl!$C$6-1),12,1))) -> 210920.8333 | C37: =IF(PlotControl!$B$4 = "Annual Max",MAX(OFFSET('2WFines'!$D$10,12*$A37,4*(PlotControl!$C$6-1),12,1)),AVERAGE(OFFSET('2WFines'!$D$10,12*$A37,4*(PlotControl!$C$6-1),12,1))) -> 258990 | D37: =IF(PlotControl!$B$4 = "Annual Max",MAX(OFFSET('2WFines'!$E$10,12*$A37,4*(PlotControl!$C$6-1),12,1)),AVERAGE(OFFSET('2WFines'!$E$10,12*$A37,4*(PlotControl!$C$6-1),12,1))) -> 292220.8333 | E37: =IF(PlotControl!$B$4 = "Annual Max",MAX(OFFSET('2WCoarse'!$C$10,12*$A37,4*(PlotControl!$C$6-1),12,1)),AVERAGE(OFFSET('2WCoarse'!$C$10,12*$A37,4*(PlotControl!$C$6-1),12,1))) -> 217060 | F37: =IF(PlotControl!$B$4 = "Annual Max",MAX(OFFSET('2WCoarse'!$D$10,12*$A37,4*(PlotControl!$C$6-1),12,1)),AVERAGE(OFFSET('2WCoarse'!$D$10,12*$A37,4*(PlotControl!$C$6-1),12,1))) -> 381977.5 | G37: =IF(PlotControl!$B$4 = "Annual Max",MAX(OFFSET('2WCoarse'!$E$10,12*$A37,4*(PlotControl!$C$6-1),12,1)),AVERAGE(OFFSET('2WCoarse'!$E$10,12*$A37,4*(PlotControl!$C$6-1),12,1))) -> 512380.8333 | H37: =IF(PlotControl!$B$4 = "Annual Max",MAX(OFFSET('2WBank'!$C$10,12*$A37,4*(PlotControl!$C$6-1),12,1)),AVERAGE(OFFSET('2WBank'!$C$10,12*$A37,4*(PlotControl!$C$6-1),12,1))) -> 426723.3333 | I37: =IF(PlotControl!$B$4 = "Annual Max",MAX(OFFSET('2WBank'!$D$10,12*$A37,4*(PlotControl!$C$6-1),12,1)),AVERAGE(OFFSET('2WBank'!$D$10,12*$A37,4*(PlotControl!$C$6-1),12,1))) -> 694408.3333 | J37: =IF(PlotControl!$B$4 = "Annual Max",MAX(OFFSET('2WBank'!$E$10,12*$A37,4*(PlotControl!$C$6-1),12,1)),AVERAGE(OFFSET('2WBank'!$E$10,12*$A37,4*(PlotControl!$C$6-1),12,1))) -> 910740.8333 | K37: =IF(PlotControl!$B$4 = "Annual Max",MAX(OFFSET('2EFines'!$C$10,12*$A37,4*(PlotControl!$C$6-1),12,1)),AVERAGE(OFFSET('2EFines'!$C$10,12*$A37,4*(PlotControl!$C$6-1),12,1))) -> 0 | L37: =IF(PlotControl!$B$4 = "Annual Max",MAX(OFFSET('2EFines'!$D$10,12*$A37,4*(PlotControl!$C$6-1),12,1)),AVERAGE(OFFSET('2EFines'!$D$10,12*$A37,4*(PlotControl!$C$6-1),12,1))) -> 0 | M37: =IF(PlotControl!$B$4 = "Annual Max",MAX(OFFSET('2EFines'!$E$10,12*$A37,4*(PlotControl!$C$6-1),12,1)),AVERAGE(OFFSET('2EFines'!$E$10,12*$A37,4*(PlotControl!$C$6-1),12,1))) -> 0 | N37: =IF(PlotControl!$B$4 = "Annual Max",MAX(OFFSET('2ECoarse'!$C$10,12*$A37,4*(PlotControl!$C$6-1),12,1)),AVERAGE(OFFSET('2ECoarse'!$C$10,12*$A37,4*(PlotControl!$C$6-1),12,1))) -> 0 | O37: =IF(PlotControl!$B$4 = "Annual Max",MAX(OFFSET('2ECoarse'!$D$10,12*$A37,4*(PlotControl!$C$6-1),12,1)),AVERAGE(OFFSET('2ECoarse'!$D$10,12*$A37,4*(PlotControl!$C$6-1),12,1))) -> 0 | P37: =IF(PlotControl!$B$4 = "Annual Max",MAX(OFFSET('2ECoarse'!$E$10,12*$A37,4*(PlotControl!$C$6-1),12,1)),AVERAGE(OFFSET('2ECoarse'!$E$10,12*$A37,4*(PlotControl!$C$6-1),12,1))) -> 0 | Q37: =IF(PlotControl!$B$4 = "Annual Max",MAX(OFFSET('2EBank'!$C$10,12*$A37,4*(PlotControl!$C$6-1),12,1)),AVERAGE(OFFSET('2EBank'!$C$10,12*$A37,4*(PlotControl!$C$6-1),12,1))) -> 264941.6667 | R37: =IF(PlotControl!$B$4 = "Annual Max",MAX(OFFSET('2EBank'!$D$10,12*$A37,4*(PlotControl!$C$6-1),12,1)),AVERAGE(OFFSET('2EBank'!$D$10,12*$A37,4*(PlotControl!$C$6-1),12,1))) -> 463890.8333 | S37: =IF(PlotControl!$B$4 = "Annual Max",MAX(OFFSET('2EBank'!$E$10,12*$A37,4*(PlotControl!$C$6-1),12,1)),AVERAGE(OFFSET('2EBank'!$E$10,12*$A37,4*(PlotControl!$C$6-1),12,1))) -> 645470.8333 | T37: =IF(PlotControl!$B$4 = "Annual Max",MAX(OFFSET('1EFines'!$C$10,12*$A37,4*(PlotControl!$C$6-1),12,1)),AVERAGE(OFFSET('1EFines'!$C$10,12*$A37,4*(PlotControl!$C$6-1),12,1))) -> 0 | U37: =IF(PlotControl!$B$4 = "Annual Max",MAX(OFFSET('1EFines'!$D$10,12*$A37,4*(PlotControl!$C$6-1),12,1)),AVERAGE(OFFSET('1EFines'!$D$10,12*$A37,4*(PlotControl!$C$6-1),12,1))) -> 0 | V37: =IF(PlotControl!$B$4 = "Annual Max",MAX(OFFSET('1EFines'!$E$10,12*$A37,4*(PlotControl!$C$6-1),12,1)),AVERAGE(OFFSET('1EFines'!$E$10,12*$A37,4*(PlotControl!$C$6-1),12,1))) -> 0 | W37: =IF(PlotControl!$B$4 = "Annual Max",MAX(OFFSET('1ECoarse'!$C$10,12*$A37,4*(PlotControl!$C$6-1),12,1)),AVERAGE(OFFSET('1ECoarse'!$C$10,12*$A37,4*(PlotControl!$C$6-1),12,1))) -> 506358.3333 | X37: =IF(PlotControl!$B$4 = "Annual Max",MAX(OFFSET('1ECoarse'!$D$10,12*$A37,4*(PlotControl!$C$6-1),12,1)),AVERAGE(OFFSET('1ECoarse'!$D$10,12*$A37,4*(PlotControl!$C$6-1),12,1))) -> 804257.5 | Y37: =IF(PlotControl!$B$4 = "Annual Max",MAX(OFFSET('1ECoarse'!$E$10,12*$A37,4*(PlotControl!$C$6-1),12,1)),AVERAGE(OFFSET('1ECoarse'!$E$10,12*$A37,4*(PlotControl!$C$6-1),12,1))) -> 1112950
A38: 33 | B38: =IF(PlotControl!$B$4 = "Annual Max",MAX(OFFSET('2WFines'!$C$10,12*$A38,4*(PlotControl!$C$6-1),12,1)),AVERAGE(OFFSET('2WFines'!$C$10,12*$A38,4*(PlotControl!$C$6-1),12,1))) -> 211557.5 | C38: =IF(PlotControl!$B$4 = "Annual Max",MAX(OFFSET('2WFines'!$D$10,12*$A38,4*(PlotControl!$C$6-1),12,1)),AVERAGE(OFFSET('2WFines'!$D$10,12*$A38,4*(PlotControl!$C$6-1),12,1))) -> 258300.8333 | D38: =IF(PlotControl!$B$4 = "Annual Max",MAX(OFFSET('2WFines'!$E$10,12*$A38,4*(PlotControl!$C$6-1),12,1)),AVERAGE(OFFSET('2WFines'!$E$10,12*$A38,4*(PlotControl!$C$6-1),12,1))) -> 293005.8333 | E38: =IF(PlotControl!$B$4 = "Annual Max",MAX(OFFSET('2WCoarse'!$C$10,12*$A38,4*(PlotControl!$C$6-1),12,1)),AVERAGE(OFFSET('2WCoarse'!$C$10,12*$A38,4*(PlotControl!$C$6-1),12,1))) -> 219888.3333 | F38: =IF(PlotControl!$B$4 = "Annual Max",MAX(OFFSET('2WCoarse'!$D$10,12*$A38,4*(PlotControl!$C$6-1),12,1)),AVERAGE(OFFSET('2WCoarse'!$D$10,12*$A38,4*(PlotControl!$C$6-1),12,1))) -> 382795.8333 | G38: =IF(PlotControl!$B$4 = "Annual Max",MAX(OFFSET('2WCoarse'!$E$10,12*$A38,4*(PlotControl!$C$6-1),12,1)),AVERAGE(OFFSET('2WCoarse'!$E$10,12*$A38,4*(PlotControl!$C$6-1),12,1))) -> 513754.1667 | H38: =IF(PlotControl!$B$4 = "Annual Max",MAX(OFFSET('2WBank'!$C$10,12*$A38,4*(PlotControl!$C$6-1),12,1)),AVERAGE(OFFSET('2WBank'!$C$10,12*$A38,4*(PlotControl!$C$6-1),12,1))) -> 423600 | I38: =IF(PlotControl!$B$4 = "Annual Max",MAX(OFFSET('2WBank'!$D$10,12*$A38,4*(PlotControl!$C$6-1),12,1)),AVERAGE(OFFSET('2WBank'!$D$10,12*$A38,4*(PlotControl!$C$6-1),12,1))) -> 690697.5 | J38: =IF(PlotControl!$B$4 = "Annual Max",MAX(OFFSET('2WBank'!$E$10,12*$A38,4*(PlotControl!$C$6-1),12,1)),AVERAGE(OFFSET('2WBank'!$E$10,12*$A38,4*(PlotControl!$C$6-1),12,1))) -> 915785 | K38: =IF(PlotControl!$B$4 = "Annual Max",MAX(OFFSET('2EFines'!$C$10,12*$A38,4*(PlotControl!$C$6-1),12,1)),AVERAGE(OFFSET('2EFines'!$C$10,12*$A38,4*(PlotControl!$C$6-1),12,1))) -> 0 | L38: =IF(PlotControl!$B$4 = "Annual Max",MAX(OFFSET('2EFines'!$D$10,12*$A38,4*(PlotControl!$C$6-1),12,1)),AVERAGE(OFFSET('2EFines'!$D$10,12*$A38,4*(PlotControl!$C$6-1),12,1))) -> 0 | M38: =IF(PlotControl!$B$4 = "Annual Max",MAX(OFFSET('2EFines'!$E$10,12*$A38,4*(PlotControl!$C$6-1),12,1)),AVERAGE(OFFSET('2EFines'!$E$10,12*$A38,4*(PlotControl!$C$6-1),12,1))) -> 0 | N38: =IF(PlotControl!$B$4 = "Annual Max",MAX(OFFSET('2ECoarse'!$C$10,12*$A38,4*(PlotControl!$C$6-1),12,1)),AVERAGE(OFFSET('2ECoarse'!$C$10,12*$A38,4*(PlotControl!$C$6-1),12,1))) -> 0 | O38: =IF(PlotControl!$B$4 = "Annual Max",MAX(OFFSET('2ECoarse'!$D$10,12*$A38,4*(PlotControl!$C$6-1),12,1)),AVERAGE(OFFSET('2ECoarse'!$D$10,12*$A38,4*(PlotControl!$C$6-1),12,1))) -> 0 | P38: =IF(PlotControl!$B$4 = "Annual Max",MAX(OFFSET('2ECoarse'!$E$10,12*$A38,4*(PlotControl!$C$6-1),12,1)),AVERAGE(OFFSET('2ECoarse'!$E$10,12*$A38,4*(PlotControl!$C$6-1),12,1))) -> 0 | Q38: =IF(PlotControl!$B$4 = "Annual Max",MAX(OFFSET('2EBank'!$C$10,12*$A38,4*(PlotControl!$C$6-1),12,1)),AVERAGE(OFFSET('2EBank'!$C$10,12*$A38,4*(PlotControl!$C$6-1),12,1))) -> 267209.1667 | R38: =IF(PlotControl!$B$4 = "Annual Max",MAX(OFFSET('2EBank'!$D$10,12*$A38,4*(PlotControl!$C$6-1),12,1)),AVERAGE(OFFSET('2EBank'!$D$10,12*$A38,4*(PlotControl!$C$6-1),12,1))) -> 462194.1667 | S38: =IF(PlotControl!$B$4 = "Annual Max",MAX(OFFSET('2EBank'!$E$10,12*$A38,4*(PlotControl!$C$6-1),12,1)),AVERAGE(OFFSET('2EBank'!$E$10,12*$A38,4*(PlotControl!$C$6-1),12,1))) -> 648180.8333 | T38: =IF(PlotControl!$B$4 = "Annual Max",MAX(OFFSET('1EFines'!$C$10,12*$A38,4*(PlotControl!$C$6-1),12,1)),AVERAGE(OFFSET('1EFines'!$C$10,12*$A38,4*(PlotControl!$C$6-1),12,1))) -> 0 | U38: =IF(PlotControl!$B$4 = "Annual Max",MAX(OFFSET('1EFines'!$D$10,12*$A38,4*(PlotControl!$C$6-1),12,1)),AVERAGE(OFFSET('1EFines'!$D$10,12*$A38,4*(PlotControl!$C$6-1),12,1))) -> 0 | V38: =IF(PlotControl!$B$4 = "Annual Max",MAX(OFFSET('1EFines'!$E$10,12*$A38,4*(PlotControl!$C$6-1),12,1)),AVERAGE(OFFSET('1EFines'!$E$10,12*$A38,4*(PlotControl!$C$6-1),12,1))) -> 0 | W38: =IF(PlotControl!$B$4 = "Annual Max",MAX(OFFSET('1ECoarse'!$C$10,12*$A38,4*(PlotControl!$C$6-1),12,1)),AVERAGE(OFFSET('1ECoarse'!$C$10,12*$A38,4*(PlotControl!$C$6-1),12,1))) -> 504548.3333 | X38: =IF(PlotControl!$B$4 = "Annual Max",MAX(OFFSET('1ECoarse'!$D$10,12*$A38,4*(PlotControl!$C$6-1),12,1)),AVERAGE(OFFSET('1ECoarse'!$D$10,12*$A38,4*(PlotControl!$C$6-1),12,1))) -> 795926.6667 | Y38: =IF(PlotControl!$B$4 = "Annual Max",MAX(OFFSET('1ECoarse'!$E$10,12*$A38,4*(PlotControl!$C$6-1),12,1)),AVERAGE(OFFSET('1ECoarse'!$E$10,12*$A38,4*(PlotControl!$C$6-1),12,1))) -> 1102691.667
A39: 34 | B39: =IF(PlotControl!$B$4 = "Annual Max",MAX(OFFSET('2WFines'!$C$10,12*$A39,4*(PlotControl!$C$6-1),12,1)),AVERAGE(OFFSET('2WFines'!$C$10,12*$A39,4*(PlotControl!$C$6-1),12,1))) -> 209764.1667 | C39: =IF(PlotControl!$B$4 = "Annual Max",MAX(OFFSET('2WFines'!$D$10,12*$A39,4*(PlotControl!$C$6-1),12,1)),AVERAGE(OFFSET('2WFines'!$D$10,12*$A39,4*(PlotControl!$C$6-1),12,1))) -> 260093.3333 | D39: =IF(PlotControl!$B$4 = "Annual Max",MAX(OFFSET('2WFines'!$E$10,12*$A39,4*(PlotControl!$C$6-1),12,1)),AVERAGE(OFFSET('2WFines'!$E$10,12*$A39,4*(PlotControl!$C$6-1),12,1))) -> 295415.8333 | E39: =IF(PlotControl!$B$4 = "Annual Max",MAX(OFFSET('2WCoarse'!$C$10,12*$A39,4*(PlotControl!$C$6-1),12,1)),AVERAGE(OFFSET('2WCoarse'!$C$10,12*$A39,4*(PlotControl!$C$6-1),12,1))) -> 218236.6667 | F39: =IF(PlotControl!$B$4 = "Annual Max",MAX(OFFSET('2WCoarse'!$D$10,12*$A39,4*(PlotControl!$C$6-1),12,1)),AVERAGE(OFFSET('2WCoarse'!$D$10,12*$A39,4*(PlotControl!$C$6-1),12,1))) -> 385935.8333 | G39: =IF(PlotControl!$B$4 = "Annual Max",MAX(OFFSET('2WCoarse'!$E$10,12*$A39,4*(PlotControl!$C$6-1),12,1)),AVERAGE(OFFSET('2WCoarse'!$E$10,12*$A39,4*(PlotControl!$C$6-1),12,1))) -> 523557.5 | H39: =IF(PlotControl!$B$4 = "Annual Max",MAX(OFFSET('2WBank'!$C$10,12*$A39,4*(PlotControl!$C$6-1),12,1)),AVERAGE(OFFSET('2WBank'!$C$10,12*$A39,4*(PlotControl!$C$6-1),12,1))) -> 421025.8333 | I39: =IF(PlotControl!$B$4 = "Annual Max",MAX(OFFSET('2WBank'!$D$10,12*$A39,4*(PlotControl!$C$6-1),12,1)),AVERAGE(OFFSET('2WBank'!$D$10,12*$A39,4*(PlotControl!$C$6-1),12,1))) -> 689876.6667 | J39: =IF(PlotControl!$B$4 = "Annual Max",MAX(OFFSET('2WBank'!$E$10,12*$A39,4*(PlotControl!$C$6-1),12,1)),AVERAGE(OFFSET('2WBank'!$E$10,12*$A39,4*(PlotControl!$C$6-1),12,1))) -> 926079.1667 | K39: =IF(PlotControl!$B$4 = "Annual Max",MAX(OFFSET('2EFines'!$C$10,12*$A39,4*(PlotControl!$C$6-1),12,1)),AVERAGE(OFFSET('2EFines'!$C$10,12*$A39,4*(PlotControl!$C$6-1),12,1))) -> 0 | L39: =IF(PlotControl!$B$4 = "Annual Max",MAX(OFFSET('2EFines'!$D$10,12*$A39,4*(PlotControl!$C$6-1),12,1)),AVERAGE(OFFSET('2EFines'!$D$10,12*$A39,4*(PlotControl!$C$6-1),12,1))) -> 0 | M39: =IF(PlotControl!$B$4 = "Annual Max",MAX(OFFSET('2EFines'!$E$10,12*$A39,4*(PlotControl!$C$6-1),12,1)),AVERAGE(OFFSET('2EFines'!$E$10,12*$A39,4*(PlotControl!$C$6-1),12,1))) -> 0 | N39: =IF(PlotControl!$B$4 = "Annual Max",MAX(OFFSET('2ECoarse'!$C$10,12*$A39,4*(PlotControl!$C$6-1),12,1)),AVERAGE(OFFSET('2ECoarse'!$C$10,12*$A39,4*(PlotControl!$C$6-1),12,1))) -> 0 | O39: =IF(PlotControl!$B$4 = "Annual Max",MAX(OFFSET('2ECoarse'!$D$10,12*$A39,4*(PlotControl!$C$6-1),12,1)),AVERAGE(OFFSET('2ECoarse'!$D$10,12*$A39,4*(PlotControl!$C$6-1),12,1))) -> 0 | P39: =IF(PlotControl!$B$4 = "Annual Max",MAX(OFFSET('2ECoarse'!$E$10,12*$A39,4*(PlotControl!$C$6-1),12,1)),AVERAGE(OFFSET('2ECoarse'!$E$10,12*$A39,4*(PlotControl!$C$6-1),12,1))) -> 0 | Q39: =IF(PlotControl!$B$4 = "Annual Max",MAX(OFFSET('2EBank'!$C$10,12*$A39,4*(PlotControl!$C$6-1),12,1)),AVERAGE(OFFSET('2EBank'!$C$10,12*$A39,4*(PlotControl!$C$6-1),12,1))) -> 269400.8333 | R39: =IF(PlotControl!$B$4 = "Annual Max",MAX(OFFSET('2EBank'!$D$10,12*$A39,4*(PlotControl!$C$6-1),12,1)),AVERAGE(OFFSET('2EBank'!$D$10,12*$A39,4*(PlotControl!$C$6-1),12,1))) -> 468725 | S39: =IF(PlotControl!$B$4 = "Annual Max",MAX(OFFSET('2EBank'!$E$10,12*$A39,4*(PlotControl!$C$6-1),12,1)),AVERAGE(OFFSET('2EBank'!$E$10,12*$A39,4*(PlotControl!$C$6-1),12,1))) -> 653695 | T39: =IF(PlotControl!$B$4 = "Annual Max",MAX(OFFSET('1EFines'!$C$10,12*$A39,4*(PlotControl!$C$6-1),12,1)),AVERAGE(OFFSET('1EFines'!$C$10,12*$A39,4*(PlotControl!$C$6-1),12,1))) -> 0 | U39: =IF(PlotControl!$B$4 = "Annual Max",MAX(OFFSET('1EFines'!$D$10,12*$A39,4*(PlotControl!$C$6-1),12,1)),AVERAGE(OFFSET('1EFines'!$D$10,12*$A39,4*(PlotControl!$C$6-1),12,1))) -> 0 | V39: =IF(PlotControl!$B$4 = "Annual Max",MAX(OFFSET('1EFines'!$E$10,12*$A39,4*(PlotControl!$C$6-1),12,1)),AVERAGE(OFFSET('1EFines'!$E$10,12*$A39,4*(PlotControl!$C$6-1),12,1))) -> 0 | W39: =IF(PlotControl!$B$4 = "Annual Max",MAX(OFFSET('1ECoarse'!$C$10,12*$A39,4*(PlotControl!$C$6-1),12,1)),AVERAGE(OFFSET('1ECoarse'!$C$10,12*$A39,4*(PlotControl!$C$6-1),12,1))) -> 494085.8333 | X39: =IF(PlotControl!$B$4 = "Annual Max",MAX(OFFSET('1ECoarse'!$D$10,12*$A39,4*(PlotControl!$C$6-1),12,1)),AVERAGE(OFFSET('1ECoarse'!$D$10,12*$A39,4*(PlotControl!$C$6-1),12,1))) -> 790887.5 | Y39: =IF(PlotControl!$B$4 = "Annual Max",MAX(OFFSET('1ECoarse'!$E$10,12*$A39,4*(PlotControl!$C$6-1),12,1)),AVERAGE(OFFSET('1ECoarse'!$E$10,12*$A39,4*(PlotControl!$C$6-1),12,1))) -> 1110350
A40: 35 | B40: =IF(PlotControl!$B$4 = "Annual Max",MAX(OFFSET('2WFines'!$C$10,12*$A40,4*(PlotControl!$C$6-1),12,1)),AVERAGE(OFFSET('2WFines'!$C$10,12*$A40,4*(PlotControl!$C$6-1),12,1))) -> 209052.5 | C40: =IF(PlotControl!$B$4 = "Annual Max",MAX(OFFSET('2WFines'!$D$10,12*$A40,4*(PlotControl!$C$6-1),12,1)),AVERAGE(OFFSET('2WFines'!$D$10,12*$A40,4*(PlotControl!$C$6-1),12,1))) -> 259638.3333 | D40: =IF(PlotControl!$B$4 = "Annual Max",MAX(OFFSET('2WFines'!$E$10,12*$A40,4*(PlotControl!$C$6-1),12,1)),AVERAGE(OFFSET('2WFines'!$E$10,12*$A40,4*(PlotControl!$C$6-1),12,1))) -> 295214.1667 | E40: =IF(PlotControl!$B$4 = "Annual Max",MAX(OFFSET('2WCoarse'!$C$10,12*$A40,4*(PlotControl!$C$6-1),12,1)),AVERAGE(OFFSET('2WCoarse'!$C$10,12*$A40,4*(PlotControl!$C$6-1),12,1))) -> 216650.8333 | F40: =IF(PlotControl!$B$4 = "Annual Max",MAX(OFFSET('2WCoarse'!$D$10,12*$A40,4*(PlotControl!$C$6-1),12,1)),AVERAGE(OFFSET('2WCoarse'!$D$10,12*$A40,4*(PlotControl!$C$6-1),12,1))) -> 385704.1667 | G40: =IF(PlotControl!$B$4 = "Annual Max",MAX(OFFSET('2WCoarse'!$E$10,12*$A40,4*(PlotControl!$C$6-1),12,1)),AVERAGE(OFFSET('2WCoarse'!$E$10,12*$A40,4*(PlotControl!$C$6-1),12,1))) -> 527878.3333 | H40: =IF(PlotControl!$B$4 = "Annual Max",MAX(OFFSET('2WBank'!$C$10,12*$A40,4*(PlotControl!$C$6-1),12,1)),AVERAGE(OFFSET('2WBank'!$C$10,12*$A40,4*(PlotControl!$C$6-1),12,1))) -> 422843.3333 | I40: =IF(PlotControl!$B$4 = "Annual Max",MAX(OFFSET('2WBank'!$D$10,12*$A40,4*(PlotControl!$C$6-1),12,1)),AVERAGE(OFFSET('2WBank'!$D$10,12*$A40,4*(PlotControl!$C$6-1),12,1))) -> 694360 | J40: =IF(PlotControl!$B$4 = "Annual Max",MAX(OFFSET('2WBank'!$E$10,12*$A40,4*(PlotControl!$C$6-1),12,1)),AVERAGE(OFFSET('2WBank'!$E$10,12*$A40,4*(PlotControl!$C$6-1),12,1))) -> 920134.1667 | K40: =IF(PlotControl!$B$4 = "Annual Max",MAX(OFFSET('2EFines'!$C$10,12*$A40,4*(PlotControl!$C$6-1),12,1)),AVERAGE(OFFSET('2EFines'!$C$10,12*$A40,4*(PlotControl!$C$6-1),12,1))) -> 0 | L40: =IF(PlotControl!$B$4 = "Annual Max",MAX(OFFSET('2EFines'!$D$10,12*$A40,4*(PlotControl!$C$6-1),12,1)),AVERAGE(OFFSET('2EFines'!$D$10,12*$A40,4*(PlotControl!$C$6-1),12,1))) -> 0 | M40: =IF(PlotControl!$B$4 = "Annual Max",MAX(OFFSET('2EFines'!$E$10,12*$A40,4*(PlotControl!$C$6-1),12,1)),AVERAGE(OFFSET('2EFines'!$E$10,12*$A40,4*(PlotControl!$C$6-1),12,1))) -> 0 | N40: =IF(PlotControl!$B$4 = "Annual Max",MAX(OFFSET('2ECoarse'!$C$10,12*$A40,4*(PlotControl!$C$6-1),12,1)),AVERAGE(OFFSET('2ECoarse'!$C$10,12*$A40,4*(PlotControl!$C$6-1),12,1))) -> 0 | O40: =IF(PlotControl!$B$4 = "Annual Max",MAX(OFFSET('2ECoarse'!$D$10,12*$A40,4*(PlotControl!$C$6-1),12,1)),AVERAGE(OFFSET('2ECoarse'!$D$10,12*$A40,4*(PlotControl!$C$6-1),12,1))) -> 0 | P40: =IF(PlotControl!$B$4 = "Annual Max",MAX(OFFSET('2ECoarse'!$E$10,12*$A40,4*(PlotControl!$C$6-1),12,1)),AVERAGE(OFFSET('2ECoarse'!$E$10,12*$A40,4*(PlotControl!$C$6-1),12,1))) -> 0 | Q40: =IF(PlotControl!$B$4 = "Annual Max",MAX(OFFSET('2EBank'!$C$10,12*$A40,4*(PlotControl!$C$6-1),12,1)),AVERAGE(OFFSET('2EBank'!$C$10,12*$A40,4*(PlotControl!$C$6-1),12,1))) -> 270349.1667 | R40: =IF(PlotControl!$B$4 = "Annual Max",MAX(OFFSET('2EBank'!$D$10,12*$A40,4*(PlotControl!$C$6-1),12,1)),AVERAGE(OFFSET('2EBank'!$D$10,12*$A40,4*(PlotControl!$C$6-1),12,1))) -> 468235 | S40: =IF(PlotControl!$B$4 = "Annual Max",MAX(OFFSET('2EBank'!$E$10,12*$A40,4*(PlotControl!$C$6-1),12,1)),AVERAGE(OFFSET('2EBank'!$E$10,12*$A40,4*(PlotControl!$C$6-1),12,1))) -> 656109.1667 | T40: =IF(PlotControl!$B$4 = "Annual Max",MAX(OFFSET('1EFines'!$C$10,12*$A40,4*(PlotControl!$C$6-1),12,1)),AVERAGE(OFFSET('1EFines'!$C$10,12*$A40,4*(PlotControl!$C$6-1),12,1))) -> 0 | U40: =IF(PlotControl!$B$4 = "Annual Max",MAX(OFFSET('1EFines'!$D$10,12*$A40,4*(PlotControl!$C$6-1),12,1)),AVERAGE(OFFSET('1EFines'!$D$10,12*$A40,4*(PlotControl!$C$6-1),12,1))) -> 0 | V40: =IF(PlotControl!$B$4 = "Annual Max",MAX(OFFSET('1EFines'!$E$10,12*$A40,4*(PlotControl!$C$6-1),12,1)),AVERAGE(OFFSET('1EFines'!$E$10,12*$A40,4*(PlotControl!$C$6-1),12,1))) -> 0 | W40: =IF(PlotControl!$B$4 = "Annual Max",MAX(OFFSET('1ECoarse'!$C$10,12*$A40,4*(PlotControl!$C$6-1),12,1)),AVERAGE(OFFSET('1ECoarse'!$C$10,12*$A40,4*(PlotControl!$C$6-1),12,1))) -> 488315 | X40: =IF(PlotControl!$B$4 = "Annual Max",MAX(OFFSET('1ECoarse'!$D$10,12*$A40,4*(PlotControl!$C$6-1),12,1)),AVERAGE(OFFSET('1ECoarse'!$D$10,12*$A40,4*(PlotControl!$C$6-1),12,1))) -> 779050 | Y40: =IF(PlotControl!$B$4 = "Annual Max",MAX(OFFSET('1ECoarse'!$E$10,12*$A40,4*(PlotControl!$C$6-1),12,1)),AVERAGE(OFFSET('1ECoarse'!$E$10,12*$A40,4*(PlotControl!$C$6-1),12,1))) -> 1097891.667
A41: 36 | B41: =IF(PlotControl!$B$4 = "Annual Max",MAX(OFFSET('2WFines'!$C$10,12*$A41,4*(PlotControl!$C$6-1),12,1)),AVERAGE(OFFSET('2WFines'!$C$10,12*$A41,4*(PlotControl!$C$6-1),12,1))) -> 209368.3333 | C41: =IF(PlotControl!$B$4 = "Annual Max",MAX(OFFSET('2WFines'!$D$10,12*$A41,4*(PlotControl!$C$6-1),12,1)),AVERAGE(OFFSET('2WFines'!$D$10,12*$A41,4*(PlotControl!$C$6-1),12,1))) -> 260682.5 | D41: =IF(PlotControl!$B$4 = "Annual Max",MAX(OFFSET('2WFines'!$E$10,12*$A41,4*(PlotControl!$C$6-1),12,1)),AVERAGE(OFFSET('2WFines'!$E$10,12*$A41,4*(PlotControl!$C$6-1),12,1))) -> 296209.1667 | E41: =IF(PlotControl!$B$4 = "Annual Max",MAX(OFFSET('2WCoarse'!$C$10,12*$A41,4*(PlotControl!$C$6-1),12,1)),AVERAGE(OFFSET('2WCoarse'!$C$10,12*$A41,4*(PlotControl!$C$6-1),12,1))) -> 217365.8333 | F41: =IF(PlotControl!$B$4 = "Annual Max",MAX(OFFSET('2WCoarse'!$D$10,12*$A41,4*(PlotControl!$C$6-1),12,1)),AVERAGE(OFFSET('2WCoarse'!$D$10,12*$A41,4*(PlotControl!$C$6-1),12,1))) -> 387844.1667 | G41: =IF(PlotControl!$B$4 = "Annual Max",MAX(OFFSET('2WCoarse'!$E$10,12*$A41,4*(PlotControl!$C$6-1),12,1)),AVERAGE(OFFSET('2WCoarse'!$E$10,12*$A41,4*(PlotControl!$C$6-1),12,1))) -> 529906.6667 | H41: =IF(PlotControl!$B$4 = "Annual Max",MAX(OFFSET('2WBank'!$C$10,12*$A41,4*(PlotControl!$C$6-1),12,1)),AVERAGE(OFFSET('2WBank'!$C$10,12*$A41,4*(PlotControl!$C$6-1),12,1))) -> 419513.3333 | I41: =IF(PlotControl!$B$4 = "Annual Max",MAX(OFFSET('2WBank'!$D$10,12*$A41,4*(PlotControl!$C$6-1),12,1)),AVERAGE(OFFSET('2WBank'!$D$10,12*$A41,4*(PlotControl!$C$6-1),12,1))) -> 697468.3333 | J41: =IF(PlotControl!$B$4 = "Annual Max",MAX(OFFSET('2WBank'!$E$10,12*$A41,4*(PlotControl!$C$6-1),12,1)),AVERAGE(OFFSET('2WBank'!$E$10,12*$A41,4*(PlotControl!$C$6-1),12,1))) -> 926525 | K41: =IF(PlotControl!$B$4 = "Annual Max",MAX(OFFSET('2EFines'!$C$10,12*$A41,4*(PlotControl!$C$6-1),12,1)),AVERAGE(OFFSET('2EFines'!$C$10,12*$A41,4*(PlotControl!$C$6-1),12,1))) -> 0 | L41: =IF(PlotControl!$B$4 = "Annual Max",MAX(OFFSET('2EFines'!$D$10,12*$A41,4*(PlotControl!$C$6-1),12,1)),AVERAGE(OFFSET('2EFines'!$D$10,12*$A41,4*(PlotControl!$C$6-1),12,1))) -> 0 | M41: =IF(PlotControl!$B$4 = "Annual Max",MAX(OFFSET('2EFines'!$E$10,12*$A41,4*(PlotControl!$C$6-1),12,1)),AVERAGE(OFFSET('2EFines'!$E$10,12*$A41,4*(PlotControl!$C$6-1),12,1))) -> 0 | N41: =IF(PlotControl!$B$4 = "Annual Max",MAX(OFFSET('2ECoarse'!$C$10,12*$A41,4*(PlotControl!$C$6-1),12,1)),AVERAGE(OFFSET('2ECoarse'!$C$10,12*$A41,4*(PlotControl!$C$6-1),12,1))) -> 0 | O41: =IF(PlotControl!$B$4 = "Annual Max",MAX(OFFSET('2ECoarse'!$D$10,12*$A41,4*(PlotControl!$C$6-1),12,1)),AVERAGE(OFFSET('2ECoarse'!$D$10,12*$A41,4*(PlotControl!$C$6-1),12,1))) -> 0 | P41: =IF(PlotControl!$B$4 = "Annual Max",MAX(OFFSET('2ECoarse'!$E$10,12*$A41,4*(PlotControl!$C$6-1),12,1)),AVERAGE(OFFSET('2ECoarse'!$E$10,12*$A41,4*(PlotControl!$C$6-1),12,1))) -> 0 | Q41: =IF(PlotControl!$B$4 = "Annual Max",MAX(OFFSET('2EBank'!$C$10,12*$A41,4*(PlotControl!$C$6-1),12,1)),AVERAGE(OFFSET('2EBank'!$C$10,12*$A41,4*(PlotControl!$C$6-1),12,1))) -> 273265.8333 | R41: =IF(PlotControl!$B$4 = "Annual Max",MAX(OFFSET('2EBank'!$D$10,12*$A41,4*(PlotControl!$C$6-1),12,1)),AVERAGE(OFFSET('2EBank'!$D$10,12*$A41,4*(PlotControl!$C$6-1),12,1))) -> 475236.6667 | S41: =IF(PlotControl!$B$4 = "Annual Max",MAX(OFFSET('2EBank'!$E$10,12*$A41,4*(PlotControl!$C$6-1),12,1)),AVERAGE(OFFSET('2EBank'!$E$10,12*$A41,4*(PlotControl!$C$6-1),12,1))) -> 654752.5 | T41: =IF(PlotControl!$B$4 = "Annual Max",MAX(OFFSET('1EFines'!$C$10,12*$A41,4*(PlotControl!$C$6-1),12,1)),AVERAGE(OFFSET('1EFines'!$C$10,12*$A41,4*(PlotControl!$C$6-1),12,1))) -> 0 | U41: =IF(PlotControl!$B$4 = "Annual Max",MAX(OFFSET('1EFines'!$D$10,12*$A41,4*(PlotControl!$C$6-1),12,1)),AVERAGE(OFFSET('1EFines'!$D$10,12*$A41,4*(PlotControl!$C$6-1),12,1))) -> 0 | V41: =IF(PlotControl!$B$4 = "Annual Max",MAX(OFFSET('1EFines'!$E$10,12*$A41,4*(PlotControl!$C$6-1),12,1)),AVERAGE(OFFSET('1EFines'!$E$10,12*$A41,4*(PlotControl!$C$6-1),12,1))) -> 0 | W41: =IF(PlotControl!$B$4 = "Annual Max",MAX(OFFSET('1ECoarse'!$C$10,12*$A41,4*(PlotControl!$C$6-1),12,1)),AVERAGE(OFFSET('1ECoarse'!$C$10,12*$A41,4*(PlotControl!$C$6-1),12,1))) -> 484299.1667 | X41: =IF(PlotControl!$B$4 = "Annual Max",MAX(OFFSET('1ECoarse'!$D$10,12*$A41,4*(PlotControl!$C$6-1),12,1)),AVERAGE(OFFSET('1ECoarse'!$D$10,12*$A41,4*(PlotControl!$C$6-1),12,1))) -> 782760.8333 | Y41: =IF(PlotControl!$B$4 = "Annual Max",MAX(OFFSET('1ECoarse'!$E$10,12*$A41,4*(PlotControl!$C$6-1),12,1)),AVERAGE(OFFSET('1ECoarse'!$E$10,12*$A41,4*(PlotControl!$C$6-1),12,1))) -> 1077725
A42: 37 | B42: =IF(PlotControl!$B$4 = "Annual Max",MAX(OFFSET('2WFines'!$C$10,12*$A42,4*(PlotControl!$C$6-1),12,1)),AVERAGE(OFFSET('2WFines'!$C$10,12*$A42,4*(PlotControl!$C$6-1),12,1))) -> 209759.1667 | C42: =IF(PlotControl!$B$4 = "Annual Max",MAX(OFFSET('2WFines'!$D$10,12*$A42,4*(PlotControl!$C$6-1),12,1)),AVERAGE(OFFSET('2WFines'!$D$10,12*$A42,4*(PlotControl!$C$6-1),12,1))) -> 260726.6667 | D42: =IF(PlotControl!$B$4 = "Annual Max",MAX(OFFSET('2WFines'!$E$10,12*$A42,4*(PlotControl!$C$6-1),12,1)),AVERAGE(OFFSET('2WFines'!$E$10,12*$A42,4*(PlotControl!$C$6-1),12,1))) -> 296350.8333 | E42: =IF(PlotControl!$B$4 = "Annual Max",MAX(OFFSET('2WCoarse'!$C$10,12*$A42,4*(PlotControl!$C$6-1),12,1)),AVERAGE(OFFSET('2WCoarse'!$C$10,12*$A42,4*(PlotControl!$C$6-1),12,1))) -> 221165.8333 | F42: =IF(PlotControl!$B$4 = "Annual Max",MAX(OFFSET('2WCoarse'!$D$10,12*$A42,4*(PlotControl!$C$6-1),12,1)),AVERAGE(OFFSET('2WCoarse'!$D$10,12*$A42,4*(PlotControl!$C$6-1),12,1))) -> 391309.1667 | G42: =IF(PlotControl!$B$4 = "Annual Max",MAX(OFFSET('2WCoarse'!$E$10,12*$A42,4*(PlotControl!$C$6-1),12,1)),AVERAGE(OFFSET('2WCoarse'!$E$10,12*$A42,4*(PlotControl!$C$6-1),12,1))) -> 528613.3333 | H42: =IF(PlotControl!$B$4 = "Annual Max",MAX(OFFSET('2WBank'!$C$10,12*$A42,4*(PlotControl!$C$6-1),12,1)),AVERAGE(OFFSET('2WBank'!$C$10,12*$A42,4*(PlotControl!$C$6-1),12,1))) -> 419000.8333 | I42: =IF(PlotControl!$B$4 = "Annual Max",MAX(OFFSET('2WBank'!$D$10,12*$A42,4*(PlotControl!$C$6-1),12,1)),AVERAGE(OFFSET('2WBank'!$D$10,12*$A42,4*(PlotControl!$C$6-1),12,1))) -> 695905.8333 | J42: =IF(PlotControl!$B$4 = "Annual Max",MAX(OFFSET('2WBank'!$E$10,12*$A42,4*(PlotControl!$C$6-1),12,1)),AVERAGE(OFFSET('2WBank'!$E$10,12*$A42,4*(PlotControl!$C$6-1),12,1))) -> 932357.5 | K42: =IF(PlotControl!$B$4 = "Annual Max",MAX(OFFSET('2EFines'!$C$10,12*$A42,4*(PlotControl!$C$6-1),12,1)),AVERAGE(OFFSET('2EFines'!$C$10,12*$A42,4*(PlotControl!$C$6-1),12,1))) -> 0 | L42: =IF(PlotControl!$B$4 = "Annual Max",MAX(OFFSET('2EFines'!$D$10,12*$A42,4*(PlotControl!$C$6-1),12,1)),AVERAGE(OFFSET('2EFines'!$D$10,12*$A42,4*(PlotControl!$C$6-1),12,1))) -> 0 | M42: =IF(PlotControl!$B$4 = "Annual Max",MAX(OFFSET('2EFines'!$E$10,12*$A42,4*(PlotControl!$C$6-1),12,1)),AVERAGE(OFFSET('2EFines'!$E$10,12*$A42,4*(PlotControl!$C$6-1),12,1))) -> 0 | N42: =IF(PlotControl!$B$4 = "Annual Max",MAX(OFFSET('2ECoarse'!$C$10,12*$A42,4*(PlotControl!$C$6-1),12,1)),AVERAGE(OFFSET('2ECoarse'!$C$10,12*$A42,4*(PlotControl!$C$6-1),12,1))) -> 0 | O42: =IF(PlotControl!$B$4 = "Annual Max",MAX(OFFSET('2ECoarse'!$D$10,12*$A42,4*(PlotControl!$C$6-1),12,1)),AVERAGE(OFFSET('2ECoarse'!$D$10,12*$A42,4*(PlotControl!$C$6-1),12,1))) -> 0 | P42: =IF(PlotControl!$B$4 = "Annual Max",MAX(OFFSET('2ECoarse'!$E$10,12*$A42,4*(PlotControl!$C$6-1),12,1)),AVERAGE(OFFSET('2ECoarse'!$E$10,12*$A42,4*(PlotControl!$C$6-1),12,1))) -> 0 | Q42: =IF(PlotControl!$B$4 = "Annual Max",MAX(OFFSET('2EBank'!$C$10,12*$A42,4*(PlotControl!$C$6-1),12,1)),AVERAGE(OFFSET('2EBank'!$C$10,12*$A42,4*(PlotControl!$C$6-1),12,1))) -> 273424.1667 | R42: =IF(PlotControl!$B$4 = "Annual Max",MAX(OFFSET('2EBank'!$D$10,12*$A42,4*(PlotControl!$C$6-1),12,1)),AVERAGE(OFFSET('2EBank'!$D$10,12*$A42,4*(PlotControl!$C$6-1),12,1))) -> 479879.1667 | S42: =IF(PlotControl!$B$4 = "Annual Max",MAX(OFFSET('2EBank'!$E$10,12*$A42,4*(PlotControl!$C$6-1),12,1)),AVERAGE(OFFSET('2EBank'!$E$10,12*$A42,4*(PlotControl!$C$6-1),12,1))) -> 659352.5 | T42: =IF(PlotControl!$B$4 = "Annual Max",MAX(OFFSET('1EFines'!$C$10,12*$A42,4*(PlotControl!$C$6-1),12,1)),AVERAGE(OFFSET('1EFines'!$C$10,12*$A42,4*(PlotControl!$C$6-1),12,1))) -> 0 | U42: =IF(PlotControl!$B$4 = "Annual Max",MAX(OFFSET('1EFines'!$D$10,12*$A42,4*(PlotControl!$C$6-1),12,1)),AVERAGE(OFFSET('1EFines'!$D$10,12*$A42,4*(PlotControl!$C$6-1),12,1))) -> 0 | V42: =IF(PlotControl!$B$4 = "Annual Max",MAX(OFFSET('1EFines'!$E$10,12*$A42,4*(PlotControl!$C$6-1),12,1)),AVERAGE(OFFSET('1EFines'!$E$10,12*$A42,4*(PlotControl!$C$6-1),12,1))) -> 0 | W42: =IF(PlotControl!$B$4 = "Annual Max",MAX(OFFSET('1ECoarse'!$C$10,12*$A42,4*(PlotControl!$C$6-1),12,1)),AVERAGE(OFFSET('1ECoarse'!$C$10,12*$A42,4*(PlotControl!$C$6-1),12,1))) -> 476589.1667 | X42: =IF(PlotControl!$B$4 = "Annual Max",MAX(OFFSET('1ECoarse'!$D$10,12*$A42,4*(PlotControl!$C$6-1),12,1)),AVERAGE(OFFSET('1ECoarse'!$D$10,12*$A42,4*(PlotControl!$C$6-1),12,1))) -> 789825 | Y42: =IF(PlotControl!$B$4 = "Annual Max",MAX(OFFSET('1ECoarse'!$E$10,12*$A42,4*(PlotControl!$C$6-1),12,1)),AVERAGE(OFFSET('1ECoarse'!$E$10,12*$A42,4*(PlotControl!$C$6-1),12,1))) -> 1087950
A43: 38 | B43: =IF(PlotControl!$B$4 = "Annual Max",MAX(OFFSET('2WFines'!$C$10,12*$A43,4*(PlotControl!$C$6-1),12,1)),AVERAGE(OFFSET('2WFines'!$C$10,12*$A43,4*(PlotControl!$C$6-1),12,1))) -> 209024.1667 | C43: =IF(PlotControl!$B$4 = "Annual Max",MAX(OFFSET('2WFines'!$D$10,12*$A43,4*(PlotControl!$C$6-1),12,1)),AVERAGE(OFFSET('2WFines'!$D$10,12*$A43,4*(PlotControl!$C$6-1),12,1))) -> 261599.1667 | D43: =IF(PlotControl!$B$4 = "Annual Max",MAX(OFFSET('2WFines'!$E$10,12*$A43,4*(PlotControl!$C$6-1),12,1)),AVERAGE(OFFSET('2WFines'!$E$10,12*$A43,4*(PlotControl!$C$6-1),12,1))) -> 297337.5 | E43: =IF(PlotControl!$B$4 = "Annual Max",MAX(OFFSET('2WCoarse'!$C$10,12*$A43,4*(PlotControl!$C$6-1),12,1)),AVERAGE(OFFSET('2WCoarse'!$C$10,12*$A43,4*(PlotControl!$C$6-1),12,1))) -> 224381.6667 | F43: =IF(PlotControl!$B$4 = "Annual Max",MAX(OFFSET('2WCoarse'!$D$10,12*$A43,4*(PlotControl!$C$6-1),12,1)),AVERAGE(OFFSET('2WCoarse'!$D$10,12*$A43,4*(PlotControl!$C$6-1),12,1))) -> 396265.8333 | G43: =IF(PlotControl!$B$4 = "Annual Max",MAX(OFFSET('2WCoarse'!$E$10,12*$A43,4*(PlotControl!$C$6-1),12,1)),AVERAGE(OFFSET('2WCoarse'!$E$10,12*$A43,4*(PlotControl!$C$6-1),12,1))) -> 531998.3333 | H43: =IF(PlotControl!$B$4 = "Annual Max",MAX(OFFSET('2WBank'!$C$10,12*$A43,4*(PlotControl!$C$6-1),12,1)),AVERAGE(OFFSET('2WBank'!$C$10,12*$A43,4*(PlotControl!$C$6-1),12,1))) -> 423006.6667 | I43: =IF(PlotControl!$B$4 = "Annual Max",MAX(OFFSET('2WBank'!$D$10,12*$A43,4*(PlotControl!$C$6-1),12,1)),AVERAGE(OFFSET('2WBank'!$D$10,12*$A43,4*(PlotControl!$C$6-1),12,1))) -> 696374.1667 | J43: =IF(PlotControl!$B$4 = "Annual Max",MAX(OFFSET('2WBank'!$E$10,12*$A43,4*(PlotControl!$C$6-1),12,1)),AVERAGE(OFFSET('2WBank'!$E$10,12*$A43,4*(PlotControl!$C$6-1),12,1))) -> 929205.8333 | K43: =IF(PlotControl!$B$4 = "Annual Max",MAX(OFFSET('2EFines'!$C$10,12*$A43,4*(PlotControl!$C$6-1),12,1)),AVERAGE(OFFSET('2EFines'!$C$10,12*$A43,4*(PlotControl!$C$6-1),12,1))) -> 0 | L43: =IF(PlotControl!$B$4 = "Annual Max",MAX(OFFSET('2EFines'!$D$10,12*$A43,4*(PlotControl!$C$6-1),12,1)),AVERAGE(OFFSET('2EFines'!$D$10,12*$A43,4*(PlotControl!$C$6-1),12,1))) -> 0 | M43: =IF(PlotControl!$B$4 = "Annual Max",MAX(OFFSET('2EFines'!$E$10,12*$A43,4*(PlotControl!$C$6-1),12,1)),AVERAGE(OFFSET('2EFines'!$E$10,12*$A43,4*(PlotControl!$C$6-1),12,1))) -> 0 | N43: =IF(PlotControl!$B$4 = "Annual Max",MAX(OFFSET('2ECoarse'!$C$10,12*$A43,4*(PlotControl!$C$6-1),12,1)),AVERAGE(OFFSET('2ECoarse'!$C$10,12*$A43,4*(PlotControl!$C$6-1),12,1))) -> 0 | O43: =IF(PlotControl!$B$4 = "Annual Max",MAX(OFFSET('2ECoarse'!$D$10,12*$A43,4*(PlotControl!$C$6-1),12,1)),AVERAGE(OFFSET('2ECoarse'!$D$10,12*$A43,4*(PlotControl!$C$6-1),12,1))) -> 0 | P43: =IF(PlotControl!$B$4 = "Annual Max",MAX(OFFSET('2ECoarse'!$E$10,12*$A43,4*(PlotControl!$C$6-1),12,1)),AVERAGE(OFFSET('2ECoarse'!$E$10,12*$A43,4*(PlotControl!$C$6-1),12,1))) -> 0 | Q43: =IF(PlotControl!$B$4 = "Annual Max",MAX(OFFSET('2EBank'!$C$10,12*$A43,4*(PlotControl!$C$6-1),12,1)),AVERAGE(OFFSET('2EBank'!$C$10,12*$A43,4*(PlotControl!$C$6-1),12,1))) -> 275800.8333 | R43: =IF(PlotControl!$B$4 = "Annual Max",MAX(OFFSET('2EBank'!$D$10,12*$A43,4*(PlotControl!$C$6-1),12,1)),AVERAGE(OFFSET('2EBank'!$D$10,12*$A43,4*(PlotControl!$C$6-1),12,1))) -> 479683.3333 | S43: =IF(PlotControl!$B$4 = "Annual Max",MAX(OFFSET('2EBank'!$E$10,12*$A43,4*(PlotControl!$C$6-1),12,1)),AVERAGE(OFFSET('2EBank'!$E$10,12*$A43,4*(PlotControl!$C$6-1),12,1))) -> 671674.1667 | T43: =IF(PlotControl!$B$4 = "Annual Max",MAX(OFFSET('1EFines'!$C$10,12*$A43,4*(PlotControl!$C$6-1),12,1)),AVERAGE(OFFSET('1EFines'!$C$10,12*$A43,4*(PlotControl!$C$6-1),12,1))) -> 0 | U43: =IF(PlotControl!$B$4 = "Annual Max",MAX(OFFSET('1EFines'!$D$10,12*$A43,4*(PlotControl!$C$6-1),12,1)),AVERAGE(OFFSET('1EFines'!$D$10,12*$A43,4*(PlotControl!$C$6-1),12,1))) -> 0 | V43: =IF(PlotControl!$B$4 = "Annual Max",MAX(OFFSET('1EFines'!$E$10,12*$A43,4*(PlotControl!$C$6-1),12,1)),AVERAGE(OFFSET('1EFines'!$E$10,12*$A43,4*(PlotControl!$C$6-1),12,1))) -> 0 | W43: =IF(PlotControl!$B$4 = "Annual Max",MAX(OFFSET('1ECoarse'!$C$10,12*$A43,4*(PlotControl!$C$6-1),12,1)),AVERAGE(OFFSET('1ECoarse'!$C$10,12*$A43,4*(PlotControl!$C$6-1),12,1))) -> 481500 | X43: =IF(PlotControl!$B$4 = "Annual Max",MAX(OFFSET('1ECoarse'!$D$10,12*$A43,4*(PlotControl!$C$6-1),12,1)),AVERAGE(OFFSET('1ECoarse'!$D$10,12*$A43,4*(PlotControl!$C$6-1),12,1))) -> 785412.5 | Y43: =IF(PlotControl!$B$4 = "Annual Max",MAX(OFFSET('1ECoarse'!$E$10,12*$A43,4*(PlotControl!$C$6-1),12,1)),AVERAGE(OFFSET('1ECoarse'!$E$10,12*$A43,4*(PlotControl!$C$6-1),12,1))) -> 1106700
A44: 39 | B44: =IF(PlotControl!$B$4 = "Annual Max",MAX(OFFSET('2WFines'!$C$10,12*$A44,4*(PlotControl!$C$6-1),12,1)),AVERAGE(OFFSET('2WFines'!$C$10,12*$A44,4*(PlotControl!$C$6-1),12,1))) -> 208236.6667 | C44: =IF(PlotControl!$B$4 = "Annual Max",MAX(OFFSET('2WFines'!$D$10,12*$A44,4*(PlotControl!$C$6-1),12,1)),AVERAGE(OFFSET('2WFines'!$D$10,12*$A44,4*(PlotControl!$C$6-1),12,1))) -> 262150 | D44: =IF(PlotControl!$B$4 = "Annual Max",MAX(OFFSET('2WFines'!$E$10,12*$A44,4*(PlotControl!$C$6-1),12,1)),AVERAGE(OFFSET('2WFines'!$E$10,12*$A44,4*(PlotControl!$C$6-1),12,1))) -> 297944.1667 | E44: =IF(PlotControl!$B$4 = "Annual Max",MAX(OFFSET('2WCoarse'!$C$10,12*$A44,4*(PlotControl!$C$6-1),12,1)),AVERAGE(OFFSET('2WCoarse'!$C$10,12*$A44,4*(PlotControl!$C$6-1),12,1))) -> 224964.1667 | F44: =IF(PlotControl!$B$4 = "Annual Max",MAX(OFFSET('2WCoarse'!$D$10,12*$A44,4*(PlotControl!$C$6-1),12,1)),AVERAGE(OFFSET('2WCoarse'!$D$10,12*$A44,4*(PlotControl!$C$6-1),12,1))) -> 399095 | G44: =IF(PlotControl!$B$4 = "Annual Max",MAX(OFFSET('2WCoarse'!$E$10,12*$A44,4*(PlotControl!$C$6-1),12,1)),AVERAGE(OFFSET('2WCoarse'!$E$10,12*$A44,4*(PlotControl!$C$6-1),12,1))) -> 537215.8333 | H44: =IF(PlotControl!$B$4 = "Annual Max",MAX(OFFSET('2WBank'!$C$10,12*$A44,4*(PlotControl!$C$6-1),12,1)),AVERAGE(OFFSET('2WBank'!$C$10,12*$A44,4*(PlotControl!$C$6-1),12,1))) -> 422857.5 | I44: =IF(PlotControl!$B$4 = "Annual Max",MAX(OFFSET('2WBank'!$D$10,12*$A44,4*(PlotControl!$C$6-1),12,1)),AVERAGE(OFFSET('2WBank'!$D$10,12*$A44,4*(PlotControl!$C$6-1),12,1))) -> 699175.8333 | J44: =IF(PlotControl!$B$4 = "Annual Max",MAX(OFFSET('2WBank'!$E$10,12*$A44,4*(PlotControl!$C$6-1),12,1)),AVERAGE(OFFSET('2WBank'!$E$10,12*$A44,4*(PlotControl!$C$6-1),12,1))) -> 927671.6667 | K44: =IF(PlotControl!$B$4 = "Annual Max",MAX(OFFSET('2EFines'!$C$10,12*$A44,4*(PlotControl!$C$6-1),12,1)),AVERAGE(OFFSET('2EFines'!$C$10,12*$A44,4*(PlotControl!$C$6-1),12,1))) -> 0 | L44: =IF(PlotControl!$B$4 = "Annual Max",MAX(OFFSET('2EFines'!$D$10,12*$A44,4*(PlotControl!$C$6-1),12,1)),AVERAGE(OFFSET('2EFines'!$D$10,12*$A44,4*(PlotControl!$C$6-1),12,1))) -> 0 | M44: =IF(PlotControl!$B$4 = "Annual Max",MAX(OFFSET('2EFines'!$E$10,12*$A44,4*(PlotControl!$C$6-1),12,1)),AVERAGE(OFFSET('2EFines'!$E$10,12*$A44,4*(PlotControl!$C$6-1),12,1))) -> 0 | N44: =IF(PlotControl!$B$4 = "Annual Max",MAX(OFFSET('2ECoarse'!$C$10,12*$A44,4*(PlotControl!$C$6-1),12,1)),AVERAGE(OFFSET('2ECoarse'!$C$10,12*$A44,4*(PlotControl!$C$6-1),12,1))) -> 0 | O44: =IF(PlotControl!$B$4 = "Annual Max",MAX(OFFSET('2ECoarse'!$D$10,12*$A44,4*(PlotControl!$C$6-1),12,1)),AVERAGE(OFFSET('2ECoarse'!$D$10,12*$A44,4*(PlotControl!$C$6-1),12,1))) -> 0 | P44: =IF(PlotControl!$B$4 = "Annual Max",MAX(OFFSET('2ECoarse'!$E$10,12*$A44,4*(PlotControl!$C$6-1),12,1)),AVERAGE(OFFSET('2ECoarse'!$E$10,12*$A44,4*(PlotControl!$C$6-1),12,1))) -> 0 | Q44: =IF(PlotControl!$B$4 = "Annual Max",MAX(OFFSET('2EBank'!$C$10,12*$A44,4*(PlotControl!$C$6-1),12,1)),AVERAGE(OFFSET('2EBank'!$C$10,12*$A44,4*(PlotControl!$C$6-1),12,1))) -> 274570 | R44: =IF(PlotControl!$B$4 = "Annual Max",MAX(OFFSET('2EBank'!$D$10,12*$A44,4*(PlotControl!$C$6-1),12,1)),AVERAGE(OFFSET('2EBank'!$D$10,12*$A44,4*(PlotControl!$C$6-1),12,1))) -> 480418.3333 | S44: =IF(PlotControl!$B$4 = "Annual Max",MAX(OFFSET('2EBank'!$E$10,12*$A44,4*(PlotControl!$C$6-1),12,1)),AVERAGE(OFFSET('2EBank'!$E$10,12*$A44,4*(PlotControl!$C$6-1),12,1))) -> 669854.1667 | T44: =IF(PlotControl!$B$4 = "Annual Max",MAX(OFFSET('1EFines'!$C$10,12*$A44,4*(PlotControl!$C$6-1),12,1)),AVERAGE(OFFSET('1EFines'!$C$10,12*$A44,4*(PlotControl!$C$6-1),12,1))) -> 0 | U44: =IF(PlotControl!$B$4 = "Annual Max",MAX(OFFSET('1EFines'!$D$10,12*$A44,4*(PlotControl!$C$6-1),12,1)),AVERAGE(OFFSET('1EFines'!$D$10,12*$A44,4*(PlotControl!$C$6-1),12,1))) -> 0 | V44: =IF(PlotControl!$B$4 = "Annual Max",MAX(OFFSET('1EFines'!$E$10,12*$A44,4*(PlotControl!$C$6-1),12,1)),AVERAGE(OFFSET('1EFines'!$E$10,12*$A44,4*(PlotControl!$C$6-1),12,1))) -> 0 | W44: =IF(PlotControl!$B$4 = "Annual Max",MAX(OFFSET('1ECoarse'!$C$10,12*$A44,4*(PlotControl!$C$6-1),12,1)),AVERAGE(OFFSET('1ECoarse'!$C$10,12*$A44,4*(PlotControl!$C$6-1),12,1))) -> 475086.6667 | X44: =IF(PlotControl!$B$4 = "Annual Max",MAX(OFFSET('1ECoarse'!$D$10,12*$A44,4*(PlotControl!$C$6-1),12,1)),AVERAGE(OFFSET('1ECoarse'!$D$10,12*$A44,4*(PlotControl!$C$6-1),12,1))) -> 784330 | Y44: =IF(PlotControl!$B$4 = "Annual Max",MAX(OFFSET('1ECoarse'!$E$10,12*$A44,4*(PlotControl!$C$6-1),12,1)),AVERAGE(OFFSET('1ECoarse'!$E$10,12*$A44,4*(PlotControl!$C$6-1),12,1))) -> 1115491.667
A45: 40 | B45: =IF(PlotControl!$B$4 = "Annual Max",MAX(OFFSET('2WFines'!$C$10,12*$A45,4*(PlotControl!$C$6-1),12,1)),AVERAGE(OFFSET('2WFines'!$C$10,12*$A45,4*(PlotControl!$C$6-1),12,1))) -> 208986.6667 | C45: =IF(PlotControl!$B$4 = "Annual Max",MAX(OFFSET('2WFines'!$D$10,12*$A45,4*(PlotControl!$C$6-1),12,1)),AVERAGE(OFFSET('2WFines'!$D$10,12*$A45,4*(PlotControl!$C$6-1),12,1))) -> 261956.6667 | D45: =IF(PlotControl!$B$4 = "Annual Max",MAX(OFFSET('2WFines'!$E$10,12*$A45,4*(PlotControl!$C$6-1),12,1)),AVERAGE(OFFSET('2WFines'!$E$10,12*$A45,4*(PlotControl!$C$6-1),12,1))) -> 297650 | E45: =IF(PlotControl!$B$4 = "Annual Max",MAX(OFFSET('2WCoarse'!$C$10,12*$A45,4*(PlotControl!$C$6-1),12,1)),AVERAGE(OFFSET('2WCoarse'!$C$10,12*$A45,4*(PlotControl!$C$6-1),12,1))) -> 226035.8333 | F45: =IF(PlotControl!$B$4 = "Annual Max",MAX(OFFSET('2WCoarse'!$D$10,12*$A45,4*(PlotControl!$C$6-1),12,1)),AVERAGE(OFFSET('2WCoarse'!$D$10,12*$A45,4*(PlotControl!$C$6-1),12,1))) -> 400173.3333 | G45: =IF(PlotControl!$B$4 = "Annual Max",MAX(OFFSET('2WCoarse'!$E$10,12*$A45,4*(PlotControl!$C$6-1),12,1)),AVERAGE(OFFSET('2WCoarse'!$E$10,12*$A45,4*(PlotControl!$C$6-1),12,1))) -> 541626.6667 | H45: =IF(PlotControl!$B$4 = "Annual Max",MAX(OFFSET('2WBank'!$C$10,12*$A45,4*(PlotControl!$C$6-1),12,1)),AVERAGE(OFFSET('2WBank'!$C$10,12*$A45,4*(PlotControl!$C$6-1),12,1))) -> 420455 | I45: =IF(PlotControl!$B$4 = "Annual Max",MAX(OFFSET('2WBank'!$D$10,12*$A45,4*(PlotControl!$C$6-1),12,1)),AVERAGE(OFFSET('2WBank'!$D$10,12*$A45,4*(PlotControl!$C$6-1),12,1))) -> 699925.8333 | J45: =IF(PlotControl!$B$4 = "Annual Max",MAX(OFFSET('2WBank'!$E$10,12*$A45,4*(PlotControl!$C$6-1),12,1)),AVERAGE(OFFSET('2WBank'!$E$10,12*$A45,4*(PlotControl!$C$6-1),12,1))) -> 927453.3333 | K45: =IF(PlotControl!$B$4 = "Annual Max",MAX(OFFSET('2EFines'!$C$10,12*$A45,4*(PlotControl!$C$6-1),12,1)),AVERAGE(OFFSET('2EFines'!$C$10,12*$A45,4*(PlotControl!$C$6-1),12,1))) -> 0 | L45: =IF(PlotControl!$B$4 = "Annual Max",MAX(OFFSET('2EFines'!$D$10,12*$A45,4*(PlotControl!$C$6-1),12,1)),AVERAGE(OFFSET('2EFines'!$D$10,12*$A45,4*(PlotControl!$C$6-1),12,1))) -> 0 | M45: =IF(PlotControl!$B$4 = "Annual Max",MAX(OFFSET('2EFines'!$E$10,12*$A45,4*(PlotControl!$C$6-1),12,1)),AVERAGE(OFFSET('2EFines'!$E$10,12*$A45,4*(PlotControl!$C$6-1),12,1))) -> 0 | N45: =IF(PlotControl!$B$4 = "Annual Max",MAX(OFFSET('2ECoarse'!$C$10,12*$A45,4*(PlotControl!$C$6-1),12,1)),AVERAGE(OFFSET('2ECoarse'!$C$10,12*$A45,4*(PlotControl!$C$6-1),12,1))) -> 0 | O45: =IF(PlotControl!$B$4 = "Annual Max",MAX(OFFSET('2ECoarse'!$D$10,12*$A45,4*(PlotControl!$C$6-1),12,1)),AVERAGE(OFFSET('2ECoarse'!$D$10,12*$A45,4*(PlotControl!$C$6-1),12,1))) -> 0 | P45: =IF(PlotControl!$B$4 = "Annual Max",MAX(OFFSET('2ECoarse'!$E$10,12*$A45,4*(PlotControl!$C$6-1),12,1)),AVERAGE(OFFSET('2ECoarse'!$E$10,12*$A45,4*(PlotControl!$C$6-1),12,1))) -> 0 | Q45: =IF(PlotControl!$B$4 = "Annual Max",MAX(OFFSET('2EBank'!$C$10,12*$A45,4*(PlotControl!$C$6-1),12,1)),AVERAGE(OFFSET('2EBank'!$C$10,12*$A45,4*(PlotControl!$C$6-1),12,1))) -> 277903.3333 | R45: =IF(PlotControl!$B$4 = "Annual Max",MAX(OFFSET('2EBank'!$D$10,12*$A45,4*(PlotControl!$C$6-1),12,1)),AVERAGE(OFFSET('2EBank'!$D$10,12*$A45,4*(PlotControl!$C$6-1),12,1))) -> 480003.3333 | S45: =IF(PlotControl!$B$4 = "Annual Max",MAX(OFFSET('2EBank'!$E$10,12*$A45,4*(PlotControl!$C$6-1),12,1)),AVERAGE(OFFSET('2EBank'!$E$10,12*$A45,4*(PlotControl!$C$6-1),12,1))) -> 676352.5 | T45: =IF(PlotControl!$B$4 = "Annual Max",MAX(OFFSET('1EFines'!$C$10,12*$A45,4*(PlotControl!$C$6-1),12,1)),AVERAGE(OFFSET('1EFines'!$C$10,12*$A45,4*(PlotControl!$C$6-1),12,1))) -> 0 | U45: =IF(PlotControl!$B$4 = "Annual Max",MAX(OFFSET('1EFines'!$D$10,12*$A45,4*(PlotControl!$C$6-1),12,1)),AVERAGE(OFFSET('1EFines'!$D$10,12*$A45,4*(PlotControl!$C$6-1),12,1))) -> 0 | V45: =IF(PlotControl!$B$4 = "Annual Max",MAX(OFFSET('1EFines'!$E$10,12*$A45,4*(PlotControl!$C$6-1),12,1)),AVERAGE(OFFSET('1EFines'!$E$10,12*$A45,4*(PlotControl!$C$6-1),12,1))) -> 0 | W45: =IF(PlotControl!$B$4 = "Annual Max",MAX(OFFSET('1ECoarse'!$C$10,12*$A45,4*(PlotControl!$C$6-1),12,1)),AVERAGE(OFFSET('1ECoarse'!$C$10,12*$A45,4*(PlotControl!$C$6-1),12,1))) -> 477247.5 | X45: =IF(PlotControl!$B$4 = "Annual Max",MAX(OFFSET('1ECoarse'!$D$10,12*$A45,4*(PlotControl!$C$6-1),12,1)),AVERAGE(OFFSET('1ECoarse'!$D$10,12*$A45,4*(PlotControl!$C$6-1),12,1))) -> 791069.1667 | Y45: =IF(PlotControl!$B$4 = "Annual Max",MAX(OFFSET('1ECoarse'!$E$10,12*$A45,4*(PlotControl!$C$6-1),12,1)),AVERAGE(OFFSET('1ECoarse'!$E$10,12*$A45,4*(PlotControl!$C$6-1),12,1))) -> 1110983.333
A46: 41 | B46: =IF(PlotControl!$B$4 = "Annual Max",MAX(OFFSET('2WFines'!$C$10,12*$A46,4*(PlotControl!$C$6-1),12,1)),AVERAGE(OFFSET('2WFines'!$C$10,12*$A46,4*(PlotControl!$C$6-1),12,1))) -> 208568.3333 | C46: =IF(PlotControl!$B$4 = "Annual Max",MAX(OFFSET('2WFines'!$D$10,12*$A46,4*(PlotControl!$C$6-1),12,1)),AVERAGE(OFFSET('2WFines'!$D$10,12*$A46,4*(PlotControl!$C$6-1),12,1))) -> 261799.1667 | D46: =IF(PlotControl!$B$4 = "Annual Max",MAX(OFFSET('2WFines'!$E$10,12*$A46,4*(PlotControl!$C$6-1),12,1)),AVERAGE(OFFSET('2WFines'!$E$10,12*$A46,4*(PlotControl!$C$6-1),12,1))) -> 297777.5 | E46: =IF(PlotControl!$B$4 = "Annual Max",MAX(OFFSET('2WCoarse'!$C$10,12*$A46,4*(PlotControl!$C$6-1),12,1)),AVERAGE(OFFSET('2WCoarse'!$C$10,12*$A46,4*(PlotControl!$C$6-1),12,1))) -> 227156.6667 | F46: =IF(PlotControl!$B$4 = "Annual Max",MAX(OFFSET('2WCoarse'!$D$10,12*$A46,4*(PlotControl!$C$6-1),12,1)),AVERAGE(OFFSET('2WCoarse'!$D$10,12*$A46,4*(PlotControl!$C$6-1),12,1))) -> 402025.8333 | G46: =IF(PlotControl!$B$4 = "Annual Max",MAX(OFFSET('2WCoarse'!$E$10,12*$A46,4*(PlotControl!$C$6-1),12,1)),AVERAGE(OFFSET('2WCoarse'!$E$10,12*$A46,4*(PlotControl!$C$6-1),12,1))) -> 547800 | H46: =IF(PlotControl!$B$4 = "Annual Max",MAX(OFFSET('2WBank'!$C$10,12*$A46,4*(PlotControl!$C$6-1),12,1)),AVERAGE(OFFSET('2WBank'!$C$10,12*$A46,4*(PlotControl!$C$6-1),12,1))) -> 422150.8333 | I46: =IF(PlotControl!$B$4 = "Annual Max",MAX(OFFSET('2WBank'!$D$10,12*$A46,4*(PlotControl!$C$6-1),12,1)),AVERAGE(OFFSET('2WBank'!$D$10,12*$A46,4*(PlotControl!$C$6-1),12,1))) -> 700425 | J46: =IF(PlotControl!$B$4 = "Annual Max",MAX(OFFSET('2WBank'!$E$10,12*$A46,4*(PlotControl!$C$6-1),12,1)),AVERAGE(OFFSET('2WBank'!$E$10,12*$A46,4*(PlotControl!$C$6-1),12,1))) -> 933257.5 | K46: =IF(PlotControl!$B$4 = "Annual Max",MAX(OFFSET('2EFines'!$C$10,12*$A46,4*(PlotControl!$C$6-1),12,1)),AVERAGE(OFFSET('2EFines'!$C$10,12*$A46,4*(PlotControl!$C$6-1),12,1))) -> 0 | L46: =IF(PlotControl!$B$4 = "Annual Max",MAX(OFFSET('2EFines'!$D$10,12*$A46,4*(PlotControl!$C$6-1),12,1)),AVERAGE(OFFSET('2EFines'!$D$10,12*$A46,4*(PlotControl!$C$6-1),12,1))) -> 0 | M46: =IF(PlotControl!$B$4 = "Annual Max",MAX(OFFSET('2EFines'!$E$10,12*$A46,4*(PlotControl!$C$6-1),12,1)),AVERAGE(OFFSET('2EFines'!$E$10,12*$A46,4*(PlotControl!$C$6-1),12,1))) -> 0 | N46: =IF(PlotControl!$B$4 = "Annual Max",MAX(OFFSET('2ECoarse'!$C$10,12*$A46,4*(PlotControl!$C$6-1),12,1)),AVERAGE(OFFSET('2ECoarse'!$C$10,12*$A46,4*(PlotControl!$C$6-1),12,1))) -> 0 | O46: =IF(PlotControl!$B$4 = "Annual Max",MAX(OFFSET('2ECoarse'!$D$10,12*$A46,4*(PlotControl!$C$6-1),12,1)),AVERAGE(OFFSET('2ECoarse'!$D$10,12*$A46,4*(PlotControl!$C$6-1),12,1))) -> 0 | P46: =IF(PlotControl!$B$4 = "Annual Max",MAX(OFFSET('2ECoarse'!$E$10,12*$A46,4*(PlotControl!$C$6-1),12,1)),AVERAGE(OFFSET('2ECoarse'!$E$10,12*$A46,4*(PlotControl!$C$6-1),12,1))) -> 0 | Q46: =IF(PlotControl!$B$4 = "Annual Max",MAX(OFFSET('2EBank'!$C$10,12*$A46,4*(PlotControl!$C$6-1),12,1)),AVERAGE(OFFSET('2EBank'!$C$10,12*$A46,4*(PlotControl!$C$6-1),12,1))) -> 280794.1667 | R46: =IF(PlotControl!$B$4 = "Annual Max",MAX(OFFSET('2EBank'!$D$10,12*$A46,4*(PlotControl!$C$6-1),12,1)),AVERAGE(OFFSET('2EBank'!$D$10,12*$A46,4*(PlotControl!$C$6-1),12,1))) -> 482118.3333 | S46: =IF(PlotControl!$B$4 = "Annual Max",MAX(OFFSET('2EBank'!$E$10,12*$A46,4*(PlotControl!$C$6-1),12,1)),AVERAGE(OFFSET('2EBank'!$E$10,12*$A46,4*(PlotControl!$C$6-1),12,1))) -> 682049.1667 | T46: =IF(PlotControl!$B$4 = "Annual Max",MAX(OFFSET('1EFines'!$C$10,12*$A46,4*(PlotControl!$C$6-1),12,1)),AVERAGE(OFFSET('1EFines'!$C$10,12*$A46,4*(PlotControl!$C$6-1),12,1))) -> 0 | U46: =IF(PlotControl!$B$4 = "Annual Max",MAX(OFFSET('1EFines'!$D$10,12*$A46,4*(PlotControl!$C$6-1),12,1)),AVERAGE(OFFSET('1EFines'!$D$10,12*$A46,4*(PlotControl!$C$6-1),12,1))) -> 0 | V46: =IF(PlotControl!$B$4 = "Annual Max",MAX(OFFSET('1EFines'!$E$10,12*$A46,4*(PlotControl!$C$6-1),12,1)),AVERAGE(OFFSET('1EFines'!$E$10,12*$A46,4*(PlotControl!$C$6-1),12,1))) -> 0 | W46: =IF(PlotControl!$B$4 = "Annual Max",MAX(OFFSET('1ECoarse'!$C$10,12*$A46,4*(PlotControl!$C$6-1),12,1)),AVERAGE(OFFSET('1ECoarse'!$C$10,12*$A46,4*(PlotControl!$C$6-1),12,1))) -> 481968.3333 | X46: =IF(PlotControl!$B$4 = "Annual Max",MAX(OFFSET('1ECoarse'!$D$10,12*$A46,4*(PlotControl!$C$6-1),12,1)),AVERAGE(OFFSET('1ECoarse'!$D$10,12*$A46,4*(PlotControl!$C$6-1),12,1))) -> 800815.8333 | Y46: =IF(PlotControl!$B$4 = "Annual Max",MAX(OFFSET('1ECoarse'!$E$10,12*$A46,4*(PlotControl!$C$6-1),12,1)),AVERAGE(OFFSET('1ECoarse'!$E$10,12*$A46,4*(PlotControl!$C$6-1),12,1))) -> 1106650
A47: 42 | B47: =IF(PlotControl!$B$4 = "Annual Max",MAX(OFFSET('2WFines'!$C$10,12*$A47,4*(PlotControl!$C$6-1),12,1)),AVERAGE(OFFSET('2WFines'!$C$10,12*$A47,4*(PlotControl!$C$6-1),12,1))) -> 208110 | C47: =IF(PlotControl!$B$4 = "Annual Max",MAX(OFFSET('2WFines'!$D$10,12*$A47,4*(PlotControl!$C$6-1),12,1)),AVERAGE(OFFSET('2WFines'!$D$10,12*$A47,4*(PlotControl!$C$6-1),12,1))) -> 262839.1667 | D47: =IF(PlotControl!$B$4 = "Annual Max",MAX(OFFSET('2WFines'!$E$10,12*$A47,4*(PlotControl!$C$6-1),12,1)),AVERAGE(OFFSET('2WFines'!$E$10,12*$A47,4*(PlotControl!$C$6-1),12,1))) -> 300498.3333 | E47: =IF(PlotControl!$B$4 = "Annual Max",MAX(OFFSET('2WCoarse'!$C$10,12*$A47,4*(PlotControl!$C$6-1),12,1)),AVERAGE(OFFSET('2WCoarse'!$C$10,12*$A47,4*(PlotControl!$C$6-1),12,1))) -> 230545.8333 | F47: =IF(PlotControl!$B$4 = "Annual Max",MAX(OFFSET('2WCoarse'!$D$10,12*$A47,4*(PlotControl!$C$6-1),12,1)),AVERAGE(OFFSET('2WCoarse'!$D$10,12*$A47,4*(PlotControl!$C$6-1),12,1))) -> 405577.5 | G47: =IF(PlotControl!$B$4 = "Annual Max",MAX(OFFSET('2WCoarse'!$E$10,12*$A47,4*(PlotControl!$C$6-1),12,1)),AVERAGE(OFFSET('2WCoarse'!$E$10,12*$A47,4*(PlotControl!$C$6-1),12,1))) -> 555012.5 | H47: =IF(PlotControl!$B$4 = "Annual Max",MAX(OFFSET('2WBank'!$C$10,12*$A47,4*(PlotControl!$C$6-1),12,1)),AVERAGE(OFFSET('2WBank'!$C$10,12*$A47,4*(PlotControl!$C$6-1),12,1))) -> 423008.3333 | I47: =IF(PlotControl!$B$4 = "Annual Max",MAX(OFFSET('2WBank'!$D$10,12*$A47,4*(PlotControl!$C$6-1),12,1)),AVERAGE(OFFSET('2WBank'!$D$10,12*$A47,4*(PlotControl!$C$6-1),12,1))) -> 701190.8333 | J47: =IF(PlotControl!$B$4 = "Annual Max",MAX(OFFSET('2WBank'!$E$10,12*$A47,4*(PlotControl!$C$6-1),12,1)),AVERAGE(OFFSET('2WBank'!$E$10,12*$A47,4*(PlotControl!$C$6-1),12,1))) -> 944390 | K47: =IF(PlotControl!$B$4 = "Annual Max",MAX(OFFSET('2EFines'!$C$10,12*$A47,4*(PlotControl!$C$6-1),12,1)),AVERAGE(OFFSET('2EFines'!$C$10,12*$A47,4*(PlotControl!$C$6-1),12,1))) -> 0 | L47: =IF(PlotControl!$B$4 = "Annual Max",MAX(OFFSET('2EFines'!$D$10,12*$A47,4*(PlotControl!$C$6-1),12,1)),AVERAGE(OFFSET('2EFines'!$D$10,12*$A47,4*(PlotControl!$C$6-1),12,1))) -> 0 | M47: =IF(PlotControl!$B$4 = "Annual Max",MAX(OFFSET('2EFines'!$E$10,12*$A47,4*(PlotControl!$C$6-1),12,1)),AVERAGE(OFFSET('2EFines'!$E$10,12*$A47,4*(PlotControl!$C$6-1),12,1))) -> 0 | N47: =IF(PlotControl!$B$4 = "Annual Max",MAX(OFFSET('2ECoarse'!$C$10,12*$A47,4*(PlotControl!$C$6-1),12,1)),AVERAGE(OFFSET('2ECoarse'!$C$10,12*$A47,4*(PlotControl!$C$6-1),12,1))) -> 0 | O47: =IF(PlotControl!$B$4 = "Annual Max",MAX(OFFSET('2ECoarse'!$D$10,12*$A47,4*(PlotControl!$C$6-1),12,1)),AVERAGE(OFFSET('2ECoarse'!$D$10,12*$A47,4*(PlotControl!$C$6-1),12,1))) -> 0 | P47: =IF(PlotControl!$B$4 = "Annual Max",MAX(OFFSET('2ECoarse'!$E$10,12*$A47,4*(PlotControl!$C$6-1),12,1)),AVERAGE(OFFSET('2ECoarse'!$E$10,12*$A47,4*(PlotControl!$C$6-1),12,1))) -> 0 | Q47: =IF(PlotControl!$B$4 = "Annual Max",MAX(OFFSET('2EBank'!$C$10,12*$A47,4*(PlotControl!$C$6-1),12,1)),AVERAGE(OFFSET('2EBank'!$C$10,12*$A47,4*(PlotControl!$C$6-1),12,1))) -> 280112.5 | R47: =IF(PlotControl!$B$4 = "Annual Max",MAX(OFFSET('2EBank'!$D$10,12*$A47,4*(PlotControl!$C$6-1),12,1)),AVERAGE(OFFSET('2EBank'!$D$10,12*$A47,4*(PlotControl!$C$6-1),12,1))) -> 484693.3333 | S47: =IF(PlotControl!$B$4 = "Annual Max",MAX(OFFSET('2EBank'!$E$10,12*$A47,4*(PlotControl!$C$6-1),12,1)),AVERAGE(OFFSET('2EBank'!$E$10,12*$A47,4*(PlotControl!$C$6-1),12,1))) -> 685135.8333 | T47: =IF(PlotControl!$B$4 = "Annual Max",MAX(OFFSET('1EFines'!$C$10,12*$A47,4*(PlotControl!$C$6-1),12,1)),AVERAGE(OFFSET('1EFines'!$C$10,12*$A47,4*(PlotControl!$C$6-1),12,1))) -> 0 | U47: =IF(PlotControl!$B$4 = "Annual Max",MAX(OFFSET('1EFines'!$D$10,12*$A47,4*(PlotControl!$C$6-1),12,1)),AVERAGE(OFFSET('1EFines'!$D$10,12*$A47,4*(PlotControl!$C$6-1),12,1))) -> 0 | V47: =IF(PlotControl!$B$4 = "Annual Max",MAX(OFFSET('1EFines'!$E$10,12*$A47,4*(PlotControl!$C$6-1),12,1)),AVERAGE(OFFSET('1EFines'!$E$10,12*$A47,4*(PlotControl!$C$6-1),12,1))) -> 0 | W47: =IF(PlotControl!$B$4 = "Annual Max",MAX(OFFSET('1ECoarse'!$C$10,12*$A47,4*(PlotControl!$C$6-1),12,1)),AVERAGE(OFFSET('1ECoarse'!$C$10,12*$A47,4*(PlotControl!$C$6-1),12,1))) -> 479348.3333 | X47: =IF(PlotControl!$B$4 = "Annual Max",MAX(OFFSET('1ECoarse'!$D$10,12*$A47,4*(PlotControl!$C$6-1),12,1)),AVERAGE(OFFSET('1ECoarse'!$D$10,12*$A47,4*(PlotControl!$C$6-1),12,1))) -> 794822.5 | Y47: =IF(PlotControl!$B$4 = "Annual Max",MAX(OFFSET('1ECoarse'!$E$10,12*$A47,4*(PlotControl!$C$6-1),12,1)),AVERAGE(OFFSET('1ECoarse'!$E$10,12*$A47,4*(PlotControl!$C$6-1),12,1))) -> 1098966.667
A48: 43 | B48: =IF(PlotControl!$B$4 = "Annual Max",MAX(OFFSET('2WFines'!$C$10,12*$A48,4*(PlotControl!$C$6-1),12,1)),AVERAGE(OFFSET('2WFines'!$C$10,12*$A48,4*(PlotControl!$C$6-1),12,1))) -> 208065 | C48: =IF(PlotControl!$B$4 = "Annual Max",MAX(OFFSET('2WFines'!$D$10,12*$A48,4*(PlotControl!$C$6-1),12,1)),AVERAGE(OFFSET('2WFines'!$D$10,12*$A48,4*(PlotControl!$C$6-1),12,1))) -> 261649.1667 | D48: =IF(PlotControl!$B$4 = "Annual Max",MAX(OFFSET('2WFines'!$E$10,12*$A48,4*(PlotControl!$C$6-1),12,1)),AVERAGE(OFFSET('2WFines'!$E$10,12*$A48,4*(PlotControl!$C$6-1),12,1))) -> 301656.6667 | E48: =IF(PlotControl!$B$4 = "Annual Max",MAX(OFFSET('2WCoarse'!$C$10,12*$A48,4*(PlotControl!$C$6-1),12,1)),AVERAGE(OFFSET('2WCoarse'!$C$10,12*$A48,4*(PlotControl!$C$6-1),12,1))) -> 234655 | F48: =IF(PlotControl!$B$4 = "Annual Max",MAX(OFFSET('2WCoarse'!$D$10,12*$A48,4*(PlotControl!$C$6-1),12,1)),AVERAGE(OFFSET('2WCoarse'!$D$10,12*$A48,4*(PlotControl!$C$6-1),12,1))) -> 407806.6667 | G48: =IF(PlotControl!$B$4 = "Annual Max",MAX(OFFSET('2WCoarse'!$E$10,12*$A48,4*(PlotControl!$C$6-1),12,1)),AVERAGE(OFFSET('2WCoarse'!$E$10,12*$A48,4*(PlotControl!$C$6-1),12,1))) -> 556905 | H48: =IF(PlotControl!$B$4 = "Annual Max",MAX(OFFSET('2WBank'!$C$10,12*$A48,4*(PlotControl!$C$6-1),12,1)),AVERAGE(OFFSET('2WBank'!$C$10,12*$A48,4*(PlotControl!$C$6-1),12,1))) -> 420742.5 | I48: =IF(PlotControl!$B$4 = "Annual Max",MAX(OFFSET('2WBank'!$D$10,12*$A48,4*(PlotControl!$C$6-1),12,1)),AVERAGE(OFFSET('2WBank'!$D$10,12*$A48,4*(PlotControl!$C$6-1),12,1))) -> 699825 | J48: =IF(PlotControl!$B$4 = "Annual Max",MAX(OFFSET('2WBank'!$E$10,12*$A48,4*(PlotControl!$C$6-1),12,1)),AVERAGE(OFFSET('2WBank'!$E$10,12*$A48,4*(PlotControl!$C$6-1),12,1))) -> 950694.1667 | K48: =IF(PlotControl!$B$4 = "Annual Max",MAX(OFFSET('2EFines'!$C$10,12*$A48,4*(PlotControl!$C$6-1),12,1)),AVERAGE(OFFSET('2EFines'!$C$10,12*$A48,4*(PlotControl!$C$6-1),12,1))) -> 0 | L48: =IF(PlotControl!$B$4 = "Annual Max",MAX(OFFSET('2EFines'!$D$10,12*$A48,4*(PlotControl!$C$6-1),12,1)),AVERAGE(OFFSET('2EFines'!$D$10,12*$A48,4*(PlotControl!$C$6-1),12,1))) -> 0 | M48: =IF(PlotControl!$B$4 = "Annual Max",MAX(OFFSET('2EFines'!$E$10,12*$A48,4*(PlotControl!$C$6-1),12,1)),AVERAGE(OFFSET('2EFines'!$E$10,12*$A48,4*(PlotControl!$C$6-1),12,1))) -> 0 | N48: =IF(PlotControl!$B$4 = "Annual Max",MAX(OFFSET('2ECoarse'!$C$10,12*$A48,4*(PlotControl!$C$6-1),12,1)),AVERAGE(OFFSET('2ECoarse'!$C$10,12*$A48,4*(PlotControl!$C$6-1),12,1))) -> 0 | O48: =IF(PlotControl!$B$4 = "Annual Max",MAX(OFFSET('2ECoarse'!$D$10,12*$A48,4*(PlotControl!$C$6-1),12,1)),AVERAGE(OFFSET('2ECoarse'!$D$10,12*$A48,4*(PlotControl!$C$6-1),12,1))) -> 0 | P48: =IF(PlotControl!$B$4 = "Annual Max",MAX(OFFSET('2ECoarse'!$E$10,12*$A48,4*(PlotControl!$C$6-1),12,1)),AVERAGE(OFFSET('2ECoarse'!$E$10,12*$A48,4*(PlotControl!$C$6-1),12,1))) -> 0 | Q48: =IF(PlotControl!$B$4 = "Annual Max",MAX(OFFSET('2EBank'!$C$10,12*$A48,4*(PlotControl!$C$6-1),12,1)),AVERAGE(OFFSET('2EBank'!$C$10,12*$A48,4*(PlotControl!$C$6-1),12,1))) -> 276210 | R48: =IF(PlotControl!$B$4 = "Annual Max",MAX(OFFSET('2EBank'!$D$10,12*$A48,4*(PlotControl!$C$6-1),12,1)),AVERAGE(OFFSET('2EBank'!$D$10,12*$A48,4*(PlotControl!$C$6-1),12,1))) -> 485020 | S48: =IF(PlotControl!$B$4 = "Annual Max",MAX(OFFSET('2EBank'!$E$10,12*$A48,4*(PlotControl!$C$6-1),12,1)),AVERAGE(OFFSET('2EBank'!$E$10,12*$A48,4*(PlotControl!$C$6-1),12,1))) -> 687235 | T48: =IF(PlotControl!$B$4 = "Annual Max",MAX(OFFSET('1EFines'!$C$10,12*$A48,4*(PlotControl!$C$6-1),12,1)),AVERAGE(OFFSET('1EFines'!$C$10,12*$A48,4*(PlotControl!$C$6-1),12,1))) -> 0 | U48: =IF(PlotControl!$B$4 = "Annual Max",MAX(OFFSET('1EFines'!$D$10,12*$A48,4*(PlotControl!$C$6-1),12,1)),AVERAGE(OFFSET('1EFines'!$D$10,12*$A48,4*(PlotControl!$C$6-1),12,1))) -> 0 | V48: =IF(PlotControl!$B$4 = "Annual Max",MAX(OFFSET('1EFines'!$E$10,12*$A48,4*(PlotControl!$C$6-1),12,1)),AVERAGE(OFFSET('1EFines'!$E$10,12*$A48,4*(PlotControl!$C$6-1),12,1))) -> 0 | W48: =IF(PlotControl!$B$4 = "Annual Max",MAX(OFFSET('1ECoarse'!$C$10,12*$A48,4*(PlotControl!$C$6-1),12,1)),AVERAGE(OFFSET('1ECoarse'!$C$10,12*$A48,4*(PlotControl!$C$6-1),12,1))) -> 477885 | X48: =IF(PlotControl!$B$4 = "Annual Max",MAX(OFFSET('1ECoarse'!$D$10,12*$A48,4*(PlotControl!$C$6-1),12,1)),AVERAGE(OFFSET('1ECoarse'!$D$10,12*$A48,4*(PlotControl!$C$6-1),12,1))) -> 798538.3333 | Y48: =IF(PlotControl!$B$4 = "Annual Max",MAX(OFFSET('1ECoarse'!$E$10,12*$A48,4*(PlotControl!$C$6-1),12,1)),AVERAGE(OFFSET('1ECoarse'!$E$10,12*$A48,4*(PlotControl!$C$6-1),12,1))) -> 1099608.333
A49: 44 | B49: =IF(PlotControl!$B$4 = "Annual Max",MAX(OFFSET('2WFines'!$C$10,12*$A49,4*(PlotControl!$C$6-1),12,1)),AVERAGE(OFFSET('2WFines'!$C$10,12*$A49,4*(PlotControl!$C$6-1),12,1))) -> 207695.8333 | C49: =IF(PlotControl!$B$4 = "Annual Max",MAX(OFFSET('2WFines'!$D$10,12*$A49,4*(PlotControl!$C$6-1),12,1)),AVERAGE(OFFSET('2WFines'!$D$10,12*$A49,4*(PlotControl!$C$6-1),12,1))) -> 262485 | D49: =IF(PlotControl!$B$4 = "Annual Max",MAX(OFFSET('2WFines'!$E$10,12*$A49,4*(PlotControl!$C$6-1),12,1)),AVERAGE(OFFSET('2WFines'!$E$10,12*$A49,4*(PlotControl!$C$6-1),12,1))) -> 302178.3333 | E49: =IF(PlotControl!$B$4 = "Annual Max",MAX(OFFSET('2WCoarse'!$C$10,12*$A49,4*(PlotControl!$C$6-1),12,1)),AVERAGE(OFFSET('2WCoarse'!$C$10,12*$A49,4*(PlotControl!$C$6-1),12,1))) -> 235706.6667 | F49: =IF(PlotControl!$B$4 = "Annual Max",MAX(OFFSET('2WCoarse'!$D$10,12*$A49,4*(PlotControl!$C$6-1),12,1)),AVERAGE(OFFSET('2WCoarse'!$D$10,12*$A49,4*(PlotControl!$C$6-1),12,1))) -> 410670 | G49: =IF(PlotControl!$B$4 = "Annual Max",MAX(OFFSET('2WCoarse'!$E$10,12*$A49,4*(PlotControl!$C$6-1),12,1)),AVERAGE(OFFSET('2WCoarse'!$E$10,12*$A49,4*(PlotControl!$C$6-1),12,1))) -> 561580.8333 | H49: =IF(PlotControl!$B$4 = "Annual Max",MAX(OFFSET('2WBank'!$C$10,12*$A49,4*(PlotControl!$C$6-1),12,1)),AVERAGE(OFFSET('2WBank'!$C$10,12*$A49,4*(PlotControl!$C$6-1),12,1))) -> 420198.3333 | I49: =IF(PlotControl!$B$4 = "Annual Max",MAX(OFFSET('2WBank'!$D$10,12*$A49,4*(PlotControl!$C$6-1),12,1)),AVERAGE(OFFSET('2WBank'!$D$10,12*$A49,4*(PlotControl!$C$6-1),12,1))) -> 700822.5 | J49: =IF(PlotControl!$B$4 = "Annual Max",MAX(OFFSET('2WBank'!$E$10,12*$A49,4*(PlotControl!$C$6-1),12,1)),AVERAGE(OFFSET('2WBank'!$E$10,12*$A49,4*(PlotControl!$C$6-1),12,1))) -> 954942.5 | K49: =IF(PlotControl!$B$4 = "Annual Max",MAX(OFFSET('2EFines'!$C$10,12*$A49,4*(PlotControl!$C$6-1),12,1)),AVERAGE(OFFSET('2EFines'!$C$10,12*$A49,4*(PlotControl!$C$6-1),12,1))) -> 0 | L49: =IF(PlotControl!$B$4 = "Annual Max",MAX(OFFSET('2EFines'!$D$10,12*$A49,4*(PlotControl!$C$6-1),12,1)),AVERAGE(OFFSET('2EFines'!$D$10,12*$A49,4*(PlotControl!$C$6-1),12,1))) -> 0 | M49: =IF(PlotControl!$B$4 = "Annual Max",MAX(OFFSET('2EFines'!$E$10,12*$A49,4*(PlotControl!$C$6-1),12,1)),AVERAGE(OFFSET('2EFines'!$E$10,12*$A49,4*(PlotControl!$C$6-1),12,1))) -> 0 | N49: =IF(PlotControl!$B$4 = "Annual Max",MAX(OFFSET('2ECoarse'!$C$10,12*$A49,4*(PlotControl!$C$6-1),12,1)),AVERAGE(OFFSET('2ECoarse'!$C$10,12*$A49,4*(PlotControl!$C$6-1),12,1))) -> 0 | O49: =IF(PlotControl!$B$4 = "Annual Max",MAX(OFFSET('2ECoarse'!$D$10,12*$A49,4*(PlotControl!$C$6-1),12,1)),AVERAGE(OFFSET('2ECoarse'!$D$10,12*$A49,4*(PlotControl!$C$6-1),12,1))) -> 0 | P49: =IF(PlotControl!$B$4 = "Annual Max",MAX(OFFSET('2ECoarse'!$E$10,12*$A49,4*(PlotControl!$C$6-1),12,1)),AVERAGE(OFFSET('2ECoarse'!$E$10,12*$A49,4*(PlotControl!$C$6-1),12,1))) -> 0 | Q49: =IF(PlotControl!$B$4 = "Annual Max",MAX(OFFSET('2EBank'!$C$10,12*$A49,4*(PlotControl!$C$6-1),12,1)),AVERAGE(OFFSET('2EBank'!$C$10,12*$A49,4*(PlotControl!$C$6-1),12,1))) -> 282648.3333 | R49: =IF(PlotControl!$B$4 = "Annual Max",MAX(OFFSET('2EBank'!$D$10,12*$A49,4*(PlotControl!$C$6-1),12,1)),AVERAGE(OFFSET('2EBank'!$D$10,12*$A49,4*(PlotControl!$C$6-1),12,1))) -> 490057.5 | S49: =IF(PlotControl!$B$4 = "Annual Max",MAX(OFFSET('2EBank'!$E$10,12*$A49,4*(PlotControl!$C$6-1),12,1)),AVERAGE(OFFSET('2EBank'!$E$10,12*$A49,4*(PlotControl!$C$6-1),12,1))) -> 688235 | T49: =IF(PlotControl!$B$4 = "Annual Max",MAX(OFFSET('1EFines'!$C$10,12*$A49,4*(PlotControl!$C$6-1),12,1)),AVERAGE(OFFSET('1EFines'!$C$10,12*$A49,4*(PlotControl!$C$6-1),12,1))) -> 0 | U49: =IF(PlotControl!$B$4 = "Annual Max",MAX(OFFSET('1EFines'!$D$10,12*$A49,4*(PlotControl!$C$6-1),12,1)),AVERAGE(OFFSET('1EFines'!$D$10,12*$A49,4*(PlotControl!$C$6-1),12,1))) -> 0 | V49: =IF(PlotControl!$B$4 = "Annual Max",MAX(OFFSET('1EFines'!$E$10,12*$A49,4*(PlotControl!$C$6-1),12,1)),AVERAGE(OFFSET('1EFines'!$E$10,12*$A49,4*(PlotControl!$C$6-1),12,1))) -> 0 | W49: =IF(PlotControl!$B$4 = "Annual Max",MAX(OFFSET('1ECoarse'!$C$10,12*$A49,4*(PlotControl!$C$6-1),12,1)),AVERAGE(OFFSET('1ECoarse'!$C$10,12*$A49,4*(PlotControl!$C$6-1),12,1))) -> 482446.6667 | X49: =IF(PlotControl!$B$4 = "Annual Max",MAX(OFFSET('1ECoarse'!$D$10,12*$A49,4*(PlotControl!$C$6-1),12,1)),AVERAGE(OFFSET('1ECoarse'!$D$10,12*$A49,4*(PlotControl!$C$6-1),12,1))) -> 807247.5 | Y49: =IF(PlotControl!$B$4 = "Annual Max",MAX(OFFSET('1ECoarse'!$E$10,12*$A49,4*(PlotControl!$C$6-1),12,1)),AVERAGE(OFFSET('1ECoarse'!$E$10,12*$A49,4*(PlotControl!$C$6-1),12,1))) -> 1113041.667
A50: 45 | B50: =IF(PlotControl!$B$4 = "Annual Max",MAX(OFFSET('2WFines'!$C$10,12*$A50,4*(PlotControl!$C$6-1),12,1)),AVERAGE(OFFSET('2WFines'!$C$10,12*$A50,4*(PlotControl!$C$6-1),12,1))) -> 207806.6667 | C50: =IF(PlotControl!$B$4 = "Annual Max",MAX(OFFSET('2WFines'!$D$10,12*$A50,4*(PlotControl!$C$6-1),12,1)),AVERAGE(OFFSET('2WFines'!$D$10,12*$A50,4*(PlotControl!$C$6-1),12,1))) -> 262787.5 | D50: =IF(PlotControl!$B$4 = "Annual Max",MAX(OFFSET('2WFines'!$E$10,12*$A50,4*(PlotControl!$C$6-1),12,1)),AVERAGE(OFFSET('2WFines'!$E$10,12*$A50,4*(PlotControl!$C$6-1),12,1))) -> 302805 | E50: =IF(PlotControl!$B$4 = "Annual Max",MAX(OFFSET('2WCoarse'!$C$10,12*$A50,4*(PlotControl!$C$6-1),12,1)),AVERAGE(OFFSET('2WCoarse'!$C$10,12*$A50,4*(PlotControl!$C$6-1),12,1))) -> 236360 | F50: =IF(PlotControl!$B$4 = "Annual Max",MAX(OFFSET('2WCoarse'!$D$10,12*$A50,4*(PlotControl!$C$6-1),12,1)),AVERAGE(OFFSET('2WCoarse'!$D$10,12*$A50,4*(PlotControl!$C$6-1),12,1))) -> 412869.1667 | G50: =IF(PlotControl!$B$4 = "Annual Max",MAX(OFFSET('2WCoarse'!$E$10,12*$A50,4*(PlotControl!$C$6-1),12,1)),AVERAGE(OFFSET('2WCoarse'!$E$10,12*$A50,4*(PlotControl!$C$6-1),12,1))) -> 568710.8333 | H50: =IF(PlotControl!$B$4 = "Annual Max",MAX(OFFSET('2WBank'!$C$10,12*$A50,4*(PlotControl!$C$6-1),12,1)),AVERAGE(OFFSET('2WBank'!$C$10,12*$A50,4*(PlotControl!$C$6-1),12,1))) -> 421685.8333 | I50: =IF(PlotControl!$B$4 = "Annual Max",MAX(OFFSET('2WBank'!$D$10,12*$A50,4*(PlotControl!$C$6-1),12,1)),AVERAGE(OFFSET('2WBank'!$D$10,12*$A50,4*(PlotControl!$C$6-1),12,1))) -> 700630 | J50: =IF(PlotControl!$B$4 = "Annual Max",MAX(OFFSET('2WBank'!$E$10,12*$A50,4*(PlotControl!$C$6-1),12,1)),AVERAGE(OFFSET('2WBank'!$E$10,12*$A50,4*(PlotControl!$C$6-1),12,1))) -> 956735.8333 | K50: =IF(PlotControl!$B$4 = "Annual Max",MAX(OFFSET('2EFines'!$C$10,12*$A50,4*(PlotControl!$C$6-1),12,1)),AVERAGE(OFFSET('2EFines'!$C$10,12*$A50,4*(PlotControl!$C$6-1),12,1))) -> 0 | L50: =IF(PlotControl!$B$4 = "Annual Max",MAX(OFFSET('2EFines'!$D$10,12*$A50,4*(PlotControl!$C$6-1),12,1)),AVERAGE(OFFSET('2EFines'!$D$10,12*$A50,4*(PlotControl!$C$6-1),12,1))) -> 0 | M50: =IF(PlotControl!$B$4 = "Annual Max",MAX(OFFSET('2EFines'!$E$10,12*$A50,4*(PlotControl!$C$6-1),12,1)),AVERAGE(OFFSET('2EFines'!$E$10,12*$A50,4*(PlotControl!$C$6-1),12,1))) -> 0 | N50: =IF(PlotControl!$B$4 = "Annual Max",MAX(OFFSET('2ECoarse'!$C$10,12*$A50,4*(PlotControl!$C$6-1),12,1)),AVERAGE(OFFSET('2ECoarse'!$C$10,12*$A50,4*(PlotControl!$C$6-1),12,1))) -> 0 | O50: =IF(PlotControl!$B$4 = "Annual Max",MAX(OFFSET('2ECoarse'!$D$10,12*$A50,4*(PlotControl!$C$6-1),12,1)),AVERAGE(OFFSET('2ECoarse'!$D$10,12*$A50,4*(PlotControl!$C$6-1),12,1))) -> 0 | P50: =IF(PlotControl!$B$4 = "Annual Max",MAX(OFFSET('2ECoarse'!$E$10,12*$A50,4*(PlotControl!$C$6-1),12,1)),AVERAGE(OFFSET('2ECoarse'!$E$10,12*$A50,4*(PlotControl!$C$6-1),12,1))) -> 0 | Q50: =IF(PlotControl!$B$4 = "Annual Max",MAX(OFFSET('2EBank'!$C$10,12*$A50,4*(PlotControl!$C$6-1),12,1)),AVERAGE(OFFSET('2EBank'!$C$10,12*$A50,4*(PlotControl!$C$6-1),12,1))) -> 288841.6667 | R50: =IF(PlotControl!$B$4 = "Annual Max",MAX(OFFSET('2EBank'!$D$10,12*$A50,4*(PlotControl!$C$6-1),12,1)),AVERAGE(OFFSET('2EBank'!$D$10,12*$A50,4*(PlotControl!$C$6-1),12,1))) -> 494101.6667 | S50: =IF(PlotControl!$B$4 = "Annual Max",MAX(OFFSET('2EBank'!$E$10,12*$A50,4*(PlotControl!$C$6-1),12,1)),AVERAGE(OFFSET('2EBank'!$E$10,12*$A50,4*(PlotControl!$C$6-1),12,1))) -> 689032.5 | T50: =IF(PlotControl!$B$4 = "Annual Max",MAX(OFFSET('1EFines'!$C$10,12*$A50,4*(PlotControl!$C$6-1),12,1)),AVERAGE(OFFSET('1EFines'!$C$10,12*$A50,4*(PlotControl!$C$6-1),12,1))) -> 0 | U50: =IF(PlotControl!$B$4 = "Annual Max",MAX(OFFSET('1EFines'!$D$10,12*$A50,4*(PlotControl!$C$6-1),12,1)),AVERAGE(OFFSET('1EFines'!$D$10,12*$A50,4*(PlotControl!$C$6-1),12,1))) -> 0 | V50: =IF(PlotControl!$B$4 = "Annual Max",MAX(OFFSET('1EFines'!$E$10,12*$A50,4*(PlotControl!$C$6-1),12,1)),AVERAGE(OFFSET('1EFines'!$E$10,12*$A50,4*(PlotControl!$C$6-1),12,1))) -> 0 | W50: =IF(PlotControl!$B$4 = "Annual Max",MAX(OFFSET('1ECoarse'!$C$10,12*$A50,4*(PlotControl!$C$6-1),12,1)),AVERAGE(OFFSET('1ECoarse'!$C$10,12*$A50,4*(PlotControl!$C$6-1),12,1))) -> 478388.3333 | X50: =IF(PlotControl!$B$4 = "Annual Max",MAX(OFFSET('1ECoarse'!$D$10,12*$A50,4*(PlotControl!$C$6-1),12,1)),AVERAGE(OFFSET('1ECoarse'!$D$10,12*$A50,4*(PlotControl!$C$6-1),12,1))) -> 812867.5 | Y50: =IF(PlotControl!$B$4 = "Annual Max",MAX(OFFSET('1ECoarse'!$E$10,12*$A50,4*(PlotControl!$C$6-1),12,1)),AVERAGE(OFFSET('1ECoarse'!$E$10,12*$A50,4*(PlotControl!$C$6-1),12,1))) -> 1132750
A51: 46 | B51: =IF(PlotControl!$B$4 = "Annual Max",MAX(OFFSET('2WFines'!$C$10,12*$A51,4*(PlotControl!$C$6-1),12,1)),AVERAGE(OFFSET('2WFines'!$C$10,12*$A51,4*(PlotControl!$C$6-1),12,1))) -> 207590.8333 | C51: =IF(PlotControl!$B$4 = "Annual Max",MAX(OFFSET('2WFines'!$D$10,12*$A51,4*(PlotControl!$C$6-1),12,1)),AVERAGE(OFFSET('2WFines'!$D$10,12*$A51,4*(PlotControl!$C$6-1),12,1))) -> 261746.6667 | D51: =IF(PlotControl!$B$4 = "Annual Max",MAX(OFFSET('2WFines'!$E$10,12*$A51,4*(PlotControl!$C$6-1),12,1)),AVERAGE(OFFSET('2WFines'!$E$10,12*$A51,4*(PlotControl!$C$6-1),12,1))) -> 304338.3333 | E51: =IF(PlotControl!$B$4 = "Annual Max",MAX(OFFSET('2WCoarse'!$C$10,12*$A51,4*(PlotControl!$C$6-1),12,1)),AVERAGE(OFFSET('2WCoarse'!$C$10,12*$A51,4*(PlotControl!$C$6-1),12,1))) -> 237063.3333 | F51: =IF(PlotControl!$B$4 = "Annual Max",MAX(OFFSET('2WCoarse'!$D$10,12*$A51,4*(PlotControl!$C$6-1),12,1)),AVERAGE(OFFSET('2WCoarse'!$D$10,12*$A51,4*(PlotControl!$C$6-1),12,1))) -> 415970 | G51: =IF(PlotControl!$B$4 = "Annual Max",MAX(OFFSET('2WCoarse'!$E$10,12*$A51,4*(PlotControl!$C$6-1),12,1)),AVERAGE(OFFSET('2WCoarse'!$E$10,12*$A51,4*(PlotControl!$C$6-1),12,1))) -> 572084.1667 | H51: =IF(PlotControl!$B$4 = "Annual Max",MAX(OFFSET('2WBank'!$C$10,12*$A51,4*(PlotControl!$C$6-1),12,1)),AVERAGE(OFFSET('2WBank'!$C$10,12*$A51,4*(PlotControl!$C$6-1),12,1))) -> 421524.1667 | I51: =IF(PlotControl!$B$4 = "Annual Max",MAX(OFFSET('2WBank'!$D$10,12*$A51,4*(PlotControl!$C$6-1),12,1)),AVERAGE(OFFSET('2WBank'!$D$10,12*$A51,4*(PlotControl!$C$6-1),12,1))) -> 704983.3333 | J51: =IF(PlotControl!$B$4 = "Annual Max",MAX(OFFSET('2WBank'!$E$10,12*$A51,4*(PlotControl!$C$6-1),12,1)),AVERAGE(OFFSET('2WBank'!$E$10,12*$A51,4*(PlotControl!$C$6-1),12,1))) -> 956005 | K51: =IF(PlotControl!$B$4 = "Annual Max",MAX(OFFSET('2EFines'!$C$10,12*$A51,4*(PlotControl!$C$6-1),12,1)),AVERAGE(OFFSET('2EFines'!$C$10,12*$A51,4*(PlotControl!$C$6-1),12,1))) -> 0 | L51: =IF(PlotControl!$B$4 = "Annual Max",MAX(OFFSET('2EFines'!$D$10,12*$A51,4*(PlotControl!$C$6-1),12,1)),AVERAGE(OFFSET('2EFines'!$D$10,12*$A51,4*(PlotControl!$C$6-1),12,1))) -> 0 | M51: =IF(PlotControl!$B$4 = "Annual Max",MAX(OFFSET('2EFines'!$E$10,12*$A51,4*(PlotControl!$C$6-1),12,1)),AVERAGE(OFFSET('2EFines'!$E$10,12*$A51,4*(PlotControl!$C$6-1),12,1))) -> 0 | N51: =IF(PlotControl!$B$4 = "Annual Max",MAX(OFFSET('2ECoarse'!$C$10,12*$A51,4*(PlotControl!$C$6-1),12,1)),AVERAGE(OFFSET('2ECoarse'!$C$10,12*$A51,4*(PlotControl!$C$6-1),12,1))) -> 0 | O51: =IF(PlotControl!$B$4 = "Annual Max",MAX(OFFSET('2ECoarse'!$D$10,12*$A51,4*(PlotControl!$C$6-1),12,1)),AVERAGE(OFFSET('2ECoarse'!$D$10,12*$A51,4*(PlotControl!$C$6-1),12,1))) -> 0 | P51: =IF(PlotControl!$B$4 = "Annual Max",MAX(OFFSET('2ECoarse'!$E$10,12*$A51,4*(PlotControl!$C$6-1),12,1)),AVERAGE(OFFSET('2ECoarse'!$E$10,12*$A51,4*(PlotControl!$C$6-1),12,1))) -> 0 | Q51: =IF(PlotControl!$B$4 = "Annual Max",MAX(OFFSET('2EBank'!$C$10,12*$A51,4*(PlotControl!$C$6-1),12,1)),AVERAGE(OFFSET('2EBank'!$C$10,12*$A51,4*(PlotControl!$C$6-1),12,1))) -> 284985 | R51: =IF(PlotControl!$B$4 = "Annual Max",MAX(OFFSET('2EBank'!$D$10,12*$A51,4*(PlotControl!$C$6-1),12,1)),AVERAGE(OFFSET('2EBank'!$D$10,12*$A51,4*(PlotControl!$C$6-1),12,1))) -> 499109.1667 | S51: =IF(PlotControl!$B$4 = "Annual Max",MAX(OFFSET('2EBank'!$E$10,12*$A51,4*(PlotControl!$C$6-1),12,1)),AVERAGE(OFFSET('2EBank'!$E$10,12*$A51,4*(PlotControl!$C$6-1),12,1))) -> 695622.5 | T51: =IF(PlotControl!$B$4 = "Annual Max",MAX(OFFSET('1EFines'!$C$10,12*$A51,4*(PlotControl!$C$6-1),12,1)),AVERAGE(OFFSET('1EFines'!$C$10,12*$A51,4*(PlotControl!$C$6-1),12,1))) -> 0 | U51: =IF(PlotControl!$B$4 = "Annual Max",MAX(OFFSET('1EFines'!$D$10,12*$A51,4*(PlotControl!$C$6-1),12,1)),AVERAGE(OFFSET('1EFines'!$D$10,12*$A51,4*(PlotControl!$C$6-1),12,1))) -> 0 | V51: =IF(PlotControl!$B$4 = "Annual Max",MAX(OFFSET('1EFines'!$E$10,12*$A51,4*(PlotControl!$C$6-1),12,1)),AVERAGE(OFFSET('1EFines'!$E$10,12*$A51,4*(PlotControl!$C$6-1),12,1))) -> 0 | W51: =IF(PlotControl!$B$4 = "Annual Max",MAX(OFFSET('1ECoarse'!$C$10,12*$A51,4*(PlotControl!$C$6-1),12,1)),AVERAGE(OFFSET('1ECoarse'!$C$10,12*$A51,4*(PlotControl!$C$6-1),12,1))) -> 476464.1667 | X51: =IF(PlotControl!$B$4 = "Annual Max",MAX(OFFSET('1ECoarse'!$D$10,12*$A51,4*(PlotControl!$C$6-1),12,1)),AVERAGE(OFFSET('1ECoarse'!$D$10,12*$A51,4*(PlotControl!$C$6-1),12,1))) -> 808145.8333 | Y51: =IF(PlotControl!$B$4 = "Annual Max",MAX(OFFSET('1ECoarse'!$E$10,12*$A51,4*(PlotControl!$C$6-1),12,1)),AVERAGE(OFFSET('1ECoarse'!$E$10,12*$A51,4*(PlotControl!$C$6-1),12,1))) -> 1162016.667
A52: 47 | B52: =IF(PlotControl!$B$4 = "Annual Max",MAX(OFFSET('2WFines'!$C$10,12*$A52,4*(PlotControl!$C$6-1),12,1)),AVERAGE(OFFSET('2WFines'!$C$10,12*$A52,4*(PlotControl!$C$6-1),12,1))) -> 205505.8333 | C52: =IF(PlotControl!$B$4 = "Annual Max",MAX(OFFSET('2WFines'!$D$10,12*$A52,4*(PlotControl!$C$6-1),12,1)),AVERAGE(OFFSET('2WFines'!$D$10,12*$A52,4*(PlotControl!$C$6-1),12,1))) -> 261930.8333 | D52: =IF(PlotControl!$B$4 = "Annual Max",MAX(OFFSET('2WFines'!$E$10,12*$A52,4*(PlotControl!$C$6-1),12,1)),AVERAGE(OFFSET('2WFines'!$E$10,12*$A52,4*(PlotControl!$C$6-1),12,1))) -> 304532.5 | E52: =IF(PlotControl!$B$4 = "Annual Max",MAX(OFFSET('2WCoarse'!$C$10,12*$A52,4*(PlotControl!$C$6-1),12,1)),AVERAGE(OFFSET('2WCoarse'!$C$10,12*$A52,4*(PlotControl!$C$6-1),12,1))) -> 234877.5 | F52: =IF(PlotControl!$B$4 = "Annual Max",MAX(OFFSET('2WCoarse'!$D$10,12*$A52,4*(PlotControl!$C$6-1),12,1)),AVERAGE(OFFSET('2WCoarse'!$D$10,12*$A52,4*(PlotControl!$C$6-1),12,1))) -> 418690.8333 | G52: =IF(PlotControl!$B$4 = "Annual Max",MAX(OFFSET('2WCoarse'!$E$10,12*$A52,4*(PlotControl!$C$6-1),12,1)),AVERAGE(OFFSET('2WCoarse'!$E$10,12*$A52,4*(PlotControl!$C$6-1),12,1))) -> 577040.8333 | H52: =IF(PlotControl!$B$4 = "Annual Max",MAX(OFFSET('2WBank'!$C$10,12*$A52,4*(PlotControl!$C$6-1),12,1)),AVERAGE(OFFSET('2WBank'!$C$10,12*$A52,4*(PlotControl!$C$6-1),12,1))) -> 416865 | I52: =IF(PlotControl!$B$4 = "Annual Max",MAX(OFFSET('2WBank'!$D$10,12*$A52,4*(PlotControl!$C$6-1),12,1)),AVERAGE(OFFSET('2WBank'!$D$10,12*$A52,4*(PlotControl!$C$6-1),12,1))) -> 707438.3333 | J52: =IF(PlotControl!$B$4 = "Annual Max",MAX(OFFSET('2WBank'!$E$10,12*$A52,4*(PlotControl!$C$6-1),12,1)),AVERAGE(OFFSET('2WBank'!$E$10,12*$A52,4*(PlotControl!$C$6-1),12,1))) -> 963471.6667 | K52: =IF(PlotControl!$B$4 = "Annual Max",MAX(OFFSET('2EFines'!$C$10,12*$A52,4*(PlotControl!$C$6-1),12,1)),AVERAGE(OFFSET('2EFines'!$C$10,12*$A52,4*(PlotControl!$C$6-1),12,1))) -> 0 | L52: =IF(PlotControl!$B$4 = "Annual Max",MAX(OFFSET('2EFines'!$D$10,12*$A52,4*(PlotControl!$C$6-1),12,1)),AVERAGE(OFFSET('2EFines'!$D$10,12*$A52,4*(PlotControl!$C$6-1),12,1))) -> 0 | M52: =IF(PlotControl!$B$4 = "Annual Max",MAX(OFFSET('2EFines'!$E$10,12*$A52,4*(PlotControl!$C$6-1),12,1)),AVERAGE(OFFSET('2EFines'!$E$10,12*$A52,4*(PlotControl!$C$6-1),12,1))) -> 0 | N52: =IF(PlotControl!$B$4 = "Annual Max",MAX(OFFSET('2ECoarse'!$C$10,12*$A52,4*(PlotControl!$C$6-1),12,1)),AVERAGE(OFFSET('2ECoarse'!$C$10,12*$A52,4*(PlotControl!$C$6-1),12,1))) -> 0 | O52: =IF(PlotControl!$B$4 = "Annual Max",MAX(OFFSET('2ECoarse'!$D$10,12*$A52,4*(PlotControl!$C$6-1),12,1)),AVERAGE(OFFSET('2ECoarse'!$D$10,12*$A52,4*(PlotControl!$C$6-1),12,1))) -> 0 | P52: =IF(PlotControl!$B$4 = "Annual Max",MAX(OFFSET('2ECoarse'!$E$10,12*$A52,4*(PlotControl!$C$6-1),12,1)),AVERAGE(OFFSET('2ECoarse'!$E$10,12*$A52,4*(PlotControl!$C$6-1),12,1))) -> 0 | Q52: =IF(PlotControl!$B$4 = "Annual Max",MAX(OFFSET('2EBank'!$C$10,12*$A52,4*(PlotControl!$C$6-1),12,1)),AVERAGE(OFFSET('2EBank'!$C$10,12*$A52,4*(PlotControl!$C$6-1),12,1))) -> 284087.5 | R52: =IF(PlotControl!$B$4 = "Annual Max",MAX(OFFSET('2EBank'!$D$10,12*$A52,4*(PlotControl!$C$6-1),12,1)),AVERAGE(OFFSET('2EBank'!$D$10,12*$A52,4*(PlotControl!$C$6-1),12,1))) -> 497858.3333 | S52: =IF(PlotControl!$B$4 = "Annual Max",MAX(OFFSET('2EBank'!$E$10,12*$A52,4*(PlotControl!$C$6-1),12,1)),AVERAGE(OFFSET('2EBank'!$E$10,12*$A52,4*(PlotControl!$C$6-1),12,1))) -> 702252.5 | T52: =IF(PlotControl!$B$4 = "Annual Max",MAX(OFFSET('1EFines'!$C$10,12*$A52,4*(PlotControl!$C$6-1),12,1)),AVERAGE(OFFSET('1EFines'!$C$10,12*$A52,4*(PlotControl!$C$6-1),12,1))) -> 0 | U52: =IF(PlotControl!$B$4 = "Annual Max",MAX(OFFSET('1EFines'!$D$10,12*$A52,4*(PlotControl!$C$6-1),12,1)),AVERAGE(OFFSET('1EFines'!$D$10,12*$A52,4*(PlotControl!$C$6-1),12,1))) -> 0 | V52: =IF(PlotControl!$B$4 = "Annual Max",MAX(OFFSET('1EFines'!$E$10,12*$A52,4*(PlotControl!$C$6-1),12,1)),AVERAGE(OFFSET('1EFines'!$E$10,12*$A52,4*(PlotControl!$C$6-1),12,1))) -> 0 | W52: =IF(PlotControl!$B$4 = "Annual Max",MAX(OFFSET('1ECoarse'!$C$10,12*$A52,4*(PlotControl!$C$6-1),12,1)),AVERAGE(OFFSET('1ECoarse'!$C$10,12*$A52,4*(PlotControl!$C$6-1),12,1))) -> 475551.6667 | X52: =IF(PlotControl!$B$4 = "Annual Max",MAX(OFFSET('1ECoarse'!$D$10,12*$A52,4*(PlotControl!$C$6-1),12,1)),AVERAGE(OFFSET('1ECoarse'!$D$10,12*$A52,4*(PlotControl!$C$6-1),12,1))) -> 821906.6667 | Y52: =IF(PlotControl!$B$4 = "Annual Max",MAX(OFFSET('1ECoarse'!$E$10,12*$A52,4*(PlotControl!$C$6-1),12,1)),AVERAGE(OFFSET('1ECoarse'!$E$10,12*$A52,4*(PlotControl!$C$6-1),12,1))) -> 1168291.667
A53: 48 | B53: =IF(PlotControl!$B$4 = "Annual Max",MAX(OFFSET('2WFines'!$C$10,12*$A53,4*(PlotControl!$C$6-1),12,1)),AVERAGE(OFFSET('2WFines'!$C$10,12*$A53,4*(PlotControl!$C$6-1),12,1))) -> 206925 | C53: =IF(PlotControl!$B$4 = "Annual Max",MAX(OFFSET('2WFines'!$D$10,12*$A53,4*(PlotControl!$C$6-1),12,1)),AVERAGE(OFFSET('2WFines'!$D$10,12*$A53,4*(PlotControl!$C$6-1),12,1))) -> 263322.5 | D53: =IF(PlotControl!$B$4 = "Annual Max",MAX(OFFSET('2WFines'!$E$10,12*$A53,4*(PlotControl!$C$6-1),12,1)),AVERAGE(OFFSET('2WFines'!$E$10,12*$A53,4*(PlotControl!$C$6-1),12,1))) -> 305026.6667 | E53: =IF(PlotControl!$B$4 = "Annual Max",MAX(OFFSET('2WCoarse'!$C$10,12*$A53,4*(PlotControl!$C$6-1),12,1)),AVERAGE(OFFSET('2WCoarse'!$C$10,12*$A53,4*(PlotControl!$C$6-1),12,1))) -> 237728.3333 | F53: =IF(PlotControl!$B$4 = "Annual Max",MAX(OFFSET('2WCoarse'!$D$10,12*$A53,4*(PlotControl!$C$6-1),12,1)),AVERAGE(OFFSET('2WCoarse'!$D$10,12*$A53,4*(PlotControl!$C$6-1),12,1))) -> 421241.6667 | G53: =IF(PlotControl!$B$4 = "Annual Max",MAX(OFFSET('2WCoarse'!$E$10,12*$A53,4*(PlotControl!$C$6-1),12,1)),AVERAGE(OFFSET('2WCoarse'!$E$10,12*$A53,4*(PlotControl!$C$6-1),12,1))) -> 582053.3333 | H53: =IF(PlotControl!$B$4 = "Annual Max",MAX(OFFSET('2WBank'!$C$10,12*$A53,4*(PlotControl!$C$6-1),12,1)),AVERAGE(OFFSET('2WBank'!$C$10,12*$A53,4*(PlotControl!$C$6-1),12,1))) -> 420659.1667 | I53: =IF(PlotControl!$B$4 = "Annual Max",MAX(OFFSET('2WBank'!$D$10,12*$A53,4*(PlotControl!$C$6-1),12,1)),AVERAGE(OFFSET('2WBank'!$D$10,12*$A53,4*(PlotControl!$C$6-1),12,1))) -> 710981.6667 | J53: =IF(PlotControl!$B$4 = "Annual Max",MAX(OFFSET('2WBank'!$E$10,12*$A53,4*(PlotControl!$C$6-1),12,1)),AVERAGE(OFFSET('2WBank'!$E$10,12*$A53,4*(PlotControl!$C$6-1),12,1))) -> 965341.6667 | K53: =IF(PlotControl!$B$4 = "Annual Max",MAX(OFFSET('2EFines'!$C$10,12*$A53,4*(PlotControl!$C$6-1),12,1)),AVERAGE(OFFSET('2EFines'!$C$10,12*$A53,4*(PlotControl!$C$6-1),12,1))) -> 0 | L53: =IF(PlotControl!$B$4 = "Annual Max",MAX(OFFSET('2EFines'!$D$10,12*$A53,4*(PlotControl!$C$6-1),12,1)),AVERAGE(OFFSET('2EFines'!$D$10,12*$A53,4*(PlotControl!$C$6-1),12,1))) -> 0 | M53: =IF(PlotControl!$B$4 = "Annual Max",MAX(OFFSET('2EFines'!$E$10,12*$A53,4*(PlotControl!$C$6-1),12,1)),AVERAGE(OFFSET('2EFines'!$E$10,12*$A53,4*(PlotControl!$C$6-1),12,1))) -> 0 | N53: =IF(PlotControl!$B$4 = "Annual Max",MAX(OFFSET('2ECoarse'!$C$10,12*$A53,4*(PlotControl!$C$6-1),12,1)),AVERAGE(OFFSET('2ECoarse'!$C$10,12*$A53,4*(PlotControl!$C$6-1),12,1))) -> 0 | O53: =IF(PlotControl!$B$4 = "Annual Max",MAX(OFFSET('2ECoarse'!$D$10,12*$A53,4*(PlotControl!$C$6-1),12,1)),AVERAGE(OFFSET('2ECoarse'!$D$10,12*$A53,4*(PlotControl!$C$6-1),12,1))) -> 0 | P53: =IF(PlotControl!$B$4 = "Annual Max",MAX(OFFSET('2ECoarse'!$E$10,12*$A53,4*(PlotControl!$C$6-1),12,1)),AVERAGE(OFFSET('2ECoarse'!$E$10,12*$A53,4*(PlotControl!$C$6-1),12,1))) -> 0 | Q53: =IF(PlotControl!$B$4 = "Annual Max",MAX(OFFSET('2EBank'!$C$10,12*$A53,4*(PlotControl!$C$6-1),12,1)),AVERAGE(OFFSET('2EBank'!$C$10,12*$A53,4*(PlotControl!$C$6-1),12,1))) -> 293816.6667 | R53: =IF(PlotControl!$B$4 = "Annual Max",MAX(OFFSET('2EBank'!$D$10,12*$A53,4*(PlotControl!$C$6-1),12,1)),AVERAGE(OFFSET('2EBank'!$D$10,12*$A53,4*(PlotControl!$C$6-1),12,1))) -> 499339.1667 | S53: =IF(PlotControl!$B$4 = "Annual Max",MAX(OFFSET('2EBank'!$E$10,12*$A53,4*(PlotControl!$C$6-1),12,1)),AVERAGE(OFFSET('2EBank'!$E$10,12*$A53,4*(PlotControl!$C$6-1),12,1))) -> 700469.1667 | T53: =IF(PlotControl!$B$4 = "Annual Max",MAX(OFFSET('1EFines'!$C$10,12*$A53,4*(PlotControl!$C$6-1),12,1)),AVERAGE(OFFSET('1EFines'!$C$10,12*$A53,4*(PlotControl!$C$6-1),12,1))) -> 0 | U53: =IF(PlotControl!$B$4 = "Annual Max",MAX(OFFSET('1EFines'!$D$10,12*$A53,4*(PlotControl!$C$6-1),12,1)),AVERAGE(OFFSET('1EFines'!$D$10,12*$A53,4*(PlotControl!$C$6-1),12,1))) -> 0 | V53: =IF(PlotControl!$B$4 = "Annual Max",MAX(OFFSET('1EFines'!$E$10,12*$A53,4*(PlotControl!$C$6-1),12,1)),AVERAGE(OFFSET('1EFines'!$E$10,12*$A53,4*(PlotControl!$C$6-1),12,1))) -> 0 | W53: =IF(PlotControl!$B$4 = "Annual Max",MAX(OFFSET('1ECoarse'!$C$10,12*$A53,4*(PlotControl!$C$6-1),12,1)),AVERAGE(OFFSET('1ECoarse'!$C$10,12*$A53,4*(PlotControl!$C$6-1),12,1))) -> 476171.6667 | X53: =IF(PlotControl!$B$4 = "Annual Max",MAX(OFFSET('1ECoarse'!$D$10,12*$A53,4*(PlotControl!$C$6-1),12,1)),AVERAGE(OFFSET('1ECoarse'!$D$10,12*$A53,4*(PlotControl!$C$6-1),12,1))) -> 822454.1667 | Y53: =IF(PlotControl!$B$4 = "Annual Max",MAX(OFFSET('1ECoarse'!$E$10,12*$A53,4*(PlotControl!$C$6-1),12,1)),AVERAGE(OFFSET('1ECoarse'!$E$10,12*$A53,4*(PlotControl!$C$6-1),12,1))) -> 1172633.333
A54: 49 | B54: =IF(PlotControl!$B$4 = "Annual Max",MAX(OFFSET('2WFines'!$C$10,12*$A54,4*(PlotControl!$C$6-1),12,1)),AVERAGE(OFFSET('2WFines'!$C$10,12*$A54,4*(PlotControl!$C$6-1),12,1))) -> 207439.1667 | C54: =IF(PlotControl!$B$4 = "Annual Max",MAX(OFFSET('2WFines'!$D$10,12*$A54,4*(PlotControl!$C$6-1),12,1)),AVERAGE(OFFSET('2WFines'!$D$10,12*$A54,4*(PlotControl!$C$6-1),12,1))) -> 263396.6667 | D54: =IF(PlotControl!$B$4 = "Annual Max",MAX(OFFSET('2WFines'!$E$10,12*$A54,4*(PlotControl!$C$6-1),12,1)),AVERAGE(OFFSET('2WFines'!$E$10,12*$A54,4*(PlotControl!$C$6-1),12,1))) -> 304737.5 | E54: =IF(PlotControl!$B$4 = "Annual Max",MAX(OFFSET('2WCoarse'!$C$10,12*$A54,4*(PlotControl!$C$6-1),12,1)),AVERAGE(OFFSET('2WCoarse'!$C$10,12*$A54,4*(PlotControl!$C$6-1),12,1))) -> 238480.8333 | F54: =IF(PlotControl!$B$4 = "Annual Max",MAX(OFFSET('2WCoarse'!$D$10,12*$A54,4*(PlotControl!$C$6-1),12,1)),AVERAGE(OFFSET('2WCoarse'!$D$10,12*$A54,4*(PlotControl!$C$6-1),12,1))) -> 424976.6667 | G54: =IF(PlotControl!$B$4 = "Annual Max",MAX(OFFSET('2WCoarse'!$E$10,12*$A54,4*(PlotControl!$C$6-1),12,1)),AVERAGE(OFFSET('2WCoarse'!$E$10,12*$A54,4*(PlotControl!$C$6-1),12,1))) -> 585856.6667 | H54: =IF(PlotControl!$B$4 = "Annual Max",MAX(OFFSET('2WBank'!$C$10,12*$A54,4*(PlotControl!$C$6-1),12,1)),AVERAGE(OFFSET('2WBank'!$C$10,12*$A54,4*(PlotControl!$C$6-1),12,1))) -> 418792.5 | I54: =IF(PlotControl!$B$4 = "Annual Max",MAX(OFFSET('2WBank'!$D$10,12*$A54,4*(PlotControl!$C$6-1),12,1)),AVERAGE(OFFSET('2WBank'!$D$10,12*$A54,4*(PlotControl!$C$6-1),12,1))) -> 714270 | J54: =IF(PlotControl!$B$4 = "Annual Max",MAX(OFFSET('2WBank'!$E$10,12*$A54,4*(PlotControl!$C$6-1),12,1)),AVERAGE(OFFSET('2WBank'!$E$10,12*$A54,4*(PlotControl!$C$6-1),12,1))) -> 961199.1667 | K54: =IF(PlotControl!$B$4 = "Annual Max",MAX(OFFSET('2EFines'!$C$10,12*$A54,4*(PlotControl!$C$6-1),12,1)),AVERAGE(OFFSET('2EFines'!$C$10,12*$A54,4*(PlotControl!$C$6-1),12,1))) -> 0 | L54: =IF(PlotControl!$B$4 = "Annual Max",MAX(OFFSET('2EFines'!$D$10,12*$A54,4*(PlotControl!$C$6-1),12,1)),AVERAGE(OFFSET('2EFines'!$D$10,12*$A54,4*(PlotControl!$C$6-1),12,1))) -> 0 | M54: =IF(PlotControl!$B$4 = "Annual Max",MAX(OFFSET('2EFines'!$E$10,12*$A54,4*(PlotControl!$C$6-1),12,1)),AVERAGE(OFFSET('2EFines'!$E$10,12*$A54,4*(PlotControl!$C$6-1),12,1))) -> 0 | N54: =IF(PlotControl!$B$4 = "Annual Max",MAX(OFFSET('2ECoarse'!$C$10,12*$A54,4*(PlotControl!$C$6-1),12,1)),AVERAGE(OFFSET('2ECoarse'!$C$10,12*$A54,4*(PlotControl!$C$6-1),12,1))) -> 0 | O54: =IF(PlotControl!$B$4 = "Annual Max",MAX(OFFSET('2ECoarse'!$D$10,12*$A54,4*(PlotControl!$C$6-1),12,1)),AVERAGE(OFFSET('2ECoarse'!$D$10,12*$A54,4*(PlotControl!$C$6-1),12,1))) -> 0 | P54: =IF(PlotControl!$B$4 = "Annual Max",MAX(OFFSET('2ECoarse'!$E$10,12*$A54,4*(PlotControl!$C$6-1),12,1)),AVERAGE(OFFSET('2ECoarse'!$E$10,12*$A54,4*(PlotControl!$C$6-1),12,1))) -> 0 | Q54: =IF(PlotControl!$B$4 = "Annual Max",MAX(OFFSET('2EBank'!$C$10,12*$A54,4*(PlotControl!$C$6-1),12,1)),AVERAGE(OFFSET('2EBank'!$C$10,12*$A54,4*(PlotControl!$C$6-1),12,1))) -> 288553.3333 | R54: =IF(PlotControl!$B$4 = "Annual Max",MAX(OFFSET('2EBank'!$D$10,12*$A54,4*(PlotControl!$C$6-1),12,1)),AVERAGE(OFFSET('2EBank'!$D$10,12*$A54,4*(PlotControl!$C$6-1),12,1))) -> 500219.1667 | S54: =IF(PlotControl!$B$4 = "Annual Max",MAX(OFFSET('2EBank'!$E$10,12*$A54,4*(PlotControl!$C$6-1),12,1)),AVERAGE(OFFSET('2EBank'!$E$10,12*$A54,4*(PlotControl!$C$6-1),12,1))) -> 701205.8333 | T54: =IF(PlotControl!$B$4 = "Annual Max",MAX(OFFSET('1EFines'!$C$10,12*$A54,4*(PlotControl!$C$6-1),12,1)),AVERAGE(OFFSET('1EFines'!$C$10,12*$A54,4*(PlotControl!$C$6-1),12,1))) -> 0 | U54: =IF(PlotControl!$B$4 = "Annual Max",MAX(OFFSET('1EFines'!$D$10,12*$A54,4*(PlotControl!$C$6-1),12,1)),AVERAGE(OFFSET('1EFines'!$D$10,12*$A54,4*(PlotControl!$C$6-1),12,1))) -> 0 | V54: =IF(PlotControl!$B$4 = "Annual Max",MAX(OFFSET('1EFines'!$E$10,12*$A54,4*(PlotControl!$C$6-1),12,1)),AVERAGE(OFFSET('1EFines'!$E$10,12*$A54,4*(PlotControl!$C$6-1),12,1))) -> 0 | W54: =IF(PlotControl!$B$4 = "Annual Max",MAX(OFFSET('1ECoarse'!$C$10,12*$A54,4*(PlotControl!$C$6-1),12,1)),AVERAGE(OFFSET('1ECoarse'!$C$10,12*$A54,4*(PlotControl!$C$6-1),12,1))) -> 485790 | X54: =IF(PlotControl!$B$4 = "Annual Max",MAX(OFFSET('1ECoarse'!$D$10,12*$A54,4*(PlotControl!$C$6-1),12,1)),AVERAGE(OFFSET('1ECoarse'!$D$10,12*$A54,4*(PlotControl!$C$6-1),12,1))) -> 825880 | Y54: =IF(PlotControl!$B$4 = "Annual Max",MAX(OFFSET('1ECoarse'!$E$10,12*$A54,4*(PlotControl!$C$6-1),12,1)),AVERAGE(OFFSET('1ECoarse'!$E$10,12*$A54,4*(PlotControl!$C$6-1),12,1))) -> 1174275
A55: 50 | B55: =IF(PlotControl!$B$4 = "Annual Max",MAX(OFFSET('2WFines'!$C$10,12*$A55,4*(PlotControl!$C$6-1),12,1)),AVERAGE(OFFSET('2WFines'!$C$10,12*$A55,4*(PlotControl!$C$6-1),12,1))) -> 207719.1667 | C55: =IF(PlotControl!$B$4 = "Annual Max",MAX(OFFSET('2WFines'!$D$10,12*$A55,4*(PlotControl!$C$6-1),12,1)),AVERAGE(OFFSET('2WFines'!$D$10,12*$A55,4*(PlotControl!$C$6-1),12,1))) -> 262914.1667 | D55: =IF(PlotControl!$B$4 = "Annual Max",MAX(OFFSET('2WFines'!$E$10,12*$A55,4*(PlotControl!$C$6-1),12,1)),AVERAGE(OFFSET('2WFines'!$E$10,12*$A55,4*(PlotControl!$C$6-1),12,1))) -> 306611.6667 | E55: =IF(PlotControl!$B$4 = "Annual Max",MAX(OFFSET('2WCoarse'!$C$10,12*$A55,4*(PlotControl!$C$6-1),12,1)),AVERAGE(OFFSET('2WCoarse'!$C$10,12*$A55,4*(PlotControl!$C$6-1),12,1))) -> 241028.3333 | F55: =IF(PlotControl!$B$4 = "Annual Max",MAX(OFFSET('2WCoarse'!$D$10,12*$A55,4*(PlotControl!$C$6-1),12,1)),AVERAGE(OFFSET('2WCoarse'!$D$10,12*$A55,4*(PlotControl!$C$6-1),12,1))) -> 425155 | G55: =IF(PlotControl!$B$4 = "Annual Max",MAX(OFFSET('2WCoarse'!$E$10,12*$A55,4*(PlotControl!$C$6-1),12,1)),AVERAGE(OFFSET('2WCoarse'!$E$10,12*$A55,4*(PlotControl!$C$6-1),12,1))) -> 589484.1667 | H55: =IF(PlotControl!$B$4 = "Annual Max",MAX(OFFSET('2WBank'!$C$10,12*$A55,4*(PlotControl!$C$6-1),12,1)),AVERAGE(OFFSET('2WBank'!$C$10,12*$A55,4*(PlotControl!$C$6-1),12,1))) -> 418401.6667 | I55: =IF(PlotControl!$B$4 = "Annual Max",MAX(OFFSET('2WBank'!$D$10,12*$A55,4*(PlotControl!$C$6-1),12,1)),AVERAGE(OFFSET('2WBank'!$D$10,12*$A55,4*(PlotControl!$C$6-1),12,1))) -> 714294.1667 | J55: =IF(PlotControl!$B$4 = "Annual Max",MAX(OFFSET('2WBank'!$E$10,12*$A55,4*(PlotControl!$C$6-1),12,1)),AVERAGE(OFFSET('2WBank'!$E$10,12*$A55,4*(PlotControl!$C$6-1),12,1))) -> 976023.3333 | K55: =IF(PlotControl!$B$4 = "Annual Max",MAX(OFFSET('2EFines'!$C$10,12*$A55,4*(PlotControl!$C$6-1),12,1)),AVERAGE(OFFSET('2EFines'!$C$10,12*$A55,4*(PlotControl!$C$6-1),12,1))) -> 0 | L55: =IF(PlotControl!$B$4 = "Annual Max",MAX(OFFSET('2EFines'!$D$10,12*$A55,4*(PlotControl!$C$6-1),12,1)),AVERAGE(OFFSET('2EFines'!$D$10,12*$A55,4*(PlotControl!$C$6-1),12,1))) -> 0 | M55: =IF(PlotControl!$B$4 = "Annual Max",MAX(OFFSET('2EFines'!$E$10,12*$A55,4*(PlotControl!$C$6-1),12,1)),AVERAGE(OFFSET('2EFines'!$E$10,12*$A55,4*(PlotControl!$C$6-1),12,1))) -> 0 | N55: =IF(PlotControl!$B$4 = "Annual Max",MAX(OFFSET('2ECoarse'!$C$10,12*$A55,4*(PlotControl!$C$6-1),12,1)),AVERAGE(OFFSET('2ECoarse'!$C$10,12*$A55,4*(PlotControl!$C$6-1),12,1))) -> 0 | O55: =IF(PlotControl!$B$4 = "Annual Max",MAX(OFFSET('2ECoarse'!$D$10,12*$A55,4*(PlotControl!$C$6-1),12,1)),AVERAGE(OFFSET('2ECoarse'!$D$10,12*$A55,4*(PlotControl!$C$6-1),12,1))) -> 0 | P55: =IF(PlotControl!$B$4 = "Annual Max",MAX(OFFSET('2ECoarse'!$E$10,12*$A55,4*(PlotControl!$C$6-1),12,1)),AVERAGE(OFFSET('2ECoarse'!$E$10,12*$A55,4*(PlotControl!$C$6-1),12,1))) -> 0 | Q55: =IF(PlotControl!$B$4 = "Annual Max",MAX(OFFSET('2EBank'!$C$10,12*$A55,4*(PlotControl!$C$6-1),12,1)),AVERAGE(OFFSET('2EBank'!$C$10,12*$A55,4*(PlotControl!$C$6-1),12,1))) -> 287367.5 | R55: =IF(PlotControl!$B$4 = "Annual Max",MAX(OFFSET('2EBank'!$D$10,12*$A55,4*(PlotControl!$C$6-1),12,1)),AVERAGE(OFFSET('2EBank'!$D$10,12*$A55,4*(PlotControl!$C$6-1),12,1))) -> 499666.6667 | S55: =IF(PlotControl!$B$4 = "Annual Max",MAX(OFFSET('2EBank'!$E$10,12*$A55,4*(PlotControl!$C$6-1),12,1)),AVERAGE(OFFSET('2EBank'!$E$10,12*$A55,4*(PlotControl!$C$6-1),12,1))) -> 713085 | T55: =IF(PlotControl!$B$4 = "Annual Max",MAX(OFFSET('1EFines'!$C$10,12*$A55,4*(PlotControl!$C$6-1),12,1)),AVERAGE(OFFSET('1EFines'!$C$10,12*$A55,4*(PlotControl!$C$6-1),12,1))) -> 0 | U55: =IF(PlotControl!$B$4 = "Annual Max",MAX(OFFSET('1EFines'!$D$10,12*$A55,4*(PlotControl!$C$6-1),12,1)),AVERAGE(OFFSET('1EFines'!$D$10,12*$A55,4*(PlotControl!$C$6-1),12,1))) -> 0 | V55: =IF(PlotControl!$B$4 = "Annual Max",MAX(OFFSET('1EFines'!$E$10,12*$A55,4*(PlotControl!$C$6-1),12,1)),AVERAGE(OFFSET('1EFines'!$E$10,12*$A55,4*(PlotControl!$C$6-1),12,1))) -> 0 | W55: =IF(PlotControl!$B$4 = "Annual Max",MAX(OFFSET('1ECoarse'!$C$10,12*$A55,4*(PlotControl!$C$6-1),12,1)),AVERAGE(OFFSET('1ECoarse'!$C$10,12*$A55,4*(PlotControl!$C$6-1),12,1))) -> 489007.5 | X55: =IF(PlotControl!$B$4 = "Annual Max",MAX(OFFSET('1ECoarse'!$D$10,12*$A55,4*(PlotControl!$C$6-1),12,1)),AVERAGE(OFFSET('1ECoarse'!$D$10,12*$A55,4*(PlotControl!$C$6-1),12,1))) -> 832505.8333 | Y55: =IF(PlotControl!$B$4 = "Annual Max",MAX(OFFSET('1ECoarse'!$E$10,12*$A55,4*(PlotControl!$C$6-1),12,1)),AVERAGE(OFFSET('1ECoarse'!$E$10,12*$A55,4*(PlotControl!$C$6-1),12,1))) -> 1186050
A56: 51 | B56: =IF(PlotControl!$B$4 = "Annual Max",MAX(OFFSET('2WFines'!$C$10,12*$A56,4*(PlotControl!$C$6-1),12,1)),AVERAGE(OFFSET('2WFines'!$C$10,12*$A56,4*(PlotControl!$C$6-1),12,1))) -> 206858.3333 | C56: =IF(PlotControl!$B$4 = "Annual Max",MAX(OFFSET('2WFines'!$D$10,12*$A56,4*(PlotControl!$C$6-1),12,1)),AVERAGE(OFFSET('2WFines'!$D$10,12*$A56,4*(PlotControl!$C$6-1),12,1))) -> 263466.6667 | D56: =IF(PlotControl!$B$4 = "Annual Max",MAX(OFFSET('2WFines'!$E$10,12*$A56,4*(PlotControl!$C$6-1),12,1)),AVERAGE(OFFSET('2WFines'!$E$10,12*$A56,4*(PlotControl!$C$6-1),12,1))) -> 306836.6667 | E56: =IF(PlotControl!$B$4 = "Annual Max",MAX(OFFSET('2WCoarse'!$C$10,12*$A56,4*(PlotControl!$C$6-1),12,1)),AVERAGE(OFFSET('2WCoarse'!$C$10,12*$A56,4*(PlotControl!$C$6-1),12,1))) -> 244180.8333 | F56: =IF(PlotControl!$B$4 = "Annual Max",MAX(OFFSET('2WCoarse'!$D$10,12*$A56,4*(PlotControl!$C$6-1),12,1)),AVERAGE(OFFSET('2WCoarse'!$D$10,12*$A56,4*(PlotControl!$C$6-1),12,1))) -> 428412.5 | G56: =IF(PlotControl!$B$4 = "Annual Max",MAX(OFFSET('2WCoarse'!$E$10,12*$A56,4*(PlotControl!$C$6-1),12,1)),AVERAGE(OFFSET('2WCoarse'!$E$10,12*$A56,4*(PlotControl!$C$6-1),12,1))) -> 590168.3333 | H56: =IF(PlotControl!$B$4 = "Annual Max",MAX(OFFSET('2WBank'!$C$10,12*$A56,4*(PlotControl!$C$6-1),12,1)),AVERAGE(OFFSET('2WBank'!$C$10,12*$A56,4*(PlotControl!$C$6-1),12,1))) -> 419260.8333 | I56: =IF(PlotControl!$B$4 = "Annual Max",MAX(OFFSET('2WBank'!$D$10,12*$A56,4*(PlotControl!$C$6-1),12,1)),AVERAGE(OFFSET('2WBank'!$D$10,12*$A56,4*(PlotControl!$C$6-1),12,1))) -> 721500.8333 | J56: =IF(PlotControl!$B$4 = "Annual Max",MAX(OFFSET('2WBank'!$E$10,12*$A56,4*(PlotControl!$C$6-1),12,1)),AVERAGE(OFFSET('2WBank'!$E$10,12*$A56,4*(PlotControl!$C$6-1),12,1))) -> 981330 | K56: =IF(PlotControl!$B$4 = "Annual Max",MAX(OFFSET('2EFines'!$C$10,12*$A56,4*(PlotControl!$C$6-1),12,1)),AVERAGE(OFFSET('2EFines'!$C$10,12*$A56,4*(PlotControl!$C$6-1),12,1))) -> 0 | L56: =IF(PlotControl!$B$4 = "Annual Max",MAX(OFFSET('2EFines'!$D$10,12*$A56,4*(PlotControl!$C$6-1),12,1)),AVERAGE(OFFSET('2EFines'!$D$10,12*$A56,4*(PlotControl!$C$6-1),12,1))) -> 0 | M56: =IF(PlotControl!$B$4 = "Annual Max",MAX(OFFSET('2EFines'!$E$10,12*$A56,4*(PlotControl!$C$6-1),12,1)),AVERAGE(OFFSET('2EFines'!$E$10,12*$A56,4*(PlotControl!$C$6-1),12,1))) -> 0 | N56: =IF(PlotControl!$B$4 = "Annual Max",MAX(OFFSET('2ECoarse'!$C$10,12*$A56,4*(PlotControl!$C$6-1),12,1)),AVERAGE(OFFSET('2ECoarse'!$C$10,12*$A56,4*(PlotControl!$C$6-1),12,1))) -> 0 | O56: =IF(PlotControl!$B$4 = "Annual Max",MAX(OFFSET('2ECoarse'!$D$10,12*$A56,4*(PlotControl!$C$6-1),12,1)),AVERAGE(OFFSET('2ECoarse'!$D$10,12*$A56,4*(PlotControl!$C$6-1),12,1))) -> 0 | P56: =IF(PlotControl!$B$4 = "Annual Max",MAX(OFFSET('2ECoarse'!$E$10,12*$A56,4*(PlotControl!$C$6-1),12,1)),AVERAGE(OFFSET('2ECoarse'!$E$10,12*$A56,4*(PlotControl!$C$6-1),12,1))) -> 0 | Q56: =IF(PlotControl!$B$4 = "Annual Max",MAX(OFFSET('2EBank'!$C$10,12*$A56,4*(PlotControl!$C$6-1),12,1)),AVERAGE(OFFSET('2EBank'!$C$10,12*$A56,4*(PlotControl!$C$6-1),12,1))) -> 289625 | R56: =IF(PlotControl!$B$4 = "Annual Max",MAX(OFFSET('2EBank'!$D$10,12*$A56,4*(PlotControl!$C$6-1),12,1)),AVERAGE(OFFSET('2EBank'!$D$10,12*$A56,4*(PlotControl!$C$6-1),12,1))) -> 506092.5 | S56: =IF(PlotControl!$B$4 = "Annual Max",MAX(OFFSET('2EBank'!$E$10,12*$A56,4*(PlotControl!$C$6-1),12,1)),AVERAGE(OFFSET('2EBank'!$E$10,12*$A56,4*(PlotControl!$C$6-1),12,1))) -> 713230.8333 | T56: =IF(PlotControl!$B$4 = "Annual Max",MAX(OFFSET('1EFines'!$C$10,12*$A56,4*(PlotControl!$C$6-1),12,1)),AVERAGE(OFFSET('1EFines'!$C$10,12*$A56,4*(PlotControl!$C$6-1),12,1))) -> 0 | U56: =IF(PlotControl!$B$4 = "Annual Max",MAX(OFFSET('1EFines'!$D$10,12*$A56,4*(PlotControl!$C$6-1),12,1)),AVERAGE(OFFSET('1EFines'!$D$10,12*$A56,4*(PlotControl!$C$6-1),12,1))) -> 0 | V56: =IF(PlotControl!$B$4 = "Annual Max",MAX(OFFSET('1EFines'!$E$10,12*$A56,4*(PlotControl!$C$6-1),12,1)),AVERAGE(OFFSET('1EFines'!$E$10,12*$A56,4*(PlotControl!$C$6-1),12,1))) -> 0 | W56: =IF(PlotControl!$B$4 = "Annual Max",MAX(OFFSET('1ECoarse'!$C$10,12*$A56,4*(PlotControl!$C$6-1),12,1)),AVERAGE(OFFSET('1ECoarse'!$C$10,12*$A56,4*(PlotControl!$C$6-1),12,1))) -> 495556.6667 | X56: =IF(PlotControl!$B$4 = "Annual Max",MAX(OFFSET('1ECoarse'!$D$10,12*$A56,4*(PlotControl!$C$6-1),12,1)),AVERAGE(OFFSET('1ECoarse'!$D$10,12*$A56,4*(PlotControl!$C$6-1),12,1))) -> 833586.6667 | Y56: =IF(PlotControl!$B$4 = "Annual Max",MAX(OFFSET('1ECoarse'!$E$10,12*$A56,4*(PlotControl!$C$6-1),12,1)),AVERAGE(OFFSET('1ECoarse'!$E$10,12*$A56,4*(PlotControl!$C$6-1),12,1))) -> 1191400
A57: 52 | B57: =IF(PlotControl!$B$4 = "Annual Max",MAX(OFFSET('2WFines'!$C$10,12*$A57,4*(PlotControl!$C$6-1),12,1)),AVERAGE(OFFSET('2WFines'!$C$10,12*$A57,4*(PlotControl!$C$6-1),12,1))) -> 206861.6667 | C57: =IF(PlotControl!$B$4 = "Annual Max",MAX(OFFSET('2WFines'!$D$10,12*$A57,4*(PlotControl!$C$6-1),12,1)),AVERAGE(OFFSET('2WFines'!$D$10,12*$A57,4*(PlotControl!$C$6-1),12,1))) -> 263290.8333 | D57: =IF(PlotControl!$B$4 = "Annual Max",MAX(OFFSET('2WFines'!$E$10,12*$A57,4*(PlotControl!$C$6-1),12,1)),AVERAGE(OFFSET('2WFines'!$E$10,12*$A57,4*(PlotControl!$C$6-1),12,1))) -> 306410.8333 | E57: =IF(PlotControl!$B$4 = "Annual Max",MAX(OFFSET('2WCoarse'!$C$10,12*$A57,4*(PlotControl!$C$6-1),12,1)),AVERAGE(OFFSET('2WCoarse'!$C$10,12*$A57,4*(PlotControl!$C$6-1),12,1))) -> 243895 | F57: =IF(PlotControl!$B$4 = "Annual Max",MAX(OFFSET('2WCoarse'!$D$10,12*$A57,4*(PlotControl!$C$6-1),12,1)),AVERAGE(OFFSET('2WCoarse'!$D$10,12*$A57,4*(PlotControl!$C$6-1),12,1))) -> 431381.6667 | G57: =IF(PlotControl!$B$4 = "Annual Max",MAX(OFFSET('2WCoarse'!$E$10,12*$A57,4*(PlotControl!$C$6-1),12,1)),AVERAGE(OFFSET('2WCoarse'!$E$10,12*$A57,4*(PlotControl!$C$6-1),12,1))) -> 592050 | H57: =IF(PlotControl!$B$4 = "Annual Max",MAX(OFFSET('2WBank'!$C$10,12*$A57,4*(PlotControl!$C$6-1),12,1)),AVERAGE(OFFSET('2WBank'!$C$10,12*$A57,4*(PlotControl!$C$6-1),12,1))) -> 416855.8333 | I57: =IF(PlotControl!$B$4 = "Annual Max",MAX(OFFSET('2WBank'!$D$10,12*$A57,4*(PlotControl!$C$6-1),12,1)),AVERAGE(OFFSET('2WBank'!$D$10,12*$A57,4*(PlotControl!$C$6-1),12,1))) -> 719206.6667 | J57: =IF(PlotControl!$B$4 = "Annual Max",MAX(OFFSET('2WBank'!$E$10,12*$A57,4*(PlotControl!$C$6-1),12,1)),AVERAGE(OFFSET('2WBank'!$E$10,12*$A57,4*(PlotControl!$C$6-1),12,1))) -> 986551.6667 | K57: =IF(PlotControl!$B$4 = "Annual Max",MAX(OFFSET('2EFines'!$C$10,12*$A57,4*(PlotControl!$C$6-1),12,1)),AVERAGE(OFFSET('2EFines'!$C$10,12*$A57,4*(PlotControl!$C$6-1),12,1))) -> 0 | L57: =IF(PlotControl!$B$4 = "Annual Max",MAX(OFFSET('2EFines'!$D$10,12*$A57,4*(PlotControl!$C$6-1),12,1)),AVERAGE(OFFSET('2EFines'!$D$10,12*$A57,4*(PlotControl!$C$6-1),12,1))) -> 0 | M57: =IF(PlotControl!$B$4 = "Annual Max",MAX(OFFSET('2EFines'!$E$10,12*$A57,4*(PlotControl!$C$6-1),12,1)),AVERAGE(OFFSET('2EFines'!$E$10,12*$A57,4*(PlotControl!$C$6-1),12,1))) -> 0 | N57: =IF(PlotControl!$B$4 = "Annual Max",MAX(OFFSET('2ECoarse'!$C$10,12*$A57,4*(PlotControl!$C$6-1),12,1)),AVERAGE(OFFSET('2ECoarse'!$C$10,12*$A57,4*(PlotControl!$C$6-1),12,1))) -> 0 | O57: =IF(PlotControl!$B$4 = "Annual Max",MAX(OFFSET('2ECoarse'!$D$10,12*$A57,4*(PlotControl!$C$6-1),12,1)),AVERAGE(OFFSET('2ECoarse'!$D$10,12*$A57,4*(PlotControl!$C$6-1),12,1))) -> 0 | P57: =IF(PlotControl!$B$4 = "Annual Max",MAX(OFFSET('2ECoarse'!$E$10,12*$A57,4*(PlotControl!$C$6-1),12,1)),AVERAGE(OFFSET('2ECoarse'!$E$10,12*$A57,4*(PlotControl!$C$6-1),12,1))) -> 0 | Q57: =IF(PlotControl!$B$4 = "Annual Max",MAX(OFFSET('2EBank'!$C$10,12*$A57,4*(PlotControl!$C$6-1),12,1)),AVERAGE(OFFSET('2EBank'!$C$10,12*$A57,4*(PlotControl!$C$6-1),12,1))) -> 287645.8333 | R57: =IF(PlotControl!$B$4 = "Annual Max",MAX(OFFSET('2EBank'!$D$10,12*$A57,4*(PlotControl!$C$6-1),12,1)),AVERAGE(OFFSET('2EBank'!$D$10,12*$A57,4*(PlotControl!$C$6-1),12,1))) -> 507921.6667 | S57: =IF(PlotControl!$B$4 = "Annual Max",MAX(OFFSET('2EBank'!$E$10,12*$A57,4*(PlotControl!$C$6-1),12,1)),AVERAGE(OFFSET('2EBank'!$E$10,12*$A57,4*(PlotControl!$C$6-1),12,1))) -> 710040 | T57: =IF(PlotControl!$B$4 = "Annual Max",MAX(OFFSET('1EFines'!$C$10,12*$A57,4*(PlotControl!$C$6-1),12,1)),AVERAGE(OFFSET('1EFines'!$C$10,12*$A57,4*(PlotControl!$C$6-1),12,1))) -> 0 | U57: =IF(PlotControl!$B$4 = "Annual Max",MAX(OFFSET('1EFines'!$D$10,12*$A57,4*(PlotControl!$C$6-1),12,1)),AVERAGE(OFFSET('1EFines'!$D$10,12*$A57,4*(PlotControl!$C$6-1),12,1))) -> 0 | V57: =IF(PlotControl!$B$4 = "Annual Max",MAX(OFFSET('1EFines'!$E$10,12*$A57,4*(PlotControl!$C$6-1),12,1)),AVERAGE(OFFSET('1EFines'!$E$10,12*$A57,4*(PlotControl!$C$6-1),12,1))) -> 0 | W57: =IF(PlotControl!$B$4 = "Annual Max",MAX(OFFSET('1ECoarse'!$C$10,12*$A57,4*(PlotControl!$C$6-1),12,1)),AVERAGE(OFFSET('1ECoarse'!$C$10,12*$A57,4*(PlotControl!$C$6-1),12,1))) -> 500770 | X57: =IF(PlotControl!$B$4 = "Annual Max",MAX(OFFSET('1ECoarse'!$D$10,12*$A57,4*(PlotControl!$C$6-1),12,1)),AVERAGE(OFFSET('1ECoarse'!$D$10,12*$A57,4*(PlotControl!$C$6-1),12,1))) -> 852604.1667 | Y57: =IF(PlotControl!$B$4 = "Annual Max",MAX(OFFSET('1ECoarse'!$E$10,12*$A57,4*(PlotControl!$C$6-1),12,1)),AVERAGE(OFFSET('1ECoarse'!$E$10,12*$A57,4*(PlotControl!$C$6-1),12,1))) -> 1202408.333
A58: 53 | B58: =IF(PlotControl!$B$4 = "Annual Max",MAX(OFFSET('2WFines'!$C$10,12*$A58,4*(PlotControl!$C$6-1),12,1)),AVERAGE(OFFSET('2WFines'!$C$10,12*$A58,4*(PlotControl!$C$6-1),12,1))) -> 207116.6667 | C58: =IF(PlotControl!$B$4 = "Annual Max",MAX(OFFSET('2WFines'!$D$10,12*$A58,4*(PlotControl!$C$6-1),12,1)),AVERAGE(OFFSET('2WFines'!$D$10,12*$A58,4*(PlotControl!$C$6-1),12,1))) -> 262713.3333 | D58: =IF(PlotControl!$B$4 = "Annual Max",MAX(OFFSET('2WFines'!$E$10,12*$A58,4*(PlotControl!$C$6-1),12,1)),AVERAGE(OFFSET('2WFines'!$E$10,12*$A58,4*(PlotControl!$C$6-1),12,1))) -> 308010 | E58: =IF(PlotControl!$B$4 = "Annual Max",MAX(OFFSET('2WCoarse'!$C$10,12*$A58,4*(PlotControl!$C$6-1),12,1)),AVERAGE(OFFSET('2WCoarse'!$C$10,12*$A58,4*(PlotControl!$C$6-1),12,1))) -> 247659.1667 | F58: =IF(PlotControl!$B$4 = "Annual Max",MAX(OFFSET('2WCoarse'!$D$10,12*$A58,4*(PlotControl!$C$6-1),12,1)),AVERAGE(OFFSET('2WCoarse'!$D$10,12*$A58,4*(PlotControl!$C$6-1),12,1))) -> 433655 | G58: =IF(PlotControl!$B$4 = "Annual Max",MAX(OFFSET('2WCoarse'!$E$10,12*$A58,4*(PlotControl!$C$6-1),12,1)),AVERAGE(OFFSET('2WCoarse'!$E$10,12*$A58,4*(PlotControl!$C$6-1),12,1))) -> 599335 | H58: =IF(PlotControl!$B$4 = "Annual Max",MAX(OFFSET('2WBank'!$C$10,12*$A58,4*(PlotControl!$C$6-1),12,1)),AVERAGE(OFFSET('2WBank'!$C$10,12*$A58,4*(PlotControl!$C$6-1),12,1))) -> 417886.6667 | I58: =IF(PlotControl!$B$4 = "Annual Max",MAX(OFFSET('2WBank'!$D$10,12*$A58,4*(PlotControl!$C$6-1),12,1)),AVERAGE(OFFSET('2WBank'!$D$10,12*$A58,4*(PlotControl!$C$6-1),12,1))) -> 716405.8333 | J58: =IF(PlotControl!$B$4 = "Annual Max",MAX(OFFSET('2WBank'!$E$10,12*$A58,4*(PlotControl!$C$6-1),12,1)),AVERAGE(OFFSET('2WBank'!$E$10,12*$A58,4*(PlotControl!$C$6-1),12,1))) -> 996934.1667 | K58: =IF(PlotControl!$B$4 = "Annual Max",MAX(OFFSET('2EFines'!$C$10,12*$A58,4*(PlotControl!$C$6-1),12,1)),AVERAGE(OFFSET('2EFines'!$C$10,12*$A58,4*(PlotControl!$C$6-1),12,1))) -> 0 | L58: =IF(PlotControl!$B$4 = "Annual Max",MAX(OFFSET('2EFines'!$D$10,12*$A58,4*(PlotControl!$C$6-1),12,1)),AVERAGE(OFFSET('2EFines'!$D$10,12*$A58,4*(PlotControl!$C$6-1),12,1))) -> 0 | M58: =IF(PlotControl!$B$4 = "Annual Max",MAX(OFFSET('2EFines'!$E$10,12*$A58,4*(PlotControl!$C$6-1),12,1)),AVERAGE(OFFSET('2EFines'!$E$10,12*$A58,4*(PlotControl!$C$6-1),12,1))) -> 0 | N58: =IF(PlotControl!$B$4 = "Annual Max",MAX(OFFSET('2ECoarse'!$C$10,12*$A58,4*(PlotControl!$C$6-1),12,1)),AVERAGE(OFFSET('2ECoarse'!$C$10,12*$A58,4*(PlotControl!$C$6-1),12,1))) -> 0 | O58: =IF(PlotControl!$B$4 = "Annual Max",MAX(OFFSET('2ECoarse'!$D$10,12*$A58,4*(PlotControl!$C$6-1),12,1)),AVERAGE(OFFSET('2ECoarse'!$D$10,12*$A58,4*(PlotControl!$C$6-1),12,1))) -> 0 | P58: =IF(PlotControl!$B$4 = "Annual Max",MAX(OFFSET('2ECoarse'!$E$10,12*$A58,4*(PlotControl!$C$6-1),12,1)),AVERAGE(OFFSET('2ECoarse'!$E$10,12*$A58,4*(PlotControl!$C$6-1),12,1))) -> 0 | Q58: =IF(PlotControl!$B$4 = "Annual Max",MAX(OFFSET('2EBank'!$C$10,12*$A58,4*(PlotControl!$C$6-1),12,1)),AVERAGE(OFFSET('2EBank'!$C$10,12*$A58,4*(PlotControl!$C$6-1),12,1))) -> 289838.3333 | R58: =IF(PlotControl!$B$4 = "Annual Max",MAX(OFFSET('2EBank'!$D$10,12*$A58,4*(PlotControl!$C$6-1),12,1)),AVERAGE(OFFSET('2EBank'!$D$10,12*$A58,4*(PlotControl!$C$6-1),12,1))) -> 510121.6667 | S58: =IF(PlotControl!$B$4 = "Annual Max",MAX(OFFSET('2EBank'!$E$10,12*$A58,4*(PlotControl!$C$6-1),12,1)),AVERAGE(OFFSET('2EBank'!$E$10,12*$A58,4*(PlotControl!$C$6-1),12,1))) -> 719252.5 | T58: =IF(PlotControl!$B$4 = "Annual Max",MAX(OFFSET('1EFines'!$C$10,12*$A58,4*(PlotControl!$C$6-1),12,1)),AVERAGE(OFFSET('1EFines'!$C$10,12*$A58,4*(PlotControl!$C$6-1),12,1))) -> 0 | U58: =IF(PlotControl!$B$4 = "Annual Max",MAX(OFFSET('1EFines'!$D$10,12*$A58,4*(PlotControl!$C$6-1),12,1)),AVERAGE(OFFSET('1EFines'!$D$10,12*$A58,4*(PlotControl!$C$6-1),12,1))) -> 0 | V58: =IF(PlotControl!$B$4 = "Annual Max",MAX(OFFSET('1EFines'!$E$10,12*$A58,4*(PlotControl!$C$6-1),12,1)),AVERAGE(OFFSET('1EFines'!$E$10,12*$A58,4*(PlotControl!$C$6-1),12,1))) -> 0 | W58: =IF(PlotControl!$B$4 = "Annual Max",MAX(OFFSET('1ECoarse'!$C$10,12*$A58,4*(PlotControl!$C$6-1),12,1)),AVERAGE(OFFSET('1ECoarse'!$C$10,12*$A58,4*(PlotControl!$C$6-1),12,1))) -> 504095.8333 | X58: =IF(PlotControl!$B$4 = "Annual Max",MAX(OFFSET('1ECoarse'!$D$10,12*$A58,4*(PlotControl!$C$6-1),12,1)),AVERAGE(OFFSET('1ECoarse'!$D$10,12*$A58,4*(PlotControl!$C$6-1),12,1))) -> 855381.6667 | Y58: =IF(PlotControl!$B$4 = "Annual Max",MAX(OFFSET('1ECoarse'!$E$10,12*$A58,4*(PlotControl!$C$6-1),12,1)),AVERAGE(OFFSET('1ECoarse'!$E$10,12*$A58,4*(PlotControl!$C$6-1),12,1))) -> 1214591.667
A59: 54 | B59: =IF(PlotControl!$B$4 = "Annual Max",MAX(OFFSET('2WFines'!$C$10,12*$A59,4*(PlotControl!$C$6-1),12,1)),AVERAGE(OFFSET('2WFines'!$C$10,12*$A59,4*(PlotControl!$C$6-1),12,1))) -> 206459.1667 | C59: =IF(PlotControl!$B$4 = "Annual Max",MAX(OFFSET('2WFines'!$D$10,12*$A59,4*(PlotControl!$C$6-1),12,1)),AVERAGE(OFFSET('2WFines'!$D$10,12*$A59,4*(PlotControl!$C$6-1),12,1))) -> 263480 | D59: =IF(PlotControl!$B$4 = "Annual Max",MAX(OFFSET('2WFines'!$E$10,12*$A59,4*(PlotControl!$C$6-1),12,1)),AVERAGE(OFFSET('2WFines'!$E$10,12*$A59,4*(PlotControl!$C$6-1),12,1))) -> 308095 | E59: =IF(PlotControl!$B$4 = "Annual Max",MAX(OFFSET('2WCoarse'!$C$10,12*$A59,4*(PlotControl!$C$6-1),12,1)),AVERAGE(OFFSET('2WCoarse'!$C$10,12*$A59,4*(PlotControl!$C$6-1),12,1))) -> 250215.8333 | F59: =IF(PlotControl!$B$4 = "Annual Max",MAX(OFFSET('2WCoarse'!$D$10,12*$A59,4*(PlotControl!$C$6-1),12,1)),AVERAGE(OFFSET('2WCoarse'!$D$10,12*$A59,4*(PlotControl!$C$6-1),12,1))) -> 437351.6667 | G59: =IF(PlotControl!$B$4 = "Annual Max",MAX(OFFSET('2WCoarse'!$E$10,12*$A59,4*(PlotControl!$C$6-1),12,1)),AVERAGE(OFFSET('2WCoarse'!$E$10,12*$A59,4*(PlotControl!$C$6-1),12,1))) -> 602001.6667 | H59: =IF(PlotControl!$B$4 = "Annual Max",MAX(OFFSET('2WBank'!$C$10,12*$A59,4*(PlotControl!$C$6-1),12,1)),AVERAGE(OFFSET('2WBank'!$C$10,12*$A59,4*(PlotControl!$C$6-1),12,1))) -> 419733.3333 | I59: =IF(PlotControl!$B$4 = "Annual Max",MAX(OFFSET('2WBank'!$D$10,12*$A59,4*(PlotControl!$C$6-1),12,1)),AVERAGE(OFFSET('2WBank'!$D$10,12*$A59,4*(PlotControl!$C$6-1),12,1))) -> 721915 | J59: =IF(PlotControl!$B$4 = "Annual Max",MAX(OFFSET('2WBank'!$E$10,12*$A59,4*(PlotControl!$C$6-1),12,1)),AVERAGE(OFFSET('2WBank'!$E$10,12*$A59,4*(PlotControl!$C$6-1),12,1))) -> 998545 | K59: =IF(PlotControl!$B$4 = "Annual Max",MAX(OFFSET('2EFines'!$C$10,12*$A59,4*(PlotControl!$C$6-1),12,1)),AVERAGE(OFFSET('2EFines'!$C$10,12*$A59,4*(PlotControl!$C$6-1),12,1))) -> 0 | L59: =IF(PlotControl!$B$4 = "Annual Max",MAX(OFFSET('2EFines'!$D$10,12*$A59,4*(PlotControl!$C$6-1),12,1)),AVERAGE(OFFSET('2EFines'!$D$10,12*$A59,4*(PlotControl!$C$6-1),12,1))) -> 0 | M59: =IF(PlotControl!$B$4 = "Annual Max",MAX(OFFSET('2EFines'!$E$10,12*$A59,4*(PlotControl!$C$6-1),12,1)),AVERAGE(OFFSET('2EFines'!$E$10,12*$A59,4*(PlotControl!$C$6-1),12,1))) -> 0 | N59: =IF(PlotControl!$B$4 = "Annual Max",MAX(OFFSET('2ECoarse'!$C$10,12*$A59,4*(PlotControl!$C$6-1),12,1)),AVERAGE(OFFSET('2ECoarse'!$C$10,12*$A59,4*(PlotControl!$C$6-1),12,1))) -> 0 | O59: =IF(PlotControl!$B$4 = "Annual Max",MAX(OFFSET('2ECoarse'!$D$10,12*$A59,4*(PlotControl!$C$6-1),12,1)),AVERAGE(OFFSET('2ECoarse'!$D$10,12*$A59,4*(PlotControl!$C$6-1),12,1))) -> 0 | P59: =IF(PlotControl!$B$4 = "Annual Max",MAX(OFFSET('2ECoarse'!$E$10,12*$A59,4*(PlotControl!$C$6-1),12,1)),AVERAGE(OFFSET('2ECoarse'!$E$10,12*$A59,4*(PlotControl!$C$6-1),12,1))) -> 0 | Q59: =IF(PlotControl!$B$4 = "Annual Max",MAX(OFFSET('2EBank'!$C$10,12*$A59,4*(PlotControl!$C$6-1),12,1)),AVERAGE(OFFSET('2EBank'!$C$10,12*$A59,4*(PlotControl!$C$6-1),12,1))) -> 293225.8333 | R59: =IF(PlotControl!$B$4 = "Annual Max",MAX(OFFSET('2EBank'!$D$10,12*$A59,4*(PlotControl!$C$6-1),12,1)),AVERAGE(OFFSET('2EBank'!$D$10,12*$A59,4*(PlotControl!$C$6-1),12,1))) -> 507595.8333 | S59: =IF(PlotControl!$B$4 = "Annual Max",MAX(OFFSET('2EBank'!$E$10,12*$A59,4*(PlotControl!$C$6-1),12,1)),AVERAGE(OFFSET('2EBank'!$E$10,12*$A59,4*(PlotControl!$C$6-1),12,1))) -> 716491.6667 | T59: =IF(PlotControl!$B$4 = "Annual Max",MAX(OFFSET('1EFines'!$C$10,12*$A59,4*(PlotControl!$C$6-1),12,1)),AVERAGE(OFFSET('1EFines'!$C$10,12*$A59,4*(PlotControl!$C$6-1),12,1))) -> 0 | U59: =IF(PlotControl!$B$4 = "Annual Max",MAX(OFFSET('1EFines'!$D$10,12*$A59,4*(PlotControl!$C$6-1),12,1)),AVERAGE(OFFSET('1EFines'!$D$10,12*$A59,4*(PlotControl!$C$6-1),12,1))) -> 0 | V59: =IF(PlotControl!$B$4 = "Annual Max",MAX(OFFSET('1EFines'!$E$10,12*$A59,4*(PlotControl!$C$6-1),12,1)),AVERAGE(OFFSET('1EFines'!$E$10,12*$A59,4*(PlotControl!$C$6-1),12,1))) -> 0 | W59: =IF(PlotControl!$B$4 = "Annual Max",MAX(OFFSET('1ECoarse'!$C$10,12*$A59,4*(PlotControl!$C$6-1),12,1)),AVERAGE(OFFSET('1ECoarse'!$C$10,12*$A59,4*(PlotControl!$C$6-1),12,1))) -> 505780.8333 | X59: =IF(PlotControl!$B$4 = "Annual Max",MAX(OFFSET('1ECoarse'!$D$10,12*$A59,4*(PlotControl!$C$6-1),12,1)),AVERAGE(OFFSET('1ECoarse'!$D$10,12*$A59,4*(PlotControl!$C$6-1),12,1))) -> 862918.3333 | Y59: =IF(PlotControl!$B$4 = "Annual Max",MAX(OFFSET('1ECoarse'!$E$10,12*$A59,4*(PlotControl!$C$6-1),12,1)),AVERAGE(OFFSET('1ECoarse'!$E$10,12*$A59,4*(PlotControl!$C$6-1),12,1))) -> 1234591.667
A60: 55 | B60: =IF(PlotControl!$B$4 = "Annual Max",MAX(OFFSET('2WFines'!$C$10,12*$A60,4*(PlotControl!$C$6-1),12,1)),AVERAGE(OFFSET('2WFines'!$C$10,12*$A60,4*(PlotControl!$C$6-1),12,1))) -> 206170.8333 | C60: =IF(PlotControl!$B$4 = "Annual Max",MAX(OFFSET('2WFines'!$D$10,12*$A60,4*(PlotControl!$C$6-1),12,1)),AVERAGE(OFFSET('2WFines'!$D$10,12*$A60,4*(PlotControl!$C$6-1),12,1))) -> 264681.6667 | D60: =IF(PlotControl!$B$4 = "Annual Max",MAX(OFFSET('2WFines'!$E$10,12*$A60,4*(PlotControl!$C$6-1),12,1)),AVERAGE(OFFSET('2WFines'!$E$10,12*$A60,4*(PlotControl!$C$6-1),12,1))) -> 307596.6667 | E60: =IF(PlotControl!$B$4 = "Annual Max",MAX(OFFSET('2WCoarse'!$C$10,12*$A60,4*(PlotControl!$C$6-1),12,1)),AVERAGE(OFFSET('2WCoarse'!$C$10,12*$A60,4*(PlotControl!$C$6-1),12,1))) -> 251180 | F60: =IF(PlotControl!$B$4 = "Annual Max",MAX(OFFSET('2WCoarse'!$D$10,12*$A60,4*(PlotControl!$C$6-1),12,1)),AVERAGE(OFFSET('2WCoarse'!$D$10,12*$A60,4*(PlotControl!$C$6-1),12,1))) -> 440465 | G60: =IF(PlotControl!$B$4 = "Annual Max",MAX(OFFSET('2WCoarse'!$E$10,12*$A60,4*(PlotControl!$C$6-1),12,1)),AVERAGE(OFFSET('2WCoarse'!$E$10,12*$A60,4*(PlotControl!$C$6-1),12,1))) -> 601960 | H60: =IF(PlotControl!$B$4 = "Annual Max",MAX(OFFSET('2WBank'!$C$10,12*$A60,4*(PlotControl!$C$6-1),12,1)),AVERAGE(OFFSET('2WBank'!$C$10,12*$A60,4*(PlotControl!$C$6-1),12,1))) -> 418770 | I60: =IF(PlotControl!$B$4 = "Annual Max",MAX(OFFSET('2WBank'!$D$10,12*$A60,4*(PlotControl!$C$6-1),12,1)),AVERAGE(OFFSET('2WBank'!$D$10,12*$A60,4*(PlotControl!$C$6-1),12,1))) -> 726522.5 | J60: =IF(PlotControl!$B$4 = "Annual Max",MAX(OFFSET('2WBank'!$E$10,12*$A60,4*(PlotControl!$C$6-1),12,1)),AVERAGE(OFFSET('2WBank'!$E$10,12*$A60,4*(PlotControl!$C$6-1),12,1))) -> 996204.1667 | K60: =IF(PlotControl!$B$4 = "Annual Max",MAX(OFFSET('2EFines'!$C$10,12*$A60,4*(PlotControl!$C$6-1),12,1)),AVERAGE(OFFSET('2EFines'!$C$10,12*$A60,4*(PlotControl!$C$6-1),12,1))) -> 0 | L60: =IF(PlotControl!$B$4 = "Annual Max",MAX(OFFSET('2EFines'!$D$10,12*$A60,4*(PlotControl!$C$6-1),12,1)),AVERAGE(OFFSET('2EFines'!$D$10,12*$A60,4*(PlotControl!$C$6-1),12,1))) -> 0 | M60: =IF(PlotControl!$B$4 = "Annual Max",MAX(OFFSET('2EFines'!$E$10,12*$A60,4*(PlotControl!$C$6-1),12,1)),AVERAGE(OFFSET('2EFines'!$E$10,12*$A60,4*(PlotControl!$C$6-1),12,1))) -> 0 | N60: =IF(PlotControl!$B$4 = "Annual Max",MAX(OFFSET('2ECoarse'!$C$10,12*$A60,4*(PlotControl!$C$6-1),12,1)),AVERAGE(OFFSET('2ECoarse'!$C$10,12*$A60,4*(PlotControl!$C$6-1),12,1))) -> 0 | O60: =IF(PlotControl!$B$4 = "Annual Max",MAX(OFFSET('2ECoarse'!$D$10,12*$A60,4*(PlotControl!$C$6-1),12,1)),AVERAGE(OFFSET('2ECoarse'!$D$10,12*$A60,4*(PlotControl!$C$6-1),12,1))) -> 0 | P60: =IF(PlotControl!$B$4 = "Annual Max",MAX(OFFSET('2ECoarse'!$E$10,12*$A60,4*(PlotControl!$C$6-1),12,1)),AVERAGE(OFFSET('2ECoarse'!$E$10,12*$A60,4*(PlotControl!$C$6-1),12,1))) -> 0 | Q60: =IF(PlotControl!$B$4 = "Annual Max",MAX(OFFSET('2EBank'!$C$10,12*$A60,4*(PlotControl!$C$6-1),12,1)),AVERAGE(OFFSET('2EBank'!$C$10,12*$A60,4*(PlotControl!$C$6-1),12,1))) -> 292017.5 | R60: =IF(PlotControl!$B$4 = "Annual Max",MAX(OFFSET('2EBank'!$D$10,12*$A60,4*(PlotControl!$C$6-1),12,1)),AVERAGE(OFFSET('2EBank'!$D$10,12*$A60,4*(PlotControl!$C$6-1),12,1))) -> 509442.5 | S60: =IF(PlotControl!$B$4 = "Annual Max",MAX(OFFSET('2EBank'!$E$10,12*$A60,4*(PlotControl!$C$6-1),12,1)),AVERAGE(OFFSET('2EBank'!$E$10,12*$A60,4*(PlotControl!$C$6-1),12,1))) -> 715595.8333 | T60: =IF(PlotControl!$B$4 = "Annual Max",MAX(OFFSET('1EFines'!$C$10,12*$A60,4*(PlotControl!$C$6-1),12,1)),AVERAGE(OFFSET('1EFines'!$C$10,12*$A60,4*(PlotControl!$C$6-1),12,1))) -> 0 | U60: =IF(PlotControl!$B$4 = "Annual Max",MAX(OFFSET('1EFines'!$D$10,12*$A60,4*(PlotControl!$C$6-1),12,1)),AVERAGE(OFFSET('1EFines'!$D$10,12*$A60,4*(PlotControl!$C$6-1),12,1))) -> 0 | V60: =IF(PlotControl!$B$4 = "Annual Max",MAX(OFFSET('1EFines'!$E$10,12*$A60,4*(PlotControl!$C$6-1),12,1)),AVERAGE(OFFSET('1EFines'!$E$10,12*$A60,4*(PlotControl!$C$6-1),12,1))) -> 0 | W60: =IF(PlotControl!$B$4 = "Annual Max",MAX(OFFSET('1ECoarse'!$C$10,12*$A60,4*(PlotControl!$C$6-1),12,1)),AVERAGE(OFFSET('1ECoarse'!$C$10,12*$A60,4*(PlotControl!$C$6-1),12,1))) -> 505775 | X60: =IF(PlotControl!$B$4 = "Annual Max",MAX(OFFSET('1ECoarse'!$D$10,12*$A60,4*(PlotControl!$C$6-1),12,1)),AVERAGE(OFFSET('1ECoarse'!$D$10,12*$A60,4*(PlotControl!$C$6-1),12,1))) -> 871740.8333 | Y60: =IF(PlotControl!$B$4 = "Annual Max",MAX(OFFSET('1ECoarse'!$E$10,12*$A60,4*(PlotControl!$C$6-1),12,1)),AVERAGE(OFFSET('1ECoarse'!$E$10,12*$A60,4*(PlotControl!$C$6-1),12,1))) -> 1233475
